Workbook

Sheet Kütük
A1: Kütük No | B1: Sıra No | C1: T.C. Kimlik No | D1: Adı Soyadı | E1: Alanı | F1: Dalı | G1: Sınıfı | H1: Getirdiği Belge | I1: Kayıt Tarihi | J1: Cinsi | K1: Tarihi | L1: No | M1: Cinsii | N1: Seri No | O1: No | P1: Açıklamalar | Q1: Diploma No | R1: Alanı | S1: Dalı | T1: Sınıfı | U1: Getirdigi Belge | V1: Cinsi | W1: Cinsi
A2: 1 | B2: 1 | C2: =IF(J2="Diploma",VLOOKUP(L2,'[1]Kütük1 Sorgu'!$A$2:$H$860,2,FALSE),"") ->  | D2: Yunus SUVAY | E2: Tesviye | H2: Diploma | I2: 1972-10-15 | J2: Diploma | K2: 1975-07-12 | L2: 1 | R2: Tesviye | S2: Bilgisayarlı Makine İmalatı | T2: 9-A | U2: Diploma | V2: Boş | W2: İşyeri Açma
B3: 2 | C3: =IF(J3="Diploma",VLOOKUP(L3,'[1]Kütük1 Sorgu'!$A$2:$H$860,2,FALSE),"") ->  | D3: Mehmet ERCİS | E3: İPTAL | H3: İPTAL | I3: 1975-10-15 | J3: İPTAL | P3: İPTAL | R3: Bilgisayar | S3: Elektrik Tesisat ve Pano Montörlüğü | T3: 9-B | U3: Nakil | V3: Diploma
B4: 3 | C4: =IF(J4="Diploma",VLOOKUP(L4,'[1]Kütük1 Sorgu'!$A$2:$H$860,2,FALSE),"") ->  | D4: Mehmet ERCİS | E4: Tesviye | H4: Diploma | I4: 1975-10-15 | J4: Diploma | K4: 1978-07-07 | L4: 196 | R4: Bilişim Teknolojileri | S4: Görüntü Ve Ses Sistemleri | T4: 9-C | U4: Tasdikname | V4: İPTAL
B5: 4 | C5: =IF(J5="Diploma",VLOOKUP(L5,'[1]Kütük1 Sorgu'!$A$2:$H$860,2,FALSE),"") ->  | D5: Yücel TOPCU | E5: Tesviye | H5: Diploma | I5: 1978-10-15 | J5: Tasdikname | K5: 1979-01-26 | L5: 211 | P5: Dosyası 19.02.1979 Tarih ve 510 / 95 Sayılı Yazı İle İstanbul Bayrampaşa EML ye Gönderildi | R5: Elektrik | S5: Makine Bakım Onarım | T5: 9-D | U5: İPTAL | V5: Nakil
B6: 5 | C6: =IF(J6="Diploma",VLOOKUP(L6,'[1]Kütük1 Sorgu'!$A$2:$H$860,2,FALSE),"") ->  | D6: Önder ESKİ | E6: Elektrik | H6: Tasdikname | I6: 1979-03-05 | J6: Diploma | K6: 1980-06-05 | L6: 442 | R6: Elektrik - Elektronik Teknolojisi | S6: Otomotiv Elektromekanik | T6: 9-E | V6: Ölüm
A7: 2 | B7: 1 | C7: =IF(J7="Diploma",VLOOKUP(L7,'[1]Kütük1 Sorgu'!$A$2:$H$860,2,FALSE),"") ->  | D7: Şükrü ÖZKILIÇ | E7: Tesviye | H7: Diploma | I7: 1972-10-15 | J7: Tasdikname | K7: 1973-09-25 | L7: 2 | P7: 25.09.1973 Tarihinde Tasdikname Alarak Kayseri Sanat Enstitüsüne Naklini Yaptırmıştır. | R7: Elektronik | S7: Veri Tabanı Programcılığı | T7: 9-F | V7: Tasdikname
B8: 2 | C8: =IF(J8="Diploma",VLOOKUP(L8,'[1]Kütük1 Sorgu'!$A$2:$H$860,2,FALSE),"") ->  | D8: Kazım SAĞLAM | E8: İPTAL | H8: İPTAL | I8: 1975-09-10 | J8: İPTAL | P8: İPTAL | R8: Kullanılabilir | S8: Web Programcılığı | T8: 9-G | V8: Okuyor
B9: 3 | C9: =IF(J9="Diploma",VLOOKUP(L9,'[1]Kütük1 Sorgu'!$A$2:$H$860,2,FALSE),"") ->  | D9: Kazım SAĞLAM | E9: Tesviye | H9: Diploma | I9: 1975-10-15 | J9: Diploma | K9: 1978-07-07 | L9: 197 | R9: Makina Teknolojisi | S9: Endüstriyel Kalıp | T9: 10-A
B10: 4 | C10: =IF(J10="Diploma",VLOOKUP(L10,'[1]Kütük1 Sorgu'!$A$2:$H$860,2,FALSE),"") ->  | D10: Hasan AYDAR | E10: Tesviye | H10: Diploma | I10: 1978-10-15 | J10: Diploma | K10: 1981-06-19 | L10: 494 | R10: Motor | T10: 10-B
B11: 5 | C11: =IF(J11="Diploma",VLOOKUP(L11,'[1]Kütük1 Sorgu'!$A$2:$H$860,2,FALSE),"") ->  | D11: Muzaffer BÜYÜK | E11: Tesviye | H11: Diploma | I11: 1985-10-03 | J11: Tasdikname | K11: 1990-08-02 | L11: 635 | R11: Motorlu Araçlar Teknolojisi | T11: 10-C
A12: 3 | B12: 1 | C12: =IF(J12="Diploma",VLOOKUP(L12,'[1]Kütük1 Sorgu'!$A$2:$H$860,2,FALSE),"") ->  | D12: Mehmet KARAKAŞ | E12: Tesviye | H12: Diploma | I12: 1972-10-15 | J12: Diploma | K12: 1975-07-12 | L12: 2 | R12: Ortak | T12: 10-D
B13: 2 | C13: =IF(J13="Diploma",VLOOKUP(L13,'[1]Kütük1 Sorgu'!$A$2:$H$860,2,FALSE),"") ->  | D13: Recep ALBAYRAK | E13: İPTAL | H13: İPTAL | I13: 1975-09-08 | J13: İPTAL | P13: İPTAL | R13: İPTAL | T13: 10-E
B14: 3 | C14: =IF(J14="Diploma",VLOOKUP(L14,'[1]Kütük1 Sorgu'!$A$2:$H$860,2,FALSE),"") ->  | D14: Recep ALBAYRAK | E14: Tesviye | H14: Diploma | I14: 1975-10-15 | J14: Diploma | K14: 1978-07-07 | L14: 198 | R14: KULLANILAMAZ | T14: 10-F
B15: 4 | C15: =IF(J15="Diploma",VLOOKUP(L15,'[1]Kütük1 Sorgu'!$A$2:$H$860,2,FALSE),"") ->  | D15: Ali BALTACI | E15: Tesviye | H15: Diploma | I15: 1978-10-15 | J15: Diploma | K15: 1981-06-19 | L15: 495 | T15: 10-G
B16: 5 | C16: =IF(J16="Diploma",VLOOKUP(L16,'[1]Kütük1 Sorgu'!$A$2:$H$860,2,FALSE),"") ->  | D16: Atilla KAMAN | E16: Tesviye | H16: Diploma | I16: 1985-09-06 | J16: Diploma | K16: 1988-09-12 | L16: 671 | P16: 11.02.2009 de Diploma Kayıt Örneği Verildi. | Q16: 5.73 | T16: 11-A
A17: 4 | B17: 1 | C17: =IF(J17="Diploma",VLOOKUP(L17,'[1]Kütük1 Sorgu'!$A$2:$H$860,2,FALSE),"") ->  | D17: Şükrü BAYRAK | E17: Tesviye | H17: Diploma | I17: 1972-10-15 | J17: Tasdikname | K17: 1974-09-12 | L17: 11 | T17: 11-B
B18: 2 | C18: =IF(J18="Diploma",VLOOKUP(L18,'[1]Kütük1 Sorgu'!$A$2:$H$860,2,FALSE),"") ->  | D18: Adem GÜRBÜZ | E18: İPTAL | H18: İPTAL | I18: 1975-09-17 | J18: İPTAL | P18: İPTAL | T18: 11-C
B19: 3 | C19: =IF(J19="Diploma",VLOOKUP(L19,'[1]Kütük1 Sorgu'!$A$2:$H$860,2,FALSE),"") ->  | D19: Adem GÜRBÜZ | E19: Tesviye | H19: Diploma | I19: 1975-10-15 | J19: Tasdikname | K19: 1979-03-26 | L19: 216 | T19: 11-D
B20: 4 | C20: =IF(J20="Diploma",VLOOKUP(L20,'[1]Kütük1 Sorgu'!$A$2:$H$860,2,FALSE),"") ->  | D20: Adnan Mehmet HATİPOĞULLARI | E20: Elektrik | H20: Diploma | I20: 1978-12-13 | J20: Diploma | K20: 1979-05-21 | L20: 344 | T20: 11-E
B21: 5 | C21: =IF(J21="Diploma",VLOOKUP(L21,'[1]Kütük1 Sorgu'!$A$2:$H$860,2,FALSE),"") ->  | D21: Recep ÖZSARI | E21: Tesviye | H21: Diploma | I21: 1979-10-05 | J21: Diploma | K21: 1984-06-22 | L21: 557 | Q21: 5.15 | T21: 11-F
A22: 5 | B22: 1 | C22: =IF(J22="Diploma",VLOOKUP(L22,'[1]Kütük1 Sorgu'!$A$2:$H$860,2,FALSE),"") ->  | D22: Ziya DİKKARTİN | E22: Tesviye | H22: Diploma | I22: 1972-10-15 | J22: Diploma | K22: 1975-07-12 | L22: 3 | T22: 11-G
B23: 2 | C23: =IF(J23="Diploma",VLOOKUP(L23,'[1]Kütük1 Sorgu'!$A$2:$H$860,2,FALSE),"") ->  | D23: Ahmet ÖZER | E23: İPTAL | H23: İPTAL | I23: 1975-09-01 | J23: İPTAL | P23: İPTAL | T23: 12-A
B24: 3 | C24: =IF(J24="Diploma",VLOOKUP(L24,'[1]Kütük1 Sorgu'!$A$2:$H$860,2,FALSE),"") ->  | D24: Ahmet ÖZER | E24: Tesviye | H24: Diploma | I24: 1975-10-15 | J24: Diploma | K24: 1978-07-07 | L24: 199 | T24: 12-B
B25: 4 | C25: =IF(J25="Diploma",VLOOKUP(L25,'[1]Kütük1 Sorgu'!$A$2:$H$860,2,FALSE),"") ->  | D25: Hacı Osman GÜDER | E25: Tesviye | H25: Diploma | I25: 1978-10-15 | J25: Tasdikname | K25: 1982-08-17 | L25: 330 | T25: 12-C
B26: 5 | C26: =IF(J26="Diploma",VLOOKUP(L26,'[1]Kütük1 Sorgu'!$A$2:$H$860,2,FALSE),"") ->  | D26: Mustafa KÖROĞLU | E26: Tesviye | H26: Diploma | I26: 1985-09-17 | J26: Diploma | K26: 1988-06-10 | L26: 657 | Q26: 7.12 | T26: 12-D
A27: 6 | B27: 1 | C27: =IF(J27="Diploma",VLOOKUP(L27,'[1]Kütük1 Sorgu'!$A$2:$H$860,2,FALSE),"") ->  | D27: Hamit TURAN | E27: Tesviye | H27: Diploma | I27: 1972-10-15 | J27: Diploma | K27: 1975-07-12 | L27: 4 | T27: 12-E
B28: 2 | C28: =IF(J28="Diploma",VLOOKUP(L28,'[1]Kütük1 Sorgu'!$A$2:$H$860,2,FALSE),"") ->  | D28: Şaban ŞIKLAROĞLU | E28: İPTAL | H28: İPTAL | I28: 1975-09-25 | J28: İPTAL | P28: İPTAL | T28: 12-F
B29: 3 | C29: =IF(J29="Diploma",VLOOKUP(L29,'[1]Kütük1 Sorgu'!$A$2:$H$860,2,FALSE),"") ->  | D29: Şaban ŞIKLAROĞLU | E29: Tesviye | H29: Diploma | I29: 1975-10-15 | J29: Tasdikname | K29: 1977-10-05 | L29: 82 | T29: 12-G
B30: 4 | C30: =IF(J30="Diploma",VLOOKUP(L30,'[1]Kütük1 Sorgu'!$A$2:$H$860,2,FALSE),"") ->  | D30: Ramazan KULAKOĞLU | E30: Tesviye | H30: Diploma | I30: 1977-09-22 | J30: Diploma | K30: 1980-06-05 | L30: 417
B31: 5 | C31: =IF(J31="Diploma",VLOOKUP(L31,'[1]Kütük1 Sorgu'!$A$2:$H$860,2,FALSE),"") ->  | D31: İlhan AYTEKİN | E31: Tesviye | H31: Diploma | I31: 1985-09-18 | J31: Diploma | K31: 1988-09-12 | L31: 672 | Q31: 6.74
A32: 7 | B32: 1 | C32: =IF(J32="Diploma",VLOOKUP(L32,'[1]Kütük1 Sorgu'!$A$2:$H$860,2,FALSE),"") ->  | D32: Hüseyin SUVAY | E32: Tesviye | H32: Diploma | I32: 1972-10-15 | J32: Diploma | K32: 1975-07-12 | L32: 5 | P32: Dosyası 4.7.1979 Tarih ve 510 / 326 nolu yazıyla Ankara Eğt.Ens.Gitti
B33: 2 | C33: =IF(J33="Diploma",VLOOKUP(L33,'[1]Kütük1 Sorgu'!$A$2:$H$860,2,FALSE),"") ->  | D33: Tufan AŞIK | E33: İPTAL | H33: İPTAL | I33: 1975-09-15 | J33: İPTAL | P33: İPTAL | R33: Hasan HAYTA | S33: 5372946753
B34: 3 | C34: =IF(J34="Diploma",VLOOKUP(L34,'[1]Kütük1 Sorgu'!$A$2:$H$860,2,FALSE),"") ->  | D34: Tufan AŞIK | E34: Tesviye | H34: Diploma | I34: 1975-10-15 | J34: Tasdikname | K34: 1976-04-14 | L34: 38 | P34: Üst Dis.Kur.2.4.1976.Tar.ve 473 nolu Kararı İle Tunceli EML ye Kaydı Yapılmıştır. | R34: MUSTAFA AYHAN | S34: 6218959 | T34: 5362524727
B35: 4 | C35: =IF(J35="Diploma",VLOOKUP(L35,'[1]Kütük1 Sorgu'!$A$2:$H$860,2,FALSE),"") ->  | D35: Kamuran BOZKURT | E35: Tesviye | H35: Tasdikname | I35: 1976-08-02 | J35: Tasdikname | K35: 1977-10-21 | L35: 90 | P35: Dosyası 21.05.1988 Tarihinde Kahramanmaraş Ticaret Lis. ne Gönderildi
B36: 5 | C36: =IF(J36="Diploma",VLOOKUP(L36,'[1]Kütük1 Sorgu'!$A$2:$H$860,2,FALSE),"") ->  | D36: Ekrem KARAGÖZ | E36: Tesviye | H36: Diploma | I36: 1978-10-15 | J36: Diploma | K36: 1981-06-19 | L36: 496
A37: 8 | B37: 1 | C37: =IF(J37="Diploma",VLOOKUP(L37,'[1]Kütük1 Sorgu'!$A$2:$H$860,2,FALSE),"") ->  | D37: M.Uğur KAPUSUZOĞLU | E37: Tesviye | H37: Diploma | I37: 1972-10-15 | J37: Diploma | K37: 1975-07-12 | L37: 6 | P37: Dosyası 01.06.1978 Tarih ve 510 / 250 nolu yazıyla Kayseri MesYük Ok.na Gitti
B38: 2 | C38: =IF(J38="Diploma",VLOOKUP(L38,'[1]Kütük1 Sorgu'!$A$2:$H$860,2,FALSE),"") ->  | D38: Abdulbaki KARACAOĞLAN | E38: İPTAL | H38: İPTAL | I38: 1975-09-25 | J38: İPTAL | P38: İPTAL
B39: 3 | C39: =IF(J39="Diploma",VLOOKUP(L39,'[1]Kütük1 Sorgu'!$A$2:$H$860,2,FALSE),"") ->  | D39: Abdulbaki KARACAOĞLAN | E39: Tesviye | H39: Tasdikname | I39: 1975-10-15 | J39: Tasdikname | K39: 1976-09-28 | L39: 45
B40: 4 | C40: =IF(J40="Diploma",VLOOKUP(L40,'[1]Kütük1 Sorgu'!$A$2:$H$860,2,FALSE),"") ->  | D40: Ali SADIK | E40: Tesviye | H40: Diploma | I40: 1976-10-15 | J40: Diploma | K40: 1979-05-21 | L40: 285
B41: 5 | C41: =IF(J41="Diploma",VLOOKUP(L41,'[1]Kütük1 Sorgu'!$A$2:$H$860,2,FALSE),"") ->  | D41: Seyit Ahmet GÜNDÜZ | E41: Tesviye | H41: Diploma | I41: 1979-10-08 | J41: Diploma | K41: 1983-09-14 | L41: 540 | Q41: 5.23
A42: 9 | B42: 1 | C42: =IF(J42="Diploma",VLOOKUP(L42,'[1]Kütük1 Sorgu'!$A$2:$H$860,2,FALSE),"") ->  | D42: Erdal ÇETİN | E42: Tesviye | H42: Diploma | I42: 1972-10-15 | J42: Diploma | K42: 1975-07-12 | L42: 7
B43: 2 | C43: =IF(J43="Diploma",VLOOKUP(L43,'[1]Kütük1 Sorgu'!$A$2:$H$860,2,FALSE),"") ->  | D43: Soner AVCI | E43: İPTAL | H43: İPTAL | I43: 1975-09-26 | J43: İPTAL | P43: İPTAL
B44: 3 | C44: =IF(J44="Diploma",VLOOKUP(L44,'[1]Kütük1 Sorgu'!$A$2:$H$860,2,FALSE),"") ->  | D44: Soner AVCI | E44: Tesviye | H44: Diploma | I44: 1975-10-15 | J44: Diploma | K44: 1978-07-07 | L44: 200
B45: 4 | C45: =IF(J45="Diploma",VLOOKUP(L45,'[1]Kütük1 Sorgu'!$A$2:$H$860,2,FALSE),"") ->  | D45: Ahmet YALÇIN | E45: Tesviye | H45: Diploma | I45: 1978-10-15 | J45: Tasdikname | K45: 1979-09-21 | L45: 222 | P45: Dosyası 22.10.1979 Tarih ve 510 / 408 Sayılı Yazı İle Kayseri EML ye Gönderildi
B46: 5 | C46: =IF(J46="Diploma",VLOOKUP(L46,'[1]Kütük1 Sorgu'!$A$2:$H$860,2,FALSE),"") ->  | D46: Ayhan COŞKUN | E46: Tesviye | H46: Tasdikname | I46: 1980-06-02 | J46: Diploma | K46: 1982-09-22 | L46: 534
A47: 10 | B47: 1 | C47: =IF(J47="Diploma",VLOOKUP(L47,'[1]Kütük1 Sorgu'!$A$2:$H$860,2,FALSE),"") ->  | D47: Mustafa ELÖNÜ | E47: Tesviye | H47: Diploma | I47: 1972-10-15 | J47: Diploma | K47: 1975-07-12 | L47: 8
B48: 2 | C48: =IF(J48="Diploma",VLOOKUP(L48,'[1]Kütük1 Sorgu'!$A$2:$H$860,2,FALSE),"") ->  | D48: Adem ÖZDEMİR | E48: İPTAL | H48: İPTAL | I48: 1975-09-06 | J48: İPTAL | P48: İPTAL
B49: 3 | C49: =IF(J49="Diploma",VLOOKUP(L49,'[1]Kütük1 Sorgu'!$A$2:$H$860,2,FALSE),"") ->  | D49: Adem ÖZDEMİR | E49: Tesviye | H49: Diploma | I49: 1975-09-16 | J49: Diploma | K49: 1978-07-07 | L49: 201
B50: 4 | C50: =IF(J50="Diploma",VLOOKUP(L50,'[1]Kütük1 Sorgu'!$A$2:$H$860,2,FALSE),"") ->  | D50: Kemal ULUÇAY | E50: Tesviye | H50: Diploma | I50: 1978-10-15 | J50: Tasdikname | K50: 1982-06-08 | L50: 329 | P50: 01.07.2008 de Diploma Kayıt Örneği Verildi.
B51: 5 | C51: =IF(J51="Diploma",VLOOKUP(L51,'[1]Kütük1 Sorgu'!$A$2:$H$860,2,FALSE),"") ->  | D51: Ahmet MAİLMAİL | E51: Tesviye | H51: Diploma | I51: 1985-09-20 | J51: Diploma | K51: 1988-09-12 | L51: 673 | Q51: 5.67
A52: 11 | B52: 1 | C52: =IF(J52="Diploma",VLOOKUP(L52,'[1]Kütük1 Sorgu'!$A$2:$H$860,2,FALSE),"") ->  | D52: İsmail BENLİ | E52: Tesviye | H52: Diploma | I52: 1972-10-15 | J52: Diploma | K52: 1975-07-12 | L52: 9 | P52: 15.11.2005 ve 25.02.2008 Tarihlerinde Kayıp Yerine Belge Verilmiştir. ( 2 Sefer )
B53: 2 | C53: =IF(J53="Diploma",VLOOKUP(L53,'[1]Kütük1 Sorgu'!$A$2:$H$860,2,FALSE),"") ->  | D53: Mahmut ÇANDIROĞLU | E53: İPTAL | H53: İPTAL | I53: 1975-09-16 | J53: İPTAL | P53: İPTAL
B54: 3 | C54: =IF(J54="Diploma",VLOOKUP(L54,'[1]Kütük1 Sorgu'!$A$2:$H$860,2,FALSE),"") ->  | D54: Mahmut ÇANDIROĞLU | E54: Tesviye | H54: Tasdikname | I54: 1975-09-16 | J54: Tasdikname | K54: 1975-12-26 | L54: 33
B55: 4 | C55: =IF(J55="Diploma",VLOOKUP(L55,'[1]Kütük1 Sorgu'!$A$2:$H$860,2,FALSE),"") ->  | D55: Mehmet POYRAZ | E55: Elektrik | H55: Diploma | I55: 1976-10-15 | J55: Diploma | K55: 1979-05-21 | L55: 345
B56: 5 | C56: =IF(J56="Diploma",VLOOKUP(L56,'[1]Kütük1 Sorgu'!$A$2:$H$860,2,FALSE),"") ->  | D56: Metin ÇELİK | E56: Tesviye | H56: Tasdikname | I56: 1979-10-08 | J56: Tasdikname | K56: 1982-09-03 | L56: 332 | P56: Dosyası 01.10.1982 Tarih ve 510 / 442 Sayılı Yazı İle Ank.A.Poza EML ye Gönderildi
A57: 12 | B57: 1 | C57: =IF(J57="Diploma",VLOOKUP(L57,'[1]Kütük1 Sorgu'!$A$2:$H$860,2,FALSE),"") ->  | D57: Ramazan DEMİR | E57: Tesviye | H57: Diploma | I57: 1972-10-15 | J57: Diploma | K57: 1975-07-12 | L57: 10
B58: 2 | C58: =IF(J58="Diploma",VLOOKUP(L58,'[1]Kütük1 Sorgu'!$A$2:$H$860,2,FALSE),"") ->  | D58: Bilal UĞURLU | E58: Tesviye | H58: Diploma | I58: 1975-10-15 | J58: Tasdikname | K58: 1977-10-03 | L58: 71
B59: 3 | C59: =IF(J59="Diploma",VLOOKUP(L59,'[1]Kütük1 Sorgu'!$A$2:$H$860,2,FALSE),"") ->  | D59: Mehmet SORGUNLU | E59: Tesviye | H59: Tasdikname | I59: 1977-09-19 | J59: Tasdikname | K59: 1977-10-05 | L59: 78 | P59: Dosyası 15.01.1979 Tarih ve 510 / 37 Sayılı Yazı İle Yozgat EML ye Gönderildi
B60: 4 | C60: =IF(J60="Diploma",VLOOKUP(L60,'[1]Kütük1 Sorgu'!$A$2:$H$860,2,FALSE),"") ->  | D60: Oğuz ÖZKAN | E60: Tesviye | H60: Diploma | I60: 1977-09-22 | J60: Tasdikname | K60: 1977-12-22 | L60: 98
B61: 5 | C61: =IF(J61="Diploma",VLOOKUP(L61,'[1]Kütük1 Sorgu'!$A$2:$H$860,2,FALSE),"") ->  | D61: Çoşkun ÇERÇİ | E61: Tesviye | H61: Diploma | I61: 1978-10-15 | J61: Tasdikname | K61: 1978-11-22 | L61: 208
A62: 13 | B62: 1 | C62: =IF(J62="Diploma",VLOOKUP(L62,'[1]Kütük1 Sorgu'!$A$2:$H$860,2,FALSE),"") ->  | D62: Murat SOYLU | E62: Tesviye | H62: Diploma | I62: 1972-10-15 | J62: Diploma | K62: 1975-07-12 | L62: 11
B63: 2 | C63: =IF(J63="Diploma",VLOOKUP(L63,'[1]Kütük1 Sorgu'!$A$2:$H$860,2,FALSE),"") ->  | D63: Şaban KILIÇKAYA | E63: Tesviye | H63: Diploma | I63: 1975-10-15 | J63: Diploma | K63: 1978-07-07 | L63: 202
B64: 3 | C64: =IF(J64="Diploma",VLOOKUP(L64,'[1]Kütük1 Sorgu'!$A$2:$H$860,2,FALSE),"") ->  | D64: Zafer SÜRER | E64: Tesviye | H64: Diploma | I64: 1978-10-15 | J64: Diploma | K64: 1981-06-19 | L64: 497
B65: 4 | C65: =IF(J65="Diploma",VLOOKUP(L65,'[1]Kütük1 Sorgu'!$A$2:$H$860,2,FALSE),"") ->  | D65: Musa YAZAR | E65: Tesviye | H65: Diploma | I65: 1984-09-24 | J65: Tasdikname | K65: 1986-09-22 | L65: 404
B66: 5 | C66: =IF(J66="Diploma",VLOOKUP(L66,'[1]Kütük1 Sorgu'!$A$2:$H$860,2,FALSE),"") ->  | D66: Mehmet DEĞİRMENCİ | E66: Tesviye | H66: Diploma | I66: 1986-08-26 | J66: Tasdikname | K66: 1987-03-31 | L66: 539
A67: 14 | B67: 1 | C67: =IF(J67="Diploma",VLOOKUP(L67,'[1]Kütük1 Sorgu'!$A$2:$H$860,2,FALSE),"") ->  | D67: Recep SAMATLI | E67: Tesviye | H67: Diploma | I67: 1972-10-15 | J67: Diploma | K67: 1975-07-12 | L67: 12
B68: 2 | C68: =IF(J68="Diploma",VLOOKUP(L68,'[1]Kütük1 Sorgu'!$A$2:$H$860,2,FALSE),"") ->  | D68: Adnan COŞKUN | E68: Tesviye | H68: Diploma | I68: 1975-10-15 | J68: Diploma | K68: 1979-05-21 | L68: 286
B69: 3 | C69: =IF(J69="Diploma",VLOOKUP(L69,'[1]Kütük1 Sorgu'!$A$2:$H$860,2,FALSE),"") ->  | D69: İsmail KOZAN | E69: Tesviye | H69: Diploma | I69: 1979-10-09 | J69: Diploma | K69: 1982-09-07 | L69: 528
B70: 4 | C70: =IF(J70="Diploma",VLOOKUP(L70,'[1]Kütük1 Sorgu'!$A$2:$H$860,2,FALSE),"") ->  | D70: Şuayip BAKKAL | E70: Elektrik | H70: Diploma | I70: 1984-09-14 | J70: Tasdikname | K70: 1986-09-22 | L70: 503
B71: 5 | C71: =IF(J71="Diploma",VLOOKUP(L71,'[1]Kütük1 Sorgu'!$A$2:$H$860,2,FALSE),"") ->  | D71: Cemal YILMAZ | E71: Elektrik | H71: Diploma | I71: 1986-09-22 | J71: Diploma | K71: 1989-06-09 | L71: 728 | Q71: 6.07
A72: 15 | B72: 1 | C72: =IF(J72="Diploma",VLOOKUP(L72,'[1]Kütük1 Sorgu'!$A$2:$H$860,2,FALSE),"") ->  | D72: Ali COŞKUN | E72: Tesviye | H72: Diploma | I72: 1972-10-15 | J72: Tasdikname | K72: 1973-10-20 | L72: 8 | P72: Kayseri Sanat Ens.Kaydını Yaptırmıştır.
B73: 2 | C73: =IF(J73="Diploma",VLOOKUP(L73,'[1]Kütük1 Sorgu'!$A$2:$H$860,2,FALSE),"") ->  | D73: Ali COŞKUN | E73: Tesviye | H73: Tasdikname | I73: 1974-09-20 | J73: Diploma | K73: 1976-05-24 | L73: 75
B74: 3 | C74: =IF(J74="Diploma",VLOOKUP(L74,'[1]Kütük1 Sorgu'!$A$2:$H$860,2,FALSE),"") ->  | D74: Yusuf ACUN | E74: Tesviye | H74: Diploma | I74: 1976-10-15 | J74: Diploma | K74: 1979-05-21 | L74: 287
B75: 4 | C75: =IF(J75="Diploma",VLOOKUP(L75,'[1]Kütük1 Sorgu'!$A$2:$H$860,2,FALSE),"") ->  | D75: Süleyman GÖNEN | E75: Tesviye | H75: Diploma | I75: 1979-10-09 | J75: Tasdikname | K75: 1984-06-05 | L75: 350
B76: 5 | C76: =IF(J76="Diploma",VLOOKUP(L76,'[1]Kütük1 Sorgu'!$A$2:$H$860,2,FALSE),"") ->  | D76: Yaşar ERTUĞRUL | E76: Tesviye | H76: Diploma | I76: 1985-09-23 | J76: Diploma | K76: 1989-09-12 | L76: 753 | Q76: 5.63
A77: 16 | B77: 1 | C77: =IF(J77="Diploma",VLOOKUP(L77,'[1]Kütük1 Sorgu'!$A$2:$H$860,2,FALSE),"") ->  | D77: Ahmet GENÇ | E77: Tesviye | H77: Diploma | I77: 1972-10-15 | J77: Diploma | K77: 1975-07-12 | L77: 13
B78: 2 | C78: =IF(J78="Diploma",VLOOKUP(L78,'[1]Kütük1 Sorgu'!$A$2:$H$860,2,FALSE),"") ->  | D78: Osman TAN | E78: Tesviye | H78: Diploma | I78: 1975-10-15 | J78: Diploma | K78: 1979-05-21 | L78: 288
B79: 3 | C79: =IF(J79="Diploma",VLOOKUP(L79,'[1]Kütük1 Sorgu'!$A$2:$H$860,2,FALSE),"") ->  | D79: Mehmet ÖZKAN | E79: Tesviye | H79: Diploma | I79: 1979-10-09 | J79: Diploma | K79: 1982-06-11 | L79: 513
B80: 4 | C80: =IF(J80="Diploma",VLOOKUP(L80,'[1]Kütük1 Sorgu'!$A$2:$H$860,2,FALSE),"") ->  | D80: Hüseyin MAMAK | E80: Elektrik | H80: Diploma | I80: 1984-09-18 | J80: Tasdikname | K80: 1987-01-06 | L80: 532
B81: 5 | C81: =IF(J81="Diploma",VLOOKUP(L81,'[1]Kütük1 Sorgu'!$A$2:$H$860,2,FALSE),"") ->  | D81: Mehmet KÜNYE | E81: Tesviye | H81: Diploma | I81: 1987-08-19 | J81: Diploma | K81: 1990-06-08 | L81: 779 | Q81: 6.93
A82: 17 | B82: 1 | C82: =IF(J82="Diploma",VLOOKUP(L82,'[1]Kütük1 Sorgu'!$A$2:$H$860,2,FALSE),"") ->  | D82: Zekerika TURHAN | E82: Tesviye | H82: Diploma | I82: 1972-10-15 | J82: Tasdikname | K82: 1973-10-20 | L82: 7 | P82: Kayseri Sanat Ens.Kaydını Yaptırmıştır.
B83: 2 | C83: =IF(J83="Diploma",VLOOKUP(L83,'[1]Kütük1 Sorgu'!$A$2:$H$860,2,FALSE),"") ->  | D83: Ramazan ÖZKUL | E83: Tesviye | H83: Diploma | I83: 1975-10-15 | J83: Diploma | K83: 1978-07-07 | L83: 203
B84: 3 | C84: =IF(J84="Diploma",VLOOKUP(L84,'[1]Kütük1 Sorgu'!$A$2:$H$860,2,FALSE),"") ->  | D84: Yücel BURCUM | E84: Tesviye | H84: Diploma | I84: 1978-10-15 | J84: Tasdikname | K84: 1980-11-28 | L84: 289 | P84: Dosyası 08.12.1980 Tarih ve 510 / 651 Sayılı Yazı İle Niğde EML ye Gönderildi
B85: 4 | C85: =IF(J85="Diploma",VLOOKUP(L85,'[1]Kütük1 Sorgu'!$A$2:$H$860,2,FALSE),"") ->  | D85: Hakan YILMAZ | E85: Tesviye | H85: Diploma | I85: 1984-09-24 | J85: Diploma | K85: 1988-09-12 | L85: 686 | P85: 18.8.2003 de Diploma Kayıt Örneği Verildi. | Q85: 5.34
B86: 5 | C86: =IF(J86="Diploma",VLOOKUP(L86,'[1]Kütük1 Sorgu'!$A$2:$H$860,2,FALSE),"") ->  | D86: Süleyman CİNGÖZ | E86: Tesviye | H86: Diploma | I86: 1988-09-14 | J86: Tasdikname | K86: 1989-11-29 | L86: 614
A87: 18 | B87: 1 | C87: =IF(J87="Diploma",VLOOKUP(L87,'[1]Kütük1 Sorgu'!$A$2:$H$860,2,FALSE),"") ->  | D87: Yaşar ÖZBEK | E87: Tesviye | H87: Diploma | I87: 1972-10-15 | J87: Diploma | K87: 1975-07-12 | L87: 14
B88: 2 | C88: =IF(J88="Diploma",VLOOKUP(L88,'[1]Kütük1 Sorgu'!$A$2:$H$860,2,FALSE),"") ->  | D88: Yusuf UNUTULMAZ | E88: Tesviye | H88: Diploma | I88: 1975-10-15 | J88: Diploma | K88: 1978-07-07 | L88: 204
B89: 3 | C89: =IF(J89="Diploma",VLOOKUP(L89,'[1]Kütük1 Sorgu'!$A$2:$H$860,2,FALSE),"") ->  | D89: Eyüp AYHAN | E89: Tesviye | H89: Diploma | I89: 1978-10-15 | J89: Diploma | K89: 1981-06-19 | L89: 498
B90: 4 | C90: =IF(J90="Diploma",VLOOKUP(L90,'[1]Kütük1 Sorgu'!$A$2:$H$860,2,FALSE),"") ->  | D90: Hüseyin TEKE | E90: Tesviye | H90: Diploma | I90: 1984-09-24 | J90: Tasdikname | K90: 1988-10-28 | L90: 583
B91: 5 | C91: =IF(J91="Diploma",VLOOKUP(L91,'[1]Kütük1 Sorgu'!$A$2:$H$860,2,FALSE),"") ->  | D91: Ercan ÇANTI | E91: Elektrik | H91: Diploma | I91: 1989-09-18 | J91: Tasdikname | K91: 1993-07-30 | L91: 723
A92: 19 | B92: 1 | C92: =IF(J92="Diploma",VLOOKUP(L92,'[1]Kütük1 Sorgu'!$A$2:$H$860,2,FALSE),"") ->  | D92: Mehmet SAMATLI | E92: Tesviye | H92: Diploma | I92: 1972-10-15 | J92: Diploma | K92: 1975-07-12 | L92: 15
B93: 2 | C93: =IF(J93="Diploma",VLOOKUP(L93,'[1]Kütük1 Sorgu'!$A$2:$H$860,2,FALSE),"") ->  | D93: Erol SEVİMAY | E93: Tesviye | H93: Diploma | I93: 1975-10-15 | J93: Diploma | K93: 1978-07-07 | L93: 205
B94: 3 | C94: =IF(J94="Diploma",VLOOKUP(L94,'[1]Kütük1 Sorgu'!$A$2:$H$860,2,FALSE),"") ->  | D94: İrfan ALTINOK | E94: Tesviye | H94: Diploma | I94: 1978-10-15 | J94: Diploma | K94: 1981-09-08 | L94: 503
B95: 4 | C95: =IF(J95="Diploma",VLOOKUP(L95,'[1]Kütük1 Sorgu'!$A$2:$H$860,2,FALSE),"") ->  | D95: Ali ADAÇOĞLU | E95: Elektrik | H95: Diploma | I95: 1984-09-18 | J95: Diploma | K95: 1987-05-27 | L95: 622 | Q95: 7.24
B96: 5 | C96: =IF(J96="Diploma",VLOOKUP(L96,'[1]Kütük1 Sorgu'!$A$2:$H$860,2,FALSE),"") ->  | D96: İbrahim KABAK | E96: Elektrik | H96: Diploma | I96: 1987-08-25 | J96: Diploma | K96: 1990-09-11 | L96: 823 | Q96: 6.08
A97: 20 | B97: 1 | C97: =IF(J97="Diploma",VLOOKUP(L97,'[1]Kütük1 Sorgu'!$A$2:$H$860,2,FALSE),"") ->  | D97: Cemalettin BALOĞLU | E97: Tesviye | H97: Diploma | I97: 1972-10-15 | J97: Diploma | K97: 1975-07-12 | L97: 16
B98: 2 | C98: =IF(J98="Diploma",VLOOKUP(L98,'[1]Kütük1 Sorgu'!$A$2:$H$860,2,FALSE),"") ->  | D98: Osman EMİR | E98: Tesviye | H98: Diploma | I98: 1975-10-15 | J98: Diploma | K98: 1978-07-07 | L98: 206
B99: 3 | C99: =IF(J99="Diploma",VLOOKUP(L99,'[1]Kütük1 Sorgu'!$A$2:$H$860,2,FALSE),"") ->  | D99: Arif KARA | E99: Tesviye | H99: Diploma | I99: 1978-10-15 | J99: Tasdikname | K99: 1986-08-13 | L99: 390
B100: 4 | C100: =IF(J100="Diploma",VLOOKUP(L100,'[1]Kütük1 Sorgu'!$A$2:$H$860,2,FALSE),"") ->  | D100: Tekin TOKER | E100: Elektrik | H100: Diploma | I100: 1986-09-26 | J100: Diploma | K100: 1989-09-12 | L100: 764 | Q100: 5.34
B101: 5 | C101: =IF(J101="Diploma",VLOOKUP(L101,'[1]Kütük1 Sorgu'!$A$2:$H$860,2,FALSE),"") ->  | D101: Mustafa KESKİNKILIÇ | E101: Elektrik | H101: Diploma | I101: 1989-09-12 | J101: Diploma | K101: 1992-06-05 | L101: 925 | Q101: 6.27
A102: 21 | B102: 1 | C102: =IF(J102="Diploma",VLOOKUP(L102,'[1]Kütük1 Sorgu'!$A$2:$H$860,2,FALSE),"") ->  | D102: Fahri DİNÇ | E102: Tesviye | H102: Diploma | I102: 1972-10-15 | J102: Diploma | K102: 1975-07-12 | L102: 17 | P102: 21.8.1984 de510 / 438 nolu Diploma Kayıt Örneği Verildi.
B103: 2 | C103: =IF(J103="Diploma",VLOOKUP(L103,'[1]Kütük1 Sorgu'!$A$2:$H$860,2,FALSE),"") ->  | D103: Adnan DOĞAN | E103: Tesviye | H103: Diploma | I103: 1975-10-15 | J103: Tasdikname | K103: 1976-10-06 | L103: 53
B104: 3 | C104: =IF(J104="Diploma",VLOOKUP(L104,'[1]Kütük1 Sorgu'!$A$2:$H$860,2,FALSE),"") ->  | D104: Hasan KIDAM | E104: Tesviye | H104: Diploma | I104: 1977-09-22 | J104: Diploma | K104: 1980-06-05 | L104: 418
B105: 4 | C105: =IF(J105="Diploma",VLOOKUP(L105,'[1]Kütük1 Sorgu'!$A$2:$H$860,2,FALSE),"") ->  | D105: İbrahim BULUT | E105: Tesviye | H105: Diploma | I105: 1980-09-22 | J105: Tasdikname | K105: 1980-12-03 | L105: 291
B106: 5 | C106: =IF(J106="Diploma",VLOOKUP(L106,'[1]Kütük1 Sorgu'!$A$2:$H$860,2,FALSE),"") ->  | D106: Murat ÖZBEK | E106: Tesviye | H106: Diploma | I106: 1985-09-24 | J106: Diploma | K106: 1988-09-12 | L106: 687 | Q106: 5.52
A107: 22 | B107: 1 | C107: =IF(J107="Diploma",VLOOKUP(L107,'[1]Kütük1 Sorgu'!$A$2:$H$860,2,FALSE),"") ->  | D107: Erol KALKANLI | E107: Tesviye | H107: Diploma | I107: 1972-10-15 | J107: Diploma | K107: 1975-07-12 | L107: 18 | P107: 25.3.1984 de 510 / 074 nolu Diploma Kayıt Örneği Verildi.
B108: 2 | C108: =IF(J108="Diploma",VLOOKUP(L108,'[1]Kütük1 Sorgu'!$A$2:$H$860,2,FALSE),"") ->  | D108: Mehmet İNCEDAL | E108: Tesviye | H108: Diploma | I108: 1975-10-15 | J108: Tasdikname | K108: 1977-04-28 | L108: 68
B109: 3 | C109: =IF(J109="Diploma",VLOOKUP(L109,'[1]Kütük1 Sorgu'!$A$2:$H$860,2,FALSE),"") ->  | D109: Ömer AKGÖL | E109: Tesviye | H109: Diploma | I109: 1977-09-22 | J109: Diploma | K109: 1980-07-11 | L109: 478
B110: 4 | C110: =IF(J110="Diploma",VLOOKUP(L110,'[1]Kütük1 Sorgu'!$A$2:$H$860,2,FALSE),"") ->  | D110: Halit ŞAHBAZ | E110: Tesviye | H110: Diploma | I110: 1980-09-24 | J110: Tasdikname | K110: 1984-09-04 | L110: 355
B111: 5 | C111: =IF(J111="Diploma",VLOOKUP(L111,'[1]Kütük1 Sorgu'!$A$2:$H$860,2,FALSE),"") ->  | D111: Mehmet EREN | E111: Elektrik | H111: Diploma | I111: 1984-09-20 | J111: Tasdikname | K111: 1987-07-31 | L111: 545
A112: 23 | B112: 1 | C112: =IF(J112="Diploma",VLOOKUP(L112,'[1]Kütük1 Sorgu'!$A$2:$H$860,2,FALSE),"") ->  | D112: Mehmet KANELCİ | E112: Tesviye | H112: Diploma | I112: 1972-10-15 | J112: Diploma | K112: 1975-07-12 | L112: 19
B113: 2 | C113: =IF(J113="Diploma",VLOOKUP(L113,'[1]Kütük1 Sorgu'!$A$2:$H$860,2,FALSE),"") ->  | D113: Dursun GÖKTAŞ | E113: Tesviye | H113: Diploma | I113: 1975-10-15 | J113: Tasdikname | K113: 1976-09-07 | L113: 42 | P113: Kayseriye Nakil Yaptırmıştır.
B114: 3 | C114: =IF(J114="Diploma",VLOOKUP(L114,'[1]Kütük1 Sorgu'!$A$2:$H$860,2,FALSE),"") ->  | D114: İzzet KÜŞAT | E114: Tesviye | H114: Diploma | I114: 1977-09-22 | J114: Diploma | K114: 1980-06-05 | L114: 419
B115: 4 | C115: =IF(J115="Diploma",VLOOKUP(L115,'[1]Kütük1 Sorgu'!$A$2:$H$860,2,FALSE),"") ->  | D115: Nazim KURT | E115: Tesviye | H115: Diploma | I115: 1980-09-24 | J115: Diploma | K115: 1983-09-14 | L115: 541 | Q115: 5.52
B116: 5 | C116: =IF(J116="Diploma",VLOOKUP(L116,'[1]Kütük1 Sorgu'!$A$2:$H$860,2,FALSE),"") ->  | D116: Fikret KOCATÜRK | E116: Tesviye | H116: Diploma | I116: 1985-09-29 | J116: Diploma | K116: 1988-09-12 | L116: 674 | Q116: 5.58
A117: 24 | B117: 1 | C117: =IF(J117="Diploma",VLOOKUP(L117,'[1]Kütük1 Sorgu'!$A$2:$H$860,2,FALSE),"") ->  | D117: Ahmet KARAGÖZ | E117: Tesviye | H117: Diploma | I117: 1972-10-15 | J117: Diploma | K117: 1975-07-12 | L117: 20
B118: 2 | C118: =IF(J118="Diploma",VLOOKUP(L118,'[1]Kütük1 Sorgu'!$A$2:$H$860,2,FALSE),"") ->  | D118: Mürsel ŞAHİN | E118: Tesviye | H118: Diploma | I118: 1975-10-15 | J118: Diploma | K118: 1978-09-29 | L118: 261 | P118: 04.11.2004 de Diploma Kayıt Örneği Verildi.
B119: 3 | C119: =IF(J119="Diploma",VLOOKUP(L119,'[1]Kütük1 Sorgu'!$A$2:$H$860,2,FALSE),"") ->  | D119: Yaşar KUZU | E119: Tesviye | H119: Diploma | I119: 1978-10-15 | J119: Diploma | K119: 1981-09-08 | L119: 504
B120: 4 | C120: =IF(J120="Diploma",VLOOKUP(L120,'[1]Kütük1 Sorgu'!$A$2:$H$860,2,FALSE),"") ->  | D120: Cumali YILMAZ | E120: Elektrik | H120: Diploma | I120: 1984-10-04 | J120: Diploma | K120: 1988-09-12 | L120: 675 | Q120: 5.43
B121: 5 | C121: =IF(J121="Diploma",VLOOKUP(L121,'[1]Kütük1 Sorgu'!$A$2:$H$860,2,FALSE),"") ->  | D121: İbrahim BAL | E121: Tesviye | H121: Diploma | I121: 1988-09-13 | J121: Tasdikname | K121: 1992-11-13 | L121: 714 | P121: 31.12.2004 de Tasdikname Kayıt Örneği Verildi.
A122: 25 | B122: 1 | C122: =IF(J122="Diploma",VLOOKUP(L122,'[1]Kütük1 Sorgu'!$A$2:$H$860,2,FALSE),"") ->  | D122: Hasan Hüseyin AŞIK | E122: Tesviye | H122: Diploma | I122: 1972-10-15 | J122: Tasdikname | K122: 1973-10-19 | L122: 4 | P122: Kayeriye Nakil Yaptırmıştır.
B123: 2 | C123: =IF(J123="Diploma",VLOOKUP(L123,'[1]Kütük1 Sorgu'!$A$2:$H$860,2,FALSE),"") ->  | D123: Hüseyin DEMİR | E123: Tesviye | H123: Diploma | I123: 1975-10-15 | J123: Diploma | K123: 1978-09-29 | L123: 262
B124: 3 | C124: =IF(J124="Diploma",VLOOKUP(L124,'[1]Kütük1 Sorgu'!$A$2:$H$860,2,FALSE),"") ->  | D124: Ahmet YILDIRIMLI | E124: Tesviye | H124: Diploma | I124: 1978-10-15 | J124: Diploma | K124: 1981-09-08 | L124: 505 | P124: 04.10.2006 de Diploma Kayıt Örneği Verildi.
B125: 4 | C125: =IF(J125="Diploma",VLOOKUP(L125,'[1]Kütük1 Sorgu'!$A$2:$H$860,2,FALSE),"") ->  | D125: Şaban TURAN | E125: Tesviye | H125: Diploma | I125: 1984-09-04 | J125: Tasdikname | K125: 1987-05-12 | L125: 540
B126: 5 | C126: =IF(J126="Diploma",VLOOKUP(L126,'[1]Kütük1 Sorgu'!$A$2:$H$860,2,FALSE),"") ->  | D126: Yüksel AYDOĞDU | E126: Tesviye | H126: Diploma | I126: 1987-08-27 | J126: Tasdikname | K126: 1990-08-06 | L126: 638
A127: 26 | B127: 1 | C127: =IF(J127="Diploma",VLOOKUP(L127,'[1]Kütük1 Sorgu'!$A$2:$H$860,2,FALSE),"") ->  | D127: Mehmet ÜNAL | E127: Tesviye | H127: Diploma | I127: 1972-10-15 | J127: Diploma | K127: 1975-07-12 | L127: 21
B128: 2 | C128: =IF(J128="Diploma",VLOOKUP(L128,'[1]Kütük1 Sorgu'!$A$2:$H$860,2,FALSE),"") ->  | D128: Şaban ASLAN | E128: Tesviye | H128: Diploma | I128: 1975-10-15 | J128: Diploma | K128: 1979-05-21 | L128: 289
B129: 3 | C129: =IF(J129="Diploma",VLOOKUP(L129,'[1]Kütük1 Sorgu'!$A$2:$H$860,2,FALSE),"") ->  | D129: Halil ERDANUŞ | E129: Tesviye | H129: Diploma | I129: 1979-10-16 | J129: Diploma | K129: 1982-06-11 | L129: 525
B130: 4 | C130: =IF(J130="Diploma",VLOOKUP(L130,'[1]Kütük1 Sorgu'!$A$2:$H$860,2,FALSE),"") ->  | D130: Nihat KAYA | E130: Tesviye | H130: Diploma | I130: 1984-09-16 | J130: Diploma | K130: 1988-09-21 | L130: 701 | P130: 03.05.2002 de Diploma Kayıt Örneği Verildi. | Q130: 5.76
B131: 5 | C131: =IF(J131="Diploma",VLOOKUP(L131,'[1]Kütük1 Sorgu'!$A$2:$H$860,2,FALSE),"") ->  | D131: Tevfik GÖNEN | E131: Tesviye | H131: Diploma | I131: 1988-09-22 | J131: Diploma | K131: 1991-09-09 | L131: 894 | Q131: 5.62
A132: 27 | B132: 1 | C132: =IF(J132="Diploma",VLOOKUP(L132,'[1]Kütük1 Sorgu'!$A$2:$H$860,2,FALSE),"") ->  | D132: Suat SÖNMEZ | E132: Tesviye | H132: Diploma | I132: 1972-10-15 | J132: Diploma | K132: 1975-07-12 | L132: 22
B133: 2 | C133: =IF(J133="Diploma",VLOOKUP(L133,'[1]Kütük1 Sorgu'!$A$2:$H$860,2,FALSE),"") ->  | D133: Adnan BİLGİN | E133: Tesviye | H133: Diploma | I133: 1975-10-15 | J133: Tasdikname | K133: 1976-05-13 | L133: 39 | P133: Üst Dis.Kur.19.4.1976.Tar.ve 478 nolu Kararı İle Tasdikname ile ayrılmıştır.
B134: 3 | C134: =IF(J134="Diploma",VLOOKUP(L134,'[1]Kütük1 Sorgu'!$A$2:$H$860,2,FALSE),"") ->  | D134: Osman YILDIZ | E134: Tesviye | H134: Diploma | I134: 1976-10-15 | J134: Diploma | K134: 1979-05-21 | L134: 290 | P134: 18.02.2009 de Diploma Kayıt Örneği Verildi.
B135: 4 | C135: =IF(J135="Diploma",VLOOKUP(L135,'[1]Kütük1 Sorgu'!$A$2:$H$860,2,FALSE),"") ->  | D135: Erhan ÖZABIN | E135: Tesviye | H135: Diploma | I135: 1979-10-10 | J135: Tasdikname | K135: 1980-09-30 | L135: 277 | P135: Dosyası 18.11.1980 Tarih ve 510 / 577 Sayılı Yazı İle Bor EML ye Gönderildi
B136: 5 | C136: =IF(J136="Diploma",VLOOKUP(L136,'[1]Kütük1 Sorgu'!$A$2:$H$860,2,FALSE),"") ->  | D136: Soner BOYAR | E136: Tesviye | H136: Diploma | I136: 1984-09-14 | J136: Tasdikname | K136: 1989-05-16 | L136: 595
A137: 28 | B137: 1 | C137: =IF(J137="Diploma",VLOOKUP(L137,'[1]Kütük1 Sorgu'!$A$2:$H$860,2,FALSE),"") ->  | D137: Ahmet ÖZKAN | E137: Tesviye | H137: Diploma | I137: 1972-10-15 | J137: Diploma | K137: 1975-07-12 | L137: 23 | P137: Dosyası 07.07.1978 Tarih ve 510 / 340 Sayılı Yazı İle Kayseri Eğt.Ens. ye Gönderildi
B138: 2 | C138: =IF(J138="Diploma",VLOOKUP(L138,'[1]Kütük1 Sorgu'!$A$2:$H$860,2,FALSE),"") ->  | D138: İhsan ARSLAN | E138: Tesviye | H138: Diploma | I138: 1975-10-15 | J138: Diploma | K138: 1978-07-07 | L138: 207
B139: 3 | C139: =IF(J139="Diploma",VLOOKUP(L139,'[1]Kütük1 Sorgu'!$A$2:$H$860,2,FALSE),"") ->  | D139: Gazi BÜYÜMEZ | E139: Tesviye | H139: Diploma | I139: 1978-10-15 | J139: Diploma | K139: 1984-06-22 | L139: 559 | Q139: 5.09
B140: 4 | C140: =IF(J140="Diploma",VLOOKUP(L140,'[1]Kütük1 Sorgu'!$A$2:$H$860,2,FALSE),"") ->  | D140: Fikret KOYA | E140: Tesviye | H140: Diploma | I140: 1984-09-24 | J140: Tasdikname | K140: 1987-01-06 | L140: 533
B141: 5 | C141: =IF(J141="Diploma",VLOOKUP(L141,'[1]Kütük1 Sorgu'!$A$2:$H$860,2,FALSE),"") ->  | D141: Hasan EKEN | E141: Elektrik | H141: Diploma | I141: 1987-09-01 | J141: Diploma | K141: 1990-06-08 | L141: 790 | Q141: 6.69
A142: 29 | B142: 1 | C142: =IF(J142="Diploma",VLOOKUP(L142,'[1]Kütük1 Sorgu'!$A$2:$H$860,2,FALSE),"") ->  | D142: Mustafa YAZICI | E142: Tesviye | H142: Diploma | I142: 1972-10-15 | J142: Tasdikname | K142: 1973-10-19 | L142: 5 | P142: Kayseri Sanat Ens.Kaydını Yaptırmıştır.
B143: 2 | C143: =IF(J143="Diploma",VLOOKUP(L143,'[1]Kütük1 Sorgu'!$A$2:$H$860,2,FALSE),"") ->  | D143: Salim PEKDEMİR | E143: Tesviye | H143: Diploma | I143: 1975-10-15 | J143: Diploma | K143: 1978-07-07 | L143: 208 | P143: 9.5.1983 de 510 / 219 nolu Diploma Kayıt Örneği Verildi.
B144: 3 | C144: =IF(J144="Diploma",VLOOKUP(L144,'[1]Kütük1 Sorgu'!$A$2:$H$860,2,FALSE),"") ->  | D144: Ömer ÇAPAN | E144: Tesviye | H144: Diploma | I144: 1978-10-15 | J144: Tasdikname | K144: 1979-11-09 | L144: 242 | P144: Dosyası 15.11.1979 Tarih ve 510 / 504 Sayılı Yazı İle Kayseri E.M.L. ye Gönderildi
B145: 4 | C145: =IF(J145="Diploma",VLOOKUP(L145,'[1]Kütük1 Sorgu'!$A$2:$H$860,2,FALSE),"") ->  | D145: Nadi GÖÇER | E145: İPTAL | H145: İPTAL | I145: 1979-03-05 | J145: İPTAL | P145: İPTAL 30.Sayfada Yazılı
B146: 5 | C146: =IF(J146="Diploma",VLOOKUP(L146,'[1]Kütük1 Sorgu'!$A$2:$H$860,2,FALSE),"") ->  | D146: Ali KOCATÜRK | E146: Tesviye | H146: Diploma | I146: 1980-09-30 | J146: Diploma | K146: 1984-09-14 | L146: 572 | Q146: 5.55
A147: 30 | B147: 1 | C147: =IF(J147="Diploma",VLOOKUP(L147,'[1]Kütük1 Sorgu'!$A$2:$H$860,2,FALSE),"") ->  | D147: İlhami ÖZKARA | E147: Tesviye | H147: Diploma | I147: 1972-10-15 | J147: Diploma | K147: 1975-07-12 | L147: 24 | P147: Dosyası 07.07.1978 Tarih ve 510 / 344 Sayılı Yazı İle Kayseri Eğt.Ens. ye Gönderildi
B148: 2 | C148: =IF(J148="Diploma",VLOOKUP(L148,'[1]Kütük1 Sorgu'!$A$2:$H$860,2,FALSE),"") ->  | D148: İsmail TOSUN | E148: Tesviye | H148: Diploma | I148: 1975-10-15 | J148: Tasdikname | K148: 1980-12-08 | L148: 293
B149: 3 | C149: =IF(J149="Diploma",VLOOKUP(L149,'[1]Kütük1 Sorgu'!$A$2:$H$860,2,FALSE),"") ->  | D149: Adem YILMAZ | E149: Elektrik | H149: Diploma | I149: 1976-10-15 | J149: Tasdikname | K149: 1978-01-09 | L149: 110
B150: 4 | C150: =IF(J150="Diploma",VLOOKUP(L150,'[1]Kütük1 Sorgu'!$A$2:$H$860,2,FALSE),"") ->  | D150: Hacı KOLAY | E150: Tesviye | H150: Diploma | I150: 1978-10-15 | J150: Tasdikname | K150: 1979-03-05 | L150: 215
B151: 5 | C151: =IF(J151="Diploma",VLOOKUP(L151,'[1]Kütük1 Sorgu'!$A$2:$H$860,2,FALSE),"") ->  | D151: Nadi GÖÇER | E151: Tesviye | H151: Tasdikname | I151: 1979-03-05 | J151: Diploma | K151: 1979-05-21 | L151: 291
A152: 31 | B152: 1 | C152: =IF(J152="Diploma",VLOOKUP(L152,'[1]Kütük1 Sorgu'!$A$2:$H$860,2,FALSE),"") ->  | D152: Adem ŞİŞLİ | E152: Tesviye | H152: Diploma | I152: 1972-10-15 | J152: Tasdikname | K152: 1975-10-17 | L152: 27
B153: 2 | C153: =IF(J153="Diploma",VLOOKUP(L153,'[1]Kütük1 Sorgu'!$A$2:$H$860,2,FALSE),"") ->  | D153: Mustafa YALÇIN | E153: Tesviye | H153: Diploma | I153: 1975-10-15 | J153: Diploma | K153: 1979-05-21 | L153: 292
B154: 3 | C154: =IF(J154="Diploma",VLOOKUP(L154,'[1]Kütük1 Sorgu'!$A$2:$H$860,2,FALSE),"") ->  | D154: Mesut ALADAĞ | E154: Tesviye | H154: Diploma | I154: 1979-10-10 | J154: Tasdikname | K154: 1986-08-13 | L154: 391
B155: 4 | C155: =IF(J155="Diploma",VLOOKUP(L155,'[1]Kütük1 Sorgu'!$A$2:$H$860,2,FALSE),"") ->  | D155: İbrahim DEMİREZEN | E155: Elektrik | H155: Diploma | I155: 1986-09-15 | J155: Diploma | K155: 1989-06-09 | L155: 729 | Q155: 6.08
B156: 5 | C156: =IF(J156="Diploma",VLOOKUP(L156,'[1]Kütük1 Sorgu'!$A$2:$H$860,2,FALSE),"") ->  | D156: Faruk ERKİN | E156: Elektrik | H156: Diploma | I156: 1989-09-18 | J156: Diploma | K156: 1992-05-05 | L156: 926 | Q156: 6.24
A157: 32 | B157: 1 | C157: =IF(J157="Diploma",VLOOKUP(L157,'[1]Kütük1 Sorgu'!$A$2:$H$860,2,FALSE),"") ->  | D157: Fikret TÜRKASLAN | E157: Tesviye | H157: Diploma | I157: 1972-10-15 | J157: Diploma | K157: 1975-07-12 | L157: 25
B158: 2 | C158: =IF(J158="Diploma",VLOOKUP(L158,'[1]Kütük1 Sorgu'!$A$2:$H$860,2,FALSE),"") ->  | D158: Ramazan ÖZDEMİR | E158: Tesviye | H158: Diploma | I158: 1975-10-15 | J158: Diploma | K158: 1978-07-07 | L158: 209
B159: 3 | C159: =IF(J159="Diploma",VLOOKUP(L159,'[1]Kütük1 Sorgu'!$A$2:$H$860,2,FALSE),"") ->  | D159: Mahmut POLAT | E159: Tesviye | H159: Tasdikname | I159: 1978-10-15 | J159: Tasdikname | K159: 1981-11-03 | L159: 325
B160: 4 | C160: =IF(J160="Diploma",VLOOKUP(L160,'[1]Kütük1 Sorgu'!$A$2:$H$860,2,FALSE),"") ->  | D160: İdris ERSÖZ | E160: Tesviye | H160: Diploma | I160: 1984-09-24 | J160: Diploma | K160: 1987-09-17 | L160: 654 | Q160: 5.2
B161: 5 | C161: =IF(J161="Diploma",VLOOKUP(L161,'[1]Kütük1 Sorgu'!$A$2:$H$860,2,FALSE),"") ->  | D161: Murat DURAK | E161: Elektrik | H161: Diploma | I161: 1989-09-20 | J161: Tasdikname | K161: 1989-12-14 | L161: 621 | P161: Dosyası 08.03.1980 Tarih ve 510 / 124 Sayılı Yazı İle Sağlık Mes.Lis ne Gönderildi
A162: 33 | B162: 1 | C162: =IF(J162="Diploma",VLOOKUP(L162,'[1]Kütük1 Sorgu'!$A$2:$H$860,2,FALSE),"") ->  | D162: İlhan YİĞİT | E162: Tesviye | H162: Diploma | I162: 1972-10-15 | J162: Diploma | K162: 1975-07-12 | L162: 26
B163: 2 | C163: =IF(J163="Diploma",VLOOKUP(L163,'[1]Kütük1 Sorgu'!$A$2:$H$860,2,FALSE),"") ->  | D163: Salim GÜRLEK | E163: Tesviye | H163: Diploma | I163: 1975-10-15 | J163: Diploma | K163: 1978-07-07 | L163: 210
B164: 3 | C164: =IF(J164="Diploma",VLOOKUP(L164,'[1]Kütük1 Sorgu'!$A$2:$H$860,2,FALSE),"") ->  | D164: Adnan DOĞAN | E164: Tesviye | H164: Diploma | I164: 1978-10-15 | J164: Diploma | K164: 1985-09-29 | L164: 591 | Q164: 5.6
B165: 4 | C165: =IF(J165="Diploma",VLOOKUP(L165,'[1]Kütük1 Sorgu'!$A$2:$H$860,2,FALSE),"") ->  | D165: Abdullah AYHAN | E165: Elektrik | H165: Diploma | I165: 1986-09-26 | J165: Diploma | K165: 1989-06-09 | L165: 730 | Q165: 8.54
B166: 5 | C166: =IF(J166="Diploma",VLOOKUP(L166,'[1]Kütük1 Sorgu'!$A$2:$H$860,2,FALSE),"") ->  | D166: Mehmet GÜNEŞDOĞDU | E166: Tesviye | H166: Diploma | I166: 1989-09-18 | J166: Diploma | K166: 1993-06-11 | L166: 967 | Q166: 6.37
A167: 34 | B167: 1 | C167: =IF(J167="Diploma",VLOOKUP(L167,'[1]Kütük1 Sorgu'!$A$2:$H$860,2,FALSE),"") ->  | D167: Yusuf KILIÇKAYA | E167: Tesviye | H167: Diploma | I167: 1972-10-15 | J167: Diploma | K167: 1975-07-12 | L167: 27
B168: 2 | C168: =IF(J168="Diploma",VLOOKUP(L168,'[1]Kütük1 Sorgu'!$A$2:$H$860,2,FALSE),"") ->  | D168: Orhan EKİNCİOĞLU | E168: Tesviye | H168: Diploma | I168: 1975-10-15 | J168: Diploma | K168: 1979-05-21 | L168: 293
B169: 3 | C169: =IF(J169="Diploma",VLOOKUP(L169,'[1]Kütük1 Sorgu'!$A$2:$H$860,2,FALSE),"") ->  | D169: Bayram DERİNGÖL | E169: Tesviye | H169: Diploma | I169: 1979-10-10 | J169: Tasdikname | K169: 1981-09-07 | L169: 306 | P169: Dosyası 13.11.1981 Tarih ve 510 / 615 Sayılı yazı ile Develi Ticaret Lis. ne Gönderildi
B170: 4 | C170: =IF(J170="Diploma",VLOOKUP(L170,'[1]Kütük1 Sorgu'!$A$2:$H$860,2,FALSE),"") ->  | D170: Ali GÜN | E170: Elektrik | H170: Tasdikname | I170: 1984-09-25 | J170: Diploma | K170: 1988-09-12 | L170: 694 | Q170: 6.4
B171: 5 | C171: =IF(J171="Diploma",VLOOKUP(L171,'[1]Kütük1 Sorgu'!$A$2:$H$860,2,FALSE),"") ->  | D171: Yusuf SİPAHİOĞLU | E171: Elektrik | H171: Diploma | I171: 1988-09-14 | J171: Diploma | K171: 1992-06-05 | L171: 927 | Q171: 5.92
A172: 35 | B172: 1 | C172: =IF(J172="Diploma",VLOOKUP(L172,'[1]Kütük1 Sorgu'!$A$2:$H$860,2,FALSE),"") ->  | D172: Fatih KARAKAYA | E172: Tesviye | H172: Diploma | I172: 1972-10-15 | J172: Diploma | K172: 1975-07-12 | L172: 28
B173: 2 | C173: =IF(J173="Diploma",VLOOKUP(L173,'[1]Kütük1 Sorgu'!$A$2:$H$860,2,FALSE),"") ->  | D173: Ahmet AKTAŞ | E173: Tesviye | H173: Diploma | I173: 1975-10-15 | J173: Diploma | K173: 1978-07-07 | L173: 260
B174: 3 | C174: =IF(J174="Diploma",VLOOKUP(L174,'[1]Kütük1 Sorgu'!$A$2:$H$860,2,FALSE),"") ->  | D174: Hamdi MUTLU | E174: Tesviye | H174: Diploma | I174: 1978-10-15 | J174: Tasdikname | K174: 1979-01-26 | L174: 210 | P174: Dosyası 15.02.1979 Tarih ve 510 / 85 Sayılı yazı ile Kırıkkale EML. ye Gönderildi
B175: 4 | C175: =IF(J175="Diploma",VLOOKUP(L175,'[1]Kütük1 Sorgu'!$A$2:$H$860,2,FALSE),"") ->  | D175: Yılmaz Kemal İNCE | E175: Tesviye | H175: Tasdikname | I175: 1979-02-26 | J175: Diploma | K175: 1979-05-21 | L175: 294 | P175: Dosyası 18.12.1980 Tarih ve 510 / 666 Sayılı yazı ile Kazımkarabekir Yük.OK na Gönderildi
B176: 5 | C176: =IF(J176="Diploma",VLOOKUP(L176,'[1]Kütük1 Sorgu'!$A$2:$H$860,2,FALSE),"") ->  | D176: Güngör BAZ | E176: Tesviye | H176: Diploma | I176: 1979-10-10 | J176: Tasdikname | K176: 1979-11-06 | L176: 237 | P176: Dosyası 14.11.1979 Tarih ve 510 / 500 Sayılı yazı ile Kozan EML. ye Gönderildi
A177: 36 | B177: 1 | C177: =IF(J177="Diploma",VLOOKUP(L177,'[1]Kütük1 Sorgu'!$A$2:$H$860,2,FALSE),"") ->  | D177: Muammer KAYSERLİOĞLU | E177: Tesviye | H177: Diploma | I177: 1972-10-15 | J177: Diploma | K177: 1975-07-12 | L177: 29
B178: 2 | C178: =IF(J178="Diploma",VLOOKUP(L178,'[1]Kütük1 Sorgu'!$A$2:$H$860,2,FALSE),"") ->  | D178: Doğan ÖZSOY | E178: Tesviye | H178: Diploma | I178: 1975-10-15 | J178: Tasdikname | K178: 1980-11-27 | L178: 288
B179: 3 | C179: =IF(J179="Diploma",VLOOKUP(L179,'[1]Kütük1 Sorgu'!$A$2:$H$860,2,FALSE),"") ->  | D179: Yalçın DELİGEZER | E179: Tesviye | H179: Diploma | I179: 1984-09-12 | J179: Diploma | K179: 1987-05-27 | L179: 616 | Q179: 5.69
B180: 4 | C180: =IF(J180="Diploma",VLOOKUP(L180,'[1]Kütük1 Sorgu'!$A$2:$H$860,2,FALSE),"") ->  | D180: Ali DURMAZ | E180: Elektrik | H180: Diploma | I180: 1987-09-01 | J180: Tasdikname | K180: 1988-09-21 | L180: 578 | P180: Dosyası Develi Ticaret Lis. ne Gönderildi
B181: 5 | C181: =IF(J181="Diploma",VLOOKUP(L181,'[1]Kütük1 Sorgu'!$A$2:$H$860,2,FALSE),"") ->  | D181: Ömer CORUK | E181: Elektrik | H181: Diploma | I181: 1989-09-15 | J181: Tasdikname | K181: 1992-07-02 | L181: 697
A182: 37 | B182: 1 | C182: =IF(J182="Diploma",VLOOKUP(L182,'[1]Kütük1 Sorgu'!$A$2:$H$860,2,FALSE),"") ->  | D182: Mehmet KESKİNKILIÇ | E182: Tesviye | H182: Diploma | I182: 1972-10-15 | J182: Diploma | K182: 1976-05-24 | L182: 76 | P182: Dosyası 07.07.1978 Tarih ve 510 / 343 Sayılı Yazı İle Kayseri Eğt.Ens. ye Gönderildi
B183: 2 | C183: =IF(J183="Diploma",VLOOKUP(L183,'[1]Kütük1 Sorgu'!$A$2:$H$860,2,FALSE),"") ->  | D183: Orhan KARADUMAN | E183: Tesviye | H183: Diploma | I183: 1976-10-15 | J183: Tasdikname | K183: 1977-10-04 | L183: 76
B184: 3 | C184: =IF(J184="Diploma",VLOOKUP(L184,'[1]Kütük1 Sorgu'!$A$2:$H$860,2,FALSE),"") ->  | D184: Osman KAÇAR | E184: Tesviye | H184: Diploma | I184: 1977-09-22 | J184: Diploma | K184: 1980-06-23 | L184: 420
B185: 4 | C185: =IF(J185="Diploma",VLOOKUP(L185,'[1]Kütük1 Sorgu'!$A$2:$H$860,2,FALSE),"") ->  | D185: Mustafa GÖNEN | E185: Tesviye | H185: Diploma | I185: 1980-10-01 | J185: Diploma | K185: 1983-11-04 | L185: 547 | Q185: 5.35
B186: 5 | C186: =IF(J186="Diploma",VLOOKUP(L186,'[1]Kütük1 Sorgu'!$A$2:$H$860,2,FALSE),"") ->  | D186: Murat ÇARKAN | E186: Tesviye | H186: Diploma | I186: 1985-09-25 | J186: Diploma | K186: 1990-09-11 | L186: 806 | Q186: 5.58
A187: 38 | B187: 1 | C187: =IF(J187="Diploma",VLOOKUP(L187,'[1]Kütük1 Sorgu'!$A$2:$H$860,2,FALSE),"") ->  | D187: Ali Nafi BULUT | E187: Tesviye | H187: Diploma | I187: 1972-10-15 | J187: Diploma | K187: 1975-07-12 | L187: 30 | P187: Dosyası 15.07.1978 Tarih ve 510 / 368 Sayılı Yazı İle Ankara Gazi Eğt.Ens. ye Gönderildi
B188: 2 | C188: =IF(J188="Diploma",VLOOKUP(L188,'[1]Kütük1 Sorgu'!$A$2:$H$860,2,FALSE),"") ->  | D188: Bahattin SARIGÜNEY | E188: Tesviye | H188: Diploma | I188: 1975-10-15 | J188: Diploma | K188: 1979-05-21 | L188: 295
B189: 3 | C189: =IF(J189="Diploma",VLOOKUP(L189,'[1]Kütük1 Sorgu'!$A$2:$H$860,2,FALSE),"") ->  | D189: Mustafa Yaman KILIÇKAYA | E189: Tesviye | H189: Diploma | I189: 1979-10-11 | J189: Tasdikname | K189: 1986-08-13 | L189: 392
B190: 4 | C190: =IF(J190="Diploma",VLOOKUP(L190,'[1]Kütük1 Sorgu'!$A$2:$H$860,2,FALSE),"") ->  | D190: Hacı Osman COŞKUN | E190: Tesviye | H190: Diploma | I190: 1986-09-25 | J190: Diploma | K190: 1989-06-09 | L190: 719 | Q190: 6.44
B191: 5 | C191: =IF(J191="Diploma",VLOOKUP(L191,'[1]Kütük1 Sorgu'!$A$2:$H$860,2,FALSE),"") ->  | D191: Halim KAVRUK | E191: Elektrik | H191: Diploma | I191: 1989-09-18 | J191: Diploma | K191: 1992-06-05 | L191: 928 | Q191: 6.82
A192: 39 | B192: 1 | C192: =IF(J192="Diploma",VLOOKUP(L192,'[1]Kütük1 Sorgu'!$A$2:$H$860,2,FALSE),"") ->  | D192: Hüseyin ÜN | E192: Tesviye | H192: Diploma | I192: 1972-10-15 | J192: Diploma | K192: 1975-07-12 | L192: 31
B193: 2 | C193: =IF(J193="Diploma",VLOOKUP(L193,'[1]Kütük1 Sorgu'!$A$2:$H$860,2,FALSE),"") ->  | D193: Mustafa AKTAŞ | E193: Tesviye | H193: Diploma | I193: 1975-10-15 | J193: Diploma | K193: 1978-09-29 | L193: 263
B194: 3 | C194: =IF(J194="Diploma",VLOOKUP(L194,'[1]Kütük1 Sorgu'!$A$2:$H$860,2,FALSE),"") ->  | D194: Dagıstan ÖCALAN | E194: Tesviye | H194: Tasdikname | I194: 1979-05-29 | J194: Diploma | K194: 1982-09-22 | L194: 535
B195: 4 | C195: =IF(J195="Diploma",VLOOKUP(L195,'[1]Kütük1 Sorgu'!$A$2:$H$860,2,FALSE),"") ->  | D195: Ömer ÇOBAN | E195: Tesviye | H195: Tasdikname | I195: 1984-09-12 | J195: Diploma | K195: 1987-05-27 | L195: 617 | Q195: 6.45
B196: 5 | C196: =IF(J196="Diploma",VLOOKUP(L196,'[1]Kütük1 Sorgu'!$A$2:$H$860,2,FALSE),"") ->  | D196: Tuncay ŞAHBAZ | E196: Tesviye | H196: Diploma | I196: 1988-08-22 | J196: Diploma | K196: 1991-06-07 | L196: 848 | Q196: 8.38
A197: 40 | B197: 1 | C197: =IF(J197="Diploma",VLOOKUP(L197,'[1]Kütük1 Sorgu'!$A$2:$H$860,2,FALSE),"") ->  | D197: Muammer BALTACI | E197: Tesviye | H197: Diploma | I197: 1972-10-15 | J197: Diploma | K197: 1975-07-12 | L197: 32
B198: 2 | C198: =IF(J198="Diploma",VLOOKUP(L198,'[1]Kütük1 Sorgu'!$A$2:$H$860,2,FALSE),"") ->  | D198: Mahir KARACA | E198: Tesviye | H198: Diploma | I198: 1975-10-15 | J198: Diploma | K198: 1978-11-01 | L198: 281
B199: 3 | C199: =IF(J199="Diploma",VLOOKUP(L199,'[1]Kütük1 Sorgu'!$A$2:$H$860,2,FALSE),"") ->  | D199: Günay ÇETİN | E199: Elektrik | H199: Tasdikname | I199: 1979-10-01 | J199: Diploma | K199: 1981-09-08 | L199: 506 | P199: Dosyası 01.10.1981 Tarih ve 510 / 517 Sayılı yazı ile Konya Selçuk Yük.OK na Gönderildi
B200: 4 | C200: =IF(J200="Diploma",VLOOKUP(L200,'[1]Kütük1 Sorgu'!$A$2:$H$860,2,FALSE),"") ->  | D200: Hikmet ÖZTÜRK | E200: Tesviye | H200: Diploma | I200: 1984-09-24 | J200: Diploma | K200: 1991-06-07 | L200: 867 | Q200: 5.9
... 6781 more rows

Sheet Okuyanlar
A1: Alanlar | B1: Ortak | C1: Makina Teknolojisi | F1: Elektrik - Elektronik Teknolojisi | I1: Bilişim Teknolojileri | L1: Motorlu Araçlar Teknolojisi
A2: Dallar Sınıflar | C2: Dal Ortak | D2: Makine Bakım Onarım | E2: Bilgisayarlı Makine İmalatı | F2: Dal Ortak | G2: Elektrik Tesisat ve Pano Montörlüğü | H2: Görüntü Ve Ses Sistemleri | I2: Dal Ortak | J2: Web Programcılığı | K2: Veri Tabanı Programcılığı | L2: Dal Ortak | M2: Otomotiv Elektromekanik
A3: 9-A | B3: =COUNTIF(Kütük!$G:$G,$A3) -> 65
A4: 9-B | B4: =COUNTIF(Kütük!$G:$G,$A4) -> 62
A5: 9-C | B5: =COUNTIF(Kütük!$G:$G,$A5) -> 27
A6: 9-D | B6: =COUNTIF(Kütük!$G:$G,$A6) -> 30
A7: 9-E | B7: =COUNTIF(Kütük!$G:$G,$A7) -> 32
A8: 9-F | B8: =COUNTIF(Kütük!$G:$G,$A8) -> 25
A9: 9-G | B9: =COUNTIF(Kütük!$G:$G,$A9) -> 30
A10: 10-A | C10: =COUNTIF(Kütük!$G:$G,$A10) -> 2
A11: 10-B | C11: =COUNTIF(Kütük!$G:$G,$A11) -> 3
A12: 10-C | F12: =COUNTIF(Kütük!$G:$G,$A12) -> 27
A13: 10-D | F13: =COUNTIF(Kütük!$G:$G,$A13) -> 25
A14: 10-E | L14: =COUNTIF(Kütük!$G:$G,$A14) -> 36
A15: 10-F | L15: =COUNTIF(Kütük!$G:$G,$A15) -> 4
A16: 10-G | I16: =COUNTIF(Kütük!$G:$G,$A16) -> 22
A17: 11-A | E17: =COUNTIF(Kütük!$G:$G,$A17) -> 24
A18: 11-B | D18: =COUNTIF(Kütük!$G:$G,$A18) -> 20
A19: 11-C | G19: =COUNTIF(Kütük!$G:$G,$A19) -> 1
A20: 11-D | H20: =COUNTIF(Kütük!$G:$G,$A20) -> 1
A21: 11-E | M21: =COUNTIF(Kütük!$G:$G,$A21) -> 0
A22: 11-F | M22: =COUNTIF(Kütük!$G:$G,$A22) -> 0
A23: 11-G | K23: =COUNTIF(Kütük!$G:$G,$A23) -> 0
A24: 12-A | D24: =COUNTIF(Kütük!$G:$G,$A24) -> 19
A25: 12-B | D25: =COUNTIF(Kütük!$G:$G,$A25) -> 20
A26: 12-C | G26: =COUNTIF(Kütük!$G:$G,$A26) -> 25
A27: 12-D | H27: =COUNTIF(Kütük!$G:$G,$A27) -> 23
A28: 12-E | M28: =COUNTIF(Kütük!$G:$G,$A28) -> 25
A29: 12-F | M29: =COUNTIF(Kütük!$G:$G,$A29) -> 0
A30: 12-G | K30: =COUNTIF(Kütük!$G:$G,$A30) -> 20
A31: =COUNTA(A3:A30) -> 28 | B31: =SUM(B3:B30) -> 271 | C31: =SUM(C3:C30) -> 5 | D31: 59 | E31: 24 | F31: 52 | G31: 26 | H31: 24 | I31: 22 | J31: 0 | K31: 20 | L31: 40 | M31: 25 | N31: =SUM(B31:M31) -> 568 | O31: TOPLAMLAR | P31: Olması Gerekenler | Q31: KONTROL
B32: =SUM(B3:B9) -> 271 | N32: =SUM(B32:M32) -> 271 | O32: 9 SINIFLAR TOPLAMI | P32: 234 | Q32: =EXACT(N32,P32) -> FALSE
C33: =SUM(C10:C16) -> 5 | D33: =SUM(D10:D16) -> 0 | E33: 0 | F33: 52 | G33: 0 | H33: 0 | I33: 22 | J33: 0 | K33: 0 | L33: 40 | M33: 0 | N33: =SUM(B33:M33) -> 119 | O33: 10 SINIFLAR TOPLAMI | P33: 153 | Q33: =EXACT(N33,P33) -> FALSE
D34: =SUM(D17:D23) -> 20 | E34: =SUM(E17:E23) -> 24 | F34: 0 | G34: 1 | H34: 1 | I34: 0 | J34: 0 | K34: 0 | L34: 0 | M34: 0 | N34: =SUM(B34:M34) -> 46 | O34: 11 SINIFLAR TOPLAMI | P34: 135 | Q34: =EXACT(N34,P34) -> FALSE
D35: =SUM(D24:D30) -> 39 | E35: =SUM(E24:E30) -> 0 | G35: 25 | H35: 23 | J35: 0 | K35: 20 | M35: 25 | N35: =SUM(B35:M35) -> 132 | O35: 12 SINIFLAR TOPLAMI | P35: 9 | Q35: =EXACT(N35,P35) -> FALSE
B36: =SUM(B32) -> 271 | C36: =SUM(C33:E35) -> 88 | F36: =SUM(F33:H35) -> 102 | I36: =SUM(I33:K35) -> 42 | L36: =SUM(L33:M35) -> 65 | N36: =SUM(N32:N35) -> 568 | O36: Genel Toplam | P36: =SUM(P32:P35) -> 531 | Q36: =EXACT(N36,P36) -> FALSE

Sheet Boş Numara
A1: Kütük No | B1: Sıra No | C1: Durumu | D1: Sınıfı | E1: Adı Soyadı | F1: Cinsi | G1: No | H1: =A1 -> Kütük No | I1: Sayısı | J1: =COUNTIF(C:C,"Kullanılabilir") -> 102
A2: 1 | B2: 1 | C2: =Kütük!E2 -> Tesviye | D2: =Kütük!G2 -> 0 | E2: =Kütük!D2 -> Yunus SUVAY | F2: =Kütük!J2 -> Diploma | G2: =Kütük!L2 -> 1 | H2: =A2 -> 1
A3: 1 | B3: 2 | C3: =Kütük!E3 -> İPTAL | D3: =Kütük!G3 -> 0 | E3: =Kütük!D3 -> Mehmet ERCİS | F3: =Kütük!J3 -> İPTAL | G3: =Kütük!L3 -> 0 | H3: 1
A4: 1 | B4: 3 | C4: =Kütük!E4 -> Tesviye | D4: =Kütük!G4 -> 0 | E4: =Kütük!D4 -> Mehmet ERCİS | F4: =Kütük!J4 -> Diploma | G4: =Kütük!L4 -> 196 | H4: 1
A5: 1 | B5: 4 | C5: =Kütük!E5 -> Tesviye | D5: =Kütük!G5 -> 0 | E5: =Kütük!D5 -> Yücel TOPCU | F5: =Kütük!J5 -> Tasdikname | G5: =Kütük!L5 -> 211 | H5: 1
A6: 1 | B6: 5 | C6: =Kütük!E6 -> Elektrik | D6: =Kütük!G6 -> 0 | E6: =Kütük!D6 -> Önder ESKİ | F6: =Kütük!J6 -> Diploma | G6: =Kütük!L6 -> 442 | H6: 1
A7: 2 | B7: 1 | C7: =Kütük!E7 -> Tesviye | D7: =Kütük!G7 -> 0 | E7: =Kütük!D7 -> Şükrü ÖZKILIÇ | F7: =Kütük!J7 -> Tasdikname | G7: =Kütük!L7 -> 2 | H7: 2
A8: 2 | B8: 2 | C8: =Kütük!E8 -> İPTAL | D8: =Kütük!G8 -> 0 | E8: =Kütük!D8 -> Kazım SAĞLAM | F8: =Kütük!J8 -> İPTAL | G8: =Kütük!L8 -> 0 | H8: 2
A9: 2 | B9: 3 | C9: =Kütük!E9 -> Tesviye | D9: =Kütük!G9 -> 0 | E9: =Kütük!D9 -> Kazım SAĞLAM | F9: =Kütük!J9 -> Diploma | G9: =Kütük!L9 -> 197 | H9: 2
A10: 2 | B10: 4 | C10: =Kütük!E10 -> Tesviye | D10: =Kütük!G10 -> 0 | E10: =Kütük!D10 -> Hasan AYDAR | F10: =Kütük!J10 -> Diploma | G10: =Kütük!L10 -> 494 | H10: 2
A11: 2 | B11: 5 | C11: =Kütük!E11 -> Tesviye | D11: =Kütük!G11 -> 0 | E11: =Kütük!D11 -> Muzaffer BÜYÜK | F11: =Kütük!J11 -> Tasdikname | G11: =Kütük!L11 -> 635 | H11: 2
A12: 3 | B12: 1 | C12: =Kütük!E12 -> Tesviye | D12: =Kütük!G12 -> 0 | E12: =Kütük!D12 -> Mehmet KARAKAŞ | F12: =Kütük!J12 -> Diploma | G12: =Kütük!L12 -> 2 | H12: 3
A13: 3 | B13: 2 | C13: =Kütük!E13 -> İPTAL | D13: =Kütük!G13 -> 0 | E13: =Kütük!D13 -> Recep ALBAYRAK | F13: =Kütük!J13 -> İPTAL | G13: =Kütük!L13 -> 0 | H13: 3
A14: 3 | B14: 3 | C14: =Kütük!E14 -> Tesviye | D14: =Kütük!G14 -> 0 | E14: =Kütük!D14 -> Recep ALBAYRAK | F14: =Kütük!J14 -> Diploma | G14: =Kütük!L14 -> 198 | H14: 3
A15: 3 | B15: 4 | C15: =Kütük!E15 -> Tesviye | D15: =Kütük!G15 -> 0 | E15: =Kütük!D15 -> Ali BALTACI | F15: =Kütük!J15 -> Diploma | G15: =Kütük!L15 -> 495 | H15: 3
A16: 3 | B16: 5 | C16: =Kütük!E16 -> Tesviye | D16: =Kütük!G16 -> 0 | E16: =Kütük!D16 -> Atilla KAMAN | F16: =Kütük!J16 -> Diploma | G16: =Kütük!L16 -> 671 | H16: 3
A17: 4 | B17: 1 | C17: =Kütük!E17 -> Tesviye | D17: =Kütük!G17 -> 0 | E17: =Kütük!D17 -> Şükrü BAYRAK | F17: =Kütük!J17 -> Tasdikname | G17: =Kütük!L17 -> 11 | H17: 4
A18: 4 | B18: 2 | C18: =Kütük!E18 -> İPTAL | D18: =Kütük!G18 -> 0 | E18: =Kütük!D18 -> Adem GÜRBÜZ | F18: =Kütük!J18 -> İPTAL | G18: =Kütük!L18 -> 0 | H18: 4
A19: 4 | B19: 3 | C19: =Kütük!E19 -> Tesviye | D19: =Kütük!G19 -> 0 | E19: =Kütük!D19 -> Adem GÜRBÜZ | F19: =Kütük!J19 -> Tasdikname | G19: =Kütük!L19 -> 216 | H19: 4
A20: 4 | B20: 4 | C20: =Kütük!E20 -> Elektrik | D20: =Kütük!G20 -> 0 | E20: =Kütük!D20 -> Adnan Mehmet HATİPOĞULLARI | F20: =Kütük!J20 -> Diploma | G20: =Kütük!L20 -> 344 | H20: 4
A21: 4 | B21: 5 | C21: =Kütük!E21 -> Tesviye | D21: =Kütük!G21 -> 0 | E21: =Kütük!D21 -> Recep ÖZSARI | F21: =Kütük!J21 -> Diploma | G21: =Kütük!L21 -> 557 | H21: 4
A22: 5 | B22: 1 | C22: =Kütük!E22 -> Tesviye | D22: =Kütük!G22 -> 0 | E22: =Kütük!D22 -> Ziya DİKKARTİN | F22: =Kütük!J22 -> Diploma | G22: =Kütük!L22 -> 3 | H22: 5
A23: 5 | B23: 2 | C23: =Kütük!E23 -> İPTAL | D23: =Kütük!G23 -> 0 | E23: =Kütük!D23 -> Ahmet ÖZER | F23: =Kütük!J23 -> İPTAL | G23: =Kütük!L23 -> 0 | H23: 5
A24: 5 | B24: 3 | C24: =Kütük!E24 -> Tesviye | D24: =Kütük!G24 -> 0 | E24: =Kütük!D24 -> Ahmet ÖZER | F24: =Kütük!J24 -> Diploma | G24: =Kütük!L24 -> 199 | H24: 5
A25: 5 | B25: 4 | C25: =Kütük!E25 -> Tesviye | D25: =Kütük!G25 -> 0 | E25: =Kütük!D25 -> Hacı Osman GÜDER | F25: =Kütük!J25 -> Tasdikname | G25: =Kütük!L25 -> 330 | H25: 5
A26: 5 | B26: 5 | C26: =Kütük!E26 -> Tesviye | D26: =Kütük!G26 -> 0 | E26: =Kütük!D26 -> Mustafa KÖROĞLU | F26: =Kütük!J26 -> Diploma | G26: =Kütük!L26 -> 657 | H26: 5
A27: 6 | B27: 1 | C27: =Kütük!E27 -> Tesviye | D27: =Kütük!G27 -> 0 | E27: =Kütük!D27 -> Hamit TURAN | F27: =Kütük!J27 -> Diploma | G27: =Kütük!L27 -> 4 | H27: 6
A28: 6 | B28: 2 | C28: =Kütük!E28 -> İPTAL | D28: =Kütük!G28 -> 0 | E28: =Kütük!D28 -> Şaban ŞIKLAROĞLU | F28: =Kütük!J28 -> İPTAL | G28: =Kütük!L28 -> 0 | H28: 6
A29: 6 | B29: 3 | C29: =Kütük!E29 -> Tesviye | D29: =Kütük!G29 -> 0 | E29: =Kütük!D29 -> Şaban ŞIKLAROĞLU | F29: =Kütük!J29 -> Tasdikname | G29: =Kütük!L29 -> 82 | H29: 6
A30: 6 | B30: 4 | C30: =Kütük!E30 -> Tesviye | D30: =Kütük!G30 -> 0 | E30: =Kütük!D30 -> Ramazan KULAKOĞLU | F30: =Kütük!J30 -> Diploma | G30: =Kütük!L30 -> 417 | H30: 6
A31: 6 | B31: 5 | C31: =Kütük!E31 -> Tesviye | D31: =Kütük!G31 -> 0 | E31: =Kütük!D31 -> İlhan AYTEKİN | F31: =Kütük!J31 -> Diploma | G31: =Kütük!L31 -> 672 | H31: 6
A32: 7 | B32: 1 | C32: =Kütük!E32 -> Tesviye | D32: =Kütük!G32 -> 0 | E32: =Kütük!D32 -> Hüseyin SUVAY | F32: =Kütük!J32 -> Diploma | G32: =Kütük!L32 -> 5 | H32: 7
A33: 7 | B33: 2 | C33: =Kütük!E33 -> İPTAL | D33: =Kütük!G33 -> 0 | E33: =Kütük!D33 -> Tufan AŞIK | F33: =Kütük!J33 -> İPTAL | G33: =Kütük!L33 -> 0 | H33: 7
A34: 7 | B34: 3 | C34: =Kütük!E34 -> Tesviye | D34: =Kütük!G34 -> 0 | E34: =Kütük!D34 -> Tufan AŞIK | F34: =Kütük!J34 -> Tasdikname | G34: =Kütük!L34 -> 38 | H34: 7
A35: 7 | B35: 4 | C35: =Kütük!E35 -> Tesviye | D35: =Kütük!G35 -> 0 | E35: =Kütük!D35 -> Kamuran BOZKURT | F35: =Kütük!J35 -> Tasdikname | G35: =Kütük!L35 -> 90 | H35: 7
A36: 7 | B36: 5 | C36: =Kütük!E36 -> Tesviye | D36: =Kütük!G36 -> 0 | E36: =Kütük!D36 -> Ekrem KARAGÖZ | F36: =Kütük!J36 -> Diploma | G36: =Kütük!L36 -> 496 | H36: 7
A37: 8 | B37: 1 | C37: =Kütük!E37 -> Tesviye | D37: =Kütük!G37 -> 0 | E37: =Kütük!D37 -> M.Uğur KAPUSUZOĞLU | F37: =Kütük!J37 -> Diploma | G37: =Kütük!L37 -> 6 | H37: 8
A38: 8 | B38: 2 | C38: =Kütük!E38 -> İPTAL | D38: =Kütük!G38 -> 0 | E38: =Kütük!D38 -> Abdulbaki KARACAOĞLAN | F38: =Kütük!J38 -> İPTAL | G38: =Kütük!L38 -> 0 | H38: 8
A39: 8 | B39: 3 | C39: =Kütük!E39 -> Tesviye | D39: =Kütük!G39 -> 0 | E39: =Kütük!D39 -> Abdulbaki KARACAOĞLAN | F39: =Kütük!J39 -> Tasdikname | G39: =Kütük!L39 -> 45 | H39: 8
A40: 8 | B40: 4 | C40: =Kütük!E40 -> Tesviye | D40: =Kütük!G40 -> 0 | E40: =Kütük!D40 -> Ali SADIK | F40: =Kütük!J40 -> Diploma | G40: =Kütük!L40 -> 285 | H40: 8
A41: 8 | B41: 5 | C41: =Kütük!E41 -> Tesviye | D41: =Kütük!G41 -> 0 | E41: =Kütük!D41 -> Seyit Ahmet GÜNDÜZ | F41: =Kütük!J41 -> Diploma | G41: =Kütük!L41 -> 540 | H41: 8
A42: 9 | B42: 1 | C42: =Kütük!E42 -> Tesviye | D42: =Kütük!G42 -> 0 | E42: =Kütük!D42 -> Erdal ÇETİN | F42: =Kütük!J42 -> Diploma | G42: =Kütük!L42 -> 7 | H42: 9
A43: 9 | B43: 2 | C43: =Kütük!E43 -> İPTAL | D43: =Kütük!G43 -> 0 | E43: =Kütük!D43 -> Soner AVCI | F43: =Kütük!J43 -> İPTAL | G43: =Kütük!L43 -> 0 | H43: 9
A44: 9 | B44: 3 | C44: =Kütük!E44 -> Tesviye | D44: =Kütük!G44 -> 0 | E44: =Kütük!D44 -> Soner AVCI | F44: =Kütük!J44 -> Diploma | G44: =Kütük!L44 -> 200 | H44: 9
A45: 9 | B45: 4 | C45: =Kütük!E45 -> Tesviye | D45: =Kütük!G45 -> 0 | E45: =Kütük!D45 -> Ahmet YALÇIN | F45: =Kütük!J45 -> Tasdikname | G45: =Kütük!L45 -> 222 | H45: 9
A46: 9 | B46: 5 | C46: =Kütük!E46 -> Tesviye | D46: =Kütük!G46 -> 0 | E46: =Kütük!D46 -> Ayhan COŞKUN | F46: =Kütük!J46 -> Diploma | G46: =Kütük!L46 -> 534 | H46: 9
A47: 10 | B47: 1 | C47: =Kütük!E47 -> Tesviye | D47: =Kütük!G47 -> 0 | E47: =Kütük!D47 -> Mustafa ELÖNÜ | F47: =Kütük!J47 -> Diploma | G47: =Kütük!L47 -> 8 | H47: 10
A48: 10 | B48: 2 | C48: =Kütük!E48 -> İPTAL | D48: =Kütük!G48 -> 0 | E48: =Kütük!D48 -> Adem ÖZDEMİR | F48: =Kütük!J48 -> İPTAL | G48: =Kütük!L48 -> 0 | H48: 10
A49: 10 | B49: 3 | C49: =Kütük!E49 -> Tesviye | D49: =Kütük!G49 -> 0 | E49: =Kütük!D49 -> Adem ÖZDEMİR | F49: =Kütük!J49 -> Diploma | G49: =Kütük!L49 -> 201 | H49: 10
A50: 10 | B50: 4 | C50: =Kütük!E50 -> Tesviye | D50: =Kütük!G50 -> 0 | E50: =Kütük!D50 -> Kemal ULUÇAY | F50: =Kütük!J50 -> Tasdikname | G50: =Kütük!L50 -> 329 | H50: 10
A51: 10 | B51: 5 | C51: =Kütük!E51 -> Tesviye | D51: =Kütük!G51 -> 0 | E51: =Kütük!D51 -> Ahmet MAİLMAİL | F51: =Kütük!J51 -> Diploma | G51: =Kütük!L51 -> 673 | H51: 10
A52: 11 | B52: 1 | C52: =Kütük!E52 -> Tesviye | D52: =Kütük!G52 -> 0 | E52: =Kütük!D52 -> İsmail BENLİ | F52: =Kütük!J52 -> Diploma | G52: =Kütük!L52 -> 9 | H52: 11
A53: 11 | B53: 2 | C53: =Kütük!E53 -> İPTAL | D53: =Kütük!G53 -> 0 | E53: =Kütük!D53 -> Mahmut ÇANDIROĞLU | F53: =Kütük!J53 -> İPTAL | G53: =Kütük!L53 -> 0 | H53: 11
A54: 11 | B54: 3 | C54: =Kütük!E54 -> Tesviye | D54: =Kütük!G54 -> 0 | E54: =Kütük!D54 -> Mahmut ÇANDIROĞLU | F54: =Kütük!J54 -> Tasdikname | G54: =Kütük!L54 -> 33 | H54: 11
A55: 11 | B55: 4 | C55: =Kütük!E55 -> Elektrik | D55: =Kütük!G55 -> 0 | E55: =Kütük!D55 -> Mehmet POYRAZ | F55: =Kütük!J55 -> Diploma | G55: =Kütük!L55 -> 345 | H55: 11
A56: 11 | B56: 5 | C56: =Kütük!E56 -> Tesviye | D56: =Kütük!G56 -> 0 | E56: =Kütük!D56 -> Metin ÇELİK | F56: =Kütük!J56 -> Tasdikname | G56: =Kütük!L56 -> 332 | H56: 11
A57: 12 | B57: 1 | C57: =Kütük!E57 -> Tesviye | D57: =Kütük!G57 -> 0 | E57: =Kütük!D57 -> Ramazan DEMİR | F57: =Kütük!J57 -> Diploma | G57: =Kütük!L57 -> 10 | H57: 12
A58: 12 | B58: 2 | C58: =Kütük!E58 -> Tesviye | D58: =Kütük!G58 -> 0 | E58: =Kütük!D58 -> Bilal UĞURLU | F58: =Kütük!J58 -> Tasdikname | G58: =Kütük!L58 -> 71 | H58: 12
A59: 12 | B59: 3 | C59: =Kütük!E59 -> Tesviye | D59: =Kütük!G59 -> 0 | E59: =Kütük!D59 -> Mehmet SORGUNLU | F59: =Kütük!J59 -> Tasdikname | G59: =Kütük!L59 -> 78 | H59: 12
A60: 12 | B60: 4 | C60: =Kütük!E60 -> Tesviye | D60: =Kütük!G60 -> 0 | E60: =Kütük!D60 -> Oğuz ÖZKAN | F60: =Kütük!J60 -> Tasdikname | G60: =Kütük!L60 -> 98 | H60: 12
A61: 12 | B61: 5 | C61: =Kütük!E61 -> Tesviye | D61: =Kütük!G61 -> 0 | E61: =Kütük!D61 -> Çoşkun ÇERÇİ | F61: =Kütük!J61 -> Tasdikname | G61: =Kütük!L61 -> 208 | H61: 12
A62: 13 | B62: 1 | C62: =Kütük!E62 -> Tesviye | D62: =Kütük!G62 -> 0 | E62: =Kütük!D62 -> Murat SOYLU | F62: =Kütük!J62 -> Diploma | G62: =Kütük!L62 -> 11 | H62: 13
A63: 13 | B63: 2 | C63: =Kütük!E63 -> Tesviye | D63: =Kütük!G63 -> 0 | E63: =Kütük!D63 -> Şaban KILIÇKAYA | F63: =Kütük!J63 -> Diploma | G63: =Kütük!L63 -> 202 | H63: 13
A64: 13 | B64: 3 | C64: =Kütük!E64 -> Tesviye | D64: =Kütük!G64 -> 0 | E64: =Kütük!D64 -> Zafer SÜRER | F64: =Kütük!J64 -> Diploma | G64: =Kütük!L64 -> 497 | H64: 13
A65: 13 | B65: 4 | C65: =Kütük!E65 -> Tesviye | D65: =Kütük!G65 -> 0 | E65: =Kütük!D65 -> Musa YAZAR | F65: =Kütük!J65 -> Tasdikname | G65: =Kütük!L65 -> 404 | H65: 13
A66: 13 | B66: 5 | C66: =Kütük!E66 -> Tesviye | D66: =Kütük!G66 -> 0 | E66: =Kütük!D66 -> Mehmet DEĞİRMENCİ | F66: =Kütük!J66 -> Tasdikname | G66: =Kütük!L66 -> 539 | H66: =A66 -> 13
A67: 14 | B67: 1 | C67: =Kütük!E67 -> Tesviye | D67: =Kütük!G67 -> 0 | E67: =Kütük!D67 -> Recep SAMATLI | F67: =Kütük!J67 -> Diploma | G67: =Kütük!L67 -> 12 | H67: 14
A68: 14 | B68: 2 | C68: =Kütük!E68 -> Tesviye | D68: =Kütük!G68 -> 0 | E68: =Kütük!D68 -> Adnan COŞKUN | F68: =Kütük!J68 -> Diploma | G68: =Kütük!L68 -> 286 | H68: 14
A69: 14 | B69: 3 | C69: =Kütük!E69 -> Tesviye | D69: =Kütük!G69 -> 0 | E69: =Kütük!D69 -> İsmail KOZAN | F69: =Kütük!J69 -> Diploma | G69: =Kütük!L69 -> 528 | H69: 14
A70: 14 | B70: 4 | C70: =Kütük!E70 -> Elektrik | D70: =Kütük!G70 -> 0 | E70: =Kütük!D70 -> Şuayip BAKKAL | F70: =Kütük!J70 -> Tasdikname | G70: =Kütük!L70 -> 503 | H70: 14
A71: 14 | B71: 5 | C71: =Kütük!E71 -> Elektrik | D71: =Kütük!G71 -> 0 | E71: =Kütük!D71 -> Cemal YILMAZ | F71: =Kütük!J71 -> Diploma | G71: =Kütük!L71 -> 728 | H71: 14
A72: 15 | B72: 1 | C72: =Kütük!E72 -> Tesviye | D72: =Kütük!G72 -> 0 | E72: =Kütük!D72 -> Ali COŞKUN | F72: =Kütük!J72 -> Tasdikname | G72: =Kütük!L72 -> 8 | H72: 15
A73: 15 | B73: 2 | C73: =Kütük!E73 -> Tesviye | D73: =Kütük!G73 -> 0 | E73: =Kütük!D73 -> Ali COŞKUN | F73: =Kütük!J73 -> Diploma | G73: =Kütük!L73 -> 75 | H73: 15
A74: 15 | B74: 3 | C74: =Kütük!E74 -> Tesviye | D74: =Kütük!G74 -> 0 | E74: =Kütük!D74 -> Yusuf ACUN | F74: =Kütük!J74 -> Diploma | G74: =Kütük!L74 -> 287 | H74: 15
A75: 15 | B75: 4 | C75: =Kütük!E75 -> Tesviye | D75: =Kütük!G75 -> 0 | E75: =Kütük!D75 -> Süleyman GÖNEN | F75: =Kütük!J75 -> Tasdikname | G75: =Kütük!L75 -> 350 | H75: 15
A76: 15 | B76: 5 | C76: =Kütük!E76 -> Tesviye | D76: =Kütük!G76 -> 0 | E76: =Kütük!D76 -> Yaşar ERTUĞRUL | F76: =Kütük!J76 -> Diploma | G76: =Kütük!L76 -> 753 | H76: 15
A77: 16 | B77: 1 | C77: =Kütük!E77 -> Tesviye | D77: =Kütük!G77 -> 0 | E77: =Kütük!D77 -> Ahmet GENÇ | F77: =Kütük!J77 -> Diploma | G77: =Kütük!L77 -> 13 | H77: 16
A78: 16 | B78: 2 | C78: =Kütük!E78 -> Tesviye | D78: =Kütük!G78 -> 0 | E78: =Kütük!D78 -> Osman TAN | F78: =Kütük!J78 -> Diploma | G78: =Kütük!L78 -> 288 | H78: 16
A79: 16 | B79: 3 | C79: =Kütük!E79 -> Tesviye | D79: =Kütük!G79 -> 0 | E79: =Kütük!D79 -> Mehmet ÖZKAN | F79: =Kütük!J79 -> Diploma | G79: =Kütük!L79 -> 513 | H79: 16
A80: 16 | B80: 4 | C80: =Kütük!E80 -> Elektrik | D80: =Kütük!G80 -> 0 | E80: =Kütük!D80 -> Hüseyin MAMAK | F80: =Kütük!J80 -> Tasdikname | G80: =Kütük!L80 -> 532 | H80: 16
A81: 16 | B81: 5 | C81: =Kütük!E81 -> Tesviye | D81: =Kütük!G81 -> 0 | E81: =Kütük!D81 -> Mehmet KÜNYE | F81: =Kütük!J81 -> Diploma | G81: =Kütük!L81 -> 779 | H81: 16
A82: 17 | B82: 1 | C82: =Kütük!E82 -> Tesviye | D82: =Kütük!G82 -> 0 | E82: =Kütük!D82 -> Zekerika TURHAN | F82: =Kütük!J82 -> Tasdikname | G82: =Kütük!L82 -> 7 | H82: 17
A83: 17 | B83: 2 | C83: =Kütük!E83 -> Tesviye | D83: =Kütük!G83 -> 0 | E83: =Kütük!D83 -> Ramazan ÖZKUL | F83: =Kütük!J83 -> Diploma | G83: =Kütük!L83 -> 203 | H83: 17
A84: 17 | B84: 3 | C84: =Kütük!E84 -> Tesviye | D84: =Kütük!G84 -> 0 | E84: =Kütük!D84 -> Yücel BURCUM | F84: =Kütük!J84 -> Tasdikname | G84: =Kütük!L84 -> 289 | H84: 17
A85: 17 | B85: 4 | C85: =Kütük!E85 -> Tesviye | D85: =Kütük!G85 -> 0 | E85: =Kütük!D85 -> Hakan YILMAZ | F85: =Kütük!J85 -> Diploma | G85: =Kütük!L85 -> 686 | H85: 17
A86: 17 | B86: 5 | C86: =Kütük!E86 -> Tesviye | D86: =Kütük!G86 -> 0 | E86: =Kütük!D86 -> Süleyman CİNGÖZ | F86: =Kütük!J86 -> Tasdikname | G86: =Kütük!L86 -> 614 | H86: 17
A87: 18 | B87: 1 | C87: =Kütük!E87 -> Tesviye | D87: =Kütük!G87 -> 0 | E87: =Kütük!D87 -> Yaşar ÖZBEK | F87: =Kütük!J87 -> Diploma | G87: =Kütük!L87 -> 14 | H87: 18
A88: 18 | B88: 2 | C88: =Kütük!E88 -> Tesviye | D88: =Kütük!G88 -> 0 | E88: =Kütük!D88 -> Yusuf UNUTULMAZ | F88: =Kütük!J88 -> Diploma | G88: =Kütük!L88 -> 204 | H88: 18
A89: 18 | B89: 3 | C89: =Kütük!E89 -> Tesviye | D89: =Kütük!G89 -> 0 | E89: =Kütük!D89 -> Eyüp AYHAN | F89: =Kütük!J89 -> Diploma | G89: =Kütük!L89 -> 498 | H89: 18
A90: 18 | B90: 4 | C90: =Kütük!E90 -> Tesviye | D90: =Kütük!G90 -> 0 | E90: =Kütük!D90 -> Hüseyin TEKE | F90: =Kütük!J90 -> Tasdikname | G90: =Kütük!L90 -> 583 | H90: 18
A91: 18 | B91: 5 | C91: =Kütük!E91 -> Elektrik | D91: =Kütük!G91 -> 0 | E91: =Kütük!D91 -> Ercan ÇANTI | F91: =Kütük!J91 -> Tasdikname | G91: =Kütük!L91 -> 723 | H91: 18
A92: 19 | B92: 1 | C92: =Kütük!E92 -> Tesviye | D92: =Kütük!G92 -> 0 | E92: =Kütük!D92 -> Mehmet SAMATLI | F92: =Kütük!J92 -> Diploma | G92: =Kütük!L92 -> 15 | H92: 19
A93: 19 | B93: 2 | C93: =Kütük!E93 -> Tesviye | D93: =Kütük!G93 -> 0 | E93: =Kütük!D93 -> Erol SEVİMAY | F93: =Kütük!J93 -> Diploma | G93: =Kütük!L93 -> 205 | H93: 19
A94: 19 | B94: 3 | C94: =Kütük!E94 -> Tesviye | D94: =Kütük!G94 -> 0 | E94: =Kütük!D94 -> İrfan ALTINOK | F94: =Kütük!J94 -> Diploma | G94: =Kütük!L94 -> 503 | H94: 19
A95: 19 | B95: 4 | C95: =Kütük!E95 -> Elektrik | D95: =Kütük!G95 -> 0 | E95: =Kütük!D95 -> Ali ADAÇOĞLU | F95: =Kütük!J95 -> Diploma | G95: =Kütük!L95 -> 622 | H95: 19
A96: 19 | B96: 5 | C96: =Kütük!E96 -> Elektrik | D96: =Kütük!G96 -> 0 | E96: =Kütük!D96 -> İbrahim KABAK | F96: =Kütük!J96 -> Diploma | G96: =Kütük!L96 -> 823 | H96: 19
A97: 20 | B97: 1 | C97: =Kütük!E97 -> Tesviye | D97: =Kütük!G97 -> 0 | E97: =Kütük!D97 -> Cemalettin BALOĞLU | F97: =Kütük!J97 -> Diploma | G97: =Kütük!L97 -> 16 | H97: 20
A98: 20 | B98: 2 | C98: =Kütük!E98 -> Tesviye | D98: =Kütük!G98 -> 0 | E98: =Kütük!D98 -> Osman EMİR | F98: =Kütük!J98 -> Diploma | G98: =Kütük!L98 -> 206 | H98: 20
A99: 20 | B99: 3 | C99: =Kütük!E99 -> Tesviye | D99: =Kütük!G99 -> 0 | E99: =Kütük!D99 -> Arif KARA | F99: =Kütük!J99 -> Tasdikname | G99: =Kütük!L99 -> 390 | H99: 20
A100: 20 | B100: 4 | C100: =Kütük!E100 -> Elektrik | D100: =Kütük!G100 -> 0 | E100: =Kütük!D100 -> Tekin TOKER | F100: =Kütük!J100 -> Diploma | G100: =Kütük!L100 -> 764 | H100: 20
A101: 20 | B101: 5 | C101: =Kütük!E101 -> Elektrik | D101: =Kütük!G101 -> 0 | E101: =Kütük!D101 -> Mustafa KESKİNKILIÇ | F101: =Kütük!J101 -> Diploma | G101: =Kütük!L101 -> 925 | H101: 20
A102: 21 | B102: 1 | C102: =Kütük!E102 -> Tesviye | D102: =Kütük!G102 -> 0 | E102: =Kütük!D102 -> Fahri DİNÇ | F102: =Kütük!J102 -> Diploma | G102: =Kütük!L102 -> 17 | H102: 21
A103: 21 | B103: 2 | C103: =Kütük!E103 -> Tesviye | D103: =Kütük!G103 -> 0 | E103: =Kütük!D103 -> Adnan DOĞAN | F103: =Kütük!J103 -> Tasdikname | G103: =Kütük!L103 -> 53 | H103: 21
A104: 21 | B104: 3 | C104: =Kütük!E104 -> Tesviye | D104: =Kütük!G104 -> 0 | E104: =Kütük!D104 -> Hasan KIDAM | F104: =Kütük!J104 -> Diploma | G104: =Kütük!L104 -> 418 | H104: 21
A105: 21 | B105: 4 | C105: =Kütük!E105 -> Tesviye | D105: =Kütük!G105 -> 0 | E105: =Kütük!D105 -> İbrahim BULUT | F105: =Kütük!J105 -> Tasdikname | G105: =Kütük!L105 -> 291 | H105: 21
A106: 21 | B106: 5 | C106: =Kütük!E106 -> Tesviye | D106: =Kütük!G106 -> 0 | E106: =Kütük!D106 -> Murat ÖZBEK | F106: =Kütük!J106 -> Diploma | G106: =Kütük!L106 -> 687 | H106: 21
A107: 22 | B107: 1 | C107: =Kütük!E107 -> Tesviye | D107: =Kütük!G107 -> 0 | E107: =Kütük!D107 -> Erol KALKANLI | F107: =Kütük!J107 -> Diploma | G107: =Kütük!L107 -> 18 | H107: 22
A108: 22 | B108: 2 | C108: =Kütük!E108 -> Tesviye | D108: =Kütük!G108 -> 0 | E108: =Kütük!D108 -> Mehmet İNCEDAL | F108: =Kütük!J108 -> Tasdikname | G108: =Kütük!L108 -> 68 | H108: 22
A109: 22 | B109: 3 | C109: =Kütük!E109 -> Tesviye | D109: =Kütük!G109 -> 0 | E109: =Kütük!D109 -> Ömer AKGÖL | F109: =Kütük!J109 -> Diploma | G109: =Kütük!L109 -> 478 | H109: 22
A110: 22 | B110: 4 | C110: =Kütük!E110 -> Tesviye | D110: =Kütük!G110 -> 0 | E110: =Kütük!D110 -> Halit ŞAHBAZ | F110: =Kütük!J110 -> Tasdikname | G110: =Kütük!L110 -> 355 | H110: 22
A111: 22 | B111: 5 | C111: =Kütük!E111 -> Elektrik | D111: =Kütük!G111 -> 0 | E111: =Kütük!D111 -> Mehmet EREN | F111: =Kütük!J111 -> Tasdikname | G111: =Kütük!L111 -> 545 | H111: 22
A112: 23 | B112: 1 | C112: =Kütük!E112 -> Tesviye | D112: =Kütük!G112 -> 0 | E112: =Kütük!D112 -> Mehmet KANELCİ | F112: =Kütük!J112 -> Diploma | G112: =Kütük!L112 -> 19 | H112: 23
A113: 23 | B113: 2 | C113: =Kütük!E113 -> Tesviye | D113: =Kütük!G113 -> 0 | E113: =Kütük!D113 -> Dursun GÖKTAŞ | F113: =Kütük!J113 -> Tasdikname | G113: =Kütük!L113 -> 42 | H113: 23
A114: 23 | B114: 3 | C114: =Kütük!E114 -> Tesviye | D114: =Kütük!G114 -> 0 | E114: =Kütük!D114 -> İzzet KÜŞAT | F114: =Kütük!J114 -> Diploma | G114: =Kütük!L114 -> 419 | H114: 23
A115: 23 | B115: 4 | C115: =Kütük!E115 -> Tesviye | D115: =Kütük!G115 -> 0 | E115: =Kütük!D115 -> Nazim KURT | F115: =Kütük!J115 -> Diploma | G115: =Kütük!L115 -> 541 | H115: 23
A116: 23 | B116: 5 | C116: =Kütük!E116 -> Tesviye | D116: =Kütük!G116 -> 0 | E116: =Kütük!D116 -> Fikret KOCATÜRK | F116: =Kütük!J116 -> Diploma | G116: =Kütük!L116 -> 674 | H116: 23
A117: 24 | B117: 1 | C117: =Kütük!E117 -> Tesviye | D117: =Kütük!G117 -> 0 | E117: =Kütük!D117 -> Ahmet KARAGÖZ | F117: =Kütük!J117 -> Diploma | G117: =Kütük!L117 -> 20 | H117: 24
A118: 24 | B118: 2 | C118: =Kütük!E118 -> Tesviye | D118: =Kütük!G118 -> 0 | E118: =Kütük!D118 -> Mürsel ŞAHİN | F118: =Kütük!J118 -> Diploma | G118: =Kütük!L118 -> 261 | H118: 24
A119: 24 | B119: 3 | C119: =Kütük!E119 -> Tesviye | D119: =Kütük!G119 -> 0 | E119: =Kütük!D119 -> Yaşar KUZU | F119: =Kütük!J119 -> Diploma | G119: =Kütük!L119 -> 504 | H119: 24
A120: 24 | B120: 4 | C120: =Kütük!E120 -> Elektrik | D120: =Kütük!G120 -> 0 | E120: =Kütük!D120 -> Cumali YILMAZ | F120: =Kütük!J120 -> Diploma | G120: =Kütük!L120 -> 675 | H120: 24
A121: 24 | B121: 5 | C121: =Kütük!E121 -> Tesviye | D121: =Kütük!G121 -> 0 | E121: =Kütük!D121 -> İbrahim BAL | F121: =Kütük!J121 -> Tasdikname | G121: =Kütük!L121 -> 714 | H121: 24
A122: 25 | B122: 1 | C122: =Kütük!E122 -> Tesviye | D122: =Kütük!G122 -> 0 | E122: =Kütük!D122 -> Hasan Hüseyin AŞIK | F122: =Kütük!J122 -> Tasdikname | G122: =Kütük!L122 -> 4 | H122: 25
A123: 25 | B123: 2 | C123: =Kütük!E123 -> Tesviye | D123: =Kütük!G123 -> 0 | E123: =Kütük!D123 -> Hüseyin DEMİR | F123: =Kütük!J123 -> Diploma | G123: =Kütük!L123 -> 262 | H123: 25
A124: 25 | B124: 3 | C124: =Kütük!E124 -> Tesviye | D124: =Kütük!G124 -> 0 | E124: =Kütük!D124 -> Ahmet YILDIRIMLI | F124: =Kütük!J124 -> Diploma | G124: =Kütük!L124 -> 505 | H124: 25
A125: 25 | B125: 4 | C125: =Kütük!E125 -> Tesviye | D125: =Kütük!G125 -> 0 | E125: =Kütük!D125 -> Şaban TURAN | F125: =Kütük!J125 -> Tasdikname | G125: =Kütük!L125 -> 540 | H125: 25
A126: 25 | B126: 5 | C126: =Kütük!E126 -> Tesviye | D126: =Kütük!G126 -> 0 | E126: =Kütük!D126 -> Yüksel AYDOĞDU | F126: =Kütük!J126 -> Tasdikname | G126: =Kütük!L126 -> 638 | H126: 25
A127: 26 | B127: 1 | C127: =Kütük!E127 -> Tesviye | D127: =Kütük!G127 -> 0 | E127: =Kütük!D127 -> Mehmet ÜNAL | F127: =Kütük!J127 -> Diploma | G127: =Kütük!L127 -> 21 | H127: 26
A128: 26 | B128: 2 | C128: =Kütük!E128 -> Tesviye | D128: =Kütük!G128 -> 0 | E128: =Kütük!D128 -> Şaban ASLAN | F128: =Kütük!J128 -> Diploma | G128: =Kütük!L128 -> 289 | H128: 26
A129: 26 | B129: 3 | C129: =Kütük!E129 -> Tesviye | D129: =Kütük!G129 -> 0 | E129: =Kütük!D129 -> Halil ERDANUŞ | F129: =Kütük!J129 -> Diploma | G129: =Kütük!L129 -> 525 | H129: 26
A130: 26 | B130: 4 | C130: =Kütük!E130 -> Tesviye | D130: =Kütük!G130 -> 0 | E130: =Kütük!D130 -> Nihat KAYA | F130: =Kütük!J130 -> Diploma | G130: =Kütük!L130 -> 701 | H130: =A130 -> 26
A131: 26 | B131: 5 | C131: =Kütük!E131 -> Tesviye | D131: =Kütük!G131 -> 0 | E131: =Kütük!D131 -> Tevfik GÖNEN | F131: =Kütük!J131 -> Diploma | G131: =Kütük!L131 -> 894 | H131: 26
A132: 27 | B132: 1 | C132: =Kütük!E132 -> Tesviye | D132: =Kütük!G132 -> 0 | E132: =Kütük!D132 -> Suat SÖNMEZ | F132: =Kütük!J132 -> Diploma | G132: =Kütük!L132 -> 22 | H132: 27
A133: 27 | B133: 2 | C133: =Kütük!E133 -> Tesviye | D133: =Kütük!G133 -> 0 | E133: =Kütük!D133 -> Adnan BİLGİN | F133: =Kütük!J133 -> Tasdikname | G133: =Kütük!L133 -> 39 | H133: 27
A134: 27 | B134: 3 | C134: =Kütük!E134 -> Tesviye | D134: =Kütük!G134 -> 0 | E134: =Kütük!D134 -> Osman YILDIZ | F134: =Kütük!J134 -> Diploma | G134: =Kütük!L134 -> 290 | H134: 27
A135: 27 | B135: 4 | C135: =Kütük!E135 -> Tesviye | D135: =Kütük!G135 -> 0 | E135: =Kütük!D135 -> Erhan ÖZABIN | F135: =Kütük!J135 -> Tasdikname | G135: =Kütük!L135 -> 277 | H135: 27
A136: 27 | B136: 5 | C136: =Kütük!E136 -> Tesviye | D136: =Kütük!G136 -> 0 | E136: =Kütük!D136 -> Soner BOYAR | F136: =Kütük!J136 -> Tasdikname | G136: =Kütük!L136 -> 595 | H136: 27
A137: 28 | B137: 1 | C137: =Kütük!E137 -> Tesviye | D137: =Kütük!G137 -> 0 | E137: =Kütük!D137 -> Ahmet ÖZKAN | F137: =Kütük!J137 -> Diploma | G137: =Kütük!L137 -> 23 | H137: 28
A138: 28 | B138: 2 | C138: =Kütük!E138 -> Tesviye | D138: =Kütük!G138 -> 0 | E138: =Kütük!D138 -> İhsan ARSLAN | F138: =Kütük!J138 -> Diploma | G138: =Kütük!L138 -> 207 | H138: 28
A139: 28 | B139: 3 | C139: =Kütük!E139 -> Tesviye | D139: =Kütük!G139 -> 0 | E139: =Kütük!D139 -> Gazi BÜYÜMEZ | F139: =Kütük!J139 -> Diploma | G139: =Kütük!L139 -> 559 | H139: 28
A140: 28 | B140: 4 | C140: =Kütük!E140 -> Tesviye | D140: =Kütük!G140 -> 0 | E140: =Kütük!D140 -> Fikret KOYA | F140: =Kütük!J140 -> Tasdikname | G140: =Kütük!L140 -> 533 | H140: 28
A141: 28 | B141: 5 | C141: =Kütük!E141 -> Elektrik | D141: =Kütük!G141 -> 0 | E141: =Kütük!D141 -> Hasan EKEN | F141: =Kütük!J141 -> Diploma | G141: =Kütük!L141 -> 790 | H141: 28
A142: 29 | B142: 1 | C142: =Kütük!E142 -> Tesviye | D142: =Kütük!G142 -> 0 | E142: =Kütük!D142 -> Mustafa YAZICI | F142: =Kütük!J142 -> Tasdikname | G142: =Kütük!L142 -> 5 | H142: 29
A143: 29 | B143: 2 | C143: =Kütük!E143 -> Tesviye | D143: =Kütük!G143 -> 0 | E143: =Kütük!D143 -> Salim PEKDEMİR | F143: =Kütük!J143 -> Diploma | G143: =Kütük!L143 -> 208 | H143: 29
A144: 29 | B144: 3 | C144: =Kütük!E144 -> Tesviye | D144: =Kütük!G144 -> 0 | E144: =Kütük!D144 -> Ömer ÇAPAN | F144: =Kütük!J144 -> Tasdikname | G144: =Kütük!L144 -> 242 | H144: 29
A145: 29 | B145: 4 | C145: =Kütük!E145 -> İPTAL | D145: =Kütük!G145 -> 0 | E145: =Kütük!D145 -> Nadi GÖÇER | F145: =Kütük!J145 -> İPTAL | G145: =Kütük!L145 -> 0 | H145: 29
A146: 29 | B146: 5 | C146: =Kütük!E146 -> Tesviye | D146: =Kütük!G146 -> 0 | E146: =Kütük!D146 -> Ali KOCATÜRK | F146: =Kütük!J146 -> Diploma | G146: =Kütük!L146 -> 572 | H146: 29
A147: 30 | B147: 1 | C147: =Kütük!E147 -> Tesviye | D147: =Kütük!G147 -> 0 | E147: =Kütük!D147 -> İlhami ÖZKARA | F147: =Kütük!J147 -> Diploma | G147: =Kütük!L147 -> 24 | H147: 30
A148: 30 | B148: 2 | C148: =Kütük!E148 -> Tesviye | D148: =Kütük!G148 -> 0 | E148: =Kütük!D148 -> İsmail TOSUN | F148: =Kütük!J148 -> Tasdikname | G148: =Kütük!L148 -> 293 | H148: 30
A149: 30 | B149: 3 | C149: =Kütük!E149 -> Elektrik | D149: =Kütük!G149 -> 0 | E149: =Kütük!D149 -> Adem YILMAZ | F149: =Kütük!J149 -> Tasdikname | G149: =Kütük!L149 -> 110 | H149: 30
A150: 30 | B150: 4 | C150: =Kütük!E150 -> Tesviye | D150: =Kütük!G150 -> 0 | E150: =Kütük!D150 -> Hacı KOLAY | F150: =Kütük!J150 -> Tasdikname | G150: =Kütük!L150 -> 215 | H150: 30
A151: 30 | B151: 5 | C151: =Kütük!E151 -> Tesviye | D151: =Kütük!G151 -> 0 | E151: =Kütük!D151 -> Nadi GÖÇER | F151: =Kütük!J151 -> Diploma | G151: =Kütük!L151 -> 291 | H151: 30
A152: 31 | B152: 1 | C152: =Kütük!E152 -> Tesviye | D152: =Kütük!G152 -> 0 | E152: =Kütük!D152 -> Adem ŞİŞLİ | F152: =Kütük!J152 -> Tasdikname | G152: =Kütük!L152 -> 27 | H152: 31
A153: 31 | B153: 2 | C153: =Kütük!E153 -> Tesviye | D153: =Kütük!G153 -> 0 | E153: =Kütük!D153 -> Mustafa YALÇIN | F153: =Kütük!J153 -> Diploma | G153: =Kütük!L153 -> 292 | H153: 31
A154: 31 | B154: 3 | C154: =Kütük!E154 -> Tesviye | D154: =Kütük!G154 -> 0 | E154: =Kütük!D154 -> Mesut ALADAĞ | F154: =Kütük!J154 -> Tasdikname | G154: =Kütük!L154 -> 391 | H154: 31
A155: 31 | B155: 4 | C155: =Kütük!E155 -> Elektrik | D155: =Kütük!G155 -> 0 | E155: =Kütük!D155 -> İbrahim DEMİREZEN | F155: =Kütük!J155 -> Diploma | G155: =Kütük!L155 -> 729 | H155: 31
A156: 31 | B156: 5 | C156: =Kütük!E156 -> Elektrik | D156: =Kütük!G156 -> 0 | E156: =Kütük!D156 -> Faruk ERKİN | F156: =Kütük!J156 -> Diploma | G156: =Kütük!L156 -> 926 | H156: 31
A157: 32 | B157: 1 | C157: =Kütük!E157 -> Tesviye | D157: =Kütük!G157 -> 0 | E157: =Kütük!D157 -> Fikret TÜRKASLAN | F157: =Kütük!J157 -> Diploma | G157: =Kütük!L157 -> 25 | H157: 32
A158: 32 | B158: 2 | C158: =Kütük!E158 -> Tesviye | D158: =Kütük!G158 -> 0 | E158: =Kütük!D158 -> Ramazan ÖZDEMİR | F158: =Kütük!J158 -> Diploma | G158: =Kütük!L158 -> 209 | H158: 32
A159: 32 | B159: 3 | C159: =Kütük!E159 -> Tesviye | D159: =Kütük!G159 -> 0 | E159: =Kütük!D159 -> Mahmut POLAT | F159: =Kütük!J159 -> Tasdikname | G159: =Kütük!L159 -> 325 | H159: 32
A160: 32 | B160: 4 | C160: =Kütük!E160 -> Tesviye | D160: =Kütük!G160 -> 0 | E160: =Kütük!D160 -> İdris ERSÖZ | F160: =Kütük!J160 -> Diploma | G160: =Kütük!L160 -> 654 | H160: 32
A161: 32 | B161: 5 | C161: =Kütük!E161 -> Elektrik | D161: =Kütük!G161 -> 0 | E161: =Kütük!D161 -> Murat DURAK | F161: =Kütük!J161 -> Tasdikname | G161: =Kütük!L161 -> 621 | H161: 32
A162: 33 | B162: 1 | C162: =Kütük!E162 -> Tesviye | D162: =Kütük!G162 -> 0 | E162: =Kütük!D162 -> İlhan YİĞİT | F162: =Kütük!J162 -> Diploma | G162: =Kütük!L162 -> 26 | H162: 33
A163: 33 | B163: 2 | C163: =Kütük!E163 -> Tesviye | D163: =Kütük!G163 -> 0 | E163: =Kütük!D163 -> Salim GÜRLEK | F163: =Kütük!J163 -> Diploma | G163: =Kütük!L163 -> 210 | H163: 33
A164: 33 | B164: 3 | C164: =Kütük!E164 -> Tesviye | D164: =Kütük!G164 -> 0 | E164: =Kütük!D164 -> Adnan DOĞAN | F164: =Kütük!J164 -> Diploma | G164: =Kütük!L164 -> 591 | H164: 33
A165: 33 | B165: 4 | C165: =Kütük!E165 -> Elektrik | D165: =Kütük!G165 -> 0 | E165: =Kütük!D165 -> Abdullah AYHAN | F165: =Kütük!J165 -> Diploma | G165: =Kütük!L165 -> 730 | H165: 33
A166: 33 | B166: 5 | C166: =Kütük!E166 -> Tesviye | D166: =Kütük!G166 -> 0 | E166: =Kütük!D166 -> Mehmet GÜNEŞDOĞDU | F166: =Kütük!J166 -> Diploma | G166: =Kütük!L166 -> 967 | H166: 33
A167: 34 | B167: 1 | C167: =Kütük!E167 -> Tesviye | D167: =Kütük!G167 -> 0 | E167: =Kütük!D167 -> Yusuf KILIÇKAYA | F167: =Kütük!J167 -> Diploma | G167: =Kütük!L167 -> 27 | H167: 34
A168: 34 | B168: 2 | C168: =Kütük!E168 -> Tesviye | D168: =Kütük!G168 -> 0 | E168: =Kütük!D168 -> Orhan EKİNCİOĞLU | F168: =Kütük!J168 -> Diploma | G168: =Kütük!L168 -> 293 | H168: 34
A169: 34 | B169: 3 | C169: =Kütük!E169 -> Tesviye | D169: =Kütük!G169 -> 0 | E169: =Kütük!D169 -> Bayram DERİNGÖL | F169: =Kütük!J169 -> Tasdikname | G169: =Kütük!L169 -> 306 | H169: 34
A170: 34 | B170: 4 | C170: =Kütük!E170 -> Elektrik | D170: =Kütük!G170 -> 0 | E170: =Kütük!D170 -> Ali GÜN | F170: =Kütük!J170 -> Diploma | G170: =Kütük!L170 -> 694 | H170: 34
A171: 34 | B171: 5 | C171: =Kütük!E171 -> Elektrik | D171: =Kütük!G171 -> 0 | E171: =Kütük!D171 -> Yusuf SİPAHİOĞLU | F171: =Kütük!J171 -> Diploma | G171: =Kütük!L171 -> 927 | H171: 34
A172: 35 | B172: 1 | C172: =Kütük!E172 -> Tesviye | D172: =Kütük!G172 -> 0 | E172: =Kütük!D172 -> Fatih KARAKAYA | F172: =Kütük!J172 -> Diploma | G172: =Kütük!L172 -> 28 | H172: 35
A173: 35 | B173: 2 | C173: =Kütük!E173 -> Tesviye | D173: =Kütük!G173 -> 0 | E173: =Kütük!D173 -> Ahmet AKTAŞ | F173: =Kütük!J173 -> Diploma | G173: =Kütük!L173 -> 260 | H173: 35
A174: 35 | B174: 3 | C174: =Kütük!E174 -> Tesviye | D174: =Kütük!G174 -> 0 | E174: =Kütük!D174 -> Hamdi MUTLU | F174: =Kütük!J174 -> Tasdikname | G174: =Kütük!L174 -> 210 | H174: 35
A175: 35 | B175: 4 | C175: =Kütük!E175 -> Tesviye | D175: =Kütük!G175 -> 0 | E175: =Kütük!D175 -> Yılmaz Kemal İNCE | F175: =Kütük!J175 -> Diploma | G175: =Kütük!L175 -> 294 | H175: 35
A176: 35 | B176: 5 | C176: =Kütük!E176 -> Tesviye | D176: =Kütük!G176 -> 0 | E176: =Kütük!D176 -> Güngör BAZ | F176: =Kütük!J176 -> Tasdikname | G176: =Kütük!L176 -> 237 | H176: 35
A177: 36 | B177: 1 | C177: =Kütük!E177 -> Tesviye | D177: =Kütük!G177 -> 0 | E177: =Kütük!D177 -> Muammer KAYSERLİOĞLU | F177: =Kütük!J177 -> Diploma | G177: =Kütük!L177 -> 29 | H177: 36
A178: 36 | B178: 2 | C178: =Kütük!E178 -> Tesviye | D178: =Kütük!G178 -> 0 | E178: =Kütük!D178 -> Doğan ÖZSOY | F178: =Kütük!J178 -> Tasdikname | G178: =Kütük!L178 -> 288 | H178: 36
A179: 36 | B179: 3 | C179: =Kütük!E179 -> Tesviye | D179: =Kütük!G179 -> 0 | E179: =Kütük!D179 -> Yalçın DELİGEZER | F179: =Kütük!J179 -> Diploma | G179: =Kütük!L179 -> 616 | H179: 36
A180: 36 | B180: 4 | C180: =Kütük!E180 -> Elektrik | D180: =Kütük!G180 -> 0 | E180: =Kütük!D180 -> Ali DURMAZ | F180: =Kütük!J180 -> Tasdikname | G180: =Kütük!L180 -> 578 | H180: 36
A181: 36 | B181: 5 | C181: =Kütük!E181 -> Elektrik | D181: =Kütük!G181 -> 0 | E181: =Kütük!D181 -> Ömer CORUK | F181: =Kütük!J181 -> Tasdikname | G181: =Kütük!L181 -> 697 | H181: 36
A182: 37 | B182: 1 | C182: =Kütük!E182 -> Tesviye | D182: =Kütük!G182 -> 0 | E182: =Kütük!D182 -> Mehmet KESKİNKILIÇ | F182: =Kütük!J182 -> Diploma | G182: =Kütük!L182 -> 76 | H182: 37
A183: 37 | B183: 2 | C183: =Kütük!E183 -> Tesviye | D183: =Kütük!G183 -> 0 | E183: =Kütük!D183 -> Orhan KARADUMAN | F183: =Kütük!J183 -> Tasdikname | G183: =Kütük!L183 -> 76 | H183: 37
A184: 37 | B184: 3 | C184: =Kütük!E184 -> Tesviye | D184: =Kütük!G184 -> 0 | E184: =Kütük!D184 -> Osman KAÇAR | F184: =Kütük!J184 -> Diploma | G184: =Kütük!L184 -> 420 | H184: 37
A185: 37 | B185: 4 | C185: =Kütük!E185 -> Tesviye | D185: =Kütük!G185 -> 0 | E185: =Kütük!D185 -> Mustafa GÖNEN | F185: =Kütük!J185 -> Diploma | G185: =Kütük!L185 -> 547 | H185: 37
A186: 37 | B186: 5 | C186: =Kütük!E186 -> Tesviye | D186: =Kütük!G186 -> 0 | E186: =Kütük!D186 -> Murat ÇARKAN | F186: =Kütük!J186 -> Diploma | G186: =Kütük!L186 -> 806 | H186: 37
A187: 38 | B187: 1 | C187: =Kütük!E187 -> Tesviye | D187: =Kütük!G187 -> 0 | E187: =Kütük!D187 -> Ali Nafi BULUT | F187: =Kütük!J187 -> Diploma | G187: =Kütük!L187 -> 30 | H187: 38
A188: 38 | B188: 2 | C188: =Kütük!E188 -> Tesviye | D188: =Kütük!G188 -> 0 | E188: =Kütük!D188 -> Bahattin SARIGÜNEY | F188: =Kütük!J188 -> Diploma | G188: =Kütük!L188 -> 295 | H188: 38
A189: 38 | B189: 3 | C189: =Kütük!E189 -> Tesviye | D189: =Kütük!G189 -> 0 | E189: =Kütük!D189 -> Mustafa Yaman KILIÇKAYA | F189: =Kütük!J189 -> Tasdikname | G189: =Kütük!L189 -> 392 | H189: 38
A190: 38 | B190: 4 | C190: =Kütük!E190 -> Tesviye | D190: =Kütük!G190 -> 0 | E190: =Kütük!D190 -> Hacı Osman COŞKUN | F190: =Kütük!J190 -> Diploma | G190: =Kütük!L190 -> 719 | H190: 38
A191: 38 | B191: 5 | C191: =Kütük!E191 -> Elektrik | D191: =Kütük!G191 -> 0 | E191: =Kütük!D191 -> Halim KAVRUK | F191: =Kütük!J191 -> Diploma | G191: =Kütük!L191 -> 928 | H191: 38
A192: 39 | B192: 1 | C192: =Kütük!E192 -> Tesviye | D192: =Kütük!G192 -> 0 | E192: =Kütük!D192 -> Hüseyin ÜN | F192: =Kütük!J192 -> Diploma | G192: =Kütük!L192 -> 31 | H192: 39
A193: 39 | B193: 2 | C193: =Kütük!E193 -> Tesviye | D193: =Kütük!G193 -> 0 | E193: =Kütük!D193 -> Mustafa AKTAŞ | F193: =Kütük!J193 -> Diploma | G193: =Kütük!L193 -> 263 | H193: 39
A194: 39 | B194: 3 | C194: =Kütük!E194 -> Tesviye | D194: =Kütük!G194 -> 0 | E194: =Kütük!D194 -> Dagıstan ÖCALAN | F194: =Kütük!J194 -> Diploma | G194: =Kütük!L194 -> 535 | H194: =A194 -> 39
A195: 39 | B195: 4 | C195: =Kütük!E195 -> Tesviye | D195: =Kütük!G195 -> 0 | E195: =Kütük!D195 -> Ömer ÇOBAN | F195: =Kütük!J195 -> Diploma | G195: =Kütük!L195 -> 617 | H195: 39
A196: 39 | B196: 5 | C196: =Kütük!E196 -> Tesviye | D196: =Kütük!G196 -> 0 | E196: =Kütük!D196 -> Tuncay ŞAHBAZ | F196: =Kütük!J196 -> Diploma | G196: =Kütük!L196 -> 848 | H196: 39
A197: 40 | B197: 1 | C197: =Kütük!E197 -> Tesviye | D197: =Kütük!G197 -> 0 | E197: =Kütük!D197 -> Muammer BALTACI | F197: =Kütük!J197 -> Diploma | G197: =Kütük!L197 -> 32 | H197: 40
A198: 40 | B198: 2 | C198: =Kütük!E198 -> Tesviye | D198: =Kütük!G198 -> 0 | E198: =Kütük!D198 -> Mahir KARACA | F198: =Kütük!J198 -> Diploma | G198: =Kütük!L198 -> 281 | H198: 40
A199: 40 | B199: 3 | C199: =Kütük!E199 -> Elektrik | D199: =Kütük!G199 -> 0 | E199: =Kütük!D199 -> Günay ÇETİN | F199: =Kütük!J199 -> Diploma | G199: =Kütük!L199 -> 506 | H199: 40
A200: 40 | B200: 4 | C200: =Kütük!E200 -> Tesviye | D200: =Kütük!G200 -> 0 | E200: =Kütük!D200 -> Hikmet ÖZTÜRK | F200: =Kütük!J200 -> Diploma | G200: =Kütük!L200 -> 867 | H200: 40
... 6781 more rows

Sheet Genel İstatistik
A1: DEVELİ ANADOLU TEKNİK LİSESİ VE ENDÜSTRİ MESLEK LİSESİ
A2: OKULUMUZDAN DİPLOMA VE TASDİKNAME ALANLARIN YILLARA VE BÖLÜMLERE GÖRE DAĞILIMI
A4: YILLAR | B4: Diploma | L4: Tasdikname | W4: Nakil | AH4: Okuyor | AN4: Diğer | AO4: Kulanılabilir | AP4: Boş | AQ4: Genel Toplam
B5: Tesviye | C5: Elektrik | D5: Bilgisayar | E5: Motor | F5: Elektronik | G5: Makina Teknolojisi | H5: Elektrik - Elektronik Teknolojisi | I5: Bilişim Teknolojileri | J5: Motorlu Araçlar Teknolojisi | K5: Toplam | L5: Tesviye | M5: Elektrik | N5: Bilgisayar | O5: Motor | P5: Elektronik | Q5: Makina Teknolojisi | R5: Elektrik - Elektronik Teknolojisi | S5: Bilişim Teknolojileri | T5: Motorlu Araçlar Teknolojisi | U5: 1. Sınıf Ortak | V5: Toplam | W5: Tesviye | X5: Elektrik | Y5: Bilgisayar | Z5: Motor | AA5: Elektronik | AB5: Makina Teknolojisi | AC5: Elektrik - Elektronik Teknolojisi | AD5: Bilişim Teknolojileri | AE5: Motorlu Araçlar Teknolojisi | AF5: 1. Sınıf Ortak | AG5: Toplam | AH5: Makina Teknolojisi | AI5: Elektrik - Elektronik Teknolojisi | AJ5: Bilişim Teknolojileri | AK5: Motorlu Araçlar Teknolojisi | AL5: 1. Sınıf Ortak | AM5: Toplam
A6: 1972
A7: 1973 | L7: =COUNTIF(Dağılım!BY$2:BY$5000,$A7) -> 8 | V7: =SUM(L7:U7) -> 8 | AQ7: =SUM(K7+V7+AG7) -> 8
A8: 1974 | L8: =COUNTIF(Dağılım!BY$2:BY$5000,$A8) -> 8 | V8: 8 | W8: =COUNTIF(Dağılım!CI$2:CI$5000,$A8) -> 3 | AG8: =SUM(W8:AF8) -> 3 | AQ8: =SUM(K8+V8+AG8) -> 11
A9: 1975 | B9: =COUNTIF(Dağılım!BP$2:BP$5000,$A9) -> 74 | K9: =SUM(B9:J9) -> 74 | L9: =COUNTIF(Dağılım!BY$2:BY$5000,$A9) -> 8 | M9: =COUNTIF(Dağılım!BZ$2:BZ$5000,$A9) -> 1 | V9: 9 | AQ9: 83
A10: 1976 | B10: =COUNTIF(Dağılım!BP$2:BP$5000,$A10) -> 60 | K10: 60 | L10: =COUNTIF(Dağılım!BY$2:BY$5000,$A10) -> 17 | M10: =COUNTIF(Dağılım!BZ$2:BZ$5000,$A10) -> 12 | V10: 29 | AQ10: 89
A11: 1977 | B11: =COUNTIF(Dağılım!BP$2:BP$5000,$A11) -> 61 | K11: 61 | L11: =COUNTIF(Dağılım!BY$2:BY$5000,$A11) -> 23 | M11: =COUNTIF(Dağılım!BZ$2:BZ$5000,$A11) -> 17 | V11: 40 | AQ11: 101
A12: 1978 | B12: =COUNTIF(Dağılım!BP$2:BP$5000,$A12) -> 61 | C12: =COUNTIF(Dağılım!BQ$2:BQ$5000,$A12) -> 26 | K12: 87 | L12: =COUNTIF(Dağılım!BY$2:BY$5000,$A12) -> 13 | M12: =COUNTIF(Dağılım!BZ$2:BZ$5000,$A12) -> 9 | V12: 22 | X12: =COUNTIF(Dağılım!CJ$2:CJ$5000,$A12) -> 1 | AG12: 1 | AQ12: 110
A13: 1979 | B13: =COUNTIF(Dağılım!BP$2:BP$5000,$A13) -> 73 | C13: =COUNTIF(Dağılım!BQ$2:BQ$5000,$A13) -> 59 | K13: 132 | L13: =COUNTIF(Dağılım!BY$2:BY$5000,$A13) -> 26 | M13: =COUNTIF(Dağılım!BZ$2:BZ$5000,$A13) -> 28 | V13: 54 | W13: =COUNTIF(Dağılım!CI$2:CI$5000,$A13) -> 1 | AG13: 1 | AQ13: 187
A14: 1980 | B14: =COUNTIF(Dağılım!BP$2:BP$5000,$A14) -> 43 | C14: =COUNTIF(Dağılım!BQ$2:BQ$5000,$A14) -> 34 | K14: 77 | L14: =COUNTIF(Dağılım!BY$2:BY$5000,$A14) -> 17 | M14: =COUNTIF(Dağılım!BZ$2:BZ$5000,$A14) -> 14 | V14: 31 | AQ14: 108
A15: 1981 | B15: =COUNTIF(Dağılım!BP$2:BP$5000,$A15) -> 8 | C15: =COUNTIF(Dağılım!BQ$2:BQ$5000,$A15) -> 11 | K15: 19 | L15: =COUNTIF(Dağılım!BY$2:BY$5000,$A15) -> 10 | M15: =COUNTIF(Dağılım!BZ$2:BZ$5000,$A15) -> 19 | V15: 29 | AQ15: 48
A16: 1982 | B16: =COUNTIF(Dağılım!BP$2:BP$5000,$A16) -> 8 | C16: =COUNTIF(Dağılım!BQ$2:BQ$5000,$A16) -> 15 | K16: 23 | L16: =COUNTIF(Dağılım!BY$2:BY$5000,$A16) -> 9 | M16: =COUNTIF(Dağılım!BZ$2:BZ$5000,$A16) -> 4 | V16: 13 | AQ16: 36
A17: 1983 | B17: =COUNTIF(Dağılım!BP$2:BP$5000,$A17) -> 7 | C17: =COUNTIF(Dağılım!BQ$2:BQ$5000,$A17) -> 6 | K17: 13 | L17: =COUNTIF(Dağılım!BY$2:BY$5000,$A17) -> 1 | M17: =COUNTIF(Dağılım!BZ$2:BZ$5000,$A17) -> 4 | V17: 5 | AQ17: 18
A18: 1984 | B18: =COUNTIF(Dağılım!BP$2:BP$5000,$A18) -> 11 | C18: =COUNTIF(Dağılım!BQ$2:BQ$5000,$A18) -> 15 | K18: 26 | L18: =COUNTIF(Dağılım!BY$2:BY$5000,$A18) -> 12 | M18: =COUNTIF(Dağılım!BZ$2:BZ$5000,$A18) -> 11 | V18: 23 | AQ18: 49
A19: 1985 | B19: =COUNTIF(Dağılım!BP$2:BP$5000,$A19) -> 11 | C19: =COUNTIF(Dağılım!BQ$2:BQ$5000,$A19) -> 7 | K19: 18 | L19: =COUNTIF(Dağılım!BY$2:BY$5000,$A19) -> 2 | M19: =COUNTIF(Dağılım!BZ$2:BZ$5000,$A19) -> 13 | V19: 15 | AQ19: 33
A20: 1986 | B20: =COUNTIF(Dağılım!BP$2:BP$5000,$A20) -> 11 | C20: =COUNTIF(Dağılım!BQ$2:BQ$5000,$A20) -> 12 | K20: 23 | L20: =COUNTIF(Dağılım!BY$2:BY$5000,$A20) -> 27 | M20: =COUNTIF(Dağılım!BZ$2:BZ$5000,$A20) -> 32 | V20: 59 | AQ20: 82
A21: 1987 | B21: =COUNTIF(Dağılım!BP$2:BP$5000,$A21) -> 21 | C21: =COUNTIF(Dağılım!BQ$2:BQ$5000,$A21) -> 18 | K21: 39 | L21: =COUNTIF(Dağılım!BY$2:BY$5000,$A21) -> 11 | M21: =COUNTIF(Dağılım!BZ$2:BZ$5000,$A21) -> 26 | V21: 37 | AQ21: 76
A22: 1988 | B22: =COUNTIF(Dağılım!BP$2:BP$5000,$A22) -> 28 | C22: =COUNTIF(Dağılım!BQ$2:BQ$5000,$A22) -> 22 | K22: 50 | L22: =COUNTIF(Dağılım!BY$2:BY$5000,$A22) -> 5 | M22: =COUNTIF(Dağılım!BZ$2:BZ$5000,$A22) -> 11 | V22: 16 | AQ22: 66
A23: 1989 | B23: =COUNTIF(Dağılım!BP$2:BP$5000,$A23) -> 43 | C23: =COUNTIF(Dağılım!BQ$2:BQ$5000,$A23) -> 31 | K23: 74 | L23: =COUNTIF(Dağılım!BY$2:BY$5000,$A23) -> 16 | M23: =COUNTIF(Dağılım!BZ$2:BZ$5000,$A23) -> 23 | V23: 39 | AQ23: 113
A24: 1990 | B24: =COUNTIF(Dağılım!BP$2:BP$5000,$A24) -> 32 | C24: =COUNTIF(Dağılım!BQ$2:BQ$5000,$A24) -> 37 | K24: 69 | L24: =COUNTIF(Dağılım!BY$2:BY$5000,$A24) -> 16 | M24: =COUNTIF(Dağılım!BZ$2:BZ$5000,$A24) -> 18 | V24: 34 | AQ24: 103
A25: 1991 | B25: =COUNTIF(Dağılım!BP$2:BP$5000,$A25) -> 27 | C25: =COUNTIF(Dağılım!BQ$2:BQ$5000,$A25) -> 32 | K25: 59 | L25: =COUNTIF(Dağılım!BY$2:BY$5000,$A25) -> 15 | M25: =COUNTIF(Dağılım!BZ$2:BZ$5000,$A25) -> 19 | V25: 34 | AQ25: 93
A26: 1992 | B26: =COUNTIF(Dağılım!BP$2:BP$5000,$A26) -> 18 | C26: =COUNTIF(Dağılım!BQ$2:BQ$5000,$A26) -> 28 | K26: 46 | L26: =COUNTIF(Dağılım!BY$2:BY$5000,$A26) -> 11 | M26: =COUNTIF(Dağılım!BZ$2:BZ$5000,$A26) -> 15 | V26: 26 | AQ26: 72
A27: 1993 | B27: =COUNTIF(Dağılım!BP$2:BP$5000,$A27) -> 32 | C27: =COUNTIF(Dağılım!BQ$2:BQ$5000,$A27) -> 39 | K27: 71 | L27: =COUNTIF(Dağılım!BY$2:BY$5000,$A27) -> 15 | M27: =COUNTIF(Dağılım!BZ$2:BZ$5000,$A27) -> 13 | V27: 28 | AQ27: 99
A28: 1994 | B28: =COUNTIF(Dağılım!BP$2:BP$5000,$A28) -> 44 | C28: =COUNTIF(Dağılım!BQ$2:BQ$5000,$A28) -> 29 | K28: 73 | L28: =COUNTIF(Dağılım!BY$2:BY$5000,$A28) -> 5 | M28: =COUNTIF(Dağılım!BZ$2:BZ$5000,$A28) -> 13 | V28: 18 | AQ28: 91
A29: 1995 | B29: =COUNTIF(Dağılım!BP$2:BP$5000,$A29) -> 32 | C29: =COUNTIF(Dağılım!BQ$2:BQ$5000,$A29) -> 45 | K29: 77 | L29: =COUNTIF(Dağılım!BY$2:BY$5000,$A29) -> 5 | M29: =COUNTIF(Dağılım!BZ$2:BZ$5000,$A29) -> 10 | V29: 15 | AQ29: 92
A30: 1996 | B30: =COUNTIF(Dağılım!BP$2:BP$5000,$A30) -> 33 | C30: =COUNTIF(Dağılım!BQ$2:BQ$5000,$A30) -> 36 | K30: 69 | L30: =COUNTIF(Dağılım!BY$2:BY$5000,$A30) -> 16 | M30: =COUNTIF(Dağılım!BZ$2:BZ$5000,$A30) -> 18 | V30: 34 | AQ30: 103
A31: 1997 | B31: =COUNTIF(Dağılım!BP$2:BP$5000,$A31) -> 41 | C31: =COUNTIF(Dağılım!BQ$2:BQ$5000,$A31) -> 40 | K31: 81 | L31: =COUNTIF(Dağılım!BY$2:BY$5000,$A31) -> 30 | M31: =COUNTIF(Dağılım!BZ$2:BZ$5000,$A31) -> 38 | V31: 68 | AQ31: 149
A32: 1998 | B32: =COUNTIF(Dağılım!BP$2:BP$5000,$A32) -> 17 | C32: =COUNTIF(Dağılım!BQ$2:BQ$5000,$A32) -> 24 | K32: 41 | L32: =COUNTIF(Dağılım!BY$2:BY$5000,$A32) -> 34 | M32: =COUNTIF(Dağılım!BZ$2:BZ$5000,$A32) -> 22 | V32: 56 | AQ32: 97
A33: 1999 | B33: =COUNTIF(Dağılım!BP$2:BP$5000,$A33) -> 42 | C33: =COUNTIF(Dağılım!BQ$2:BQ$5000,$A33) -> 25 | K33: 67 | L33: =COUNTIF(Dağılım!BY$2:BY$5000,$A33) -> 21 | M33: =COUNTIF(Dağılım!BZ$2:BZ$5000,$A33) -> 17 | N33: =COUNTIF(Dağılım!CA$2:CA$5000,$A33) -> 4 | P33: =COUNTIF(Dağılım!CC$2:CC$5000,$A33) -> 1 | V33: 43 | AQ33: 110
A34: 2000 | B34: =COUNTIF(Dağılım!BP$2:BP$5000,$A34) -> 9 | C34: =COUNTIF(Dağılım!BQ$2:BQ$5000,$A34) -> 23 | D34: =COUNTIF(Dağılım!BR$2:BR$5000,$A34) -> 14 | K34: 46 | L34: =COUNTIF(Dağılım!BY$2:BY$5000,$A34) -> 14 | M34: =COUNTIF(Dağılım!BZ$2:BZ$5000,$A34) -> 11 | N34: =COUNTIF(Dağılım!CA$2:CA$5000,$A34) -> 6 | O34: =COUNTIF(Dağılım!CB$2:CB$5000,$A34) -> 10 | P34: =COUNTIF(Dağılım!CC$2:CC$5000,$A34) -> 6 | V34: 47 | AQ34: 93
A35: 2001 | B35: =COUNTIF(Dağılım!BP$2:BP$5000,$A35) -> 13 | C35: =COUNTIF(Dağılım!BQ$2:BQ$5000,$A35) -> 11 | D35: =COUNTIF(Dağılım!BR$2:BR$5000,$A35) -> 12 | E35: =COUNTIF(Dağılım!BS$2:BS$5000,$A35) -> 15 | F35: =COUNTIF(Dağılım!BT$2:BT$5000,$A35) -> 10 | K35: 61 | L35: =COUNTIF(Dağılım!BY$2:BY$5000,$A35) -> 8 | M35: =COUNTIF(Dağılım!BZ$2:BZ$5000,$A35) -> 16 | N35: =COUNTIF(Dağılım!CA$2:CA$5000,$A35) -> 6 | O35: =COUNTIF(Dağılım!CB$2:CB$5000,$A35) -> 7 | P35: =COUNTIF(Dağılım!CC$2:CC$5000,$A35) -> 17 | V35: 54 | AQ35: 115
A36: 2002 | B36: =COUNTIF(Dağılım!BP$2:BP$5000,$A36) -> 12 | C36: =COUNTIF(Dağılım!BQ$2:BQ$5000,$A36) -> 30 | D36: =COUNTIF(Dağılım!BR$2:BR$5000,$A36) -> 18 | E36: =COUNTIF(Dağılım!BS$2:BS$5000,$A36) -> 13 | F36: =COUNTIF(Dağılım!BT$2:BT$5000,$A36) -> 17 | K36: 90 | L36: =COUNTIF(Dağılım!BY$2:BY$5000,$A36) -> 2 | M36: =COUNTIF(Dağılım!BZ$2:BZ$5000,$A36) -> 7 | N36: =COUNTIF(Dağılım!CA$2:CA$5000,$A36) -> 1 | O36: =COUNTIF(Dağılım!CB$2:CB$5000,$A36) -> 5 | P36: =COUNTIF(Dağılım!CC$2:CC$5000,$A36) -> 11 | V36: 26 | AQ36: 116
A37: 2003 | B37: =COUNTIF(Dağılım!BP$2:BP$5000,$A37) -> 9 | C37: =COUNTIF(Dağılım!BQ$2:BQ$5000,$A37) -> 13 | D37: =COUNTIF(Dağılım!BR$2:BR$5000,$A37) -> 10 | E37: =COUNTIF(Dağılım!BS$2:BS$5000,$A37) -> 9 | F37: =COUNTIF(Dağılım!BT$2:BT$5000,$A37) -> 3 | K37: 44 | L37: =COUNTIF(Dağılım!BY$2:BY$5000,$A37) -> 3 | M37: =COUNTIF(Dağılım!BZ$2:BZ$5000,$A37) -> 9 | N37: =COUNTIF(Dağılım!CA$2:CA$5000,$A37) -> 1 | O37: =COUNTIF(Dağılım!CB$2:CB$5000,$A37) -> 15 | P37: =COUNTIF(Dağılım!CC$2:CC$5000,$A37) -> 8 | V37: 36 | AQ37: 80
A38: 2004 | B38: =COUNTIF(Dağılım!BP$2:BP$5000,$A38) -> 10 | C38: =COUNTIF(Dağılım!BQ$2:BQ$5000,$A38) -> 11 | D38: =COUNTIF(Dağılım!BR$2:BR$5000,$A38) -> 15 | E38: =COUNTIF(Dağılım!BS$2:BS$5000,$A38) -> 11 | F38: =COUNTIF(Dağılım!BT$2:BT$5000,$A38) -> 7 | K38: 54 | L38: =COUNTIF(Dağılım!BY$2:BY$5000,$A38) -> 5 | M38: =COUNTIF(Dağılım!BZ$2:BZ$5000,$A38) -> 9 | N38: =COUNTIF(Dağılım!CA$2:CA$5000,$A38) -> 10 | O38: =COUNTIF(Dağılım!CB$2:CB$5000,$A38) -> 9 | P38: =COUNTIF(Dağılım!CC$2:CC$5000,$A38) -> 15 | V38: 48 | AQ38: 102
A39: 2005 | B39: =COUNTIF(Dağılım!BP$2:BP$5000,$A39) -> 3 | C39: =COUNTIF(Dağılım!BQ$2:BQ$5000,$A39) -> 8 | D39: =COUNTIF(Dağılım!BR$2:BR$5000,$A39) -> 17 | E39: =COUNTIF(Dağılım!BS$2:BS$5000,$A39) -> 10 | F39: =COUNTIF(Dağılım!BT$2:BT$5000,$A39) -> 7 | K39: 45 | L39: =COUNTIF(Dağılım!BY$2:BY$5000,$A39) -> 3 | M39: =COUNTIF(Dağılım!BZ$2:BZ$5000,$A39) -> 4 | N39: =COUNTIF(Dağılım!CA$2:CA$5000,$A39) -> 6 | O39: =COUNTIF(Dağılım!CB$2:CB$5000,$A39) -> 8 | P39: =COUNTIF(Dağılım!CC$2:CC$5000,$A39) -> 2 | U39: =COUNTIF(Dağılım!CH$2:CH$5000,$A39) -> 2 | V39: 25 | AQ39: 70
A40: 2006 | B40: =COUNTIF(Dağılım!BP$2:BP$5000,$A40) -> 22 | C40: =COUNTIF(Dağılım!BQ$2:BQ$5000,$A40) -> 20 | D40: =COUNTIF(Dağılım!BR$2:BR$5000,$A40) -> 27 | E40: =COUNTIF(Dağılım!BS$2:BS$5000,$A40) -> 16 | F40: =COUNTIF(Dağılım!BT$2:BT$5000,$A40) -> 22 | K40: 107 | L40: =COUNTIF(Dağılım!BY$2:BY$5000,$A40) -> 23 | M40: =COUNTIF(Dağılım!BZ$2:BZ$5000,$A40) -> 13 | N40: =COUNTIF(Dağılım!CA$2:CA$5000,$A40) -> 7 | O40: =COUNTIF(Dağılım!CB$2:CB$5000,$A40) -> 11 | P40: =COUNTIF(Dağılım!CC$2:CC$5000,$A40) -> 9 | R40: =COUNTIF(Dağılım!CE$2:CE$5000,$A40) -> 1 | T40: =COUNTIF(Dağılım!CG$2:CG$5000,$A40) -> 1 | U40: =COUNTIF(Dağılım!CH$2:CH$5000,$A40) -> 40 | V40: 105 | AQ40: 212
A41: 2007 | B41: =COUNTIF(Dağılım!BP$2:BP$5000,$A41) -> 16 | C41: =COUNTIF(Dağılım!BQ$2:BQ$5000,$A41) -> 19 | D41: =COUNTIF(Dağılım!BR$2:BR$5000,$A41) -> 23 | E41: =COUNTIF(Dağılım!BS$2:BS$5000,$A41) -> 26 | F41: =COUNTIF(Dağılım!BT$2:BT$5000,$A41) -> 21 | K41: 105 | L41: =COUNTIF(Dağılım!BY$2:BY$5000,$A41) -> 1 | O41: =COUNTIF(Dağılım!CB$2:CB$5000,$A41) -> 1 | P41: =COUNTIF(Dağılım!CC$2:CC$5000,$A41) -> 1 | S41: =COUNTIF(Dağılım!CF$2:CF$5000,$A41) -> 3 | T41: =COUNTIF(Dağılım!CG$2:CG$5000,$A41) -> 1 | U41: =COUNTIF(Dağılım!CH$2:CH$5000,$A41) -> 42 | V41: 49 | AQ41: 154
A42: 2008 | B42: =COUNTIF(Dağılım!BP$2:BP$5000,$A42) -> 3 | C42: =COUNTIF(Dağılım!BQ$2:BQ$5000,$A42) -> 1 | D42: =COUNTIF(Dağılım!BR$2:BR$5000,$A42) -> 5 | E42: =COUNTIF(Dağılım!BS$2:BS$5000,$A42) -> 5 | K42: =SUM(B42:J42) -> 14 | Q42: =COUNTIF(Dağılım!CD$2:CD$5000,$A42) -> 4 | R42: =COUNTIF(Dağılım!CE$2:CE$5000,$A42) -> 3 | S42: =COUNTIF(Dağılım!CF$2:CF$5000,$A42) -> 1 | T42: =COUNTIF(Dağılım!CG$2:CG$5000,$A42) -> 4 | U42: =COUNTIF(Dağılım!CH$2:CH$5000,$A42) -> 71 | V42: =SUM(L42:U42) -> 83 | AQ42: 97
A43: 2009 | H43: =COUNTIF(Dağılım!BV$2:BV$5000,$A43) -> 20 | I43: =COUNTIF(Dağılım!BW$2:BW$5000,$A43) -> 17 | J43: =COUNTIF(Dağılım!BX$2:BX$5000,$A43) -> 18 | K43: 55 | Q43: =COUNTIF(Dağılım!CD$2:CD$5000,$A43) -> 2 | R43: =COUNTIF(Dağılım!CE$2:CE$5000,$A43) -> 4 | T43: =COUNTIF(Dağılım!CG$2:CG$5000,$A43) -> 4 | U43: =COUNTIF(Dağılım!CH$2:CH$5000,$A43) -> 34 | V43: 44 | AF43: =COUNTIF(Dağılım!CR$2:CR$5000,$A43) -> 2 | AG43: =SUM(W43:AF43) -> 2 | AQ43: 101
A44: 2010 | G44: =COUNTIF(Dağılım!BU$2:BU$5000,$A44) -> 17 | H44: =COUNTIF(Dağılım!BV$2:BV$5000,$A44) -> 33 | I44: =COUNTIF(Dağılım!BW$2:BW$5000,$A44) -> 24 | J44: =COUNTIF(Dağılım!BX$2:BX$5000,$A44) -> 25 | K44: 99 | Q44: =COUNTIF(Dağılım!CD$2:CD$5000,$A44) -> 6 | R44: =COUNTIF(Dağılım!CE$2:CE$5000,$A44) -> 6 | S44: =COUNTIF(Dağılım!CF$2:CF$5000,$A44) -> 1 | T44: =COUNTIF(Dağılım!CG$2:CG$5000,$A44) -> 5 | U44: =COUNTIF(Dağılım!CH$2:CH$5000,$A44) -> 37 | V44: 55 | AB44: =COUNTIF(Dağılım!CN$2:CN$5000,$A44) -> 1 | AC44: =COUNTIF(Dağılım!CO$2:CO$5000,$A44) -> 2 | AD44: =COUNTIF(Dağılım!CP$2:CP$5000,$A44) -> 1 | AE44: =COUNTIF(Dağılım!CQ$2:CQ$5000,$A44) -> 2 | AF44: =COUNTIF(Dağılım!CR$2:CR$5000,$A44) -> 8 | AG44: =SUM(W44:AF44) -> 14 | AQ44: 168
A45: 2011 | G45: =COUNTIF(Dağılım!BU$2:BU$5000,$A45) -> 32 | H45: =COUNTIF(Dağılım!BV$2:BV$5000,$A45) -> 62 | I45: =COUNTIF(Dağılım!BW$2:BW$5000,$A45) -> 20 | J45: =COUNTIF(Dağılım!BX$2:BX$5000,$A45) -> 25 | K45: 139 | Q45: =COUNTIF(Dağılım!CD$2:CD$5000,$A45) -> 0 | R45: =COUNTIF(Dağılım!CE$2:CE$5000,$A45) -> 1 | S45: =COUNTIF(Dağılım!CF$2:CF$5000,$A45) -> 0 | T45: =COUNTIF(Dağılım!CG$2:CG$5000,$A45) -> 0 | U45: =COUNTIF(Dağılım!CH$2:CH$5000,$A45) -> 8 | V45: 9 | AB45: =COUNTIF(Dağılım!CN$2:CN$5000,$A45) -> 0 | AC45: =COUNTIF(Dağılım!CO$2:CO$5000,$A45) -> 0 | AD45: =COUNTIF(Dağılım!CP$2:CP$5000,$A45) -> 0 | AE45: =COUNTIF(Dağılım!CQ$2:CQ$5000,$A45) -> 0 | AF45: =COUNTIF(Dağılım!CR$2:CR$5000,$A45) -> 3 | AG45: =SUM(W45:AF45) -> 3 | AQ45: 151
A46: 2012 | G46: =COUNTIF(Dağılım!BU$2:BU$5000,$A46) -> 0 | H46: =COUNTIF(Dağılım!BV$2:BV$5000,$A46) -> 0 | I46: =COUNTIF(Dağılım!BW$2:BW$5000,$A46) -> 0 | J46: =COUNTIF(Dağılım!BX$2:BX$5000,$A46) -> 0 | K46: 0 | Q46: =COUNTIF(Dağılım!CD$2:CD$5000,$A46) -> 0 | R46: =COUNTIF(Dağılım!CE$2:CE$5000,$A46) -> 0 | S46: =COUNTIF(Dağılım!CF$2:CF$5000,$A46) -> 0 | T46: =COUNTIF(Dağılım!CG$2:CG$5000,$A46) -> 0 | U46: =COUNTIF(Dağılım!CH$2:CH$5000,$A46) -> 0 | V46: 0 | AB46: =COUNTIF(Dağılım!CN$2:CN$5000,$A46) -> 0 | AC46: =COUNTIF(Dağılım!CO$2:CO$5000,$A46) -> 0 | AD46: =COUNTIF(Dağılım!CP$2:CP$5000,$A46) -> 0 | AE46: =COUNTIF(Dağılım!CQ$2:CQ$5000,$A46) -> 0 | AF46: =COUNTIF(Dağılım!CR$2:CR$5000,$A46) -> 0 | AG46: =SUM(W46:AF46) -> 0 | AQ46: 0
A47: Toplam | B47: =SUM(B6:B46) -> 935 | C47: 727 | D47: 141 | E47: 105 | F47: 87 | G47: 49 | H47: 115 | I47: 61 | J47: 68 | K47: 2288 | L47: =SUM(L6:L46) -> 440 | M47: 476 | N47: 41 | O47: 66 | P47: 70 | Q47: 12 | R47: 15 | S47: 5 | T47: 15 | U47: 234 | V47: 1374 | W47: =SUM(W6:W46) -> 4 | X47: 1 | AB47: 1 | AC47: 2 | AD47: 1 | AE47: 2 | AF47: 13 | AG47: =SUM(W47:AF47) -> 24 | AH47: =COUNTA(Dağılım!AE$2:AE$10000) -> 81 | AI47: =COUNTA(Dağılım!AF$2:AF$10000) -> 99 | AJ47: =COUNTA(Dağılım!AG$2:AG$10000) -> 43 | AK47: =COUNTA(Dağılım!AH$2:AH$10000) -> 69 | AL47: =COUNTA(Dağılım!AI$2:AI$10000) -> 229 | AM47: =SUM(AH47:AL47) -> 521 | AN47: =COUNTA(Dağılım!AD$2:AD$2000) -> 24 | AO47: =COUNTA(Dağılım!AK$2:AK$2000) -> 276 | AP47: =COUNTA(Dağılım!AJ$2:AJ$2000) -> 1999 | AQ47: =SUM(K47+V47+AM47+AN47+AO47+AP47) -> 6482
B48: Olması Gereken | K48: =COUNTIF(Kütük!$J:$J,B4) -> 2547 | L48: Olması Gereken | V48: =COUNTIF(Kütük!$J:$J,L4) -> 1517 | W48: Olması Gereken | AG48: =COUNTIF(Kütük!$J:$J,W4) -> 68 | AH48: Olması Gereken | AM48: =COUNTIF(Kütük!$J:$J,AH4) -> 506 | AN48: =COUNTA(Dağılım!AD$2:AD$2000) -> 24 | AQ48: =SUM(K48+V48+AM48+AN48) -> 4594
B49: =SUM(B34:B42) -> 97 | C49: =SUM(C34:C42) -> 136 | D49: =SUM(D34:D42) -> 141 | E49: =SUM(E34:E42) -> 105 | F49: =SUM(F34:F42) -> 87 | J49: =SUM(B49:I49) -> 566 | K49: =SUM(K34:K42) -> 566
A50: DEVELİ ANADOLU TEKNİK LİSESİ VE ENDÜSTRİ MESLEK LİSESİ
A51: OKULUMUZA KAYIT OLAN ÖĞRENCİLERİN GETİRDİĞİ BELGE, YILLARA VE BÖLÜMLERE GÖRE DAĞILIMI
A53: YILLAR | B53: Diploma | L53: Tasdikname | X53: Nakil | AI53: Okuyor | AO53: Diğer | AP53: Kulanılabilir | AQ53: Boş | AR53: Genel Toplam
B54: Tesviye | C54: Elektrik | D54: Bilgisayar | E54: Motor | F54: Elektronik | G54: Makina Teknolojisi | H54: Elektrik - Elektronik Teknolojisi | I54: Bilişim Teknolojileri | J54: Motorlu Araçlar Teknolojisi | K54: 1. Sınıf Ortak | L54: Toplam | M54: Tesviye | N54: Elektrik | O54: Bilgisayar | P54: Motor | Q54: Elektronik | R54: Makina Teknolojisi | S54: Elektrik - Elektronik Teknolojisi | T54: Bilişim Teknolojileri | U54: Motorlu Araçlar Teknolojisi | V54: 1. Sınıf Ortak | W54: Toplam | X54: Tesviye | Y54: Elektrik | Z54: Bilgisayar | AA54: Motor | AB54: Elektronik | AC54: Makina Teknolojisi | AD54: Elektrik - Elektronik Teknolojisi | AE54: Bilişim Teknolojileri | AF54: Motorlu Araçlar Teknolojisi | AG54: 1. Sınıf Ortak | AH54: Toplam | AI54: Makina Teknolojisi | AJ54: Elektrik - Elektronik Teknolojisi | AK54: Bilişim Teknolojileri | AL54: Motorlu Araçlar Teknolojisi | AM54: 1. Sınıf Ortak | AN54: Toplam
A55: 1972 | B55: =COUNTIF(Dağılım!CS$2:CS$5000,$A55) -> 97 | L55: =SUM(B55:K55) -> 97 | AR55: =SUM(L55+W55+AH55) -> 97
A56: 1973 | B56: =COUNTIF(Dağılım!CS$2:CS$5000,$A56) -> 60 | L56: =SUM(B56:K56) -> 60 | AR56: =SUM(L56+W56+AH56) -> 60
A57: 1974 | B57: =COUNTIF(Dağılım!CS$2:CS$5000,$A57) -> 56 | L57: 56 | M57: =COUNTIF(Dağılım!DC$2:DC$5000,$A57) -> 4 | W57: =SUM(M57:V57) -> 4 | AR57: =SUM(L57+W57+AH57) -> 60
A58: 1975 | B58: =COUNTIF(Dağılım!CS$2:CS$5000,$A58) -> 92 | C58: =COUNTIF(Dağılım!CT$2:CT$5000,$A58) -> 48 | L58: 140 | M58: =COUNTIF(Dağılım!DC$2:DC$5000,$A58) -> 5 | N58: =COUNTIF(Dağılım!DD$2:DD$5000,$A58) -> 3 | W58: 8 | AR58: 148
A59: 1976 | B59: =COUNTIF(Dağılım!CS$2:CS$5000,$A59) -> 38 | C59: =COUNTIF(Dağılım!CT$2:CT$5000,$A59) -> 51 | L59: 89 | M59: =COUNTIF(Dağılım!DC$2:DC$5000,$A59) -> 10 | N59: =COUNTIF(Dağılım!DD$2:DD$5000,$A59) -> 1 | W59: 11 | AR59: 100
A60: 1977 | B60: =COUNTIF(Dağılım!CS$2:CS$5000,$A60) -> 49 | C60: =COUNTIF(Dağılım!CT$2:CT$5000,$A60) -> 32 | L60: 81 | M60: =COUNTIF(Dağılım!DC$2:DC$5000,$A60) -> 17 | N60: =COUNTIF(Dağılım!DD$2:DD$5000,$A60) -> 1 | W60: 18 | AR60: 99
A61: 1978 | B61: =COUNTIF(Dağılım!CS$2:CS$5000,$A61) -> 27 | C61: =COUNTIF(Dağılım!CT$2:CT$5000,$A61) -> 25 | L61: 52 | M61: =COUNTIF(Dağılım!DC$2:DC$5000,$A61) -> 37 | N61: =COUNTIF(Dağılım!DD$2:DD$5000,$A61) -> 37 | W61: 74 | AR61: 126
A62: 1979 | B62: =COUNTIF(Dağılım!CS$2:CS$5000,$A62) -> 27 | C62: =COUNTIF(Dağılım!CT$2:CT$5000,$A62) -> 25 | L62: 52 | M62: =COUNTIF(Dağılım!DC$2:DC$5000,$A62) -> 15 | N62: =COUNTIF(Dağılım!DD$2:DD$5000,$A62) -> 12 | W62: 27 | AR62: 79
A63: 1980 | B63: =COUNTIF(Dağılım!CS$2:CS$5000,$A63) -> 14 | C63: =COUNTIF(Dağılım!CT$2:CT$5000,$A63) -> 23 | L63: 37 | M63: =COUNTIF(Dağılım!DC$2:DC$5000,$A63) -> 7 | N63: =COUNTIF(Dağılım!DD$2:DD$5000,$A63) -> 13 | W63: 20 | AR63: 57
A64: 1981 | B64: =COUNTIF(Dağılım!CS$2:CS$5000,$A64) -> 12 | C64: =COUNTIF(Dağılım!CT$2:CT$5000,$A64) -> 23 | L64: 35 | M64: =COUNTIF(Dağılım!DC$2:DC$5000,$A64) -> 2 | N64: =COUNTIF(Dağılım!DD$2:DD$5000,$A64) -> 0 | W64: 2 | AR64: 37
A65: 1982 | B65: =COUNTIF(Dağılım!CS$2:CS$5000,$A65) -> 13 | C65: =COUNTIF(Dağılım!CT$2:CT$5000,$A65) -> 10 | L65: 23 | M65: =COUNTIF(Dağılım!DC$2:DC$5000,$A65) -> 3 | N65: =COUNTIF(Dağılım!DD$2:DD$5000,$A65) -> 1 | W65: 4 | AR65: 27
A66: 1983 | B66: =COUNTIF(Dağılım!CS$2:CS$5000,$A66) -> 20 | C66: =COUNTIF(Dağılım!CT$2:CT$5000,$A66) -> 25 | L66: 45 | M66: =COUNTIF(Dağılım!DC$2:DC$5000,$A66) -> 3 | N66: =COUNTIF(Dağılım!DD$2:DD$5000,$A66) -> 4 | W66: 7 | AR66: 52
A67: 1984 | B67: =COUNTIF(Dağılım!CS$2:CS$5000,$A67) -> 35 | C67: =COUNTIF(Dağılım!CT$2:CT$5000,$A67) -> 45 | L67: 80 | M67: =COUNTIF(Dağılım!DC$2:DC$5000,$A67) -> 7 | N67: =COUNTIF(Dağılım!DD$2:DD$5000,$A67) -> 3 | W67: 10 | AR67: 90
A68: 1985 | B68: =COUNTIF(Dağılım!CS$2:CS$5000,$A68) -> 38 | C68: =COUNTIF(Dağılım!CT$2:CT$5000,$A68) -> 52 | L68: 90 | M68: =COUNTIF(Dağılım!DC$2:DC$5000,$A68) -> 4 | N68: =COUNTIF(Dağılım!DD$2:DD$5000,$A68) -> 2 | W68: 6 | AR68: 96
A69: 1986 | B69: =COUNTIF(Dağılım!CS$2:CS$5000,$A69) -> 53 | C69: =COUNTIF(Dağılım!CT$2:CT$5000,$A69) -> 54 | L69: 107 | M69: =COUNTIF(Dağılım!DC$2:DC$5000,$A69) -> 3 | N69: =COUNTIF(Dağılım!DD$2:DD$5000,$A69) -> 2 | W69: 5 | AR69: 112
A70: 1987 | B70: =COUNTIF(Dağılım!CS$2:CS$5000,$A70) -> 33 | C70: =COUNTIF(Dağılım!CT$2:CT$5000,$A70) -> 34 | L70: 67 | M70: =COUNTIF(Dağılım!DC$2:DC$5000,$A70) -> 3 | N70: =COUNTIF(Dağılım!DD$2:DD$5000,$A70) -> 1 | W70: 4 | AR70: 71
A71: 1988 | B71: =COUNTIF(Dağılım!CS$2:CS$5000,$A71) -> 40 | C71: =COUNTIF(Dağılım!CT$2:CT$5000,$A71) -> 36 | L71: 76 | M71: =COUNTIF(Dağılım!DC$2:DC$5000,$A71) -> 3 | N71: =COUNTIF(Dağılım!DD$2:DD$5000,$A71) -> 3 | W71: 6 | AR71: 82
A72: 1989 | B72: =COUNTIF(Dağılım!CS$2:CS$5000,$A72) -> 29 | C72: =COUNTIF(Dağılım!CT$2:CT$5000,$A72) -> 50 | L72: 79 | M72: =COUNTIF(Dağılım!DC$2:DC$5000,$A72) -> 0 | N72: =COUNTIF(Dağılım!DD$2:DD$5000,$A72) -> 2 | W72: 2 | AR72: 81
A73: 1990 | B73: =COUNTIF(Dağılım!CS$2:CS$5000,$A73) -> 33 | C73: =COUNTIF(Dağılım!CT$2:CT$5000,$A73) -> 45 | L73: 78 | M73: =COUNTIF(Dağılım!DC$2:DC$5000,$A73) -> 7 | N73: =COUNTIF(Dağılım!DD$2:DD$5000,$A73) -> 2 | W73: 9 | AR73: 87
A74: 1991 | B74: =COUNTIF(Dağılım!CS$2:CS$5000,$A74) -> 50 | C74: =COUNTIF(Dağılım!CT$2:CT$5000,$A74) -> 49 | L74: 99 | M74: =COUNTIF(Dağılım!DC$2:DC$5000,$A74) -> 6 | N74: =COUNTIF(Dağılım!DD$2:DD$5000,$A74) -> 3 | W74: 9 | AR74: 108
A75: 1992 | B75: =COUNTIF(Dağılım!CS$2:CS$5000,$A75) -> 52 | C75: =COUNTIF(Dağılım!CT$2:CT$5000,$A75) -> 64 | L75: 116 | M75: =COUNTIF(Dağılım!DC$2:DC$5000,$A75) -> 1 | N75: =COUNTIF(Dağılım!DD$2:DD$5000,$A75) -> 4 | W75: 5 | AR75: 121
A76: 1993 | B76: =COUNTIF(Dağılım!CS$2:CS$5000,$A76) -> 50 | C76: =COUNTIF(Dağılım!CT$2:CT$5000,$A76) -> 51 | L76: 101 | M76: =COUNTIF(Dağılım!DC$2:DC$5000,$A76) -> 1 | N76: =COUNTIF(Dağılım!DD$2:DD$5000,$A76) -> 2 | W76: 3 | AR76: 104
A77: 1994 | B77: =COUNTIF(Dağılım!CS$2:CS$5000,$A77) -> 47 | C77: =COUNTIF(Dağılım!CT$2:CT$5000,$A77) -> 46 | L77: 93 | M77: =COUNTIF(Dağılım!DC$2:DC$5000,$A77) -> 2 | N77: =COUNTIF(Dağılım!DD$2:DD$5000,$A77) -> 2 | W77: 4 | AR77: 97
A78: 1995 | B78: =COUNTIF(Dağılım!CS$2:CS$5000,$A78) -> 39 | C78: =COUNTIF(Dağılım!CT$2:CT$5000,$A78) -> 54 | L78: 93 | M78: =COUNTIF(Dağılım!DC$2:DC$5000,$A78) -> 2 | N78: =COUNTIF(Dağılım!DD$2:DD$5000,$A78) -> 2 | W78: 4 | AR78: 97
A79: 1996 | B79: =COUNTIF(Dağılım!CS$2:CS$5000,$A79) -> 50 | C79: =COUNTIF(Dağılım!CT$2:CT$5000,$A79) -> 49 | L79: 99 | M79: =COUNTIF(Dağılım!DC$2:DC$5000,$A79) -> 1 | N79: =COUNTIF(Dağılım!DD$2:DD$5000,$A79) -> 4 | W79: 5 | AR79: 104
A80: 1997 | B80: =COUNTIF(Dağılım!CS$2:CS$5000,$A80) -> 47 | C80: =COUNTIF(Dağılım!CT$2:CT$5000,$A80) -> 37 | D80: =COUNTIF(Dağılım!CU$2:CU$5000,$A80) -> 28 | L80: 112 | M80: =COUNTIF(Dağılım!DC$2:DC$5000,$A80) -> 0 | N80: =COUNTIF(Dağılım!DD$2:DD$5000,$A80) -> 1 | W80: 1 | AR80: 113
A81: 1998 | B81: =COUNTIF(Dağılım!CS$2:CS$5000,$A81) -> 19 | C81: =COUNTIF(Dağılım!CT$2:CT$5000,$A81) -> 44 | D81: =COUNTIF(Dağılım!CU$2:CU$5000,$A81) -> 22 | E81: =COUNTIF(Dağılım!CV$2:CV$5000,$A81) -> 31 | F81: =COUNTIF(Dağılım!CW$2:CW$5000,$A81) -> 33 | L81: 149 | M81: =COUNTIF(Dağılım!DC$2:DC$5000,$A81) -> 1 | N81: =COUNTIF(Dağılım!DD$2:DD$5000,$A81) -> 2 | W81: 3 | AR81: 152
A82: 1999 | B82: =COUNTIF(Dağılım!CS$2:CS$5000,$A82) -> 19 | C82: =COUNTIF(Dağılım!CT$2:CT$5000,$A82) -> 19 | D82: =COUNTIF(Dağılım!CU$2:CU$5000,$A82) -> 15 | E82: =COUNTIF(Dağılım!CV$2:CV$5000,$A82) -> 13 | F82: =COUNTIF(Dağılım!CW$2:CW$5000,$A82) -> 21 | L82: 87 | M82: =COUNTIF(Dağılım!DC$2:DC$5000,$A82) -> 3 | N82: =COUNTIF(Dağılım!DD$2:DD$5000,$A82) -> 2 | O82: =COUNTIF(Dağılım!DE$2:DE$5000,$A82) -> 0 | P82: =COUNTIF(Dağılım!DF$2:DF$5000,$A82) -> 3 | Q82: =COUNTIF(Dağılım!DG$2:DG$5000,$A82) -> 0 | W82: 8 | AR82: 95
A83: 2000 | B83: =COUNTIF(Dağılım!CS$2:CS$5000,$A83) -> 6 | C83: =COUNTIF(Dağılım!CT$2:CT$5000,$A83) -> 11 | D83: =COUNTIF(Dağılım!CU$2:CU$5000,$A83) -> 14 | E83: =COUNTIF(Dağılım!CV$2:CV$5000,$A83) -> 17 | F83: =COUNTIF(Dağılım!CW$2:CW$5000,$A83) -> 7 | L83: 55 | M83: =COUNTIF(Dağılım!DC$2:DC$5000,$A83) -> 2 | N83: =COUNTIF(Dağılım!DD$2:DD$5000,$A83) -> 1 | O83: =COUNTIF(Dağılım!DE$2:DE$5000,$A83) -> 0 | P83: =COUNTIF(Dağılım!DF$2:DF$5000,$A83) -> 1 | Q83: =COUNTIF(Dağılım!DG$2:DG$5000,$A83) -> 1 | W83: 5 | AR83: 60
A84: 2001 | B84: =COUNTIF(Dağılım!CS$2:CS$5000,$A84) -> 6 | C84: =COUNTIF(Dağılım!CT$2:CT$5000,$A84) -> 17 | D84: =COUNTIF(Dağılım!CU$2:CU$5000,$A84) -> 10 | E84: =COUNTIF(Dağılım!CV$2:CV$5000,$A84) -> 13 | F84: =COUNTIF(Dağılım!CW$2:CW$5000,$A84) -> 17 | L84: 63 | M84: =COUNTIF(Dağılım!DC$2:DC$5000,$A84) -> 2 | N84: =COUNTIF(Dağılım!DD$2:DD$5000,$A84) -> 2 | O84: =COUNTIF(Dağılım!DE$2:DE$5000,$A84) -> 1 | P84: =COUNTIF(Dağılım!DF$2:DF$5000,$A84) -> 0 | Q84: =COUNTIF(Dağılım!DG$2:DG$5000,$A84) -> 0 | W84: 5 | AR84: 68
A85: 2002 | B85: =COUNTIF(Dağılım!CS$2:CS$5000,$A85) -> 9 | C85: =COUNTIF(Dağılım!CT$2:CT$5000,$A85) -> 13 | D85: =COUNTIF(Dağılım!CU$2:CU$5000,$A85) -> 19 | E85: =COUNTIF(Dağılım!CV$2:CV$5000,$A85) -> 20 | F85: =COUNTIF(Dağılım!CW$2:CW$5000,$A85) -> 16 | L85: 77 | M85: =COUNTIF(Dağılım!DC$2:DC$5000,$A85) -> 0 | N85: =COUNTIF(Dağılım!DD$2:DD$5000,$A85) -> 6 | O85: =COUNTIF(Dağılım!DE$2:DE$5000,$A85) -> 2 | P85: =COUNTIF(Dağılım!DF$2:DF$5000,$A85) -> 1 | Q85: =COUNTIF(Dağılım!DG$2:DG$5000,$A85) -> 5 | W85: 14 | AR85: 91
A86: 2003 | B86: =COUNTIF(Dağılım!CS$2:CS$5000,$A86) -> 30 | C86: =COUNTIF(Dağılım!CT$2:CT$5000,$A86) -> 27 | D86: =COUNTIF(Dağılım!CU$2:CU$5000,$A86) -> 41 | E86: =COUNTIF(Dağılım!CV$2:CV$5000,$A86) -> 27 | F86: =COUNTIF(Dağılım!CW$2:CW$5000,$A86) -> 24 | L86: 149 | M86: =COUNTIF(Dağılım!DC$2:DC$5000,$A86) -> 8 | N86: =COUNTIF(Dağılım!DD$2:DD$5000,$A86) -> 2 | O86: =COUNTIF(Dağılım!DE$2:DE$5000,$A86) -> 9 | P86: =COUNTIF(Dağılım!DF$2:DF$5000,$A86) -> 2 | Q86: =COUNTIF(Dağılım!DG$2:DG$5000,$A86) -> 4 | W86: 25 | AR86: 174
A87: 2004 | B87: =COUNTIF(Dağılım!CS$2:CS$5000,$A87) -> 26 | C87: =COUNTIF(Dağılım!CT$2:CT$5000,$A87) -> 19 | D87: =COUNTIF(Dağılım!CU$2:CU$5000,$A87) -> 18 | E87: =COUNTIF(Dağılım!CV$2:CV$5000,$A87) -> 36 | F87: =COUNTIF(Dağılım!CW$2:CW$5000,$A87) -> 24 | L87: 123 | M87: =COUNTIF(Dağılım!DC$2:DC$5000,$A87) -> 4 | N87: =COUNTIF(Dağılım!DD$2:DD$5000,$A87) -> 3 | O87: =COUNTIF(Dağılım!DE$2:DE$5000,$A87) -> 3 | P87: =COUNTIF(Dağılım!DF$2:DF$5000,$A87) -> 6 | Q87: =COUNTIF(Dağılım!DG$2:DG$5000,$A87) -> 5 | W87: 21 | AR87: 144
A88: 2005 | G88: =COUNTIF(Dağılım!CX$2:CX$5000,$A88) -> 4 | H88: =COUNTIF(Dağılım!CY$2:CY$5000,$A88) -> 22 | I88: =COUNTIF(Dağılım!CZ$2:CZ$5000,$A88) -> 20 | J88: =COUNTIF(Dağılım!DA$2:DA$5000,$A88) -> 20 | K88: =COUNTIF(Dağılım!DB$2:DB$5000,$A88) -> 51 | L88: =SUM(B88:K88) -> 117 | M88: =COUNTIF(Dağılım!DC$2:DC$5000,$A88) -> 1 | N88: =COUNTIF(Dağılım!DD$2:DD$5000,$A88) -> 0 | O88: =COUNTIF(Dağılım!DE$2:DE$5000,$A88) -> 0 | P88: =COUNTIF(Dağılım!DF$2:DF$5000,$A88) -> 0 | Q88: =COUNTIF(Dağılım!DG$2:DG$5000,$A88) -> 0 | R88: =COUNTIF(Dağılım!DH$2:DH$5000,$A88) -> 0 | S88: =COUNTIF(Dağılım!DI$2:DI$5000,$A88) -> 0 | T88: =COUNTIF(Dağılım!DJ$2:DJ$5000,$A88) -> 1 | U88: =COUNTIF(Dağılım!DK$2:DK$5000,$A88) -> 1 | V88: =COUNTIF(Dağılım!DL$2:DL$5000,$A88) -> 2 | W88: 5 | AR88: 122
A89: 2006 | G89: =COUNTIF(Dağılım!CX$2:CX$5000,$A89) -> 21 | H89: =COUNTIF(Dağılım!CY$2:CY$5000,$A89) -> 24 | I89: =COUNTIF(Dağılım!CZ$2:CZ$5000,$A89) -> 18 | J89: =COUNTIF(Dağılım!DA$2:DA$5000,$A89) -> 25 | K89: =COUNTIF(Dağılım!DB$2:DB$5000,$A89) -> 25 | L89: 113 | M89: =COUNTIF(Dağılım!DC$2:DC$5000,$A89) -> 0 | N89: =COUNTIF(Dağılım!DD$2:DD$5000,$A89) -> 0 | O89: =COUNTIF(Dağılım!DE$2:DE$5000,$A89) -> 0 | P89: =COUNTIF(Dağılım!DF$2:DF$5000,$A89) -> 1 | Q89: =COUNTIF(Dağılım!DG$2:DG$5000,$A89) -> 0 | R89: =COUNTIF(Dağılım!DH$2:DH$5000,$A89) -> 1 | S89: =COUNTIF(Dağılım!DI$2:DI$5000,$A89) -> 8 | T89: =COUNTIF(Dağılım!DJ$2:DJ$5000,$A89) -> 6 | U89: =COUNTIF(Dağılım!DK$2:DK$5000,$A89) -> 4 | V89: =COUNTIF(Dağılım!DL$2:DL$5000,$A89) -> 6 | W89: 26 | AR89: 139
A90: 2007 | G90: =COUNTIF(Dağılım!CX$2:CX$5000,$A90) -> 27 | H90: =COUNTIF(Dağılım!CY$2:CY$5000,$A90) -> 51 | I90: =COUNTIF(Dağılım!CZ$2:CZ$5000,$A90) -> 7 | J90: =COUNTIF(Dağılım!DA$2:DA$5000,$A90) -> 25 | K90: =COUNTIF(Dağılım!DB$2:DB$5000,$A90) -> 56 | L90: 166 | M90: =COUNTIF(Dağılım!DC$2:DC$5000,$A90) -> 0 | N90: =COUNTIF(Dağılım!DD$2:DD$5000,$A90) -> 5 | O90: =COUNTIF(Dağılım!DE$2:DE$5000,$A90) -> 0 | P90: =COUNTIF(Dağılım!DF$2:DF$5000,$A90) -> 0 | Q90: =COUNTIF(Dağılım!DG$2:DG$5000,$A90) -> 0 | R90: =COUNTIF(Dağılım!DH$2:DH$5000,$A90) -> 5 | S90: =COUNTIF(Dağılım!DI$2:DI$5000,$A90) -> 21 | T90: =COUNTIF(Dağılım!DJ$2:DJ$5000,$A90) -> 13 | U90: =COUNTIF(Dağılım!DK$2:DK$5000,$A90) -> 3 | V90: =COUNTIF(Dağılım!DL$2:DL$5000,$A90) -> 6 | W90: 53 | AR90: 219
A91: 2008 | G91: =COUNTIF(Dağılım!CX$2:CX$5000,$A91) -> 42 | H91: =COUNTIF(Dağılım!CY$2:CY$5000,$A91) -> 44 | I91: =COUNTIF(Dağılım!CZ$2:CZ$5000,$A91) -> 20 | J91: =COUNTIF(Dağılım!DA$2:DA$5000,$A91) -> 38 | K91: =COUNTIF(Dağılım!DB$2:DB$5000,$A91) -> 46 | L91: 190 | M91: =COUNTIF(Dağılım!DC$2:DC$5000,$A91) -> 0 | N91: =COUNTIF(Dağılım!DD$2:DD$5000,$A91) -> 0 | O91: =COUNTIF(Dağılım!DE$2:DE$5000,$A91) -> 0 | P91: =COUNTIF(Dağılım!DF$2:DF$5000,$A91) -> 0 | Q91: =COUNTIF(Dağılım!DG$2:DG$5000,$A91) -> 0 | R91: =COUNTIF(Dağılım!DH$2:DH$5000,$A91) -> 3 | S91: =COUNTIF(Dağılım!DI$2:DI$5000,$A91) -> 9 | T91: =COUNTIF(Dağılım!DJ$2:DJ$5000,$A91) -> 4 | U91: =COUNTIF(Dağılım!DK$2:DK$5000,$A91) -> 9 | V91: =COUNTIF(Dağılım!DL$2:DL$5000,$A91) -> 6 | W91: =SUM(M91:V91) -> 31 | AR91: 221
A92: 2009 | G92: =COUNTIF(Dağılım!CX$2:CX$5000,$A92) -> 29 | H92: =COUNTIF(Dağılım!CY$2:CY$5000,$A92) -> 44 | I92: =COUNTIF(Dağılım!CZ$2:CZ$5000,$A92) -> 14 | J92: =COUNTIF(Dağılım!DA$2:DA$5000,$A92) -> 20 | K92: =COUNTIF(Dağılım!DB$2:DB$5000,$A92) -> 59 | L92: 166 | M92: =COUNTIF(Dağılım!DC$2:DC$5000,$A92) -> 0 | N92: =COUNTIF(Dağılım!DD$2:DD$5000,$A92) -> 0 | O92: =COUNTIF(Dağılım!DE$2:DE$5000,$A92) -> 0 | P92: =COUNTIF(Dağılım!DF$2:DF$5000,$A92) -> 0 | Q92: =COUNTIF(Dağılım!DG$2:DG$5000,$A92) -> 0 | R92: =COUNTIF(Dağılım!DH$2:DH$5000,$A92) -> 6 | S92: =COUNTIF(Dağılım!DI$2:DI$5000,$A92) -> 3 | T92: =COUNTIF(Dağılım!DJ$2:DJ$5000,$A92) -> 6 | U92: =COUNTIF(Dağılım!DK$2:DK$5000,$A92) -> 4 | V92: =COUNTIF(Dağılım!DL$2:DL$5000,$A92) -> 3 | W92: 22 | AC92: =COUNTIF(Dağılım!DR$2:DR$5000,$A92) -> 0 | AD92: =COUNTIF(Dağılım!DS$2:DS$5000,$A92) -> 2 | AE92: =COUNTIF(Dağılım!DT$2:DT$5000,$A92) -> 1 | AF92: =COUNTIF(Dağılım!DU$2:DU$5000,$A92) -> 3 | AG92: =COUNTIF(Dağılım!DV$2:DV$5000,$A92) -> 1 | AH92: =SUM(X92:AG92) -> 7 | AR92: 195
A93: 2010 | G93: =COUNTIF(Dağılım!CX$2:CX$5000,$A93) -> 0 | H93: =COUNTIF(Dağılım!CY$2:CY$5000,$A93) -> 0 | I93: =COUNTIF(Dağılım!CZ$2:CZ$5000,$A93) -> 0 | J93: =COUNTIF(Dağılım!DA$2:DA$5000,$A93) -> 0 | K93: =COUNTIF(Dağılım!DB$2:DB$5000,$A93) -> 86 | L93: 86 | M93: =COUNTIF(Dağılım!DC$2:DC$5000,$A93) -> 0 | N93: =COUNTIF(Dağılım!DD$2:DD$5000,$A93) -> 0 | O93: =COUNTIF(Dağılım!DE$2:DE$5000,$A93) -> 0 | P93: =COUNTIF(Dağılım!DF$2:DF$5000,$A93) -> 0 | Q93: =COUNTIF(Dağılım!DG$2:DG$5000,$A93) -> 0 | R93: =COUNTIF(Dağılım!DH$2:DH$5000,$A93) -> 2 | S93: =COUNTIF(Dağılım!DI$2:DI$5000,$A93) -> 1 | T93: =COUNTIF(Dağılım!DJ$2:DJ$5000,$A93) -> 0 | U93: =COUNTIF(Dağılım!DK$2:DK$5000,$A93) -> 0 | V93: =COUNTIF(Dağılım!DL$2:DL$5000,$A93) -> 2 | W93: 5 | AC93: =COUNTIF(Dağılım!DR$2:DR$5000,$A93) -> 2 | AD93: =COUNTIF(Dağılım!DS$2:DS$5000,$A93) -> 0 | AE93: =COUNTIF(Dağılım!DT$2:DT$5000,$A93) -> 0 | AF93: =COUNTIF(Dağılım!DU$2:DU$5000,$A93) -> 0 | AG93: =COUNTIF(Dağılım!DV$2:DV$5000,$A93) -> 4 | AH93: 6 | AR93: 97
A94: 2011 | G94: =COUNTIF(Dağılım!CX$2:CX$5000,$A94) -> 0 | H94: =COUNTIF(Dağılım!CY$2:CY$5000,$A94) -> 0 | I94: =COUNTIF(Dağılım!CZ$2:CZ$5000,$A94) -> 0 | J94: =COUNTIF(Dağılım!DA$2:DA$5000,$A94) -> 0 | K94: =COUNTIF(Dağılım!DB$2:DB$5000,$A94) -> 0 | L94: 0 | R94: =COUNTIF(Dağılım!DH$2:DH$5000,$A94) -> 0 | S94: =COUNTIF(Dağılım!DI$2:DI$5000,$A94) -> 0 | T94: =COUNTIF(Dağılım!DJ$2:DJ$5000,$A94) -> 0 | U94: =COUNTIF(Dağılım!DK$2:DK$5000,$A94) -> 0 | V94: =COUNTIF(Dağılım!DL$2:DL$5000,$A94) -> 0 | W94: 0 | AC94: =COUNTIF(Dağılım!DR$2:DR$5000,$A94) -> 0 | AD94: =COUNTIF(Dağılım!DS$2:DS$5000,$A94) -> 0 | AE94: =COUNTIF(Dağılım!DT$2:DT$5000,$A94) -> 0 | AF94: =COUNTIF(Dağılım!DU$2:DU$5000,$A94) -> 0 | AG94: =COUNTIF(Dağılım!DV$2:DV$5000,$A94) -> 2 | AH94: 2 | AR94: 2
A95: 2012 | G95: =COUNTIF(Dağılım!CX$2:CX$5000,$A95) -> 0 | H95: =COUNTIF(Dağılım!CY$2:CY$5000,$A95) -> 0 | I95: =COUNTIF(Dağılım!CZ$2:CZ$5000,$A95) -> 0 | J95: =COUNTIF(Dağılım!DA$2:DA$5000,$A95) -> 0 | K95: =COUNTIF(Dağılım!DB$2:DB$5000,$A95) -> 0 | L95: =SUM(B95:K95) -> 0 | R95: =COUNTIF(Dağılım!DH$2:DH$5000,$A95) -> 0 | S95: =COUNTIF(Dağılım!DI$2:DI$5000,$A95) -> 0 | T95: =COUNTIF(Dağılım!DJ$2:DJ$5000,$A95) -> 0 | U95: =COUNTIF(Dağılım!DK$2:DK$5000,$A95) -> 0 | V95: =COUNTIF(Dağılım!DL$2:DL$5000,$A95) -> 0 | W95: =SUM(M95:V95) -> 0 | AC95: =COUNTIF(Dağılım!DR$2:DR$5000,$A95) -> 0 | AD95: =COUNTIF(Dağılım!DS$2:DS$5000,$A95) -> 0 | AE95: =COUNTIF(Dağılım!DT$2:DT$5000,$A95) -> 0 | AF95: =COUNTIF(Dağılım!DU$2:DU$5000,$A95) -> 0 | AG95: =COUNTIF(Dağılım!DV$2:DV$5000,$A95) -> 0 | AH95: =SUM(X95:AG95) -> 0 | AR95: 0
A96: 2013 | G96: =COUNTIF(Dağılım!CX$2:CX$5000,$A96) -> 0 | H96: =COUNTIF(Dağılım!CY$2:CY$5000,$A96) -> 0 | I96: =COUNTIF(Dağılım!CZ$2:CZ$5000,$A96) -> 0 | J96: =COUNTIF(Dağılım!DA$2:DA$5000,$A96) -> 0 | K96: =COUNTIF(Dağılım!DB$2:DB$5000,$A96) -> 0 | L96: =SUM(B96:K96) -> 0 | R96: =COUNTIF(Dağılım!DH$2:DH$5000,$A96) -> 0 | S96: =COUNTIF(Dağılım!DI$2:DI$5000,$A96) -> 0 | T96: =COUNTIF(Dağılım!DJ$2:DJ$5000,$A96) -> 0 | U96: =COUNTIF(Dağılım!DK$2:DK$5000,$A96) -> 0 | V96: =COUNTIF(Dağılım!DL$2:DL$5000,$A96) -> 0 | W96: =SUM(M96:V96) -> 0 | AC96: =COUNTIF(Dağılım!DR$2:DR$5000,$A96) -> 0 | AD96: =COUNTIF(Dağılım!DS$2:DS$5000,$A96) -> 0 | AE96: =COUNTIF(Dağılım!DT$2:DT$5000,$A96) -> 0 | AF96: =COUNTIF(Dağılım!DU$2:DU$5000,$A96) -> 0 | AG96: =COUNTIF(Dağılım!DV$2:DV$5000,$A96) -> 0 | AH96: =SUM(X96:AG96) -> 0 | AR96: 0
A97: 2014 | G97: =COUNTIF(Dağılım!CX$2:CX$5000,$A97) -> 0 | H97: =COUNTIF(Dağılım!CY$2:CY$5000,$A97) -> 0 | I97: =COUNTIF(Dağılım!CZ$2:CZ$5000,$A97) -> 0 | J97: =COUNTIF(Dağılım!DA$2:DA$5000,$A97) -> 0 | K97: =COUNTIF(Dağılım!DB$2:DB$5000,$A97) -> 0 | L97: =SUM(B97:K97) -> 0 | R97: =COUNTIF(Dağılım!DH$2:DH$5000,$A97) -> 0 | S97: =COUNTIF(Dağılım!DI$2:DI$5000,$A97) -> 0 | T97: =COUNTIF(Dağılım!DJ$2:DJ$5000,$A97) -> 0 | U97: =COUNTIF(Dağılım!DK$2:DK$5000,$A97) -> 0 | V97: =COUNTIF(Dağılım!DL$2:DL$5000,$A97) -> 0 | W97: =SUM(M97:V97) -> 0 | AC97: =COUNTIF(Dağılım!DR$2:DR$5000,$A97) -> 0 | AD97: =COUNTIF(Dağılım!DS$2:DS$5000,$A97) -> 0 | AE97: =COUNTIF(Dağılım!DT$2:DT$5000,$A97) -> 0 | AF97: =COUNTIF(Dağılım!DU$2:DU$5000,$A97) -> 0 | AG97: =COUNTIF(Dağılım!DV$2:DV$5000,$A97) -> 0 | AH97: =SUM(X97:AG97) -> 0 | AR97: 0
A98: 2015 | G98: =COUNTIF(Dağılım!CX$2:CX$5000,$A98) -> 0 | H98: =COUNTIF(Dağılım!CY$2:CY$5000,$A98) -> 0 | I98: =COUNTIF(Dağılım!CZ$2:CZ$5000,$A98) -> 0 | J98: =COUNTIF(Dağılım!DA$2:DA$5000,$A98) -> 0 | K98: =COUNTIF(Dağılım!DB$2:DB$5000,$A98) -> 0 | L98: =SUM(B98:K98) -> 0 | R98: =COUNTIF(Dağılım!DH$2:DH$5000,$A98) -> 0 | S98: =COUNTIF(Dağılım!DI$2:DI$5000,$A98) -> 0 | T98: =COUNTIF(Dağılım!DJ$2:DJ$5000,$A98) -> 0 | U98: =COUNTIF(Dağılım!DK$2:DK$5000,$A98) -> 0 | V98: =COUNTIF(Dağılım!DL$2:DL$5000,$A98) -> 0 | W98: =SUM(M98:V98) -> 0 | AC98: =COUNTIF(Dağılım!DR$2:DR$5000,$A98) -> 0 | AD98: =COUNTIF(Dağılım!DS$2:DS$5000,$A98) -> 0 | AE98: =COUNTIF(Dağılım!DT$2:DT$5000,$A98) -> 0 | AF98: =COUNTIF(Dağılım!DU$2:DU$5000,$A98) -> 0 | AG98: =COUNTIF(Dağılım!DV$2:DV$5000,$A98) -> 0 | AH98: =SUM(X98:AG98) -> 0 | AR98: 0
A99: Toplam | B99: =SUM(B55:B98) -> 1216 | C99: 1078 | D99: 167 | E99: 157 | F99: 142 | G99: 123 | H99: 185 | I99: 79 | J99: 128 | K99: 323 | L99: =SUM(B99:K99) -> 3598 | M99: =SUM(M55:M98) -> 164 | N99: 128 | O99: 15 | P99: 14 | Q99: 15 | R99: 17 | S99: 42 | T99: 30 | U99: 21 | V99: 25 | W99: 471 | AC99: =SUM(AC55:AC98) -> 2 | AD99: =SUM(AD55:AD98) -> 2 | AE99: =SUM(AE55:AE98) -> 1 | AF99: =SUM(AF55:AF98) -> 3 | AG99: =SUM(AG55:AG98) -> 7 | AH99: 15 | AI99: =COUNTA(Dağılım!AE$2:AE$10000) -> 81 | AJ99: =COUNTA(Dağılım!AF$2:AF$10000) -> 99 | AK99: =COUNTA(Dağılım!AG$2:AG$10000) -> 43 | AL99: =COUNTA(Dağılım!AH$2:AH$10000) -> 69 | AM99: =COUNTA(Dağılım!AI$2:AI$10000) -> 229 | AN99: =SUM(AI99:AM99) -> 521 | AO99: =COUNTA(Dağılım!AD$2:AD$2000) -> 24 | AP99: =COUNTA(Dağılım!AK$2:AK$2000) -> 276 | AQ99: =COUNTA(Dağılım!AJ$2:AJ$2000) -> 1999 | AR99: =SUM(L99+W99+AN99+AO99+AP99+AQ99) -> 6889
B100: Olması Gereken | L100: =COUNTIF(Kütük!$H:$H,B53) -> 3827 | M100: Olması Gereken | W100: =COUNTIF(Kütük!$H:$H,L53) -> 472 | X100: Olması Gereken | AH100: =COUNTIF(Kütük!$H:$H,X53) -> 51 | AI100: Olması Gereken | AN100: =COUNTIF(Kütük!$J:$J,AI53) -> 506

Sheet Bölüm İstatistik
A1: OKULUMUZDAN DİPLOMA VE TASDİKNAME ALANLARIN YILLARA VE BÖLÜMLERE GÖRE DAĞILIMI
A3: YILLAR | B3: Diploma | H3: Tasdikname | N3: Diğer | O3: Genel Toplam
B4: Tesviye | C4: Elektrik | D4: Bilgisayar | E4: Motor | F4: Elektronik | G4: Toplam | H4: Tesviye | I4: Elektrik | J4: Bilgisayar | K4: Motor | L4: Elektronik | M4: Toplam
A5: 1972 | B5: =COUNTIF(Dağılım!BP$2:BP$5000,$A5) -> 0 | C5: =COUNTIF(Dağılım!BQ$2:BQ$5000,$A5) -> 0 | D5: =COUNTIF(Dağılım!BR$2:BR$5000,$A5) -> 0 | E5: =COUNTIF(Dağılım!BS$2:BS$5000,$A5) -> 0 | F5: =COUNTIF(Dağılım!BT$2:BT$5000,$A5) -> 0 | G5: =SUM(B5:F5) -> 0 | H5: =COUNTIF(Dağılım!BY$2:BY$5000,$A5) -> 0 | I5: =COUNTIF(Dağılım!BZ$2:BZ$5000,$A5) -> 0 | J5: =COUNTIF(Dağılım!CA$2:CA$5000,$A5) -> 0 | K5: =COUNTIF(Dağılım!CB$2:CB$5000,$A5) -> 0 | L5: =COUNTIF(Dağılım!CC$2:CC$5000,$A5) -> 0 | M5: =SUM(H5:L5) -> 0 | O5: =SUM(G5+M5) -> 0
A6: 1973 | B6: =COUNTIF(Dağılım!BP$2:BP$5000,$A6) -> 0 | C6: =COUNTIF(Dağılım!BQ$2:BQ$5000,$A6) -> 0 | D6: =COUNTIF(Dağılım!BR$2:BR$5000,$A6) -> 0 | E6: =COUNTIF(Dağılım!BS$2:BS$5000,$A6) -> 0 | F6: =COUNTIF(Dağılım!BT$2:BT$5000,$A6) -> 0 | G6: =SUM(B6:F6) -> 0 | H6: =COUNTIF(Dağılım!BY$2:BY$5000,$A6) -> 8 | I6: =COUNTIF(Dağılım!BZ$2:BZ$5000,$A6) -> 0 | J6: =COUNTIF(Dağılım!CA$2:CA$5000,$A6) -> 0 | K6: =COUNTIF(Dağılım!CB$2:CB$5000,$A6) -> 0 | L6: =COUNTIF(Dağılım!CC$2:CC$5000,$A6) -> 0 | M6: =SUM(H6:L6) -> 8 | O6: =SUM(G6+M6) -> 8
A7: 1974 | B7: =COUNTIF(Dağılım!BP$2:BP$5000,$A7) -> 0 | C7: =COUNTIF(Dağılım!BQ$2:BQ$5000,$A7) -> 0 | D7: =COUNTIF(Dağılım!BR$2:BR$5000,$A7) -> 0 | E7: =COUNTIF(Dağılım!BS$2:BS$5000,$A7) -> 0 | F7: =COUNTIF(Dağılım!BT$2:BT$5000,$A7) -> 0 | G7: =SUM(B7:F7) -> 0 | H7: =COUNTIF(Dağılım!BY$2:BY$5000,$A7) -> 8 | I7: =COUNTIF(Dağılım!BZ$2:BZ$5000,$A7) -> 0 | J7: =COUNTIF(Dağılım!CA$2:CA$5000,$A7) -> 0 | K7: =COUNTIF(Dağılım!CB$2:CB$5000,$A7) -> 0 | L7: =COUNTIF(Dağılım!CC$2:CC$5000,$A7) -> 0 | M7: =SUM(H7:L7) -> 8 | O7: =SUM(G7+M7) -> 8
A8: 1975 | B8: =COUNTIF(Dağılım!BP$2:BP$5000,$A8) -> 74 | C8: =COUNTIF(Dağılım!BQ$2:BQ$5000,$A8) -> 0 | D8: =COUNTIF(Dağılım!BR$2:BR$5000,$A8) -> 0 | E8: =COUNTIF(Dağılım!BS$2:BS$5000,$A8) -> 0 | F8: =COUNTIF(Dağılım!BT$2:BT$5000,$A8) -> 0 | G8: 74 | H8: =COUNTIF(Dağılım!BY$2:BY$5000,$A8) -> 8 | I8: =COUNTIF(Dağılım!BZ$2:BZ$5000,$A8) -> 1 | J8: =COUNTIF(Dağılım!CA$2:CA$5000,$A8) -> 0 | K8: =COUNTIF(Dağılım!CB$2:CB$5000,$A8) -> 0 | L8: =COUNTIF(Dağılım!CC$2:CC$5000,$A8) -> 0 | M8: 9 | O8: 83
A9: 1976 | B9: =COUNTIF(Dağılım!BP$2:BP$5000,$A9) -> 60 | C9: =COUNTIF(Dağılım!BQ$2:BQ$5000,$A9) -> 0 | D9: =COUNTIF(Dağılım!BR$2:BR$5000,$A9) -> 0 | E9: =COUNTIF(Dağılım!BS$2:BS$5000,$A9) -> 0 | F9: =COUNTIF(Dağılım!BT$2:BT$5000,$A9) -> 0 | G9: 60 | H9: =COUNTIF(Dağılım!BY$2:BY$5000,$A9) -> 17 | I9: =COUNTIF(Dağılım!BZ$2:BZ$5000,$A9) -> 12 | J9: =COUNTIF(Dağılım!CA$2:CA$5000,$A9) -> 0 | K9: =COUNTIF(Dağılım!CB$2:CB$5000,$A9) -> 0 | L9: =COUNTIF(Dağılım!CC$2:CC$5000,$A9) -> 0 | M9: 29 | O9: 89
A10: 1977 | B10: =COUNTIF(Dağılım!BP$2:BP$5000,$A10) -> 61 | C10: =COUNTIF(Dağılım!BQ$2:BQ$5000,$A10) -> 0 | D10: =COUNTIF(Dağılım!BR$2:BR$5000,$A10) -> 0 | E10: =COUNTIF(Dağılım!BS$2:BS$5000,$A10) -> 0 | F10: =COUNTIF(Dağılım!BT$2:BT$5000,$A10) -> 0 | G10: 61 | H10: =COUNTIF(Dağılım!BY$2:BY$5000,$A10) -> 23 | I10: =COUNTIF(Dağılım!BZ$2:BZ$5000,$A10) -> 17 | J10: =COUNTIF(Dağılım!CA$2:CA$5000,$A10) -> 0 | K10: =COUNTIF(Dağılım!CB$2:CB$5000,$A10) -> 0 | L10: =COUNTIF(Dağılım!CC$2:CC$5000,$A10) -> 0 | M10: 40 | O10: 101
A11: 1978 | B11: =COUNTIF(Dağılım!BP$2:BP$5000,$A11) -> 61 | C11: =COUNTIF(Dağılım!BQ$2:BQ$5000,$A11) -> 26 | D11: =COUNTIF(Dağılım!BR$2:BR$5000,$A11) -> 0 | E11: =COUNTIF(Dağılım!BS$2:BS$5000,$A11) -> 0 | F11: =COUNTIF(Dağılım!BT$2:BT$5000,$A11) -> 0 | G11: 87 | H11: =COUNTIF(Dağılım!BY$2:BY$5000,$A11) -> 13 | I11: =COUNTIF(Dağılım!BZ$2:BZ$5000,$A11) -> 9 | J11: =COUNTIF(Dağılım!CA$2:CA$5000,$A11) -> 0 | K11: =COUNTIF(Dağılım!CB$2:CB$5000,$A11) -> 0 | L11: =COUNTIF(Dağılım!CC$2:CC$5000,$A11) -> 0 | M11: 22 | O11: 109
A12: 1979 | B12: =COUNTIF(Dağılım!BP$2:BP$5000,$A12) -> 73 | C12: =COUNTIF(Dağılım!BQ$2:BQ$5000,$A12) -> 59 | D12: =COUNTIF(Dağılım!BR$2:BR$5000,$A12) -> 0 | E12: =COUNTIF(Dağılım!BS$2:BS$5000,$A12) -> 0 | F12: =COUNTIF(Dağılım!BT$2:BT$5000,$A12) -> 0 | G12: 132 | H12: =COUNTIF(Dağılım!BY$2:BY$5000,$A12) -> 26 | I12: =COUNTIF(Dağılım!BZ$2:BZ$5000,$A12) -> 28 | J12: =COUNTIF(Dağılım!CA$2:CA$5000,$A12) -> 0 | K12: =COUNTIF(Dağılım!CB$2:CB$5000,$A12) -> 0 | L12: =COUNTIF(Dağılım!CC$2:CC$5000,$A12) -> 0 | M12: 54 | O12: 186
A13: 1980 | B13: =COUNTIF(Dağılım!BP$2:BP$5000,$A13) -> 43 | C13: =COUNTIF(Dağılım!BQ$2:BQ$5000,$A13) -> 34 | D13: =COUNTIF(Dağılım!BR$2:BR$5000,$A13) -> 0 | E13: =COUNTIF(Dağılım!BS$2:BS$5000,$A13) -> 0 | F13: =COUNTIF(Dağılım!BT$2:BT$5000,$A13) -> 0 | G13: 77 | H13: =COUNTIF(Dağılım!BY$2:BY$5000,$A13) -> 17 | I13: =COUNTIF(Dağılım!BZ$2:BZ$5000,$A13) -> 14 | J13: =COUNTIF(Dağılım!CA$2:CA$5000,$A13) -> 0 | K13: =COUNTIF(Dağılım!CB$2:CB$5000,$A13) -> 0 | L13: =COUNTIF(Dağılım!CC$2:CC$5000,$A13) -> 0 | M13: 31 | O13: 108
A14: 1981 | B14: =COUNTIF(Dağılım!BP$2:BP$5000,$A14) -> 8 | C14: =COUNTIF(Dağılım!BQ$2:BQ$5000,$A14) -> 11 | D14: =COUNTIF(Dağılım!BR$2:BR$5000,$A14) -> 0 | E14: =COUNTIF(Dağılım!BS$2:BS$5000,$A14) -> 0 | F14: =COUNTIF(Dağılım!BT$2:BT$5000,$A14) -> 0 | G14: 19 | H14: =COUNTIF(Dağılım!BY$2:BY$5000,$A14) -> 10 | I14: =COUNTIF(Dağılım!BZ$2:BZ$5000,$A14) -> 19 | J14: =COUNTIF(Dağılım!CA$2:CA$5000,$A14) -> 0 | K14: =COUNTIF(Dağılım!CB$2:CB$5000,$A14) -> 0 | L14: =COUNTIF(Dağılım!CC$2:CC$5000,$A14) -> 0 | M14: 29 | O14: 48
A15: 1982 | B15: =COUNTIF(Dağılım!BP$2:BP$5000,$A15) -> 8 | C15: =COUNTIF(Dağılım!BQ$2:BQ$5000,$A15) -> 15 | D15: =COUNTIF(Dağılım!BR$2:BR$5000,$A15) -> 0 | E15: =COUNTIF(Dağılım!BS$2:BS$5000,$A15) -> 0 | F15: =COUNTIF(Dağılım!BT$2:BT$5000,$A15) -> 0 | G15: 23 | H15: =COUNTIF(Dağılım!BY$2:BY$5000,$A15) -> 9 | I15: =COUNTIF(Dağılım!BZ$2:BZ$5000,$A15) -> 4 | J15: =COUNTIF(Dağılım!CA$2:CA$5000,$A15) -> 0 | K15: =COUNTIF(Dağılım!CB$2:CB$5000,$A15) -> 0 | L15: =COUNTIF(Dağılım!CC$2:CC$5000,$A15) -> 0 | M15: 13 | O15: 36
A16: 1983 | B16: =COUNTIF(Dağılım!BP$2:BP$5000,$A16) -> 7 | C16: =COUNTIF(Dağılım!BQ$2:BQ$5000,$A16) -> 6 | D16: =COUNTIF(Dağılım!BR$2:BR$5000,$A16) -> 0 | E16: =COUNTIF(Dağılım!BS$2:BS$5000,$A16) -> 0 | F16: =COUNTIF(Dağılım!BT$2:BT$5000,$A16) -> 0 | G16: 13 | H16: =COUNTIF(Dağılım!BY$2:BY$5000,$A16) -> 1 | I16: =COUNTIF(Dağılım!BZ$2:BZ$5000,$A16) -> 4 | J16: =COUNTIF(Dağılım!CA$2:CA$5000,$A16) -> 0 | K16: =COUNTIF(Dağılım!CB$2:CB$5000,$A16) -> 0 | L16: =COUNTIF(Dağılım!CC$2:CC$5000,$A16) -> 0 | M16: 5 | O16: 18
A17: 1984 | B17: =COUNTIF(Dağılım!BP$2:BP$5000,$A17) -> 11 | C17: =COUNTIF(Dağılım!BQ$2:BQ$5000,$A17) -> 15 | D17: =COUNTIF(Dağılım!BR$2:BR$5000,$A17) -> 0 | E17: =COUNTIF(Dağılım!BS$2:BS$5000,$A17) -> 0 | F17: =COUNTIF(Dağılım!BT$2:BT$5000,$A17) -> 0 | G17: 26 | H17: =COUNTIF(Dağılım!BY$2:BY$5000,$A17) -> 12 | I17: =COUNTIF(Dağılım!BZ$2:BZ$5000,$A17) -> 11 | J17: =COUNTIF(Dağılım!CA$2:CA$5000,$A17) -> 0 | K17: =COUNTIF(Dağılım!CB$2:CB$5000,$A17) -> 0 | L17: =COUNTIF(Dağılım!CC$2:CC$5000,$A17) -> 0 | M17: 23 | O17: 49
A18: 1985 | B18: =COUNTIF(Dağılım!BP$2:BP$5000,$A18) -> 11 | C18: =COUNTIF(Dağılım!BQ$2:BQ$5000,$A18) -> 7 | D18: =COUNTIF(Dağılım!BR$2:BR$5000,$A18) -> 0 | E18: =COUNTIF(Dağılım!BS$2:BS$5000,$A18) -> 0 | F18: =COUNTIF(Dağılım!BT$2:BT$5000,$A18) -> 0 | G18: 18 | H18: =COUNTIF(Dağılım!BY$2:BY$5000,$A18) -> 2 | I18: =COUNTIF(Dağılım!BZ$2:BZ$5000,$A18) -> 13 | J18: =COUNTIF(Dağılım!CA$2:CA$5000,$A18) -> 0 | K18: =COUNTIF(Dağılım!CB$2:CB$5000,$A18) -> 0 | L18: =COUNTIF(Dağılım!CC$2:CC$5000,$A18) -> 0 | M18: 15 | O18: 33
A19: 1986 | B19: =COUNTIF(Dağılım!BP$2:BP$5000,$A19) -> 11 | C19: =COUNTIF(Dağılım!BQ$2:BQ$5000,$A19) -> 12 | D19: =COUNTIF(Dağılım!BR$2:BR$5000,$A19) -> 0 | E19: =COUNTIF(Dağılım!BS$2:BS$5000,$A19) -> 0 | F19: =COUNTIF(Dağılım!BT$2:BT$5000,$A19) -> 0 | G19: 23 | H19: =COUNTIF(Dağılım!BY$2:BY$5000,$A19) -> 27 | I19: =COUNTIF(Dağılım!BZ$2:BZ$5000,$A19) -> 32 | J19: =COUNTIF(Dağılım!CA$2:CA$5000,$A19) -> 0 | K19: =COUNTIF(Dağılım!CB$2:CB$5000,$A19) -> 0 | L19: =COUNTIF(Dağılım!CC$2:CC$5000,$A19) -> 0 | M19: 59 | O19: 82
A20: 1987 | B20: =COUNTIF(Dağılım!BP$2:BP$5000,$A20) -> 21 | C20: =COUNTIF(Dağılım!BQ$2:BQ$5000,$A20) -> 18 | D20: =COUNTIF(Dağılım!BR$2:BR$5000,$A20) -> 0 | E20: =COUNTIF(Dağılım!BS$2:BS$5000,$A20) -> 0 | F20: =COUNTIF(Dağılım!BT$2:BT$5000,$A20) -> 0 | G20: 39 | H20: =COUNTIF(Dağılım!BY$2:BY$5000,$A20) -> 11 | I20: =COUNTIF(Dağılım!BZ$2:BZ$5000,$A20) -> 26 | J20: =COUNTIF(Dağılım!CA$2:CA$5000,$A20) -> 0 | K20: =COUNTIF(Dağılım!CB$2:CB$5000,$A20) -> 0 | L20: =COUNTIF(Dağılım!CC$2:CC$5000,$A20) -> 0 | M20: 37 | O20: 76
A21: 1988 | B21: =COUNTIF(Dağılım!BP$2:BP$5000,$A21) -> 28 | C21: =COUNTIF(Dağılım!BQ$2:BQ$5000,$A21) -> 22 | D21: =COUNTIF(Dağılım!BR$2:BR$5000,$A21) -> 0 | E21: =COUNTIF(Dağılım!BS$2:BS$5000,$A21) -> 0 | F21: =COUNTIF(Dağılım!BT$2:BT$5000,$A21) -> 0 | G21: 50 | H21: =COUNTIF(Dağılım!BY$2:BY$5000,$A21) -> 5 | I21: =COUNTIF(Dağılım!BZ$2:BZ$5000,$A21) -> 11 | J21: =COUNTIF(Dağılım!CA$2:CA$5000,$A21) -> 0 | K21: =COUNTIF(Dağılım!CB$2:CB$5000,$A21) -> 0 | L21: =COUNTIF(Dağılım!CC$2:CC$5000,$A21) -> 0 | M21: 16 | O21: 66
A22: 1989 | B22: =COUNTIF(Dağılım!BP$2:BP$5000,$A22) -> 43 | C22: =COUNTIF(Dağılım!BQ$2:BQ$5000,$A22) -> 31 | D22: =COUNTIF(Dağılım!BR$2:BR$5000,$A22) -> 0 | E22: =COUNTIF(Dağılım!BS$2:BS$5000,$A22) -> 0 | F22: =COUNTIF(Dağılım!BT$2:BT$5000,$A22) -> 0 | G22: 74 | H22: =COUNTIF(Dağılım!BY$2:BY$5000,$A22) -> 16 | I22: =COUNTIF(Dağılım!BZ$2:BZ$5000,$A22) -> 23 | J22: =COUNTIF(Dağılım!CA$2:CA$5000,$A22) -> 0 | K22: =COUNTIF(Dağılım!CB$2:CB$5000,$A22) -> 0 | L22: =COUNTIF(Dağılım!CC$2:CC$5000,$A22) -> 0 | M22: 39 | O22: 113
A23: 1990 | B23: =COUNTIF(Dağılım!BP$2:BP$5000,$A23) -> 32 | C23: =COUNTIF(Dağılım!BQ$2:BQ$5000,$A23) -> 37 | D23: =COUNTIF(Dağılım!BR$2:BR$5000,$A23) -> 0 | E23: =COUNTIF(Dağılım!BS$2:BS$5000,$A23) -> 0 | F23: =COUNTIF(Dağılım!BT$2:BT$5000,$A23) -> 0 | G23: 69 | H23: =COUNTIF(Dağılım!BY$2:BY$5000,$A23) -> 16 | I23: =COUNTIF(Dağılım!BZ$2:BZ$5000,$A23) -> 18 | J23: =COUNTIF(Dağılım!CA$2:CA$5000,$A23) -> 0 | K23: =COUNTIF(Dağılım!CB$2:CB$5000,$A23) -> 0 | L23: =COUNTIF(Dağılım!CC$2:CC$5000,$A23) -> 0 | M23: 34 | O23: 103
A24: 1991 | B24: =COUNTIF(Dağılım!BP$2:BP$5000,$A24) -> 27 | C24: =COUNTIF(Dağılım!BQ$2:BQ$5000,$A24) -> 32 | D24: =COUNTIF(Dağılım!BR$2:BR$5000,$A24) -> 0 | E24: =COUNTIF(Dağılım!BS$2:BS$5000,$A24) -> 0 | F24: =COUNTIF(Dağılım!BT$2:BT$5000,$A24) -> 0 | G24: 59 | H24: =COUNTIF(Dağılım!BY$2:BY$5000,$A24) -> 15 | I24: =COUNTIF(Dağılım!BZ$2:BZ$5000,$A24) -> 19 | J24: =COUNTIF(Dağılım!CA$2:CA$5000,$A24) -> 0 | K24: =COUNTIF(Dağılım!CB$2:CB$5000,$A24) -> 0 | L24: =COUNTIF(Dağılım!CC$2:CC$5000,$A24) -> 0 | M24: 34 | O24: 93
A25: 1992 | B25: =COUNTIF(Dağılım!BP$2:BP$5000,$A25) -> 18 | C25: =COUNTIF(Dağılım!BQ$2:BQ$5000,$A25) -> 28 | D25: =COUNTIF(Dağılım!BR$2:BR$5000,$A25) -> 0 | E25: =COUNTIF(Dağılım!BS$2:BS$5000,$A25) -> 0 | F25: =COUNTIF(Dağılım!BT$2:BT$5000,$A25) -> 0 | G25: 46 | H25: =COUNTIF(Dağılım!BY$2:BY$5000,$A25) -> 11 | I25: =COUNTIF(Dağılım!BZ$2:BZ$5000,$A25) -> 15 | J25: =COUNTIF(Dağılım!CA$2:CA$5000,$A25) -> 0 | K25: =COUNTIF(Dağılım!CB$2:CB$5000,$A25) -> 0 | L25: =COUNTIF(Dağılım!CC$2:CC$5000,$A25) -> 0 | M25: 26 | O25: 72
A26: 1993 | B26: =COUNTIF(Dağılım!BP$2:BP$5000,$A26) -> 32 | C26: =COUNTIF(Dağılım!BQ$2:BQ$5000,$A26) -> 39 | D26: =COUNTIF(Dağılım!BR$2:BR$5000,$A26) -> 0 | E26: =COUNTIF(Dağılım!BS$2:BS$5000,$A26) -> 0 | F26: =COUNTIF(Dağılım!BT$2:BT$5000,$A26) -> 0 | G26: 71 | H26: =COUNTIF(Dağılım!BY$2:BY$5000,$A26) -> 15 | I26: =COUNTIF(Dağılım!BZ$2:BZ$5000,$A26) -> 13 | J26: =COUNTIF(Dağılım!CA$2:CA$5000,$A26) -> 0 | K26: =COUNTIF(Dağılım!CB$2:CB$5000,$A26) -> 0 | L26: =COUNTIF(Dağılım!CC$2:CC$5000,$A26) -> 0 | M26: 28 | O26: 99
A27: 1994 | B27: =COUNTIF(Dağılım!BP$2:BP$5000,$A27) -> 44 | C27: =COUNTIF(Dağılım!BQ$2:BQ$5000,$A27) -> 29 | D27: =COUNTIF(Dağılım!BR$2:BR$5000,$A27) -> 0 | E27: =COUNTIF(Dağılım!BS$2:BS$5000,$A27) -> 0 | F27: =COUNTIF(Dağılım!BT$2:BT$5000,$A27) -> 0 | G27: 73 | H27: =COUNTIF(Dağılım!BY$2:BY$5000,$A27) -> 5 | I27: =COUNTIF(Dağılım!BZ$2:BZ$5000,$A27) -> 13 | J27: =COUNTIF(Dağılım!CA$2:CA$5000,$A27) -> 0 | K27: =COUNTIF(Dağılım!CB$2:CB$5000,$A27) -> 0 | L27: =COUNTIF(Dağılım!CC$2:CC$5000,$A27) -> 0 | M27: 18 | O27: 91
A28: 1995 | B28: =COUNTIF(Dağılım!BP$2:BP$5000,$A28) -> 32 | C28: =COUNTIF(Dağılım!BQ$2:BQ$5000,$A28) -> 45 | D28: =COUNTIF(Dağılım!BR$2:BR$5000,$A28) -> 0 | E28: =COUNTIF(Dağılım!BS$2:BS$5000,$A28) -> 0 | F28: =COUNTIF(Dağılım!BT$2:BT$5000,$A28) -> 0 | G28: 77 | H28: =COUNTIF(Dağılım!BY$2:BY$5000,$A28) -> 5 | I28: =COUNTIF(Dağılım!BZ$2:BZ$5000,$A28) -> 10 | J28: =COUNTIF(Dağılım!CA$2:CA$5000,$A28) -> 0 | K28: =COUNTIF(Dağılım!CB$2:CB$5000,$A28) -> 0 | L28: =COUNTIF(Dağılım!CC$2:CC$5000,$A28) -> 0 | M28: 15 | O28: 92
A29: 1996 | B29: =COUNTIF(Dağılım!BP$2:BP$5000,$A29) -> 33 | C29: =COUNTIF(Dağılım!BQ$2:BQ$5000,$A29) -> 36 | D29: =COUNTIF(Dağılım!BR$2:BR$5000,$A29) -> 0 | E29: =COUNTIF(Dağılım!BS$2:BS$5000,$A29) -> 0 | F29: =COUNTIF(Dağılım!BT$2:BT$5000,$A29) -> 0 | G29: 69 | H29: =COUNTIF(Dağılım!BY$2:BY$5000,$A29) -> 16 | I29: =COUNTIF(Dağılım!BZ$2:BZ$5000,$A29) -> 18 | J29: =COUNTIF(Dağılım!CA$2:CA$5000,$A29) -> 0 | K29: =COUNTIF(Dağılım!CB$2:CB$5000,$A29) -> 0 | L29: =COUNTIF(Dağılım!CC$2:CC$5000,$A29) -> 0 | M29: 34 | O29: 103
A30: 1997 | B30: =COUNTIF(Dağılım!BP$2:BP$5000,$A30) -> 41 | C30: =COUNTIF(Dağılım!BQ$2:BQ$5000,$A30) -> 40 | D30: =COUNTIF(Dağılım!BR$2:BR$5000,$A30) -> 0 | E30: =COUNTIF(Dağılım!BS$2:BS$5000,$A30) -> 0 | F30: =COUNTIF(Dağılım!BT$2:BT$5000,$A30) -> 0 | G30: 81 | H30: =COUNTIF(Dağılım!BY$2:BY$5000,$A30) -> 30 | I30: =COUNTIF(Dağılım!BZ$2:BZ$5000,$A30) -> 38 | J30: =COUNTIF(Dağılım!CA$2:CA$5000,$A30) -> 0 | K30: =COUNTIF(Dağılım!CB$2:CB$5000,$A30) -> 0 | L30: =COUNTIF(Dağılım!CC$2:CC$5000,$A30) -> 0 | M30: 68 | O30: 149
A31: 1998 | B31: =COUNTIF(Dağılım!BP$2:BP$5000,$A31) -> 17 | C31: =COUNTIF(Dağılım!BQ$2:BQ$5000,$A31) -> 24 | D31: =COUNTIF(Dağılım!BR$2:BR$5000,$A31) -> 0 | E31: =COUNTIF(Dağılım!BS$2:BS$5000,$A31) -> 0 | F31: =COUNTIF(Dağılım!BT$2:BT$5000,$A31) -> 0 | G31: 41 | H31: =COUNTIF(Dağılım!BY$2:BY$5000,$A31) -> 34 | I31: =COUNTIF(Dağılım!BZ$2:BZ$5000,$A31) -> 22 | J31: =COUNTIF(Dağılım!CA$2:CA$5000,$A31) -> 0 | K31: =COUNTIF(Dağılım!CB$2:CB$5000,$A31) -> 0 | L31: =COUNTIF(Dağılım!CC$2:CC$5000,$A31) -> 0 | M31: 56 | O31: 97
A32: 1999 | B32: =COUNTIF(Dağılım!BP$2:BP$5000,$A32) -> 42 | C32: =COUNTIF(Dağılım!BQ$2:BQ$5000,$A32) -> 25 | D32: =COUNTIF(Dağılım!BR$2:BR$5000,$A32) -> 0 | E32: =COUNTIF(Dağılım!BS$2:BS$5000,$A32) -> 0 | F32: =COUNTIF(Dağılım!BT$2:BT$5000,$A32) -> 0 | G32: 67 | H32: =COUNTIF(Dağılım!BY$2:BY$5000,$A32) -> 21 | I32: =COUNTIF(Dağılım!BZ$2:BZ$5000,$A32) -> 17 | J32: =COUNTIF(Dağılım!CA$2:CA$5000,$A32) -> 4 | K32: =COUNTIF(Dağılım!CB$2:CB$5000,$A32) -> 0 | L32: =COUNTIF(Dağılım!CC$2:CC$5000,$A32) -> 1 | M32: 43 | O32: 110
A33: 2000 | B33: =COUNTIF(Dağılım!BP$2:BP$5000,$A33) -> 9 | C33: =COUNTIF(Dağılım!BQ$2:BQ$5000,$A33) -> 23 | D33: =COUNTIF(Dağılım!BR$2:BR$5000,$A33) -> 14 | E33: =COUNTIF(Dağılım!BS$2:BS$5000,$A33) -> 0 | F33: =COUNTIF(Dağılım!BT$2:BT$5000,$A33) -> 0 | G33: 46 | H33: =COUNTIF(Dağılım!BY$2:BY$5000,$A33) -> 14 | I33: =COUNTIF(Dağılım!BZ$2:BZ$5000,$A33) -> 11 | J33: =COUNTIF(Dağılım!CA$2:CA$5000,$A33) -> 6 | K33: =COUNTIF(Dağılım!CB$2:CB$5000,$A33) -> 10 | L33: =COUNTIF(Dağılım!CC$2:CC$5000,$A33) -> 6 | M33: 47 | O33: 93
A34: 2001 | B34: =COUNTIF(Dağılım!BP$2:BP$5000,$A34) -> 13 | C34: =COUNTIF(Dağılım!BQ$2:BQ$5000,$A34) -> 11 | D34: =COUNTIF(Dağılım!BR$2:BR$5000,$A34) -> 12 | E34: =COUNTIF(Dağılım!BS$2:BS$5000,$A34) -> 15 | F34: =COUNTIF(Dağılım!BT$2:BT$5000,$A34) -> 10 | G34: 61 | H34: =COUNTIF(Dağılım!BY$2:BY$5000,$A34) -> 8 | I34: =COUNTIF(Dağılım!BZ$2:BZ$5000,$A34) -> 16 | J34: =COUNTIF(Dağılım!CA$2:CA$5000,$A34) -> 6 | K34: =COUNTIF(Dağılım!CB$2:CB$5000,$A34) -> 7 | L34: =COUNTIF(Dağılım!CC$2:CC$5000,$A34) -> 17 | M34: 54 | O34: 115
A35: 2002 | B35: =COUNTIF(Dağılım!BP$2:BP$5000,$A35) -> 12 | C35: =COUNTIF(Dağılım!BQ$2:BQ$5000,$A35) -> 30 | D35: =COUNTIF(Dağılım!BR$2:BR$5000,$A35) -> 18 | E35: =COUNTIF(Dağılım!BS$2:BS$5000,$A35) -> 13 | F35: =COUNTIF(Dağılım!BT$2:BT$5000,$A35) -> 17 | G35: 90 | H35: =COUNTIF(Dağılım!BY$2:BY$5000,$A35) -> 2 | I35: =COUNTIF(Dağılım!BZ$2:BZ$5000,$A35) -> 7 | J35: =COUNTIF(Dağılım!CA$2:CA$5000,$A35) -> 1 | K35: =COUNTIF(Dağılım!CB$2:CB$5000,$A35) -> 5 | L35: =COUNTIF(Dağılım!CC$2:CC$5000,$A35) -> 11 | M35: 26 | O35: 116
A36: 2003 | B36: =COUNTIF(Dağılım!BP$2:BP$5000,$A36) -> 9 | C36: =COUNTIF(Dağılım!BQ$2:BQ$5000,$A36) -> 13 | D36: =COUNTIF(Dağılım!BR$2:BR$5000,$A36) -> 10 | E36: =COUNTIF(Dağılım!BS$2:BS$5000,$A36) -> 9 | F36: =COUNTIF(Dağılım!BT$2:BT$5000,$A36) -> 3 | G36: 44 | H36: =COUNTIF(Dağılım!BY$2:BY$5000,$A36) -> 3 | I36: =COUNTIF(Dağılım!BZ$2:BZ$5000,$A36) -> 9 | J36: =COUNTIF(Dağılım!CA$2:CA$5000,$A36) -> 1 | K36: =COUNTIF(Dağılım!CB$2:CB$5000,$A36) -> 15 | L36: =COUNTIF(Dağılım!CC$2:CC$5000,$A36) -> 8 | M36: 36 | O36: 80
A37: 2004 | B37: =COUNTIF(Dağılım!BP$2:BP$5000,$A37) -> 10 | C37: =COUNTIF(Dağılım!BQ$2:BQ$5000,$A37) -> 11 | D37: =COUNTIF(Dağılım!BR$2:BR$5000,$A37) -> 15 | E37: =COUNTIF(Dağılım!BS$2:BS$5000,$A37) -> 11 | F37: =COUNTIF(Dağılım!BT$2:BT$5000,$A37) -> 7 | G37: 54 | H37: =COUNTIF(Dağılım!BY$2:BY$5000,$A37) -> 5 | I37: =COUNTIF(Dağılım!BZ$2:BZ$5000,$A37) -> 9 | J37: =COUNTIF(Dağılım!CA$2:CA$5000,$A37) -> 10 | K37: =COUNTIF(Dağılım!CB$2:CB$5000,$A37) -> 9 | L37: =COUNTIF(Dağılım!CC$2:CC$5000,$A37) -> 15 | M37: 48 | O37: 102
A38: 2005 | B38: =COUNTIF(Dağılım!BP$2:BP$5000,$A38) -> 3 | C38: =COUNTIF(Dağılım!BQ$2:BQ$5000,$A38) -> 8 | D38: =COUNTIF(Dağılım!BR$2:BR$5000,$A38) -> 17 | E38: =COUNTIF(Dağılım!BS$2:BS$5000,$A38) -> 10 | F38: =COUNTIF(Dağılım!BT$2:BT$5000,$A38) -> 7 | G38: 45 | H38: =COUNTIF(Dağılım!BY$2:BY$5000,$A38) -> 3 | I38: =COUNTIF(Dağılım!BZ$2:BZ$5000,$A38) -> 4 | J38: =COUNTIF(Dağılım!CA$2:CA$5000,$A38) -> 6 | K38: =COUNTIF(Dağılım!CB$2:CB$5000,$A38) -> 8 | L38: =COUNTIF(Dağılım!CC$2:CC$5000,$A38) -> 2 | M38: 23 | O38: 68
A39: 2006 | B39: =COUNTIF(Dağılım!BP$2:BP$5000,$A39) -> 22 | C39: =COUNTIF(Dağılım!BQ$2:BQ$5000,$A39) -> 20 | D39: =COUNTIF(Dağılım!BR$2:BR$5000,$A39) -> 27 | E39: =COUNTIF(Dağılım!BS$2:BS$5000,$A39) -> 16 | F39: =COUNTIF(Dağılım!BT$2:BT$5000,$A39) -> 22 | G39: 107 | H39: =COUNTIF(Dağılım!BY$2:BY$5000,$A39) -> 23 | I39: =COUNTIF(Dağılım!BZ$2:BZ$5000,$A39) -> 13 | J39: =COUNTIF(Dağılım!CA$2:CA$5000,$A39) -> 7 | K39: =COUNTIF(Dağılım!CB$2:CB$5000,$A39) -> 11 | L39: =COUNTIF(Dağılım!CC$2:CC$5000,$A39) -> 9 | M39: 63 | O39: 170
A40: 2007 | B40: =COUNTIF(Dağılım!BP$2:BP$5000,$A40) -> 16 | C40: =COUNTIF(Dağılım!BQ$2:BQ$5000,$A40) -> 19 | D40: =COUNTIF(Dağılım!BR$2:BR$5000,$A40) -> 23 | E40: =COUNTIF(Dağılım!BS$2:BS$5000,$A40) -> 26 | F40: =COUNTIF(Dağılım!BT$2:BT$5000,$A40) -> 21 | G40: 105 | H40: =COUNTIF(Dağılım!BY$2:BY$5000,$A40) -> 1 | I40: =COUNTIF(Dağılım!BZ$2:BZ$5000,$A40) -> 0 | J40: =COUNTIF(Dağılım!CA$2:CA$5000,$A40) -> 0 | K40: =COUNTIF(Dağılım!CB$2:CB$5000,$A40) -> 1 | L40: =COUNTIF(Dağılım!CC$2:CC$5000,$A40) -> 1 | M40: 3 | O40: 108
A41: 2008 | B41: =COUNTIF(Dağılım!BP$2:BP$5000,$A41) -> 3 | C41: =COUNTIF(Dağılım!BQ$2:BQ$5000,$A41) -> 1 | D41: =COUNTIF(Dağılım!BR$2:BR$5000,$A41) -> 5 | E41: =COUNTIF(Dağılım!BS$2:BS$5000,$A41) -> 5 | F41: =COUNTIF(Dağılım!BT$2:BT$5000,$A41) -> 0 | G41: =SUM(B41:F41) -> 14 | H41: =COUNTIF(Dağılım!BY$2:BY$5000,$A41) -> 0 | I41: =COUNTIF(Dağılım!BZ$2:BZ$5000,$A41) -> 0 | J41: =COUNTIF(Dağılım!CA$2:CA$5000,$A41) -> 0 | K41: =COUNTIF(Dağılım!CB$2:CB$5000,$A41) -> 0 | L41: =COUNTIF(Dağılım!CC$2:CC$5000,$A41) -> 0 | M41: =SUM(H41:L41) -> 0 | O41: =SUM(G41+M41) -> 14
A42: Toplam | B42: =SUM(B5:B41) -> 935 | C42: =SUM(C5:C41) -> 727 | D42: 141 | E42: 105 | F42: 87 | G42: 1995 | H42: 440 | I42: 476 | J42: 41 | K42: 66 | L42: 70 | M42: 1093 | N42: =COUNTA(Dağılım!AD$2:AD$2000) -> 24 | O42: =SUM(G42+M42+N42) -> 3112

Sheet Alan İstatistik
A1: OKULUMUZDAN DİPLOMA VE TASDİKNAME ALANLARIN YILLARA VE ALANLARA GÖRE DAĞILIMI
A3: YILLAR | B3: Diploma | G3: Tasdikname | M3: Devam Edenler | S3: Kulanılabilir | T3: Boş | U3: Genel Toplam
B4: Makina Teknolojisi | C4: Elektrik - Elektronik Teknolojisi | D4: Bilişim Teknolojileri | E4: Motorlu Araçlar Teknolojisi | F4: Toplam | G4: Makina Teknolojisi | H4: Elektrik - Elektronik Teknolojisi | I4: Bilişim Teknolojileri | J4: Motorlu Araçlar Teknolojisi | K4: 1. Sınıf Ortak | L4: Toplam | M4: Makina Teknolojisi | N4: Elektrik - Elektronik Teknolojisi | O4: Bilişim Teknolojileri | P4: Motorlu Araçlar Teknolojisi | Q4: 1. Sınıf Ortak | R4: Toplam | W4: Diploma
A5: 2005 | G5: =COUNTIF(Dağılım!CD$2:CD$5000,$A5) -> 0 | H5: =COUNTIF(Dağılım!CE$2:CE$5000,$A5) -> 0 | I5: =COUNTIF(Dağılım!CF$2:CF$5000,$A5) -> 0 | J5: =COUNTIF(Dağılım!CG$2:CG$5000,$A5) -> 0 | K5: =COUNTIF(Dağılım!CH$2:CH$5000,$A5) -> 2 | L5: =SUM(G5:K5) -> 2 | U5: =SUM(L5) -> 2 | W5: İPTAL
A6: 2006 | G6: =COUNTIF(Dağılım!CD$2:CD$5000,$A6) -> 0 | H6: =COUNTIF(Dağılım!CE$2:CE$5000,$A6) -> 1 | I6: =COUNTIF(Dağılım!CF$2:CF$5000,$A6) -> 0 | J6: =COUNTIF(Dağılım!CG$2:CG$5000,$A6) -> 1 | K6: =COUNTIF(Dağılım!CH$2:CH$5000,$A6) -> 40 | L6: =SUM(G6:K6) -> 42 | U6: 42 | W6: Diploma
A7: 2007 | G7: =COUNTIF(Dağılım!CD$2:CD$5000,$A7) -> 0 | H7: =COUNTIF(Dağılım!CE$2:CE$5000,$A7) -> 0 | I7: =COUNTIF(Dağılım!CF$2:CF$5000,$A7) -> 3 | J7: =COUNTIF(Dağılım!CG$2:CG$5000,$A7) -> 1 | K7: =COUNTIF(Dağılım!CH$2:CH$5000,$A7) -> 42 | L7: 46 | U7: 46 | W7: Tasdikname
A8: 2008 | G8: =COUNTIF(Dağılım!CD$2:CD$5000,$A8) -> 4 | H8: =COUNTIF(Dağılım!CE$2:CE$5000,$A8) -> 3 | I8: =COUNTIF(Dağılım!CF$2:CF$5000,$A8) -> 1 | J8: =COUNTIF(Dağılım!CG$2:CG$5000,$A8) -> 4 | K8: =COUNTIF(Dağılım!CH$2:CH$5000,$A8) -> 71 | L8: 83 | U8: 83 | W8: Diploma
A9: 2009 | B9: =COUNTIF(Dağılım!BU$2:BU$5000,$A9) -> 0 | C9: =COUNTIF(Dağılım!BV$2:BV$5000,$A9) -> 20 | D9: =COUNTIF(Dağılım!BW$2:BW$5000,$A9) -> 17 | E9: =COUNTIF(Dağılım!BX$2:BX$5000,$A9) -> 18 | F9: =SUM(B9:E9) -> 55 | G9: =COUNTIF(Dağılım!CD$2:CD$5000,$A9) -> 2 | H9: =COUNTIF(Dağılım!CE$2:CE$5000,$A9) -> 4 | I9: =COUNTIF(Dağılım!CF$2:CF$5000,$A9) -> 0 | J9: =COUNTIF(Dağılım!CG$2:CG$5000,$A9) -> 4 | K9: =COUNTIF(Dağılım!CH$2:CH$5000,$A9) -> 34 | L9: 44 | U9: 44 | W9: Tasdikname
A10: 2010 | B10: =COUNTIF(Dağılım!BU$2:BU$5000,$A10) -> 17 | C10: =COUNTIF(Dağılım!BV$2:BV$5000,$A10) -> 33 | D10: =COUNTIF(Dağılım!BW$2:BW$5000,$A10) -> 24 | E10: =COUNTIF(Dağılım!BX$2:BX$5000,$A10) -> 25 | F10: =SUM(B10:E10) -> 99 | G10: =COUNTIF(Dağılım!CD$2:CD$5000,$A10) -> 6 | H10: =COUNTIF(Dağılım!CE$2:CE$5000,$A10) -> 6 | I10: =COUNTIF(Dağılım!CF$2:CF$5000,$A10) -> 1 | J10: =COUNTIF(Dağılım!CG$2:CG$5000,$A10) -> 5 | K10: =COUNTIF(Dağılım!CH$2:CH$5000,$A10) -> 37 | L10: 55 | U10: 55 | W10: İPTAL
A11: 2011 | B11: =COUNTIF(Dağılım!BU$2:BU$5000,$A11) -> 32 | C11: =COUNTIF(Dağılım!BV$2:BV$5000,$A11) -> 62 | D11: =COUNTIF(Dağılım!BW$2:BW$5000,$A11) -> 20 | E11: =COUNTIF(Dağılım!BX$2:BX$5000,$A11) -> 25 | F11: =SUM(B11:E11) -> 139 | G11: =COUNTIF(Dağılım!CD$2:CD$5000,$A11) -> 0 | H11: =COUNTIF(Dağılım!CE$2:CE$5000,$A11) -> 1 | I11: =COUNTIF(Dağılım!CF$2:CF$5000,$A11) -> 0 | J11: =COUNTIF(Dağılım!CG$2:CG$5000,$A11) -> 0 | K11: =COUNTIF(Dağılım!CH$2:CH$5000,$A11) -> 8 | L11: =SUM(G11:K11) -> 9 | U11: =SUM(L11) -> 9
A12: 2012 | B12: =COUNTIF(Dağılım!BU$2:BU$5000,$A12) -> 0 | C12: =COUNTIF(Dağılım!BV$2:BV$5000,$A12) -> 0 | D12: =COUNTIF(Dağılım!BW$2:BW$5000,$A12) -> 0 | E12: =COUNTIF(Dağılım!BX$2:BX$5000,$A12) -> 0 | F12: =SUM(B12:E12) -> 0 | G12: =COUNTIF(Dağılım!CD$2:CD$5000,$A12) -> 0 | H12: =COUNTIF(Dağılım!CE$2:CE$5000,$A12) -> 0 | I12: =COUNTIF(Dağılım!CF$2:CF$5000,$A12) -> 0 | J12: =COUNTIF(Dağılım!CG$2:CG$5000,$A12) -> 0 | K12: =COUNTIF(Dağılım!CH$2:CH$5000,$A12) -> 0 | L12: =SUM(G12:K12) -> 0 | U12: =SUM(L12) -> 0
A13: Toplam | B13: =SUM(B5:B12) -> 49 | C13: 115 | D13: 61 | E13: 68 | F13: 293 | G13: 12 | H13: 15 | I13: 5 | J13: 15 | K13: 234 | L13: 281 | M13: =COUNTA(Dağılım!AE$2:AE$10000) -> 81 | N13: =COUNTA(Dağılım!AF$2:AF$10000) -> 99 | O13: =COUNTA(Dağılım!AG$2:AG$10000) -> 43 | P13: =COUNTA(Dağılım!AH$2:AH$10000) -> 69 | Q13: =COUNTA(Dağılım!AI$2:AI$10000) -> 229 | R13: =SUM(M13:Q13) -> 521 | S13: =COUNTA(Dağılım!AK$2:AK$2000) -> 276 | T13: =COUNTA(Dağılım!AJ$2:AJ$2000) -> 1999 | U13: =SUM(L13+R13+S13+T13) -> 3077

Sheet Dağılım
A1: TESVİYE DİP | B1: ELEKTRİK DİP | C1: BİLGİSAYAR DİP | D1: MOTOR DİP | E1: ELETRONİK DİP | F1: MAKİNA DİP | G1: ELEK-ELEKTRO DİP | H1: BİLİŞİM DİP | I1: MOTORLU DİP | J1: TESVİYE TAS | K1: ELEKTRİK TAS | L1: BİLGİSAYAR TAS | M1: MOTOR TAS | N1: ELETRONİK TAS | O1: MAKİNA TAS | P1: ELEK-ELEKTRO TAS | Q1: BİLİŞİM TAS | R1: MOTORLU TAS | S1: 1. SINIF ORTAK TAS | T1: TESVİYE NAK | U1: ELEKTRİK NAK | V1: BİLGİSAYAR NAK | W1: MOTOR NAK | X1: ELETRONİK NAK | Y1: MAKİNA NAK | Z1: ELEK-ELEKTRO NAK | AA1: BİLİŞİM NAK | AB1: MOTORLU NAK | AC1: 1. SINIF ORTAK NAK | AD1: DİĞER | AE1: MAKİNA OKU | AF1: ELEK-ELEKTRO OKU | AG1: BİLİŞİM OKU | AH1: MOTORLU OKU | AI1: ORTAK OKU | AJ1: durumu | AK1: durumu | AL1: TESVİYE DİP | AM1: ELEKTRİK DİP | AN1: BİLGİSAYAR DİP | AO1: MOTOR DİP | AP1: ELETRONİK DİP | AQ1: MAKİNA DİP | AR1: ELEK-ELEKTRO DİP | AS1: BİLİŞİM DİP | AT1: MOTORLU DİP | AU1: 1. SINIF ORTAK DİP | AV1: TESVİYE TAS | AW1: ELEKTRİK TAS | AX1: BİLGİSAYAR TAS | AY1: MOTOR TAS | AZ1: ELETRONİK TAS | BA1: MAKİNA TAS | BB1: ELEK-ELEKTRO TAS | BC1: BİLİŞİM TAS | BD1: MOTORLU TAS | BE1: 1. SINIF ORTAK TAS | BF1: TESVİYE NAK | BG1: ELEKTRİK NAK | BH1: BİLGİSAYAR NAK | BI1: MOTOR NAK | BJ1: ELETRONİK NAK | BK1: MAKİNA NAK | BL1: ELEK-ELEKTRO NAK | BM1: BİLİŞİM NAK | BN1: MOTORLU NAK | BO1: 1. SINIF ORTAK NAK | BP1: TESVİYE DİP | BQ1: ELEKTRİK DİP | BR1: BİLGİSAYAR DİP | BS1: MOTOR DİP | BT1: ELETRONİK DİP | BU1: MAKİNA DİP | BV1: ELEK-ELEKTRO DİP | BW1: BİLİŞİM DİP | BX1: MOTORLU DİP | BY1: TESVİYE TAS | BZ1: ELEKTRİK TAS | CA1: BİLGİSAYAR TAS | CB1: MOTOR TAS | CC1: ELETRONİK TAS | CD1: MAKİNA TAS | CE1: ELEK-ELEKTRO TAS | CF1: BİLİŞİM TAS | CG1: MOTORLU TAS | CH1: 1. SINIF ORTAK TAS | CI1: TESVİYE NAK | CJ1: ELEKTRİK NAK | CK1: BİLGİSAYAR NAK | CL1: MOTOR NAK | CM1: ELETRONİK NAK | CN1: MAKİNA NAK | CO1: ELEK-ELEKTRO NAK | CP1: BİLİŞİM NAK | CQ1: MOTORLU NAK | CR1: 1. SINIF ORTAK NAK | CS1: TESVİYE DİP | CT1: ELEKTRİK DİP | CU1: BİLGİSAYAR DİP | CV1: MOTOR DİP | CW1: ELETRONİK DİP | CX1: MAKİNA DİP | CY1: ELEK-ELEKTRO DİP | CZ1: BİLİŞİM DİP | DA1: MOTORLU DİP | DB1: 1. SINIF ORTAK DİP | DC1: TESVİYE TAS | DD1: ELEKTRİK TAS | DE1: BİLGİSAYAR TAS | DF1: MOTOR TAS | DG1: ELETRONİK TAS | DH1: MAKİNA TAS | DI1: ELEK-ELEKTRO TAS | DJ1: BİLİŞİM TAS | DK1: MOTORLU TAS | DL1: 1. SINIF ORTAK TAS | DM1: TESVİYE NAK | DN1: ELEKTRİK NAK | DO1: BİLGİSAYAR NAK | DP1: MOTOR NAK | DQ1: ELETRONİK NAK | DR1: MAKİNA NAK | DS1: ELEK-ELEKTRO NAK | DT1: BİLİŞİM NAK | DU1: MOTORLU NAK | DV1: 1. SINIF ORTAK NAK
A2: 1975-07-12 | B2: 1980-06-05 | C2: 2000-06-16 | D2: 2003-09-06 | E2: 2004-06-15 | F2: 2011-06-17 | G2: 2009-06-12 | H2: 2009-06-12 | I2: 2009-06-12 | J2: 1979-01-26 | K2: 1986-09-22 | L2: 2001-10-11 | M2: 2000-04-13 | N2: 2001-10-11 | O2: 2008-08-18 | P2: 2008-09-05 | Q2: 2007-10-17 | R2: 2010-09-17 | S2: 2006-09-20 | T2: 1974-10-31 | U2: 1978-11-23 | Y2: 2010-09-29 | Z2: 2010-07-26 | AA2: 2010-06-21 | AB2: 2010-07-23 | AC2: 2010-10-14 | AD2: İPTAL | AE2: Okuyor | AF2: Okuyor | AG2: Okuyor | AH2: Okuyor | AI2: Okuyor | AJ2: Boş | AK2: Kullanılabilir | AL2: 1972-10-15 | AM2: 1978-12-13 | AN2: 1997-09-12 | AO2: 2000-08-17 | AP2: 2000-08-14 | AQ2: 2006-08-21 | AR2: 2005-09-06 | AS2: 2005-09-06 | AT2: 2005-09-05 | AU2: 2005-09-12 | AV2: 1976-08-02 | AW2: 1979-03-05 | AX2: 2001-08-20 | AY2: 1999-09-12 | AZ2: 2002-08-19 | BA2: 2007-08-20 | BB2: 2006-02-27 | BC2: 2006-09-15 | BD2: 2007-08-06 | BE2: 2006-09-12 | BK2: 2010-09-21 | BL2: 2009-10-08 | BM2: 2009-09-08 | BN2: 2009-12-02 | BO2: 2009-05-22 | BP2: =YEAR(A2) -> 1975 | BQ2: 1980 | BR2: 2000 | BS2: 2003 | BT2: 2004 | BU2: 2011 | BV2: 2009 | BW2: 2009 | BX2: 2009 | BY2: 1979 | BZ2: 1986 | CA2: 2001 | CB2: 2000 | CC2: 2001 | CD2: 2008 | CE2: 2008 | CF2: 2007 | CG2: 2010 | CH2: 2006 | CI2: 1974 | CJ2: 1978 | CK2: 1900 | CL2: 1900 | CM2: 1900 | CN2: 2010 | CO2: 2010 | CP2: 2010 | CQ2: 2010 | CR2: 2010 | CS2: =YEAR(AL2) -> 1972 | CT2: =YEAR(AM2) -> 1978 | CU2: 1997 | CV2: 2000 | CW2: 2000 | CX2: 2006 | CY2: 2005 | CZ2: 2005 | DA2: 2005 | DB2: 2005 | DC2: 1976 | DD2: 1979 | DE2: 2001 | DF2: 1999 | DG2: 2002 | DH2: 2007 | DI2: 2006 | DJ2: 2006 | DK2: 2007 | DL2: 2006 | DM2: 1900 | DN2: 1900 | DO2: 1900 | DP2: 1900 | DQ2: 1900 | DR2: 2010 | DS2: 2009 | DT2: 2009 | DU2: 2009 | DV2: 2009
A3: 1978-07-07 | B3: 1979-05-21 | C3: 2005-08-05 | D3: 2003-06-13 | E3: 2002-03-03 | F3: 2010-06-18 | G3: 2009-06-12 | H3: 2009-06-12 | I3: 2011-06-17 | J3: 1973-09-25 | K3: 1987-01-06 | L3: 2001-09-03 | M3: 2002-08-08 | N3: 2002-06-28 | O3: 2010-09-17 | P3: 2006-09-18 | Q3: 2007-09-26 | R3: 2008-10-28 | S3: 2006-09-14 | T3: 1979-03-23 | Z3: 2010-09-24 | AB3: 2010-08-11 | AC3: 2010-09-14 | AD3: İPTAL | AE3: Okuyor | AF3: Okuyor | AG3: Okuyor | AH3: Okuyor | AI3: Okuyor | AJ3: Boş | AK3: Kullanılabilir | AL3: 1975-10-15 | AM3: 1976-10-15 | AN3: 1999-08-16 | AO3: 1998-09-15 | AP3: 1998-09-15 | AQ3: 2006-08-21 | AR3: 2005-09-09 | AS3: 2005-09-06 | AT3: 2007-08-28 | AU3: 2005-09-05 | AV3: 1975-10-15 | AW3: 1984-09-25 | AX3: 2003-08-18 | AY3: 2004-09-06 | AZ3: 2002-03-12 | BA3: 2009-08-27 | BB3: 2008-07-18 | BC3: 2006-09-15 | BD3: 2009-08-25 | BE3: 2007-10-03 | BK3: 2010-02-05 | BL3: 2009-12-04 | BN3: 2009-09-28 | BO3: 40473 | BP3: =YEAR(A3) -> 1978 | BQ3: =YEAR(B3) -> 1979 | BR3: =YEAR(C3) -> 2005 | BS3: =YEAR(D3) -> 2003 | BT3: =YEAR(E3) -> 2002 | BU3: =YEAR(F3) -> 2010 | BV3: =YEAR(G3) -> 2009 | BW3: =YEAR(H3) -> 2009 | BX3: =YEAR(I3) -> 2011 | BY3: =YEAR(J3) -> 1973 | BZ3: =YEAR(K3) -> 1987 | CA3: =YEAR(L3) -> 2001 | CB3: =YEAR(M3) -> 2002 | CC3: =YEAR(N3) -> 2002 | CD3: =YEAR(O3) -> 2010 | CE3: =YEAR(P3) -> 2006 | CF3: =YEAR(Q3) -> 2007 | CG3: =YEAR(R3) -> 2008 | CH3: =YEAR(S3) -> 2006 | CI3: =YEAR(T3) -> 1979 | CJ3: =YEAR(U3) -> 1900 | CK3: =YEAR(V3) -> 1900 | CL3: =YEAR(W3) -> 1900 | CM3: =YEAR(X3) -> 1900 | CN3: =YEAR(Y3) -> 1900 | CO3: =YEAR(Z3) -> 2010 | CP3: =YEAR(AA3) -> 1900 | CQ3: =YEAR(AB3) -> 2010 | CR3: =YEAR(AC3) -> 2010 | CS3: =YEAR(AL3) -> 1975 | CT3: =YEAR(AM3) -> 1976 | CU3: =YEAR(AN3) -> 1999 | CV3: =YEAR(AO3) -> 1998 | CW3: =YEAR(AP3) -> 1998 | CX3: =YEAR(AQ3) -> 2006 | CY3: =YEAR(AR3) -> 2005 | CZ3: =YEAR(AS3) -> 2005 | DA3: =YEAR(AT3) -> 2007 | DB3: =YEAR(AU3) -> 2005 | DC3: =YEAR(AV3) -> 1975 | DD3: =YEAR(AW3) -> 1984 | DE3: =YEAR(AX3) -> 2003 | DF3: =YEAR(AY3) -> 2004 | DG3: =YEAR(AZ3) -> 2002 | DH3: =YEAR(BA3) -> 2009 | DI3: =YEAR(BB3) -> 2008 | DJ3: =YEAR(BC3) -> 2006 | DK3: =YEAR(BD3) -> 2009 | DL3: =YEAR(BE3) -> 2007 | DM3: =YEAR(BF3) -> 1900 | DN3: =YEAR(BG3) -> 1900 | DO3: =YEAR(BH3) -> 1900 | DP3: =YEAR(BI3) -> 1900 | DQ3: =YEAR(BJ3) -> 1900 | DR3: =YEAR(BK3) -> 2010 | DS3: =YEAR(BL3) -> 2009 | DT3: =YEAR(BM3) -> 1900 | DU3: =YEAR(BN3) -> 2009 | DV3: =YEAR(BO3) -> 2010
A4: 1978-07-07 | B4: 1979-05-21 | C4: 2000-06-16 | D4: 2001-06-15 | E4: 2002-03-03 | F4: 2010-06-18 | G4: 2009-06-12 | H4: 2010-06-18 | I4: 2010-06-18 | J4: 1990-08-02 | K4: 1993-07-30 | L4: 2001-10-11 | M4: 2004-09-15 | N4: 2002-06-05 | O4: 2008-09-05 | P4: 2009-09-10 | Q4: 2007-09-21 | R4: 2010-09-17 | S4: 2006-07-05 | T4: 1974-10-31 | AC4: 2010-09-16 | AD4: İPTAL | AE4: Okuyor | AF4: Okuyor | AG4: Okuyor | AH4: Okuyor | AI4: Okuyor | AJ4: Boş | AK4: Kullanılabilir | AL4: 1978-10-15 | AM4: 1984-09-14 | AN4: 2002-08-19 | AO4: 2000-08-22 | AP4: 1998-09-15 | AQ4: 2006-08-22 | AR4: 2005-09-05 | AS4: 2005-09-05 | AT4: 2005-09-05 | AU4: 2005-09-06 | AV4: 1980-06-02 | AW4: 1979-10-01 | AX4: 2003-08-20 | AY4: 2003-08-26 | AZ4: 2002-09-02 | BA4: 2008-07-28 | BB4: 2007-09-05 | BC4: 2006-09-19 | BD4: 2008-08-21 | BE4: 2006-03-03 | BN4: 2009-10-06 | BO4: 40575 | BP4: 1978 | BQ4: 1979 | BR4: 2000 | BS4: 2001 | BT4: 2002 | BU4: 2010 | BV4: 2009 | BW4: 2010 | BX4: 2010 | BY4: 1990 | BZ4: 1993 | CA4: 2001 | CB4: 2004 | CC4: 2002 | CD4: 2008 | CE4: 2009 | CF4: 2007 | CG4: 2010 | CH4: 2006 | CI4: 1974 | CJ4: 1900 | CK4: 1900 | CL4: 1900 | CM4: 1900 | CN4: 1900 | CO4: 1900 | CP4: 1900 | CQ4: 1900 | CR4: 2010 | CS4: 1978 | CT4: 1984 | CU4: 2002 | CV4: 2000 | CW4: 1998 | CX4: 2006 | CY4: 2005 | CZ4: 2005 | DA4: 2005 | DB4: 2005 | DC4: 1980 | DD4: 1979 | DE4: 2003 | DF4: 2003 | DG4: 2002 | DH4: 2008 | DI4: 2007 | DJ4: 2006 | DK4: 2008 | DL4: 2006 | DM4: 1900 | DN4: 1900 | DO4: 1900 | DP4: 1900 | DQ4: 1900 | DR4: 1900 | DS4: 1900 | DT4: 1900 | DU4: 2009 | DV4: 2011
A5: 1981-06-19 | B5: 1989-06-09 | C5: 2002-08-29 | D5: 2001-06-15 | E5: 2007-06-15 | F5: 2011-06-17 | G5: 2009-06-30 | H5: 2010-06-18 | I5: 2009-09-03 | J5: 1974-09-12 | K5: 1987-07-31 | L5: 2000-04-06 | M5: 2004-03-02 | N5: 2000-04-13 | O5: 2008-09-18 | P5: 2008-10-31 | Q5: 2008-08-06 | R5: 2009-10-16 | S5: 2006-09-13 | T5: 1974-10-31 | AC5: 2009-10-09 | AD5: İPTAL | AE5: Okuyor | AF5: Okuyor | AG5: Okuyor | AH5: Okuyor | AI5: Okuyor | AJ5: Boş | AK5: Kullanılabilir | AL5: 1972-10-15 | AM5: 1986-09-22 | AN5: 1997-09-12 | AO5: 1998-08-19 | AP5: 2003-08-18 | AQ5: 2006-08-22 | AR5: 2005-09-05 | AS5: 2006-08-22 | AT5: 2007-08-20 | AU5: 2005-09-05 | AV5: 1975-09-16 | AW5: 1980-05-12 | AX5: 2003-08-20 | AY5: 2000-09-16 | AZ5: 2002-09-06 | BA5: 2010-10-05 | BB5: 2009-09-07 | BC5: 2006-11-14 | BD5: 2006-09-12 | BE5: 2006-09-15 | BO5: 40585 | BP5: 1981 | BQ5: 1989 | BR5: 2002 | BS5: 2001 | BT5: 2007 | BU5: 2011 | BV5: 2009 | BW5: 2010 | BX5: 2009 | BY5: 1974 | BZ5: 1987 | CA5: 2000 | CB5: 2004 | CC5: 2000 | CD5: 2008 | CE5: 2008 | CF5: 2008 | CG5: 2009 | CH5: 2006 | CI5: 1974 | CJ5: 1900 | CK5: 1900 | CL5: 1900 | CM5: 1900 | CN5: 1900 | CO5: 1900 | CP5: 1900 | CQ5: 1900 | CR5: 2009 | CS5: 1972 | CT5: 1986 | CU5: 1997 | CV5: 1998 | CW5: 2003 | CX5: 2006 | CY5: 2005 | CZ5: 2006 | DA5: 2007 | DB5: 2005 | DC5: 1975 | DD5: 1980 | DE5: 2003 | DF5: 2000 | DG5: 2002 | DH5: 2010 | DI5: 2009 | DJ5: 2006 | DK5: 2006 | DL5: 2006 | DM5: 1900 | DN5: 1900 | DO5: 1900 | DP5: 1900 | DQ5: 1900 | DR5: 1900 | DS5: 1900 | DT5: 1900 | DU5: 1900 | DV5: 2011
A6: 1975-07-12 | B6: 1987-05-27 | C6: 2002-06-14 | D6: 2002-09-08 | E6: 2005-06-10 | F6: 2011-06-17 | G6: 2010-06-18 | H6: 2010-06-18 | I6: 2010-06-18 | J6: 1979-03-26 | K6: 1978-01-09 | L6: 2005-10-11 | M6: 2004-09-15 | N6: 2001-10-11 | O6: 2008-02-11 | P6: 2010-08-24 | Q6: 2010-09-17 | R6: 2009-09-10 | S6: 2006-09-28 | AC6: 2010-02-15 | AD6: İPTAL | AE6: Okuyor | AF6: Okuyor | AG6: Okuyor | AH6: Okuyor | AI6: Okuyor | AJ6: Boş | AK6: Kullanılabilir | AL6: 1975-10-15 | AM6: 1984-09-18 | AN6: 1999-08-18 | AO6: 1998-08-19 | AP6: 1999-08-17 | AQ6: 2007-08-28 | AR6: 2006-08-22 | AS6: 2006-09-01 | AT6: 2006-08-22 | AU6: 2005-09-05 | AV6: 1979-10-08 | AW6: 1988-05-31 | AX6: 2003-08-21 | AY6: 2002-09-19 | AZ6: 2002-09-11 | BA6: 2010-10-13 | BB6: 2006-09-15 | BC6: 2005-09-07 | BD6: 2006-09-11 | BE6: 2006-10-03 | BO6: 40442 | BP6: 1975 | BQ6: 1987 | BR6: 2002 | BS6: 2002 | BT6: 2005 | BU6: 2011 | BV6: 2010 | BW6: 2010 | BX6: 2010 | BY6: 1979 | BZ6: 1978 | CA6: 2005 | CB6: 2004 | CC6: 2001 | CD6: 2008 | CE6: 2010 | CF6: 2010 | CG6: 2009 | CH6: 2006 | CI6: 1900 | CJ6: 1900 | CK6: 1900 | CL6: 1900 | CM6: 1900 | CN6: 1900 | CO6: 1900 | CP6: 1900 | CQ6: 1900 | CR6: 2010 | CS6: 1975 | CT6: 1984 | CU6: 1999 | CV6: 1998 | CW6: 1999 | CX6: 2007 | CY6: 2006 | CZ6: 2006 | DA6: 2006 | DB6: 2005 | DC6: 1979 | DD6: 1988 | DE6: 2003 | DF6: 2002 | DG6: 2002 | DH6: 2010 | DI6: 2006 | DJ6: 2005 | DK6: 2006 | DL6: 2006 | DM6: 1900 | DN6: 1900 | DO6: 1900 | DP6: 1900 | DQ6: 1900 | DR6: 1900 | DS6: 1900 | DT6: 1900 | DU6: 1900 | DV6: 2010
A7: 1978-07-07 | B7: 1990-09-11 | C7: 2002-03-03 | D7: 2002-09-08 | E7: 2004-09-05 | F7: 2010-06-18 | G7: 2010-06-18 | H7: 2009-06-12 | I7: 2009-06-12 | J7: 1982-08-17 | K7: 1989-12-14 | L7: 2006-09-15 | M7: 2003-09-11 | N7: 2001-10-11 | O7: 2009-08-10 | P7: 2010-09-17 | R7: 2009-10-26 | S7: 2007-08-31 | AC7: 2010-07-07 | AD7: İPTAL | AE7: Okuyor | AF7: Okuyor | AG7: Okuyor | AH7: Okuyor | AI7: Okuyor | AJ7: Boş | AK7: Kullanılabilir | AL7: 1978-10-15 | AM7: 1989-09-18 | AN7: 1999-08-18 | AO7: 2001-08-20 | AP7: 2001-08-14 | AQ7: 2005-09-08 | AR7: 2005-09-07 | AS7: 2006-08-22 | AT7: 2005-09-09 | AU7: 2005-09-05 | AV7: 1977-09-19 | AW7: 1986-02-11 | AX7: 2004-08-26 | AY7: 1999-09-15 | AZ7: 2004-08-27 | BA7: 2008-02-07 | BB7: 2007-08-20 | BC7: 2009-09-07 | BD7: 2006-09-15 | BE7: 2006-10-13 | BO7: 40443 | BP7: 1978 | BQ7: 1990 | BR7: 2002 | BS7: 2002 | BT7: 2004 | BU7: 2010 | BV7: 2010 | BW7: 2009 | BX7: 2009 | BY7: 1982 | BZ7: 1989 | CA7: 2006 | CB7: 2003 | CC7: 2001 | CD7: 2009 | CE7: 2010 | CF7: 1900 | CG7: 2009 | CH7: 2007 | CI7: 1900 | CJ7: 1900 | CK7: 1900 | CL7: 1900 | CM7: 1900 | CN7: 1900 | CO7: 1900 | CP7: 1900 | CQ7: 1900 | CR7: 2010 | CS7: 1978 | CT7: 1989 | CU7: 1999 | CV7: 2001 | CW7: 2001 | CX7: 2005 | CY7: 2005 | CZ7: 2006 | DA7: 2005 | DB7: 2005 | DC7: 1977 | DD7: 1986 | DE7: 2004 | DF7: 1999 | DG7: 2004 | DH7: 2008 | DI7: 2007 | DJ7: 2009 | DK7: 2006 | DL7: 2006 | DM7: 1900 | DN7: 1900 | DO7: 1900 | DP7: 1900 | DQ7: 1900 | DR7: 1900 | DS7: 1900 | DT7: 1900 | DU7: 1900 | DV7: 2010
A8: 1981-06-19 | B8: 1989-09-12 | C8: 2003-10-24 | D8: 2006-06-19 | E8: 2005-06-10 | F8: 2010-06-18 | G8: 2009-06-12 | H8: 2009-06-12 | I8: 2010-06-18 | J8: 1977-10-05 | K8: 1988-09-21 | L8: 2004-09-15 | M8: 2006-09-20 | N8: 2001-10-11 | O8: 2010-08-02 | P8: 2009-10-26 | R8: 2010-10-01 | S8: 2006-09-14 | AC8: 2010-09-23 | AD8: İPTAL | AE8: Okuyor | AF8: Okuyor | AG8: Okuyor | AH8: Okuyor | AI8: Okuyor | AJ8: Boş | AK8: Kullanılabilir | AL8: 1985-10-03 | AM8: 1984-09-18 | AN8: 1997-09-12 | AO8: 1999-08-24 | AP8: 2001-08-15 | AQ8: 2006-08-22 | AR8: 2005-09-05 | AS8: 2005-09-05 | AT8: 2006-08-22 | AU8: 2005-09-05 | AV8: 1974-09-20 | AW8: 1979-03-13 | AX8: 2002-09-09 | AY8: 1999-09-10 | AZ8: 2000-09-09 | BA8: 2009-02-10 | BB8: 2008-07-23 | BC8: 2006-09-01 | BD8: 2006-08-24 | BE8: 2006-10-10 | BO8: 40443 | BP8: 1981 | BQ8: 1989 | BR8: 2003 | BS8: 2006 | BT8: 2005 | BU8: 2010 | BV8: 2009 | BW8: 2009 | BX8: 2010 | BY8: 1977 | BZ8: 1988 | CA8: 2004 | CB8: 2006 | CC8: 2001 | CD8: 2010 | CE8: 2009 | CF8: 1900 | CG8: 2010 | CH8: 2006 | CI8: 1900 | CJ8: 1900 | CK8: 1900 | CL8: 1900 | CM8: 1900 | CN8: 1900 | CO8: 1900 | CP8: 1900 | CQ8: 1900 | CR8: 2010 | CS8: 1985 | CT8: 1984 | CU8: 1997 | CV8: 1999 | CW8: 2001 | CX8: 2006 | CY8: 2005 | CZ8: 2005 | DA8: 2006 | DB8: 2005 | DC8: 1974 | DD8: 1979 | DE8: 2002 | DF8: 1999 | DG8: 2000 | DH8: 2009 | DI8: 2008 | DJ8: 2006 | DK8: 2006 | DL8: 2006 | DM8: 1900 | DN8: 1900 | DO8: 1900 | DP8: 1900 | DQ8: 1900 | DR8: 1900 | DS8: 1900 | DT8: 1900 | DU8: 1900 | DV8: 2010
A9: 1988-09-12 | B9: 1992-06-05 | C9: 2001-06-15 | D9: 2002-06-14 | E9: 2007-08-28 | F9: 2010-09-07 | G9: 2009-06-12 | H9: 2010-06-18 | I9: 2009-06-12 | J9: 1976-04-14 | K9: 1992-07-02 | L9: 2003-08-28 | M9: 2001-10-11 | N9: 2003-08-25 | O9: 2010-09-17 | P9: 2010-09-17 | R9: 2006-09-22 | S9: 2006-11-02 | AC9: 2009-11-11 | AD9: İPTAL | AE9: Okuyor | AF9: Okuyor | AG9: Okuyor | AH9: Okuyor | AI9: Okuyor | AJ9: Boş | AK9: Kullanılabilir | AL9: 1972-10-15 | AM9: 1987-08-25 | AN9: 1999-08-19 | AO9: 1998-09-15 | AP9: 2001-08-20 | AQ9: 2005-09-07 | AR9: 2007-08-20 | AS9: 2005-09-09 | AT9: 2005-09-06 | AU9: 2005-09-05 | AV9: 1979-03-05 | AW9: 1978-12-28 | AX9: 2002-09-16 | AY9: 2003-09-09 | AZ9: 2004-08-27 | BA9: 2007-09-18 | BB9: 2009-08-31 | BC9: 2007-09-12 | BD9: 2008-08-25 | BE9: 2008-11-04 | BP9: 1988 | BQ9: 1992 | BR9: 2001 | BS9: 2002 | BT9: 2007 | BU9: 2010 | BV9: 2009 | BW9: 2010 | BX9: 2009 | BY9: 1976 | BZ9: 1992 | CA9: 2003 | CB9: 2001 | CC9: 2003 | CD9: 2010 | CE9: 2010 | CF9: 1900 | CG9: 2006 | CH9: 2006 | CI9: 1900 | CJ9: 1900 | CK9: 1900 | CL9: 1900 | CM9: 1900 | CN9: 1900 | CO9: 1900 | CP9: 1900 | CQ9: 1900 | CR9: 2009 | CS9: 1972 | CT9: 1987 | CU9: 1999 | CV9: 1998 | CW9: 2001 | CX9: 2005 | CY9: 2007 | CZ9: 2005 | DA9: 2005 | DB9: 2005 | DC9: 1979 | DD9: 1978 | DE9: 2002 | DF9: 2003 | DG9: 2004 | DH9: 2007 | DI9: 2009 | DJ9: 2007 | DK9: 2008 | DL9: 2008 | DM9: 1900 | DN9: 1900 | DO9: 1900 | DP9: 1900 | DQ9: 1900 | DR9: 1900 | DS9: 1900 | DT9: 1900 | DU9: 1900 | DV9: 1900
A10: 1984-06-22 | B10: 1988-09-12 | C10: 2003-07-25 | D10: 2002-06-29 | E10: 2004-06-15 | F10: 2011-06-17 | G10: 2011-06-17 | H10: 2009-06-12 | I10: 2010-06-18 | J10: 1977-10-21 | K10: 1980-09-30 | L10: 1999-12-13 | M10: 2003-08-28 | N10: 2003-09-11 | O10: 2009-11-16 | P10: 2009-09-11 | R10: 2008-09-10 | S10: 2006-02-06 | AC10: 2010-06-23 | AD10: İPTAL | AE10: Okuyor | AF10: Okuyor | AG10: Okuyor | AH10: Okuyor | AI10: Okuyor | AJ10: Boş | AK10: Kullanılabilir | AL10: 1975-10-15 | AM10: 1986-09-26 | AN10: 1998-09-15 | AO10: 2003-08-19 | AP10: 1998-08-23 | AQ10: 2006-09-01 | AR10: 2005-09-09 | AS10: 2006-08-22 | AT10: 2009-08-06 | AU10: 2005-09-12 | AV10: 1978-10-15 | AW10: 1979-03-09 | AX10: 2003-09-05 | AY10: 2006-09-13 | AZ10: 2004-08-27 | BA10: 2006-09-15 | BB10: 2006-09-13 | BC10: 2007-08-22 | BD10: 2008-09-23 | BE10: 2007-08-20 | BP10: 1984 | BQ10: 1988 | BR10: 2003 | BS10: 2002 | BT10: 2004 | BU10: 2011 | BV10: 2011 | BW10: 2009 | BX10: 2010 | BY10: 1977 | BZ10: 1980 | CA10: 1999 | CB10: 2003 | CC10: 2003 | CD10: 2009 | CE10: 2009 | CF10: 1900 | CG10: 2008 | CH10: 2006 | CI10: 1900 | CJ10: 1900 | CK10: 1900 | CL10: 1900 | CM10: 1900 | CN10: 1900 | CO10: 1900 | CP10: 1900 | CQ10: 1900 | CR10: 2010 | CS10: 1975 | CT10: 1986 | CU10: 1998 | CV10: 2003 | CW10: 1998 | CX10: 2006 | CY10: 2005 | CZ10: 2006 | DA10: 2009 | DB10: 2005 | DC10: 1978 | DD10: 1979 | DE10: 2003 | DF10: 2006 | DG10: 2004 | DH10: 2006 | DI10: 2006 | DJ10: 2007 | DK10: 2008 | DL10: 2007 | DM10: 1900 | DN10: 1900 | DO10: 1900 | DP10: 1900 | DQ10: 1900 | DR10: 1900 | DS10: 1900 | DT10: 1900 | DU10: 1900 | DV10: 1900
A11: 1975-07-12 | B11: 1990-06-08 | C11: 2001-06-15 | D11: 2004-06-15 | E11: 2006-06-29 | F11: 2011-06-17 | G11: 2009-09-03 | H11: 2010-06-18 | I11: 2009-06-12 | J11: 1976-09-28 | K11: 1977-10-05 | L11: 2004-10-14 | M11: 2006-09-13 | N11: 2005-09-06 | O11: 2010-09-17 | P11: 2010-10-14 | R11: 2007-10-02 | S11: 2005-10-31 | AC11: 2011-02-16 | AD11: İPTAL | AE11: Okuyor | AF11: Okuyor | AG11: Okuyor | AH11: Okuyor | AI11: Okuyor | AJ11: Boş | AK11: Kullanılabilir | AL11: 1978-10-15 | AM11: 1989-09-12 | AN11: 2000-08-21 | AO11: 1999-08-25 | AP11: 1999-08-20 | AQ11: 2007-08-20 | AR11: 2005-09-05 | AS11: 2005-09-07 | AT11: 2006-08-22 | AU11: 2005-09-12 | AV11: 1979-02-26 | AW11: 1979-03-09 | AX11: 2003-09-05 | AY11: 2004-09-06 | AZ11: 2003-09-01 | BA11: 2009-08-26 | BB11: 2007-08-20 | BC11: 2007-08-28 | BD11: 2009-02-09 | BE11: 2008-02-13 | BP11: 1975 | BQ11: 1990 | BR11: 2001 | BS11: 2004 | BT11: 2006 | BU11: 2011 | BV11: 2009 | BW11: 2010 | BX11: 2009 | BY11: 1976 | BZ11: 1977 | CA11: 2004 | CB11: 2006 | CC11: 2005 | CD11: 2010 | CE11: 2010 | CF11: 1900 | CG11: 2007 | CH11: 2005 | CI11: 1900 | CJ11: 1900 | CK11: 1900 | CL11: 1900 | CM11: 1900 | CN11: 1900 | CO11: 1900 | CP11: 1900 | CQ11: 1900 | CR11: 2011 | CS11: 1978 | CT11: 1989 | CU11: 2000 | CV11: 1999 | CW11: 1999 | CX11: 2007 | CY11: 2005 | CZ11: 2005 | DA11: 2006 | DB11: 2005 | DC11: 1979 | DD11: 1979 | DE11: 2003 | DF11: 2004 | DG11: 2003 | DH11: 2009 | DI11: 2007 | DJ11: 2007 | DK11: 2009 | DL11: 2008 | DM11: 1900 | DN11: 1900 | DO11: 1900 | DP11: 1900 | DQ11: 1900 | DR11: 1900 | DS11: 1900 | DT11: 1900 | DU11: 1900 | DV11: 1900
A12: 1978-07-07 | B12: 1989-06-09 | C12: 2004-06-15 | D12: 2004-06-15 | E12: 2002-06-14 | F12: 2011-06-17 | G12: 2010-06-18 | H12: 2010-06-18 | I12: 2009-06-12 | J12: 1979-09-21 | K12: 1977-10-05 | L12: 1999-12-13 | M12: 2000-09-25 | N12: 2004-09-15 | O12: 2010-07-29 | P12: 2010-09-27 | R12: 2008-08-12 | S12: 2007-01-22 | AC12: 2011-03-17 | AD12: İPTAL | AE12: Okuyor | AF12: Okuyor | AG12: Okuyor | AH12: Okuyor | AI12: Okuyor | AJ12: Boş | AK12: Kullanılabilir | AL12: 1985-09-06 | AM12: 1984-09-20 | AN12: 1998-08-17 | AO12: 2000-08-25 | AP12: 2002-08-20 | AQ12: 2006-09-01 | AR12: 2007-08-20 | AS12: 2006-09-15 | AT12: 2005-09-05 | AU12: 2005-09-07 | AV12: 1979-05-29 | AW12: 1979-03-09 | AX12: 2003-09-11 | AY12: 2004-09-08 | AZ12: 2003-09-01 | BA12: 2007-09-05 | BB12: 2007-09-11 | BC12: 2006-09-08 | BD12: 2008-09-05 | BE12: 2009-02-09 | BP12: 1978 | BQ12: 1989 | BR12: 2004 | BS12: 2004 | BT12: 2002 | BU12: 2011 | BV12: 2010 | BW12: 2010 | BX12: 2009 | BY12: 1979 | BZ12: 1977 | CA12: 1999 | CB12: 2000 | CC12: 2004 | CD12: 2010 | CE12: 2010 | CF12: 1900 | CG12: 2008 | CH12: 2007 | CI12: 1900 | CJ12: 1900 | CK12: 1900 | CL12: 1900 | CM12: 1900 | CN12: 1900 | CO12: 1900 | CP12: 1900 | CQ12: 1900 | CR12: 2011 | CS12: 1985 | CT12: 1984 | CU12: 1998 | CV12: 2000 | CW12: 2002 | CX12: 2006 | CY12: 2007 | CZ12: 2006 | DA12: 2005 | DB12: 2005 | DC12: 1979 | DD12: 1979 | DE12: 2003 | DF12: 2004 | DG12: 2003 | DH12: 2007 | DI12: 2007 | DJ12: 2006 | DK12: 2008 | DL12: 2009 | DM12: 1900 | DN12: 1900 | DO12: 1900 | DP12: 1900 | DQ12: 1900 | DR12: 1900 | DS12: 1900 | DT12: 1900 | DU12: 1900 | DV12: 1900
A13: 1988-06-10 | B13: 1992-05-05 | C13: 2002-06-14 | D13: 2005-06-10 | E13: 2006-07-21 | F13: 2010-06-18 | G13: 2010-06-18 | H13: 2009-06-12 | I13: 2010-06-18 | J13: 1982-06-08 | K13: 1986-09-10 | L13: 2001-03-13 | M13: 2003-09-02 | N13: 2004-05-05 | O13: 2010-12-06 | P13: 2008-10-16 | R13: 2010-10-26 | S13: 2009-01-29 | AC13: 2011-02-16 | AD13: İPTAL | AE13: Okuyor | AF13: Okuyor | AG13: Okuyor | AH13: Okuyor | AI13: Okuyor | AJ13: Boş | AK13: Kullanılabilir | AL13: 1972-10-15 | AM13: 1984-10-04 | AN13: 2000-08-23 | AO13: 2002-08-20 | AP13: 1999-08-20 | AQ13: 2005-09-07 | AR13: 2005-09-07 | AS13: 2006-08-23 | AT13: 2005-09-05 | AU13: 2010-09-06 | AV13: 1984-09-12 | AW13: 1986-10-06 | AX13: 2003-09-11 | AY13: 2004-09-13 | AZ13: 2004-09-01 | BA13: 2007-09-06 | BB13: 2007-08-20 | BC13: 2008-10-20 | BD13: 2008-02-08 | BE13: 2005-09-05 | BP13: 1988 | BQ13: 1992 | BR13: 2002 | BS13: 2005 | BT13: 2006 | BU13: 2010 | BV13: 2010 | BW13: 2009 | BX13: 2010 | BY13: 1982 | BZ13: 1986 | CA13: 2001 | CB13: 2003 | CC13: 2004 | CD13: 2010 | CE13: 2008 | CF13: 1900 | CG13: 2010 | CH13: 2009 | CI13: 1900 | CJ13: 1900 | CK13: 1900 | CL13: 1900 | CM13: 1900 | CN13: 1900 | CO13: 1900 | CP13: 1900 | CQ13: 1900 | CR13: 2011 | CS13: 1972 | CT13: 1984 | CU13: 2000 | CV13: 2002 | CW13: 1999 | CX13: 2005 | CY13: 2005 | CZ13: 2006 | DA13: 2005 | DB13: 2010 | DC13: 1984 | DD13: 1986 | DE13: 2003 | DF13: 2004 | DG13: 2004 | DH13: 2007 | DI13: 2007 | DJ13: 2008 | DK13: 2008 | DL13: 2005 | DM13: 1900 | DN13: 1900 | DO13: 1900 | DP13: 1900 | DQ13: 1900 | DR13: 1900 | DS13: 1900 | DT13: 1900 | DU13: 1900 | DV13: 1900
A14: 1975-07-12 | B14: 1989-06-09 | C14: 2005-06-10 | D14: 2001-06-15 | E14: 2007-06-26 | F14: 2011-06-17 | G14: 2009-06-12 | H14: 2009-06-12 | I14: 2011-06-17 | J14: 1975-12-26 | K14: 1986-09-19 | L14: 2004-09-15 | M14: 2006-10-11 | N14: 2006-09-15 | P14: 2010-12-30 | R14: 2008-08-06 | S14: 2006-09-01 | AC14: 2010-10-13 | AD14: İPTAL | AE14: Okuyor | AF14: Okuyor | AG14: Okuyor | AH14: Okuyor | AI14: Okuyor | AJ14: Boş | AK14: Kullanılabilir | AL14: 1975-10-15 | AM14: 1987-09-01 | AN14: 1999-08-19 | AO14: 2000-08-28 | AP14: 1999-08-23 | AQ14: 2006-08-23 | AR14: 2007-08-20 | AS14: 2005-09-05 | AT14: 2006-08-22 | AU14: 2005-09-08 | AV14: 1991-07-22 | AW14: 1980-10-10 | AX14: 2003-09-11 | AY14: 2004-09-15 | AZ14: 2003-09-10 | BA14: 2007-09-07 | BB14: 2010-10-19 | BC14: 2007-09-11 | BD14: 2008-09-10 | BE14: 2008-11-05 | BP14: 1975 | BQ14: 1989 | BR14: 2005 | BS14: 2001 | BT14: 2007 | BU14: 2011 | BV14: 2009 | BW14: 2009 | BX14: 2011 | BY14: 1975 | BZ14: 1986 | CA14: 2004 | CB14: 2006 | CC14: 2006 | CD14: 1900 | CE14: 2010 | CF14: 1900 | CG14: 2008 | CH14: 2006 | CI14: 1900 | CJ14: 1900 | CK14: 1900 | CL14: 1900 | CM14: 1900 | CN14: 1900 | CO14: 1900 | CP14: 1900 | CQ14: 1900 | CR14: 2010 | CS14: 1975 | CT14: 1987 | CU14: 1999 | CV14: 2000 | CW14: 1999 | CX14: 2006 | CY14: 2007 | CZ14: 2005 | DA14: 2006 | DB14: 2005 | DC14: 1991 | DD14: 1980 | DE14: 2003 | DF14: 2004 | DG14: 2003 | DH14: 2007 | DI14: 2010 | DJ14: 2007 | DK14: 2008 | DL14: 2008 | DM14: 1900 | DN14: 1900 | DO14: 1900 | DP14: 1900 | DQ14: 1900 | DR14: 1900 | DS14: 1900 | DT14: 1900 | DU14: 1900 | DV14: 1900
A15: 1980-06-05 | B15: 1988-09-12 | C15: 2004-06-15 | D15: 2001-06-15 | E15: 2002-06-14 | F15: 2011-06-17 | G15: 2011-06-17 | H15: 2010-06-18 | I15: 2010-06-18 | J15: 1982-09-03 | K15: 1988-02-05 | L15: 2006-09-12 | M15: 2006-09-28 | N15: 2003-09-10 | P15: 2011-04-28 | R15: 2010-09-17 | S15: 2007-09-06 | AD15: İPTAL | AE15: Okuyor | AF15: Okuyor | AG15: Okuyor | AH15: Okuyor | AI15: Okuyor | AJ15: Boş | AK15: Kullanılabilir | AL15: 1979-10-05 | AM15: 1976-10-15 | AN15: 2000-08-24 | AO15: 2002-08-20 | AP15: 2003-08-18 | AQ15: 2006-08-24 | AR15: 2006-09-01 | AS15: 2005-09-12 | AT15: 2007-08-20 | AU15: 2007-09-14 | AV15: 1979-02-26 | AW15: 1980-09-10 | AX15: 2004-09-01 | AY15: 2004-09-15 | AZ15: 2003-12-01 | BA15: 2008-09-04 | BB15: 2007-08-21 | BC15: 2007-09-04 | BD15: 2008-10-16 | BE15: 2007-09-06 | BP15: 1980 | BQ15: 1988 | BR15: 2004 | BS15: 2001 | BT15: 2002 | BU15: 2011 | BV15: 2011 | BW15: 2010 | BX15: 2010 | BY15: 1982 | BZ15: 1988 | CA15: 2006 | CB15: 2006 | CC15: 2003 | CD15: 1900 | CE15: 2011 | CF15: 1900 | CG15: 2010 | CH15: 2007 | CI15: 1900 | CJ15: 1900 | CK15: 1900 | CL15: 1900 | CM15: 1900 | CN15: 1900 | CO15: 1900 | CP15: 1900 | CQ15: 1900 | CR15: 1900 | CS15: 1979 | CT15: 1976 | CU15: 2000 | CV15: 2002 | CW15: 2003 | CX15: 2006 | CY15: 2006 | CZ15: 2005 | DA15: 2007 | DB15: 2007 | DC15: 1979 | DD15: 1980 | DE15: 2004 | DF15: 2004 | DG15: 2003 | DH15: 2008 | DI15: 2007 | DJ15: 2007 | DK15: 2008 | DL15: 2007 | DM15: 1900 | DN15: 1900 | DO15: 1900 | DP15: 1900 | DQ15: 1900 | DR15: 1900 | DS15: 1900 | DT15: 1900 | DU15: 1900 | DV15: 1900
A16: 1988-09-12 | B16: 1992-06-05 | C16: 2004-06-15 | D16: 2007-08-28 | E16: 2002-06-29 | F16: 2011-06-17 | G16: 2011-06-17 | H16: 2010-06-18 | I16: 2010-06-18 | J16: 1977-10-03 | K16: 1987-09-15 | L16: 2002-09-19 | M16: 2006-09-13 | N16: 2006-09-12 | P16: 2009-08-20 | R16: 2009-11-04 | S16: 2007-09-10 | AD16: İPTAL | AE16: Okuyor | AF16: Okuyor | AG16: Okuyor | AH16: Okuyor | AI16: Okuyor | AJ16: Boş | AK16: Kullanılabilir | AL16: 1972-10-15 | AM16: 1986-09-15 | AN16: 2002-08-19 | AO16: 2002-08-21 | AP16: 2000-08-24 | AQ16: 2006-09-04 | AR16: 2006-08-23 | AS16: 2005-09-06 | AT16: 2006-08-23 | AU16: 2005-09-12 | AV16: 1984-09-14 | AW16: 1980-09-17 | AX16: 2004-09-03 | AZ16: 2004-09-02 | BA16: 2009-09-25 | BB16: 2006-09-14 | BC16: 2007-09-12 | BD16: 2007-08-29 | BE16: 2007-08-27 | BP16: 1988 | BQ16: 1992 | BR16: 2004 | BS16: 2007 | BT16: 2002 | BU16: 2011 | BV16: 2011 | BW16: 2010 | BX16: 2010 | BY16: 1977 | BZ16: 1987 | CA16: 2002 | CB16: 2006 | CC16: 2006 | CD16: 1900 | CE16: 2009 | CF16: 1900 | CG16: 2009 | CH16: 2007 | CI16: 1900 | CJ16: 1900 | CK16: 1900 | CL16: 1900 | CM16: 1900 | CN16: 1900 | CO16: 1900 | CP16: 1900 | CQ16: 1900 | CR16: 1900 | CS16: 1972 | CT16: 1986 | CU16: 2002 | CV16: 2002 | CW16: 2000 | CX16: 2006 | CY16: 2006 | CZ16: 2005 | DA16: 2006 | DB16: 2005 | DC16: 1984 | DD16: 1980 | DE16: 2004 | DF16: 1900 | DG16: 2004 | DH16: 2009 | DI16: 2006 | DJ16: 2007 | DK16: 2007 | DL16: 2007 | DM16: 1900 | DN16: 1900 | DO16: 1900 | DP16: 1900 | DQ16: 1900 | DR16: 1900 | DS16: 1900 | DT16: 1900 | DU16: 1900 | DV16: 1900
A17: 1975-07-12 | B17: 1992-06-05 | C17: 2006-06-19 | D17: 2004-08-03 | E17: 2005-09-02 | F17: 2011-06-17 | G17: 2010-06-18 | H17: 2010-06-18 | I17: 2010-06-18 | J17: 1977-10-05 | K17: 1987-08-14 | L17: 2004-09-15 | M17: 2005-10-17 | N17: 2004-08-18 | S17: 2007-09-10 | AD17: ÖLÜM | AE17: Okuyor | AF17: Okuyor | AG17: Okuyor | AH17: Okuyor | AI17: Okuyor | AJ17: Boş | AK17: Kullanılabilir | AL17: 1975-10-15 | AM17: 1989-09-18 | AN17: 2001-08-20 | AO17: 1998-08-24 | AP17: 2003-08-19 | AQ17: 2006-08-24 | AR17: 2005-09-05 | AS17: 2005-09-12 | AT17: 2005-09-07 | AU17: 2005-09-06 | AV17: 1975-10-15 | AW17: 1980-10-01 | BA17: 2009-09-08 | BB17: 2006-09-14 | BC17: 2007-09-07 | BD17: 2007-09-12 | BE17: 2005-09-07 | BP17: 1975 | BQ17: 1992 | BR17: 2006 | BS17: 2004 | BT17: 2005 | BU17: 2011 | BV17: 2010 | BW17: 2010 | BX17: 2010 | BY17: 1977 | BZ17: 1987 | CA17: 2004 | CB17: 2005 | CC17: 2004 | CD17: 1900 | CE17: 1900 | CF17: 1900 | CG17: 1900 | CH17: 2007 | CI17: 1900 | CJ17: 1900 | CK17: 1900 | CL17: 1900 | CM17: 1900 | CN17: 1900 | CO17: 1900 | CP17: 1900 | CQ17: 1900 | CR17: 1900 | CS17: 1975 | CT17: 1989 | CU17: 2001 | CV17: 1998 | CW17: 2003 | CX17: 2006 | CY17: 2005 | CZ17: 2005 | DA17: 2005 | DB17: 2005 | DC17: 1975 | DD17: 1980 | DE17: 1900 | DF17: 1900 | DG17: 1900 | DH17: 2009 | DI17: 2006 | DJ17: 2007 | DK17: 2007 | DL17: 2005 | DM17: 1900 | DN17: 1900 | DO17: 1900 | DP17: 1900 | DQ17: 1900 | DR17: 1900 | DS17: 1900 | DT17: 1900 | DU17: 1900 | DV17: 1900
A18: 1981-06-19 | B18: 1981-09-08 | C18: 2005-07-08 | D18: 2007-06-15 | E18: 2003-06-13 | F18: 2010-06-18 | G18: 2010-06-18 | H18: 2010-06-18 | I18: 2009-06-12 | J18: 1977-12-22 | K18: 1986-08-13 | L18: 2004-12-07 | M18: 2003-09-02 | N18: 2002-09-19 | S18: 2007-09-05 | AD18: ÖLÜM | AE18: Okuyor | AF18: Okuyor | AG18: Okuyor | AH18: Okuyor | AI18: Okuyor | AJ18: Boş | AK18: Kullanılabilir | AL18: 1978-10-15 | AM18: 1989-09-20 | AN18: 1999-08-23 | AO18: 2002-08-23 | AP18: 1998-08-20 | AQ18: 2007-08-20 | AR18: 2006-08-23 | AS18: 2006-09-15 | AT18: 2006-08-23 | AU18: 2006-08-22 | AV18: 1978-12-28 | AW18: 1978-04-17 | BA18: 2009-09-14 | BB18: 2007-09-25 | BC18: 2007-09-07 | BD18: 2005-09-05 | BE18: 2007-09-24 | BP18: 1981 | BQ18: 1981 | BR18: 2005 | BS18: 2007 | BT18: 2003 | BU18: 2010 | BV18: 2010 | BW18: 2010 | BX18: 2009 | BY18: 1977 | BZ18: 1986 | CA18: 2004 | CB18: 2003 | CC18: 2002 | CD18: 1900 | CE18: 1900 | CF18: 1900 | CG18: 1900 | CH18: 2007 | CI18: 1900 | CJ18: 1900 | CK18: 1900 | CL18: 1900 | CM18: 1900 | CN18: 1900 | CO18: 1900 | CP18: 1900 | CQ18: 1900 | CR18: 1900 | CS18: 1978 | CT18: 1989 | CU18: 1999 | CV18: 2002 | CW18: 1998 | CX18: 2007 | CY18: 2006 | CZ18: 2006 | DA18: 2006 | DB18: 2006 | DC18: 1978 | DD18: 1978 | DE18: 1900 | DF18: 1900 | DG18: 1900 | DH18: 2009 | DI18: 2007 | DJ18: 2007 | DK18: 2005 | DL18: 2007 | DM18: 1900 | DN18: 1900 | DO18: 1900 | DP18: 1900 | DQ18: 1900 | DR18: 1900 | DS18: 1900 | DT18: 1900 | DU18: 1900 | DV18: 1900
A19: 1975-07-12 | B19: 1990-09-11 | C19: 2007-06-15 | D19: 2006-06-19 | E19: 2002-06-14 | F19: 2011-06-17 | G19: 2010-06-18 | H19: 2010-06-18 | I19: 2009-06-12 | J19: 1978-11-22 | K19: 1986-08-13 | L19: 1999-07-09 | M19: 2003-08-14 | N19: 2004-09-02 | S19: 2007-10-18 | AD19: İPTAL | AE19: Okuyor | AF19: Okuyor | AG19: Okuyor | AH19: Okuyor | AI19: Okuyor | AJ19: Boş | AK19: Kullanılabilir | AL19: 1985-09-17 | AM19: 1986-09-26 | AN19: 2002-08-19 | AO19: 1998-09-11 | AP19: 2001-08-21 | AQ19: 2007-08-20 | AR19: 2006-08-23 | AS19: 2006-08-24 | AT19: 2005-09-07 | AU19: 2006-08-22 | AV19: 1979-10-02 | AW19: 1978-02-21 | BB19: 2007-08-28 | BC19: 2007-09-07 | BD19: 2008-10-10 | BE19: 2008-08-04 | BP19: 1975 | BQ19: 1990 | BR19: 2007 | BS19: 2006 | BT19: 2002 | BU19: 2011 | BV19: 2010 | BW19: 2010 | BX19: 2009 | BY19: 1978 | BZ19: 1986 | CA19: 1999 | CB19: 2003 | CC19: 2004 | CD19: 1900 | CE19: 1900 | CF19: 1900 | CG19: 1900 | CH19: 2007 | CI19: 1900 | CJ19: 1900 | CK19: 1900 | CL19: 1900 | CM19: 1900 | CN19: 1900 | CO19: 1900 | CP19: 1900 | CQ19: 1900 | CR19: 1900 | CS19: 1985 | CT19: 1986 | CU19: 2002 | CV19: 1998 | CW19: 2001 | CX19: 2007 | CY19: 2006 | CZ19: 2006 | DA19: 2005 | DB19: 2006 | DC19: 1979 | DD19: 1978 | DE19: 1900 | DF19: 1900 | DG19: 1900 | DH19: 1900 | DI19: 2007 | DJ19: 2007 | DK19: 2008 | DL19: 2008 | DM19: 1900 | DN19: 1900 | DO19: 1900 | DP19: 1900 | DQ19: 1900 | DR19: 1900 | DS19: 1900 | DT19: 1900 | DU19: 1900 | DV19: 1900
A20: 1979-05-21 | B20: 1988-09-12 | C20: 2000-06-16 | D20: 2001-09-09 | E20: 2007-06-15 | F20: 2010-06-18 | G20: 2010-06-18 | H20: 2011-06-17 | I20: 2009-06-12 | J20: 1986-09-22 | K20: 1987-08-13 | L20: 2004-07-20 | M20: 2003-09-11 | N20: 2003-09-11 | S20: 2006-12-06 | AD20: İPTAL | AE20: Okuyor | AF20: Okuyor | AG20: Okuyor | AH20: Okuyor | AI20: Okuyor | AJ20: Boş | AK20: Kullanılabilir | AL20: 1972-10-15 | AM20: 1988-09-14 | AN20: 2003-08-18 | AO20: 2001-08-21 | AP20: 2002-08-19 | AQ20: 2009-09-07 | AR20: 2006-08-23 | AS20: 2005-09-08 | AT20: 2005-09-05 | AU20: 2006-08-23 | AV20: 1980-10-07 | AW20: 1978-12-05 | BB20: 2006-09-12 | BC20: 2007-09-07 | BD20: 2008-09-04 | BE20: 2007-09-11 | BP20: 1979 | BQ20: 1988 | BR20: 2000 | BS20: 2001 | BT20: 2007 | BU20: 2010 | BV20: 2010 | BW20: 2011 | BX20: 2009 | BY20: 1986 | BZ20: 1987 | CA20: 2004 | CB20: 2003 | CC20: 2003 | CD20: 1900 | CE20: 1900 | CF20: 1900 | CG20: 1900 | CH20: 2006 | CI20: 1900 | CJ20: 1900 | CK20: 1900 | CL20: 1900 | CM20: 1900 | CN20: 1900 | CO20: 1900 | CP20: 1900 | CQ20: 1900 | CR20: 1900 | CS20: 1972 | CT20: 1988 | CU20: 2003 | CV20: 2001 | CW20: 2002 | CX20: 2009 | CY20: 2006 | CZ20: 2005 | DA20: 2005 | DB20: 2006 | DC20: 1980 | DD20: 1978 | DE20: 1900 | DF20: 1900 | DG20: 1900 | DH20: 1900 | DI20: 2006 | DJ20: 2007 | DK20: 2008 | DL20: 2007 | DM20: 1900 | DN20: 1900 | DO20: 1900 | DP20: 1900 | DQ20: 1900 | DR20: 1900 | DS20: 1900 | DT20: 1900 | DU20: 1900 | DV20: 1900
A21: 1983-09-14 | B21: 1988-06-10 | C21: 2003-06-13 | D21: 2005-06-10 | E21: 2007-06-15 | F21: 2010-06-18 | G21: 2011-06-17 | H21: 2010-06-18 | I21: 2011-06-17 | J21: 1987-03-31 | K21: 1982-10-04 | L21: 2006-09-15 | M21: 2002-09-19 | N21: 2002-08-23 | S21: 2007-04-17 | AD21: İPTAL | AE21: Okuyor | AF21: Okuyor | AG21: Okuyor | AH21: Okuyor | AI21: Okuyor | AJ21: Boş | AK21: Kullanılabilir | AL21: 1975-10-15 | AM21: 1987-09-01 | AN21: 1997-09-12 | AO21: 2004-08-17 | AP21: 2003-08-19 | AQ21: 2007-08-20 | AR21: 2006-08-24 | AS21: 2007-08-20 | AT21: 2007-08-20 | AU21: 2005-09-07 | AV21: 1988-09-23 | AW21: 1984-09-26 | BB21: 2006-09-12 | BC21: 2007-09-10 | BD21: 2009-09-11 | BE21: 2008-09-05 | BP21: 1983 | BQ21: 1988 | BR21: 2003 | BS21: 2005 | BT21: 2007 | BU21: 2010 | BV21: 2011 | BW21: 2010 | BX21: 2011 | BY21: 1987 | BZ21: 1982 | CA21: 2006 | CB21: 2002 | CC21: 2002 | CD21: 1900 | CE21: 1900 | CF21: 1900 | CG21: 1900 | CH21: 2007 | CI21: 1900 | CJ21: 1900 | CK21: 1900 | CL21: 1900 | CM21: 1900 | CN21: 1900 | CO21: 1900 | CP21: 1900 | CQ21: 1900 | CR21: 1900 | CS21: 1975 | CT21: 1987 | CU21: 1997 | CV21: 2004 | CW21: 2003 | CX21: 2007 | CY21: 2006 | CZ21: 2007 | DA21: 2007 | DB21: 2005 | DC21: 1988 | DD21: 1984 | DE21: 1900 | DF21: 1900 | DG21: 1900 | DH21: 1900 | DI21: 2006 | DJ21: 2007 | DK21: 2009 | DL21: 2008 | DM21: 1900 | DN21: 1900 | DO21: 1900 | DP21: 1900 | DQ21: 1900 | DR21: 1900 | DS21: 1900 | DT21: 1900 | DU21: 1900 | DV21: 1900
A22: 1975-07-12 | B22: 1990-06-08 | C22: 2001-06-15 | D22: 2001-09-09 | E22: 2001-06-15 | F22: 2011-06-17 | G22: 2011-06-17 | H22: 2009-06-12 | I22: 2010-06-18 | J22: 1973-10-20 | K22: 1977-12-22 | L22: 2005-09-06 | M22: 2003-09-08 | N22: 2002-12-10 | S22: 2007-09-10 | AD22: İPTAL | AE22: Okuyor | AF22: Okuyor | AG22: Okuyor | AH22: Okuyor | AI22: Okuyor | AJ22: Boş | AK22: Kullanılabilir | AL22: 1977-09-22 | AM22: 1989-09-15 | AN22: 1999-08-24 | AO22: 2000-08-28 | AP22: 1999-08-25 | AQ22: 2009-09-07 | AR22: 2007-08-28 | AS22: 2008-09-02 | AT22: 2005-09-05 | AU22: 2005-09-07 | AV22: 1991-09-18 | AW22: 1980-03-21 | BB22: 2007-09-14 | BC22: 2007-09-10 | BD22: 2009-09-16 | BE22: 2008-09-05 | BP22: 1975 | BQ22: 1990 | BR22: 2001 | BS22: 2001 | BT22: 2001 | BU22: 2011 | BV22: 2011 | BW22: 2009 | BX22: 2010 | BY22: 1973 | BZ22: 1977 | CA22: 2005 | CB22: 2003 | CC22: 2002 | CD22: 1900 | CE22: 1900 | CF22: 1900 | CG22: 1900 | CH22: 2007 | CI22: 1900 | CJ22: 1900 | CK22: 1900 | CL22: 1900 | CM22: 1900 | CN22: 1900 | CO22: 1900 | CP22: 1900 | CQ22: 1900 | CR22: 1900 | CS22: 1977 | CT22: 1989 | CU22: 1999 | CV22: 2000 | CW22: 1999 | CX22: 2009 | CY22: 2007 | CZ22: 2008 | DA22: 2005 | DB22: 2005 | DC22: 1991 | DD22: 1980 | DE22: 1900 | DF22: 1900 | DG22: 1900 | DH22: 1900 | DI22: 2007 | DJ22: 2007 | DK22: 2009 | DL22: 2008 | DM22: 1900 | DN22: 1900 | DO22: 1900 | DP22: 1900 | DQ22: 1900 | DR22: 1900 | DS22: 1900 | DT22: 1900 | DU22: 1900 | DV22: 1900
A23: 1978-07-07 | B23: 1980-06-05 | C23: 2002-03-03 | D23: 2005-06-10 | E23: 2001-09-09 | F23: 2011-06-17 | G23: 2011-06-17 | H23: 2009-06-12 | I23: 2009-06-12 | J23: 1984-06-05 | K23: 1979-12-11 | L23: 2000-04-13 | M23: 2001-09-11 | N23: 2003-08-21 | S23: 2008-09-05 | AD23: İPTAL | AE23: Okuyor | AF23: Okuyor | AG23: Okuyor | AH23: Okuyor | AI23: Okuyor | AJ23: Boş | AK23: Kullanılabilir | AL23: 1985-09-18 | AM23: 1989-09-18 | AN23: 1998-08-20 | AO23: 2004-08-18 | AP23: 1998-08-21 | AQ23: 2008-09-02 | AR23: 2007-08-20 | AS23: 2005-09-05 | AT23: 2006-08-24 | AU23: 2006-09-12 | AV23: 1979-01-15 | AW23: 1979-10-08 | BB23: 2008-09-08 | BC23: 2007-09-13 | BE23: 2009-09-28 | BP23: 1978 | BQ23: 1980 | BR23: 2002 | BS23: 2005 | BT23: 2001 | BU23: 2011 | BV23: 2011 | BW23: 2009 | BX23: 2009 | BY23: 1984 | BZ23: 1979 | CA23: 2000 | CB23: 2001 | CC23: 2003 | CD23: 1900 | CE23: 1900 | CF23: 1900 | CG23: 1900 | CH23: 2008 | CI23: 1900 | CJ23: 1900 | CK23: 1900 | CL23: 1900 | CM23: 1900 | CN23: 1900 | CO23: 1900 | CP23: 1900 | CQ23: 1900 | CR23: 1900 | CS23: 1985 | CT23: 1989 | CU23: 1998 | CV23: 2004 | CW23: 1998 | CX23: 2008 | CY23: 2007 | CZ23: 2005 | DA23: 2006 | DB23: 2006 | DC23: 1979 | DD23: 1979 | DE23: 1900 | DF23: 1900 | DG23: 1900 | DH23: 1900 | DI23: 2008 | DJ23: 2007 | DK23: 1900 | DL23: 2009 | DM23: 1900 | DN23: 1900 | DO23: 1900 | DP23: 1900 | DQ23: 1900 | DR23: 1900 | DS23: 1900 | DT23: 1900 | DU23: 1900 | DV23: 1900
A24: 1982-09-22 | B24: 1979-05-21 | C24: 2006-06-19 | D24: 2003-02-23 | E24: 2003-06-13 | F24: 2010-09-07 | G24: 2010-06-18 | H24: 2011-06-17 | I24: 2009-06-12 | J24: 1973-10-20 | K24: 1988-09-13 | L24: 2005-09-05 | M24: 2003-09-11 | N24: 2004-05-05 | S24: 2006-10-05 | AD24: İPTAL | AE24: Okuyor | AF24: Okuyor | AG24: Okuyor | AH24: Okuyor | AI24: Okuyor | AJ24: Boş | AK24: Kullanılabilir | AL24: 1972-10-15 | AM24: 1976-10-15 | AN24: 1998-08-20 | AO24: 2003-08-20 | AP24: 2001-08-21 | AQ24: 2006-08-25 | AR24: 2007-08-28 | AS24: 2007-08-20 | AT24: 2005-09-05 | AU24: 2005-09-09 | AV24: 1979-01-12 | AW24: 1980-10-23 | BB24: 2006-08-29 | BC24: 2008-09-05 | BE24: 2010-09-14 | BP24: 1982 | BQ24: 1979 | BR24: 2006 | BS24: 2003 | BT24: 2003 | BU24: 2010 | BV24: 2010 | BW24: 2011 | BX24: 2009 | BY24: 1973 | BZ24: 1988 | CA24: 2005 | CB24: 2003 | CC24: 2004 | CD24: 1900 | CE24: 1900 | CF24: 1900 | CG24: 1900 | CH24: 2006 | CI24: 1900 | CJ24: 1900 | CK24: 1900 | CL24: 1900 | CM24: 1900 | CN24: 1900 | CO24: 1900 | CP24: 1900 | CQ24: 1900 | CR24: 1900 | CS24: 1972 | CT24: 1976 | CU24: 1998 | CV24: 2003 | CW24: 2001 | CX24: 2006 | CY24: 2007 | CZ24: 2007 | DA24: 2005 | DB24: 2005 | DC24: 1979 | DD24: 1980 | DE24: 1900 | DF24: 1900 | DG24: 1900 | DH24: 1900 | DI24: 2006 | DJ24: 2008 | DK24: 1900 | DL24: 2010 | DM24: 1900 | DN24: 1900 | DO24: 1900 | DP24: 1900 | DQ24: 1900 | DR24: 1900 | DS24: 1900 | DT24: 1900 | DU24: 1900 | DV24: 1900
A25: 1975-07-12 | B25: 1989-06-09 | C25: 2002-03-03 | D25: 2007-08-28 | E25: 2004-06-15 | F25: 2011-06-17 | G25: 2010-06-18 | H25: 2010-06-18 | I25: 2010-06-18 | J25: 1980-11-28 | K25: 1986-09-24 | L25: 2001-10-31 | M25: 2003-08-26 | N25: 2001-03-19 | S25: 2008-07-07 | AD25: İPTAL | AE25: Okuyor | AF25: Okuyor | AG25: Okuyor | AH25: Okuyor | AI25: Okuyor | AJ25: Boş | AK25: Kullanılabilir | AL25: 1975-10-15 | AM25: 1985-09-03 | AN25: 1998-08-20 | AO25: 1998-08-24 | AP25: 1999-08-25 | AQ25: 2006-08-25 | AR25: 2006-08-24 | AS25: 2006-09-04 | AT25: 2006-08-24 | AU25: 2010-09-06 | AV25: 1980-10-13 | AW25: 1979-04-05 | BB25: 2007-09-04 | BC25: 2008-09-05 | BE25: 2010-09-13 | BP25: 1975 | BQ25: 1989 | BR25: 2002 | BS25: 2007 | BT25: 2004 | BU25: 2011 | BV25: 2010 | BW25: 2010 | BX25: 2010 | BY25: 1980 | BZ25: 1986 | CA25: 2001 | CB25: 2003 | CC25: 2001 | CD25: 1900 | CE25: 1900 | CF25: 1900 | CG25: 1900 | CH25: 2008 | CI25: 1900 | CJ25: 1900 | CK25: 1900 | CL25: 1900 | CM25: 1900 | CN25: 1900 | CO25: 1900 | CP25: 1900 | CQ25: 1900 | CR25: 1900 | CS25: 1975 | CT25: 1985 | CU25: 1998 | CV25: 1998 | CW25: 1999 | CX25: 2006 | CY25: 2006 | CZ25: 2006 | DA25: 2006 | DB25: 2010 | DC25: 1980 | DD25: 1979 | DE25: 1900 | DF25: 1900 | DG25: 1900 | DH25: 1900 | DI25: 2007 | DJ25: 2008 | DK25: 1900 | DL25: 2010 | DM25: 1900 | DN25: 1900 | DO25: 1900 | DP25: 1900 | DQ25: 1900 | DR25: 1900 | DS25: 1900 | DT25: 1900 | DU25: 1900 | DV25: 1900
A26: 1978-07-07 | B26: 1989-06-09 | C26: 2007-06-15 | D26: 2004-06-15 | E26: 2007-06-15 | F26: 2010-06-18 | G26: 2010-06-18 | H26: 2010-06-18 | I26: 2009-06-12 | J26: 1989-11-29 | K26: 1988-10-10 | L26: 2000-05-26 | M26: 2001-09-10 | N26: 2006-09-13 | S26: 2006-09-13 | AE26: Okuyor | AF26: Okuyor | AG26: Okuyor | AH26: Okuyor | AI26: Okuyor | AJ26: Boş | AK26: Kullanılabilir | AL26: 1978-10-15 | AM26: 1985-09-10 | AN26: 2002-08-19 | AO26: 2002-08-26 | AP26: 2001-08-21 | AQ26: 2006-08-28 | AR26: 2006-08-24 | AS26: 2006-08-25 | AT26: 2009-09-07 | AU26: 2010-09-06 | AV26: 1977-09-22 | AW26: 1980-10-17 | BB26: 2007-09-06 | BC26: 2008-09-11 | BE26: 2009-09-16 | BP26: 1978 | BQ26: 1989 | BR26: 2007 | BS26: 2004 | BT26: 2007 | BU26: 2010 | BV26: 2010 | BW26: 2010 | BX26: 2009 | BY26: 1989 | BZ26: 1988 | CA26: 2000 | CB26: 2001 | CC26: 2006 | CD26: 1900 | CE26: 1900 | CF26: 1900 | CG26: 1900 | CH26: 2006 | CI26: 1900 | CJ26: 1900 | CK26: 1900 | CL26: 1900 | CM26: 1900 | CN26: 1900 | CO26: 1900 | CP26: 1900 | CQ26: 1900 | CR26: 1900 | CS26: 1978 | CT26: 1985 | CU26: 2002 | CV26: 2002 | CW26: 2001 | CX26: 2006 | CY26: 2006 | CZ26: 2006 | DA26: 2009 | DB26: 2010 | DC26: 1977 | DD26: 1980 | DE26: 1900 | DF26: 1900 | DG26: 1900 | DH26: 1900 | DI26: 2007 | DJ26: 2008 | DK26: 1900 | DL26: 2009 | DM26: 1900 | DN26: 1900 | DO26: 1900 | DP26: 1900 | DQ26: 1900 | DR26: 1900 | DS26: 1900 | DT26: 1900 | DU26: 1900 | DV26: 1900
A27: 1988-09-12 | B27: 1989-06-09 | C27: 2003-07-25 | D27: 2004-08-03 | E27: 2005-09-02 | F27: 2011-06-17 | G27: 2011-06-17 | H27: 2010-06-18 | I27: 2010-06-18 | J27: 1988-10-28 | K27: 1979-10-10 | L27: 2005-09-02 | M27: 2002-09-19 | N27: 2003-08-18 | S27: 2006-10-09 | AE27: Okuyor | AF27: Okuyor | AG27: Okuyor | AH27: Okuyor | AI27: Okuyor | AJ27: Boş | AK27: Kullanılabilir | AL27: 1972-10-15 | AM27: 1986-09-19 | AN27: 1997-09-12 | AO27: 1998-08-24 | AP27: 2004-08-17 | AQ27: 2008-09-02 | AR27: 2006-08-24 | AS27: 2006-08-28 | AT27: 2005-09-07 | AU27: 2006-08-23 | AV27: 1980-10-14 | AW27: 1979-10-10 | BB27: 2007-09-06 | BC27: 2009-09-10 | BP27: 1988 | BQ27: 1989 | BR27: 2003 | BS27: 2004 | BT27: 2005 | BU27: 2011 | BV27: 2011 | BW27: 2010 | BX27: 2010 | BY27: 1988 | BZ27: 1979 | CA27: 2005 | CB27: 2002 | CC27: 2003 | CD27: 1900 | CE27: 1900 | CF27: 1900 | CG27: 1900 | CH27: 2006 | CI27: 1900 | CJ27: 1900 | CK27: 1900 | CL27: 1900 | CM27: 1900 | CN27: 1900 | CO27: 1900 | CP27: 1900 | CQ27: 1900 | CR27: 1900 | CS27: 1972 | CT27: 1986 | CU27: 1997 | CV27: 1998 | CW27: 2004 | CX27: 2008 | CY27: 2006 | CZ27: 2006 | DA27: 2005 | DB27: 2006 | DC27: 1980 | DD27: 1979 | DE27: 1900 | DF27: 1900 | DG27: 1900 | DH27: 1900 | DI27: 2007 | DJ27: 2009 | DK27: 1900 | DL27: 1900 | DM27: 1900 | DN27: 1900 | DO27: 1900 | DP27: 1900 | DQ27: 1900 | DR27: 1900 | DS27: 1900 | DT27: 1900 | DU27: 1900 | DV27: 1900
A28: 1975-07-12 | B28: 1979-05-21 | C28: 2003-07-25 | D28: 2007-06-15 | E28: 2002-03-03 | F28: 2010-06-18 | G28: 2010-06-18 | H28: 2010-06-18 | I28: 2010-06-18 | J28: 1986-08-13 | K28: 1983-04-19 | L28: 2005-02-24 | M28: 2002-09-19 | N28: 2001-03-19 | S28: 2007-11-02 | AE28: Okuyor | AF28: Okuyor | AG28: Okuyor | AH28: Okuyor | AI28: Okuyor | AJ28: Boş | AK28: Kullanılabilir | AL28: 1976-10-15 | AM28: 1976-10-15 | AN28: 2003-08-19 | AO28: 2001-08-23 | AP28: 1999-09-01 | AQ28: 2006-08-28 | AR28: 2006-09-20 | AS28: 2006-09-04 | AT28: 2006-08-24 | AU28: 2005-09-06 | AV28: 1980-10-17 | AW28: 1979-10-12 | BB28: 2007-09-07 | BC28: 2009-09-14 | BP28: 1975 | BQ28: 1979 | BR28: 2003 | BS28: 2007 | BT28: 2002 | BU28: 2010 | BV28: 2010 | BW28: 2010 | BX28: 2010 | BY28: 1986 | BZ28: 1983 | CA28: 2005 | CB28: 2002 | CC28: 2001 | CD28: 1900 | CE28: 1900 | CF28: 1900 | CG28: 1900 | CH28: 2007 | CI28: 1900 | CJ28: 1900 | CK28: 1900 | CL28: 1900 | CM28: 1900 | CN28: 1900 | CO28: 1900 | CP28: 1900 | CQ28: 1900 | CR28: 1900 | CS28: 1976 | CT28: 1976 | CU28: 2003 | CV28: 2001 | CW28: 1999 | CX28: 2006 | CY28: 2006 | CZ28: 2006 | DA28: 2006 | DB28: 2005 | DC28: 1980 | DD28: 1979 | DE28: 1900 | DF28: 1900 | DG28: 1900 | DH28: 1900 | DI28: 2007 | DJ28: 2009 | DK28: 1900 | DL28: 1900 | DM28: 1900 | DN28: 1900 | DO28: 1900 | DP28: 1900 | DQ28: 1900 | DR28: 1900 | DS28: 1900 | DT28: 1900 | DU28: 1900 | DV28: 1900
A29: 1975-07-12 | B29: 1979-05-21 | C29: 2006-06-29 | D29: 2002-06-14 | E29: 2002-03-03 | F29: 2011-06-17 | G29: 2010-06-18 | H29: 2009-06-12 | I29: 2009-06-12 | J29: 1976-10-06 | K29: 1989-05-24 | L29: 2000-04-18 | M29: 2000-06-20 | N29: 2002-09-16 | S29: 2006-10-04 | AE29: Okuyor | AF29: Okuyor | AG29: Okuyor | AH29: Okuyor | AI29: Okuyor | AJ29: Boş | AK29: Kullanılabilir | AL29: 1979-10-08 | AM29: 1975-10-15 | AN29: 2004-08-16 | AO29: 2004-08-18 | AP29: 2004-08-17 | AQ29: 2006-08-28 | AR29: 2007-08-20 | AS29: 2005-09-09 | AT29: 2006-09-04 | AU29: 2005-09-08 | AV29: 1978-03-24 | AW29: 1976-10-15 | BB29: 2007-09-07 | BC29: 2009-09-14 | BP29: 1975 | BQ29: 1979 | BR29: 2006 | BS29: 2002 | BT29: 2002 | BU29: 2011 | BV29: 2010 | BW29: 2009 | BX29: 2009 | BY29: 1976 | BZ29: 1989 | CA29: 2000 | CB29: 2000 | CC29: 2002 | CD29: 1900 | CE29: 1900 | CF29: 1900 | CG29: 1900 | CH29: 2006 | CI29: 1900 | CJ29: 1900 | CK29: 1900 | CL29: 1900 | CM29: 1900 | CN29: 1900 | CO29: 1900 | CP29: 1900 | CQ29: 1900 | CR29: 1900 | CS29: 1979 | CT29: 1975 | CU29: 2004 | CV29: 2004 | CW29: 2004 | CX29: 2006 | CY29: 2007 | CZ29: 2005 | DA29: 2006 | DB29: 2005 | DC29: 1978 | DD29: 1976 | DE29: 1900 | DF29: 1900 | DG29: 1900 | DH29: 1900 | DI29: 2007 | DJ29: 2009 | DK29: 1900 | DL29: 1900 | DM29: 1900 | DN29: 1900 | DO29: 1900 | DP29: 1900 | DQ29: 1900 | DR29: 1900 | DS29: 1900 | DT29: 1900 | DU29: 1900 | DV29: 1900
A30: 1975-07-12 | B30: 1989-09-12 | C30: 2005-06-10 | D30: 2006-06-19 | E30: 2006-02-12 | F30: 2011-06-17 | G30: 2011-06-17 | H30: 2010-06-18 | I30: 2010-09-07 | J30: 1980-12-03 | K30: 1981-09-14 | L30: 1999-12-13 | M30: 2004-09-15 | N30: 2006-09-12 | S30: 2007-09-18 | AE30: Okuyor | AF30: Okuyor | AG30: Okuyor | AH30: Okuyor | AI30: Okuyor | AJ30: Boş | AK30: Kullanılabilir | AL30: 1972-10-15 | AM30: 1976-10-15 | AN30: 1999-08-25 | AO30: 1998-08-24 | AP30: 2002-08-23 | AQ30: 2007-08-20 | AR30: 2005-09-05 | AS30: 2006-09-05 | AT30: 2007-08-20 | AU30: 2006-08-23 | AV30: 1978-12-28 | AW30: 1979-10-12 | BB30: 2007-09-07 | BC30: 2009-09-14 | BP30: 1975 | BQ30: 1989 | BR30: 2005 | BS30: 2006 | BT30: 2006 | BU30: 2011 | BV30: 2011 | BW30: 2010 | BX30: 2010 | BY30: 1980 | BZ30: 1981 | CA30: 1999 | CB30: 2004 | CC30: 2006 | CD30: 1900 | CE30: 1900 | CF30: 1900 | CG30: 1900 | CH30: 2007 | CI30: 1900 | CJ30: 1900 | CK30: 1900 | CL30: 1900 | CM30: 1900 | CN30: 1900 | CO30: 1900 | CP30: 1900 | CQ30: 1900 | CR30: 1900 | CS30: 1972 | CT30: 1976 | CU30: 1999 | CV30: 1998 | CW30: 2002 | CX30: 2007 | CY30: 2005 | CZ30: 2006 | DA30: 2007 | DB30: 2006 | DC30: 1978 | DD30: 1979 | DE30: 1900 | DF30: 1900 | DG30: 1900 | DH30: 1900 | DI30: 2007 | DJ30: 2009 | DK30: 1900 | DL30: 1900 | DM30: 1900 | DN30: 1900 | DO30: 1900 | DP30: 1900 | DQ30: 1900 | DR30: 1900 | DS30: 1900 | DT30: 1900 | DU30: 1900 | DV30: 1900
A31: 1978-07-07 | B31: 1980-06-05 | C31: 2001-06-15 | D31: 2003-06-29 | E31: 2005-06-10 | F31: 2011-06-17 | G31: 2009-06-12 | H31: 2010-06-18 | I31: 2010-06-18 | J31: 1977-04-28 | K31: 1979-12-11 | L31: 2000-05-26 | M31: 2001-10-11 | N31: 2002-08-22 | S31: 2006-10-11 | AE31: Okuyor | AF31: Okuyor | AG31: Okuyor | AH31: Okuyor | AI31: Okuyor | AJ31: Boş | AK31: Kullanılabilir | AL31: 1975-10-15 | AM31: 1984-09-04 | AN31: 1999-08-25 | AO31: 2004-08-19 | AP31: 2002-08-23 | AQ31: 2007-08-20 | AR31: 2006-08-24 | AS31: 2006-08-29 | AT31: 2006-08-24 | AU31: 2007-08-20 | AV31: 1979-03-14 | AW31: 1980-10-13 | BB31: 2007-09-10 | BC31: 2009-09-17 | BP31: 1978 | BQ31: 1980 | BR31: 2001 | BS31: 2003 | BT31: 2005 | BU31: 2011 | BV31: 2009 | BW31: 2010 | BX31: 2010 | BY31: 1977 | BZ31: 1979 | CA31: 2000 | CB31: 2001 | CC31: 2002 | CD31: 1900 | CE31: 1900 | CF31: 1900 | CG31: 1900 | CH31: 2006 | CI31: 1900 | CJ31: 1900 | CK31: 1900 | CL31: 1900 | CM31: 1900 | CN31: 1900 | CO31: 1900 | CP31: 1900 | CQ31: 1900 | CR31: 1900 | CS31: 1975 | CT31: 1984 | CU31: 1999 | CV31: 2004 | CW31: 2002 | CX31: 2007 | CY31: 2006 | CZ31: 2006 | DA31: 2006 | DB31: 2007 | DC31: 1979 | DD31: 1980 | DE31: 1900 | DF31: 1900 | DG31: 1900 | DH31: 1900 | DI31: 2007 | DJ31: 2009 | DK31: 1900 | DL31: 1900 | DM31: 1900 | DN31: 1900 | DO31: 1900 | DP31: 1900 | DQ31: 1900 | DR31: 1900 | DS31: 1900 | DT31: 1900 | DU31: 1900 | DV31: 1900
A32: 1981-06-19 | B32: 1981-09-08 | C32: 2007-06-15 | D32: 2005-06-10 | E32: 2007-06-15 | F32: 2011-06-17 | G32: 2009-06-30 | H32: 2010-06-18 | I32: 2011-06-17 | J32: 1984-09-04 | K32: 1983-03-29 | L32: 2004-09-15 | M32: 2003-09-05 | N32: 2001-10-11 | S32: 2007-09-10 | AE32: Okuyor | AF32: Okuyor | AG32: Okuyor | AH32: Okuyor | AI32: Okuyor | AJ32: Boş | AK32: Kullanılabilir | AL32: 1978-10-15 | AM32: 1986-09-15 | AN32: 2003-08-20 | AO32: 2000-08-31 | AP32: 2004-08-18 | AQ32: 2006-09-05 | AR32: 2005-09-05 | AS32: 2006-09-05 | AT32: 2007-08-20 | AU32: 2005-09-05 | AV32: 1985-09-29 | AW32: 1980-11-10 | BB32: 2007-09-10 | BP32: 1981 | BQ32: 1981 | BR32: 2007 | BS32: 2005 | BT32: 2007 | BU32: 2011 | BV32: 2009 | BW32: 2010 | BX32: 2011 | BY32: 1984 | BZ32: 1983 | CA32: 2004 | CB32: 2003 | CC32: 2001 | CD32: 1900 | CE32: 1900 | CF32: 1900 | CG32: 1900 | CH32: 2007 | CI32: 1900 | CJ32: 1900 | CK32: 1900 | CL32: 1900 | CM32: 1900 | CN32: 1900 | CO32: 1900 | CP32: 1900 | CQ32: 1900 | CR32: 1900 | CS32: 1978 | CT32: 1986 | CU32: 2003 | CV32: 2000 | CW32: 2004 | CX32: 2006 | CY32: 2005 | CZ32: 2006 | DA32: 2007 | DB32: 2005 | DC32: 1985 | DD32: 1980 | DE32: 1900 | DF32: 1900 | DG32: 1900 | DH32: 1900 | DI32: 2007 | DJ32: 1900 | DK32: 1900 | DL32: 1900 | DM32: 1900 | DN32: 1900 | DO32: 1900 | DP32: 1900 | DQ32: 1900 | DR32: 1900 | DS32: 1900 | DT32: 1900 | DU32: 1900 | DV32: 1900
A33: 1975-07-12 | B33: 1992-06-05 | C33: 2003-06-29 | D33: 2008-02-13 | E33: 2006-06-29 | F33: 2011-06-17 | G33: 2011-06-17 | H33: 2010-06-18 | I33: 2010-06-18 | J33: 1976-09-07 | K33: 1981-09-24 | L33: 2001-03-19 | M33: 2000-04-13 | N33: 2001-10-11 | S33: 2007-09-10 | AE33: Okuyor | AF33: Okuyor | AG33: Okuyor | AH33: Okuyor | AI33: Okuyor | AJ33: Boş | AK33: Kullanılabilir | AL33: 1972-10-15 | AM33: 1984-09-14 | AN33: 2002-08-20 | AO33: 2000-08-31 | AP33: 2003-08-20 | AQ33: 2006-08-29 | AR33: 2009-09-11 | AS33: 2006-08-29 | AT33: 2006-08-24 | AU33: 2006-08-23 | AV33: 1976-02-18 | AW33: 1978-03-22 | BB33: 2007-09-11 | BP33: 1975 | BQ33: 1992 | BR33: 2003 | BS33: 2008 | BT33: 2006 | BU33: 2011 | BV33: 2011 | BW33: 2010 | BX33: 2010 | BY33: 1976 | BZ33: 1981 | CA33: 2001 | CB33: 2000 | CC33: 2001 | CD33: 1900 | CE33: 1900 | CF33: 1900 | CG33: 1900 | CH33: 2007 | CI33: 1900 | CJ33: 1900 | CK33: 1900 | CL33: 1900 | CM33: 1900 | CN33: 1900 | CO33: 1900 | CP33: 1900 | CQ33: 1900 | CR33: 1900 | CS33: 1972 | CT33: 1984 | CU33: 2002 | CV33: 2000 | CW33: 2003 | CX33: 2006 | CY33: 2009 | CZ33: 2006 | DA33: 2006 | DB33: 2006 | DC33: 1976 | DD33: 1978 | DE33: 1900 | DF33: 1900 | DG33: 1900 | DH33: 1900 | DI33: 2007 | DJ33: 1900 | DK33: 1900 | DL33: 1900 | DM33: 1900 | DN33: 1900 | DO33: 1900 | DP33: 1900 | DQ33: 1900 | DR33: 1900 | DS33: 1900 | DT33: 1900 | DU33: 1900 | DV33: 1900
A34: 1979-05-21 | B34: 1983-09-14 | C34: 2005-06-10 | D34: 2001-06-15 | E34: 2002-03-03 | F34: 2011-06-17 | G34: 2010-06-18 | H34: 2010-06-18 | I34: 2011-06-17 | J34: 1992-11-13 | K34: 1980-11-11 | L34: 2006-09-13 | M34: 2005-07-25 | N34: 2004-09-15 | S34: 2008-09-05 | AE34: Okuyor | AF34: Okuyor | AG34: Okuyor | AH34: Okuyor | AI34: Okuyor | AJ34: Boş | AK34: Kullanılabilir | AL34: 1975-09-16 | AM34: 1986-09-26 | AN34: 1997-09-12 | AO34: 2004-08-19 | AP34: 1998-08-24 | AQ34: 2007-08-20 | AR34: 2007-08-28 | AS34: 2006-08-21 | AT34: 2006-09-21 | AU34: 2005-09-12 | AV34: 1978-03-24 | AW34: 1978-03-22 | BB34: 2007-09-11 | BP34: 1979 | BQ34: 1983 | BR34: 2005 | BS34: 2001 | BT34: 2002 | BU34: 2011 | BV34: 2010 | BW34: 2010 | BX34: 2011 | BY34: 1992 | BZ34: 1980 | CA34: 2006 | CB34: 2005 | CC34: 2004 | CD34: 1900 | CE34: 1900 | CF34: 1900 | CG34: 1900 | CH34: 2008 | CI34: 1900 | CJ34: 1900 | CK34: 1900 | CL34: 1900 | CM34: 1900 | CN34: 1900 | CO34: 1900 | CP34: 1900 | CQ34: 1900 | CR34: 1900 | CS34: 1975 | CT34: 1986 | CU34: 1997 | CV34: 2004 | CW34: 1998 | CX34: 2007 | CY34: 2007 | CZ34: 2006 | DA34: 2006 | DB34: 2005 | DC34: 1978 | DD34: 1978 | DE34: 1900 | DF34: 1900 | DG34: 1900 | DH34: 1900 | DI34: 2007 | DJ34: 1900 | DK34: 1900 | DL34: 1900 | DM34: 1900 | DN34: 1900 | DO34: 1900 | DP34: 1900 | DQ34: 1900 | DR34: 1900 | DS34: 1900 | DT34: 1900 | DU34: 1900 | DV34: 1900
A35: 1982-09-07 | B35: 1981-06-19 | C35: 2006-08-29 | D35: 2004-06-15 | E35: 2002-06-14 | F35: 2010-06-18 | G35: 2010-06-18 | H35: 2010-06-18 | I35: 2011-06-17 | J35: 1973-10-19 | K35: 1985-10-01 | L35: 2004-11-11 | M35: 2004-05-18 | N35: 2001-10-11 | S35: 2008-09-23 | AE35: Okuyor | AF35: Okuyor | AG35: Okuyor | AH35: Okuyor | AI35: Okuyor | AJ35: Boş | AK35: Kullanılabilir | AL35: 1978-10-15 | AM35: 1985-09-27 | AN35: 2004-08-18 | AO35: 1999-08-27 | AP35: 1998-08-24 | AQ35: 2006-08-29 | AR35: 2006-08-24 | AS35: 2006-08-21 | AT35: 2007-09-12 | AU35: 2010-09-06 | AV35: 1979-08-31 | AW35: 1983-10-05 | BB35: 2007-09-12 | BP35: 1982 | BQ35: 1981 | BR35: 2006 | BS35: 2004 | BT35: 2002 | BU35: 2010 | BV35: 2010 | BW35: 2010 | BX35: 2011 | BY35: 1973 | BZ35: 1985 | CA35: 2004 | CB35: 2004 | CC35: 2001 | CD35: 1900 | CE35: 1900 | CF35: 1900 | CG35: 1900 | CH35: 2008 | CI35: 1900 | CJ35: 1900 | CK35: 1900 | CL35: 1900 | CM35: 1900 | CN35: 1900 | CO35: 1900 | CP35: 1900 | CQ35: 1900 | CR35: 1900 | CS35: 1978 | CT35: 1985 | CU35: 2004 | CV35: 1999 | CW35: 1998 | CX35: 2006 | CY35: 2006 | CZ35: 2006 | DA35: 2007 | DB35: 2010 | DC35: 1979 | DD35: 1983 | DE35: 1900 | DF35: 1900 | DG35: 1900 | DH35: 1900 | DI35: 2007 | DJ35: 1900 | DK35: 1900 | DL35: 1900 | DM35: 1900 | DN35: 1900 | DO35: 1900 | DP35: 1900 | DQ35: 1900 | DR35: 1900 | DS35: 1900 | DT35: 1900 | DU35: 1900 | DV35: 1900
A36: 1976-05-24 | B36: 1987-09-11 | C36: 2004-09-05 | D36: 2005-07-08 | E36: 2006-06-19 | F36: 2010-06-18 | G36: 2011-06-17 | H36: 2011-06-17 | I36: 2010-06-18 | J36: 1987-05-12 | K36: 1979-02-01 | L36: 2005-11-15 | M36: 2003-02-03 | N36: 2004-09-08 | S36: 2006-09-04 | AE36: Okuyor | AF36: Okuyor | AG36: Okuyor | AH36: Okuyor | AI36: Okuyor | AJ36: Boş | AK36: Kullanılabilir | AL36: 1985-09-20 | AM36: 1985-09-30 | AN36: 2003-08-20 | AO36: 2002-08-27 | AP36: 2004-08-18 | AQ36: 2007-08-20 | AR36: 2005-09-05 | AS36: 2007-08-21 | AT36: 2006-08-24 | AU36: 2005-09-08 | AV36: 1984-10-01 | AW36: 1985-10-02 | BB36: 2007-09-13 | BP36: 1976 | BQ36: 1987 | BR36: 2004 | BS36: 2005 | BT36: 2006 | BU36: 2010 | BV36: 2011 | BW36: 2011 | BX36: 2010 | BY36: 1987 | BZ36: 1979 | CA36: 2005 | CB36: 2003 | CC36: 2004 | CD36: 1900 | CE36: 1900 | CF36: 1900 | CG36: 1900 | CH36: 2006 | CI36: 1900 | CJ36: 1900 | CK36: 1900 | CL36: 1900 | CM36: 1900 | CN36: 1900 | CO36: 1900 | CP36: 1900 | CQ36: 1900 | CR36: 1900 | CS36: 1985 | CT36: 1985 | CU36: 2003 | CV36: 2002 | CW36: 2004 | CX36: 2007 | CY36: 2005 | CZ36: 2007 | DA36: 2006 | DB36: 2005 | DC36: 1984 | DD36: 1985 | DE36: 1900 | DF36: 1900 | DG36: 1900 | DH36: 1900 | DI36: 2007 | DJ36: 1900 | DK36: 1900 | DL36: 1900 | DM36: 1900 | DN36: 1900 | DO36: 1900 | DP36: 1900 | DQ36: 1900 | DR36: 1900 | DS36: 1900 | DT36: 1900 | DU36: 1900 | DV36: 1900
A37: 1979-05-21 | B37: 1987-05-27 | C37: 2004-09-05 | D37: 2002-06-14 | E37: 2005-06-10 | F37: 2010-06-18 | G37: 2010-06-18 | H37: 2009-06-12 | I37: 2011-06-17 | J37: 1990-08-06 | K37: 1980-12-01 | L37: 2004-09-15 | M37: 2005-10-18 | N37: 2001-03-19 | S37: 2008-08-13 | AE37: Okuyor | AF37: Okuyor | AG37: Okuyor | AH37: Okuyor | AI37: Okuyor | AJ37: Boş | AK37: Kullanılabilir | AL37: 1972-10-15 | AM37: 1984-09-19 | AN37: 2002-08-23 | AO37: 1998-08-25 | AP37: 2000-08-29 | AQ37: 2007-08-20 | AR37: 2005-09-06 | AS37: 2005-09-05 | AT37: 2006-08-24 | AU37: 2005-09-08 | AV37: 1976-10-15 | AW37: 1978-11-27 | BB37: 2008-09-15 | BP37: 1979 | BQ37: 1987 | BR37: 2004 | BS37: 2002 | BT37: 2005 | BU37: 2010 | BV37: 2010 | BW37: 2009 | BX37: 2011 | BY37: 1990 | BZ37: 1980 | CA37: 2004 | CB37: 2005 | CC37: 2001 | CD37: 1900 | CE37: 1900 | CF37: 1900 | CG37: 1900 | CH37: 2008 | CI37: 1900 | CJ37: 1900 | CK37: 1900 | CL37: 1900 | CM37: 1900 | CN37: 1900 | CO37: 1900 | CP37: 1900 | CQ37: 1900 | CR37: 1900 | CS37: 1972 | CT37: 1984 | CU37: 2002 | CV37: 1998 | CW37: 2000 | CX37: 2007 | CY37: 2005 | CZ37: 2005 | DA37: 2006 | DB37: 2005 | DC37: 1976 | DD37: 1978 | DE37: 1900 | DF37: 1900 | DG37: 1900 | DH37: 1900 | DI37: 2008 | DJ37: 1900 | DK37: 1900 | DL37: 1900 | DM37: 1900 | DN37: 1900 | DO37: 1900 | DP37: 1900 | DQ37: 1900 | DR37: 1900 | DS37: 1900 | DT37: 1900 | DU37: 1900 | DV37: 1900
A38: 1989-09-12 | B38: 1990-06-08 | C38: 2000-06-16 | D38: 2007-06-15 | E38: 2007-06-15 | F38: 2011-06-17 | G38: 2009-06-12 | H38: 2011-06-17 | I38: 2010-06-18 | J38: 1976-05-13 | K38: 1980-03-07 | L38: 2000-10-02 | M38: 2001-10-11 | N38: 2003-08-27 | S38: 2007-09-10 | AE38: Okuyor | AF38: Okuyor | AG38: Okuyor | AH38: Okuyor | AI38: Okuyor | AJ38: Boş | AK38: Kullanılabilir | AL38: 1972-10-15 | AM38: 1986-09-02 | AN38: 1999-08-26 | AO38: 2002-08-28 | AP38: 2000-08-29 | AQ38: 2006-09-06 | AR38: 2007-09-12 | AS38: 2007-08-21 | AT38: 2009-09-07 | AU38: 2010-09-06 | AV38: 1979-02-12 | AW38: 1983-09-26 | BB38: 2008-09-08 | BP38: 1989 | BQ38: 1990 | BR38: 2000 | BS38: 2007 | BT38: 2007 | BU38: 2011 | BV38: 2009 | BW38: 2011 | BX38: 2010 | BY38: 1976 | BZ38: 1980 | CA38: 2000 | CB38: 2001 | CC38: 2003 | CD38: 1900 | CE38: 1900 | CF38: 1900 | CG38: 1900 | CH38: 2007 | CI38: 1900 | CJ38: 1900 | CK38: 1900 | CL38: 1900 | CM38: 1900 | CN38: 1900 | CO38: 1900 | CP38: 1900 | CQ38: 1900 | CR38: 1900 | CS38: 1972 | CT38: 1986 | CU38: 1999 | CV38: 2002 | CW38: 2000 | CX38: 2006 | CY38: 2007 | CZ38: 2007 | DA38: 2009 | DB38: 2010 | DC38: 1979 | DD38: 1983 | DE38: 1900 | DF38: 1900 | DG38: 1900 | DH38: 1900 | DI38: 2008 | DJ38: 1900 | DK38: 1900 | DL38: 1900 | DM38: 1900 | DN38: 1900 | DO38: 1900 | DP38: 1900 | DQ38: 1900 | DR38: 1900 | DS38: 1900 | DT38: 1900 | DU38: 1900 | DV38: 1900
A39: 1975-07-12 | B39: 1981-09-08 | C39: 2000-06-16 | D39: 2004-06-30 | E39: 2003-06-13 | F39: 2011-06-17 | G39: 2009-06-12 | H39: 2009-06-12 | I39: 2011-06-17 | J39: 1980-09-30 | K39: 1982-12-03 | L39: 2004-09-15 | M39: 2003-09-11 | N39: 1999-12-13 | S39: 2006-10-04 | AE39: Okuyor | AF39: Okuyor | AG39: Okuyor | AH39: Okuyor | AI39: Okuyor | AJ39: Boş | AK39: Kullanılabilir | AL39: 1975-10-15 | AM39: 1984-09-10 | AN39: 2001-08-22 | AO39: 2004-08-19 | AP39: 2000-08-29 | AQ39: 2007-08-20 | AR39: 2006-08-24 | AS39: 2005-09-06 | AT39: 2007-08-20 | AU39: 2005-09-12 | AV39: 1975-10-15 | AW39: 1980-05-14 | BB39: 2008-09-08 | BP39: 1975 | BQ39: 1981 | BR39: 2000 | BS39: 2004 | BT39: 2003 | BU39: 2011 | BV39: 2009 | BW39: 2009 | BX39: 2011 | BY39: 1980 | BZ39: 1982 | CA39: 2004 | CB39: 2003 | CC39: 1999 | CD39: 1900 | CE39: 1900 | CF39: 1900 | CG39: 1900 | CH39: 2006 | CI39: 1900 | CJ39: 1900 | CK39: 1900 | CL39: 1900 | CM39: 1900 | CN39: 1900 | CO39: 1900 | CP39: 1900 | CQ39: 1900 | CR39: 1900 | CS39: 1975 | CT39: 1984 | CU39: 2001 | CV39: 2004 | CW39: 2000 | CX39: 2007 | CY39: 2006 | CZ39: 2005 | DA39: 2007 | DB39: 2005 | DC39: 1975 | DD39: 1980 | DE39: 1900 | DF39: 1900 | DG39: 1900 | DH39: 1900 | DI39: 2008 | DJ39: 1900 | DK39: 1900 | DL39: 1900 | DM39: 1900 | DN39: 1900 | DO39: 1900 | DP39: 1900 | DQ39: 1900 | DR39: 1900 | DS39: 1900 | DT39: 1900 | DU39: 1900 | DV39: 1900
A40: 1979-05-21 | B40: 1983-06-02 | C40: 2002-06-14 | D40: 2001-09-09 | E40: 2006-06-19 | F40: 2010-06-18 | G40: 2011-06-17 | H40: 2010-06-18 | I40: 2010-06-18 | J40: 1989-05-16 | K40: 1997-02-17 | L40: 2006-09-15 | M40: 2000-04-13 | N40: 2000-09-18 | S40: 2006-10-04 | AE40: Okuyor | AF40: Okuyor | AG40: Okuyor | AH40: Okuyor | AI40: Okuyor | AJ40: Boş | AK40: Kullanılabilir | AL40: 1977-09-22 | AM40: 1978-10-15 | AN40: 2000-08-29 | AO40: 1999-08-27 | AP40: 2001-08-23 | AQ40: 2007-08-21 | AR40: 2008-09-05 | AS40: 2008-09-03 | AT40: 2008-09-02 | AU40: 2005-09-09 | AV40: 1993-09-28 | AW40: 1983-09-26 | BB40: 2008-09-09 | BP40: 1979 | BQ40: 1983 | BR40: 2002 | BS40: 2001 | BT40: 2006 | BU40: 2010 | BV40: 2011 | BW40: 2010 | BX40: 2010 | BY40: 1989 | BZ40: 1997 | CA40: 2006 | CB40: 2000 | CC40: 2000 | CD40: 1900 | CE40: 1900 | CF40: 1900 | CG40: 1900 | CH40: 2006 | CI40: 1900 | CJ40: 1900 | CK40: 1900 | CL40: 1900 | CM40: 1900 | CN40: 1900 | CO40: 1900 | CP40: 1900 | CQ40: 1900 | CR40: 1900 | CS40: 1977 | CT40: 1978 | CU40: 2000 | CV40: 1999 | CW40: 2001 | CX40: 2007 | CY40: 2008 | CZ40: 2008 | DA40: 2008 | DB40: 2005 | DC40: 1993 | DD40: 1983 | DE40: 1900 | DF40: 1900 | DG40: 1900 | DH40: 1900 | DI40: 2008 | DJ40: 1900 | DK40: 1900 | DL40: 1900 | DM40: 1900 | DN40: 1900 | DO40: 1900 | DP40: 1900 | DQ40: 1900 | DR40: 1900 | DS40: 1900 | DT40: 1900 | DU40: 1900 | DV40: 1900
A41: 1982-06-11 | B41: 1979-05-21 | C41: 2005-07-08 | D41: 2006-06-19 | E41: 2006-06-29 | F41: 2011-06-17 | G41: 2010-06-18 | H41: 2011-06-17 | I41: 2011-06-17 | J41: 1987-01-06 | K41: 1979-02-07 | L41: 2006-02-07 | M41: 2003-09-08 | N41: 2001-09-20 | S41: 2007-09-10 | AE41: Okuyor | AF41: Okuyor | AG41: Okuyor | AH41: Okuyor | AI41: Okuyor | AJ41: Boş | AK41: Kullanılabilir | AL41: 1978-10-15 | AM41: 1975-10-15 | AN41: 2000-08-29 | AO41: 2002-08-28 | AP41: 2003-08-21 | AQ41: 2008-09-03 | AR41: 2007-09-05 | AS41: 2007-08-24 | AT41: 2006-08-25 | AU41: 2006-09-04 | AV41: 1979-02-12 | AW41: 1991-04-29 | BB41: 2008-09-09 | BP41: 1982 | BQ41: 1979 | BR41: 2005 | BS41: 2006 | BT41: 2006 | BU41: 2011 | BV41: 2010 | BW41: 2011 | BX41: 2011 | BY41: 1987 | BZ41: 1979 | CA41: 2006 | CB41: 2003 | CC41: 2001 | CD41: 1900 | CE41: 1900 | CF41: 1900 | CG41: 1900 | CH41: 2007 | CI41: 1900 | CJ41: 1900 | CK41: 1900 | CL41: 1900 | CM41: 1900 | CN41: 1900 | CO41: 1900 | CP41: 1900 | CQ41: 1900 | CR41: 1900 | CS41: 1978 | CT41: 1975 | CU41: 2000 | CV41: 2002 | CW41: 2003 | CX41: 2008 | CY41: 2007 | CZ41: 2007 | DA41: 2006 | DB41: 2006 | DC41: 1979 | DD41: 1991 | DE41: 1900 | DF41: 1900 | DG41: 1900 | DH41: 1900 | DI41: 2008 | DJ41: 1900 | DK41: 1900 | DL41: 1900 | DM41: 1900 | DN41: 1900 | DO41: 1900 | DP41: 1900 | DQ41: 1900 | DR41: 1900 | DS41: 1900 | DT41: 1900 | DU41: 1900 | DV41: 1900
A42: 1990-06-08 | B42: 1983-06-02 | C42: 2000-09-08 | D42: 2005-06-10 | E42: 2006-06-19 | F42: 2011-06-17 | G42: 2011-06-17 | H42: 2011-06-17 | I42: 2010-06-18 | J42: 1973-10-19 | K42: 1983-08-25 | L42: 2006-09-12 | M42: 2002-10-09 | N42: 2002-09-06 | S42: 2006-09-12 | AE42: Okuyor | AF42: Okuyor | AG42: Okuyor | AH42: Okuyor | AI42: Okuyor | AJ42: Boş | AK42: Kullanılabilir | AL42: 1972-10-15 | AM42: 1978-10-15 | AN42: 2002-08-26 | AO42: 2004-08-20 | AP42: 2004-08-19 | AQ42: 2008-09-03 | AR42: 2006-08-28 | AS42: 2005-09-06 | AT42: 2007-09-12 | AU42: 2007-08-20 | AV42: 1975-10-15 | AW42: 1978-10-15 | BB42: 2008-09-12 | BP42: 1990 | BQ42: 1983 | BR42: 2000 | BS42: 2005 | BT42: 2006 | BU42: 2011 | BV42: 2011 | BW42: 2011 | BX42: 2010 | BY42: 1973 | BZ42: 1983 | CA42: 2006 | CB42: 2002 | CC42: 2002 | CD42: 1900 | CE42: 1900 | CF42: 1900 | CG42: 1900 | CH42: 2006 | CI42: 1900 | CJ42: 1900 | CK42: 1900 | CL42: 1900 | CM42: 1900 | CN42: 1900 | CO42: 1900 | CP42: 1900 | CQ42: 1900 | CR42: 1900 | CS42: 1972 | CT42: 1978 | CU42: 2002 | CV42: 2004 | CW42: 2004 | CX42: 2008 | CY42: 2006 | CZ42: 2005 | DA42: 2007 | DB42: 2007 | DC42: 1975 | DD42: 1978 | DE42: 1900 | DF42: 1900 | DG42: 1900 | DH42: 1900 | DI42: 2008 | DJ42: 1900 | DK42: 1900 | DL42: 1900 | DM42: 1900 | DN42: 1900 | DO42: 1900 | DP42: 1900 | DQ42: 1900 | DR42: 1900 | DS42: 1900 | DT42: 1900 | DU42: 1900 | DV42: 1900
A43: 1978-07-07 | B43: 1983-09-14 | C43: 2001-09-09 | D43: 2005-06-10 | E43: 2001-09-09 | F43: 2011-06-17 | G43: 2010-06-18 | H43: 2011-06-17 | I43: 2010-06-18 | J43: 1979-11-09 | K43: 1979-12-19 | M43: 2003-09-11 | N43: 2002-04-30 | S43: 2008-09-05 | AE43: Okuyor | AF43: Okuyor | AG43: Okuyor | AH43: Okuyor | AI43: Okuyor | AJ43: Boş | AK43: Kullanılabilir | AL43: 1975-10-15 | AM43: 1984-09-21 | AN43: 1997-09-12 | AO43: 1998-09-14 | AP43: 2001-08-23 | AQ43: 2009-09-07 | AR43: 2006-08-28 | AS43: 2005-09-09 | AT43: 2006-08-25 | AU43: 2005-09-05 | AV43: 1980-10-01 | AW43: 1978-11-27 | BB43: 2009-09-14 | BP43: 1978 | BQ43: 1983 | BR43: 2001 | BS43: 2005 | BT43: 2001 | BU43: 2011 | BV43: 2010 | BW43: 2011 | BX43: 2010 | BY43: 1979 | BZ43: 1979 | CA43: 1900 | CB43: 2003 | CC43: 2002 | CD43: 1900 | CE43: 1900 | CF43: 1900 | CG43: 1900 | CH43: 2008 | CI43: 1900 | CJ43: 1900 | CK43: 1900 | CL43: 1900 | CM43: 1900 | CN43: 1900 | CO43: 1900 | CP43: 1900 | CQ43: 1900 | CR43: 1900 | CS43: 1975 | CT43: 1984 | CU43: 1997 | CV43: 1998 | CW43: 2001 | CX43: 2009 | CY43: 2006 | CZ43: 2005 | DA43: 2006 | DB43: 2005 | DC43: 1980 | DD43: 1978 | DE43: 1900 | DF43: 1900 | DG43: 1900 | DH43: 1900 | DI43: 2009 | DJ43: 1900 | DK43: 1900 | DL43: 1900 | DM43: 1900 | DN43: 1900 | DO43: 1900 | DP43: 1900 | DQ43: 1900 | DR43: 1900 | DS43: 1900 | DT43: 1900 | DU43: 1900 | DV43: 1900
A44: 1988-09-12 | B44: 1981-09-08 | C44: 2006-06-29 | D44: 2007-06-15 | E44: 2006-06-19 | F44: 2011-06-17 | G44: 2010-06-18 | H44: 2009-06-12 | I44: 2010-06-18 | J44: 1980-12-08 | K44: 1981-03-12 | M44: 2004-02-12 | N44: 2006-09-12 | S44: 2007-12-14 | AE44: Okuyor | AF44: Okuyor | AG44: Okuyor | AH44: Okuyor | AI44: Okuyor | AJ44: Boş | AK44: Kullanılabilir | AL44: 1978-10-15 | AM44: 1978-10-15 | AN44: 1997-09-12 | AO44: 1998-09-14 | AP44: 2002-08-28 | AQ44: 2009-09-07 | AR44: 2009-09-11 | AS44: 2008-09-03 | AT44: 2006-08-28 | AU44: 2005-09-09 | AV44: 1983-08-08 | AW44: 1978-08-23 | BP44: 1988 | BQ44: 1981 | BR44: 2006 | BS44: 2007 | BT44: 2006 | BU44: 2011 | BV44: 2010 | BW44: 2009 | BX44: 2010 | BY44: 1980 | BZ44: 1981 | CA44: 1900 | CB44: 2004 | CC44: 2006 | CD44: 1900 | CE44: 1900 | CF44: 1900 | CG44: 1900 | CH44: 2007 | CI44: 1900 | CJ44: 1900 | CK44: 1900 | CL44: 1900 | CM44: 1900 | CN44: 1900 | CO44: 1900 | CP44: 1900 | CQ44: 1900 | CR44: 1900 | CS44: 1978 | CT44: 1978 | CU44: 1997 | CV44: 1998 | CW44: 2002 | CX44: 2009 | CY44: 2009 | CZ44: 2008 | DA44: 2006 | DB44: 2005 | DC44: 1983 | DD44: 1978 | DE44: 1900 | DF44: 1900 | DG44: 1900 | DH44: 1900 | DI44: 1900 | DJ44: 1900 | DK44: 1900 | DL44: 1900 | DM44: 1900 | DN44: 1900 | DO44: 1900 | DP44: 1900 | DQ44: 1900 | DR44: 1900 | DS44: 1900 | DT44: 1900 | DU44: 1900 | DV44: 1900
A45: 1975-07-12 | B45: 1987-09-11 | C45: 2002-09-08 | D45: 2004-06-15 | E45: 2004-06-15 | F45: 2011-06-17 | G45: 2010-06-18 | H45: 2009-06-12 | I45: 2011-06-17 | J45: 1979-03-05 | K45: 1981-09-15 | M45: 2000-05-26 | N45: 2002-05-31 | S45: 2009-09-28 | AE45: Okuyor | AF45: Okuyor | AH45: Okuyor | AI45: Okuyor | AJ45: Boş | AK45: Kullanılabilir | AL45: 1984-09-24 | AM45: 1987-09-11 | AN45: 1998-08-24 | AO45: 2001-08-28 | AP45: 1998-08-26 | AQ45: 2007-08-21 | AR45: 2008-09-02 | AS45: 2005-09-09 | AT45: 2006-08-28 | AU45: 2007-08-20 | AV45: 1985-02-10 | AW45: 1978-02-21 | BP45: 1975 | BQ45: 1987 | BR45: 2002 | BS45: 2004 | BT45: 2004 | BU45: 2011 | BV45: 2010 | BW45: 2009 | BX45: 2011 | BY45: 1979 | BZ45: 1981 | CA45: 1900 | CB45: 2000 | CC45: 2002 | CD45: 1900 | CE45: 1900 | CF45: 1900 | CG45: 1900 | CH45: 2009 | CI45: 1900 | CJ45: 1900 | CK45: 1900 | CL45: 1900 | CM45: 1900 | CN45: 1900 | CO45: 1900 | CP45: 1900 | CQ45: 1900 | CR45: 1900 | CS45: 1984 | CT45: 1987 | CU45: 1998 | CV45: 2001 | CW45: 1998 | CX45: 2007 | CY45: 2008 | CZ45: 2005 | DA45: 2006 | DB45: 2007 | DC45: 1985 | DD45: 1978 | DE45: 1900 | DF45: 1900 | DG45: 1900 | DH45: 1900 | DI45: 1900 | DJ45: 1900 | DK45: 1900 | DL45: 1900 | DM45: 1900 | DN45: 1900 | DO45: 1900 | DP45: 1900 | DQ45: 1900 | DR45: 1900 | DS45: 1900 | DT45: 1900 | DU45: 1900 | DV45: 1900
A46: 1978-07-07 | B46: 1984-09-04 | C46: 2007-06-15 | D46: 2003-06-13 | E46: 2007-06-26 | F46: 2010-06-18 | G46: 2010-06-18 | H46: 2011-06-17 | I46: 2011-06-17 | J46: 1975-10-17 | K46: 1986-09-17 | M46: 2004-09-15 | N46: 2004-09-13 | S46: 2006-09-12 | AE46: Okuyor | AF46: Okuyor | AH46: Okuyor | AI46: Okuyor | AJ46: Boş | AK46: Kullanılabilir | AL46: 1986-08-26 | AM46: 1984-09-24 | AN46: 2002-08-26 | AO46: 2002-08-29 | AP46: 1998-08-26 | AQ46: 2009-09-07 | AR46: 2006-08-28 | AS46: 2009-09-09 | AT46: 2008-09-02 | AU46: 2010-09-06 | AV46: 1977-09-22 | AW46: 1978-10-20 | BP46: 1978 | BQ46: 1984 | BR46: 2007 | BS46: 2003 | BT46: 2007 | BU46: 2010 | BV46: 2010 | BW46: 2011 | BX46: 2011 | BY46: 1975 | BZ46: 1986 | CA46: 1900 | CB46: 2004 | CC46: 2004 | CD46: 1900 | CE46: 1900 | CF46: 1900 | CG46: 1900 | CH46: 2006 | CI46: 1900 | CJ46: 1900 | CK46: 1900 | CL46: 1900 | CM46: 1900 | CN46: 1900 | CO46: 1900 | CP46: 1900 | CQ46: 1900 | CR46: 1900 | CS46: 1986 | CT46: 1984 | CU46: 2002 | CV46: 2002 | CW46: 1998 | CX46: 2009 | CY46: 2006 | CZ46: 2009 | DA46: 2008 | DB46: 2010 | DC46: 1977 | DD46: 1978 | DE46: 1900 | DF46: 1900 | DG46: 1900 | DH46: 1900 | DI46: 1900 | DJ46: 1900 | DK46: 1900 | DL46: 1900 | DM46: 1900 | DN46: 1900 | DO46: 1900 | DP46: 1900 | DQ46: 1900 | DR46: 1900 | DS46: 1900 | DT46: 1900 | DU46: 1900 | DV46: 1900
A47: 1981-06-19 | B47: 1984-06-22 | C47: 2007-06-15 | D47: 2002-08-29 | E47: 2002-06-14 | F47: 2011-06-17 | G47: 2011-07-01 | H47: 2009-06-12 | I47: 2011-06-17 | J47: 1986-08-13 | K47: 1979-12-11 | M47: 2001-02-26 | N47: 2000-04-13 | S47: 2005-11-07 | AE47: Okuyor | AF47: Okuyor | AH47: Okuyor | AI47: Okuyor | AJ47: Boş | AK47: Kullanılabilir | AL47: 1972-10-15 | AM47: 1978-10-15 | AN47: 1997-09-12 | AO47: 1999-08-31 | AP47: 2002-08-28 | AQ47: 2007-08-21 | AR47: 2006-08-28 | AS47: 2009-09-08 | AT47: 2006-08-28 | AU47: 2010-09-06 | AV47: 1976-10-15 | AW47: 1982-09-22 | BP47: 1981 | BQ47: 1984 | BR47: 2007 | BS47: 2002 | BT47: 2002 | BU47: 2011 | BV47: 2011 | BW47: 2009 | BX47: 2011 | BY47: 1986 | BZ47: 1979 | CA47: 1900 | CB47: 2001 | CC47: 2000 | CD47: 1900 | CE47: 1900 | CF47: 1900 | CG47: 1900 | CH47: 2005 | CI47: 1900 | CJ47: 1900 | CK47: 1900 | CL47: 1900 | CM47: 1900 | CN47: 1900 | CO47: 1900 | CP47: 1900 | CQ47: 1900 | CR47: 1900 | CS47: 1972 | CT47: 1978 | CU47: 1997 | CV47: 1999 | CW47: 2002 | CX47: 2007 | CY47: 2006 | CZ47: 2009 | DA47: 2006 | DB47: 2010 | DC47: 1976 | DD47: 1982 | DE47: 1900 | DF47: 1900 | DG47: 1900 | DH47: 1900 | DI47: 1900 | DJ47: 1900 | DK47: 1900 | DL47: 1900 | DM47: 1900 | DN47: 1900 | DO47: 1900 | DP47: 1900 | DQ47: 1900 | DR47: 1900 | DS47: 1900 | DT47: 1900 | DU47: 1900 | DV47: 1900
A48: 1975-07-12 | B48: 1990-09-11 | C48: 2000-06-16 | D48: 2001-09-09 | E48: 2006-06-29 | F48: 2011-06-17 | G48: 2010-06-18 | H48: 2010-06-18 | I48: 2010-06-18 | J48: 1981-11-03 | K48: 1980-12-05 | M48: 2000-04-13 | N48: 2001-10-11 | S48: 2008-10-20 | AE48: Okuyor | AF48: Okuyor | AH48: Okuyor | AI48: Okuyor | AJ48: Boş | AK48: Kullanılabilir | AL48: 1975-10-15 | AM48: 1980-09-09 | AN48: 1997-09-12 | AO48: 2004-08-23 | AP48: 2002-08-28 | AQ48: 2009-09-07 | AR48: 2009-09-07 | AS48: 2005-09-08 | AT48: 2006-08-29 | AU48: 2007-08-20 | AV48: 1978-09-08 | AW48: 1978-11-27 | BP48: 1975 | BQ48: 1990 | BR48: 2000 | BS48: 2001 | BT48: 2006 | BU48: 2011 | BV48: 2010 | BW48: 2010 | BX48: 2010 | BY48: 1981 | BZ48: 1980 | CA48: 1900 | CB48: 2000 | CC48: 2001 | CD48: 1900 | CE48: 1900 | CF48: 1900 | CG48: 1900 | CH48: 2008 | CI48: 1900 | CJ48: 1900 | CK48: 1900 | CL48: 1900 | CM48: 1900 | CN48: 1900 | CO48: 1900 | CP48: 1900 | CQ48: 1900 | CR48: 1900 | CS48: 1975 | CT48: 1980 | CU48: 1997 | CV48: 2004 | CW48: 2002 | CX48: 2009 | CY48: 2009 | CZ48: 2005 | DA48: 2006 | DB48: 2007 | DC48: 1978 | DD48: 1978 | DE48: 1900 | DF48: 1900 | DG48: 1900 | DH48: 1900 | DI48: 1900 | DJ48: 1900 | DK48: 1900 | DL48: 1900 | DM48: 1900 | DN48: 1900 | DO48: 1900 | DP48: 1900 | DQ48: 1900 | DR48: 1900 | DS48: 1900 | DT48: 1900 | DU48: 1900 | DV48: 1900
A49: 1978-07-07 | B49: 1982-09-22 | C49: 2006-02-12 | D49: 2008-02-13 | E49: 2002-06-14 | F49: 2011-06-17 | G49: 2011-06-17 | H49: 2009-06-12 | I49: 2010-06-18 | J49: 1981-09-07 | K49: 1981-09-15 | M49: 2000-04-13 | N49: 2001-10-11 | S49: 2008-09-03 | AE49: Okuyor | AF49: Okuyor | AH49: Okuyor | AI49: Okuyor | AJ49: Boş | AK49: Kullanılabilir | AL49: 1979-10-09 | AM49: 1987-09-04 | AN49: 1998-08-24 | AO49: 2000-09-04 | AP49: 2004-08-20 | AQ49: 2007-08-22 | AR49: 2007-09-05 | AS49: 2009-09-08 | AT49: 2007-08-20 | AU49: 2007-08-28 | AV49: 1985-10-02 | AW49: 1991-05-07 | BP49: 1978 | BQ49: 1982 | BR49: 2006 | BS49: 2008 | BT49: 2002 | BU49: 2011 | BV49: 2011 | BW49: 2009 | BX49: 2010 | BY49: 1981 | BZ49: 1981 | CA49: 1900 | CB49: 2000 | CC49: 2001 | CD49: 1900 | CE49: 1900 | CF49: 1900 | CG49: 1900 | CH49: 2008 | CI49: 1900 | CJ49: 1900 | CK49: 1900 | CL49: 1900 | CM49: 1900 | CN49: 1900 | CO49: 1900 | CP49: 1900 | CQ49: 1900 | CR49: 1900 | CS49: 1979 | CT49: 1987 | CU49: 1998 | CV49: 2000 | CW49: 2004 | CX49: 2007 | CY49: 2007 | CZ49: 2009 | DA49: 2007 | DB49: 2007 | DC49: 1985 | DD49: 1991 | DE49: 1900 | DF49: 1900 | DG49: 1900 | DH49: 1900 | DI49: 1900 | DJ49: 1900 | DK49: 1900 | DL49: 1900 | DM49: 1900 | DN49: 1900 | DO49: 1900 | DP49: 1900 | DQ49: 1900 | DR49: 1900 | DS49: 1900 | DT49: 1900 | DU49: 1900 | DV49: 1900
A50: 1981-09-08 | B50: 1987-05-27 | C50: 2001-06-15 | D50: 2001-06-15 | E50: 2001-09-09 | F50: 2011-06-17 | G50: 2011-06-17 | H50: 2009-06-12 | I50: 2011-06-17 | J50: 1979-01-26 | K50: 1981-02-17 | M50: 2000-04-13 | N50: 2006-09-13 | S50: 2009-08-17 | AE50: Okuyor | AF50: Okuyor | AH50: Okuyor | AI50: Okuyor | AJ50: Boş | AK50: Kullanılabilir | AL50: 1972-10-15 | AM50: 1978-10-15 | AN50: 2003-08-21 | AO50: 1998-08-27 | AP50: 2001-08-24 | AQ50: 2009-09-07 | AR50: 2007-08-28 | AS50: 2005-09-12 | AT50: 2008-09-03 | AU50: 2010-09-06 | AV50: 1976-10-15 | AW50: 1989-09-18 | BP50: 1981 | BQ50: 1987 | BR50: 2001 | BS50: 2001 | BT50: 2001 | BU50: 2011 | BV50: 2011 | BW50: 2009 | BX50: 2011 | BY50: 1979 | BZ50: 1981 | CA50: 1900 | CB50: 2000 | CC50: 2006 | CD50: 1900 | CE50: 1900 | CF50: 1900 | CG50: 1900 | CH50: 2009 | CI50: 1900 | CJ50: 1900 | CK50: 1900 | CL50: 1900 | CM50: 1900 | CN50: 1900 | CO50: 1900 | CP50: 1900 | CQ50: 1900 | CR50: 1900 | CS50: 1972 | CT50: 1978 | CU50: 2003 | CV50: 1998 | CW50: 2001 | CX50: 2009 | CY50: 2007 | CZ50: 2005 | DA50: 2008 | DB50: 2010 | DC50: 1976 | DD50: 1989 | DE50: 1900 | DF50: 1900 | DG50: 1900 | DH50: 1900 | DI50: 1900 | DJ50: 1900 | DK50: 1900 | DL50: 1900 | DM50: 1900 | DN50: 1900 | DO50: 1900 | DP50: 1900 | DQ50: 1900 | DR50: 1900 | DS50: 1900 | DT50: 1900 | DU50: 1900 | DV50: 1900
A51: 1975-07-12 | B51: 1990-09-11 | C51: 2005-06-10 | D51: 2001-06-15 | E51: 2002-06-29 | G51: 2011-06-17 | H51: 2011-06-17 | I51: 2011-06-17 | J51: 1979-11-06 | K51: 1977-10-12 | M51: 2006-01-26 | N51: 2006-09-15 | S51: 2009-05-07 | AE51: Okuyor | AF51: Okuyor | AH51: Okuyor | AI51: Okuyor | AJ51: Boş | AK51: Kullanılabilir | AL51: 1976-10-15 | AM51: 1984-09-04 | AN51: 1997-09-12 | AO51: 2002-08-29 | AP51: 2002-08-28 | AQ51: 2008-09-03 | AR51: 2007-08-20 | AS51: 2007-09-04 | AT51: 2008-09-05 | AU51: 2010-09-06 | AV51: 1984-09-25 | AW51: 1978-11-17 | BP51: 1975 | BQ51: 1990 | BR51: 2005 | BS51: 2001 | BT51: 2002 | BU51: 1900 | BV51: 2011 | BW51: 2011 | BX51: 2011 | BY51: 1979 | BZ51: 1977 | CA51: 1900 | CB51: 2006 | CC51: 2006 | CD51: 1900 | CE51: 1900 | CF51: 1900 | CG51: 1900 | CH51: 2009 | CI51: 1900 | CJ51: 1900 | CK51: 1900 | CL51: 1900 | CM51: 1900 | CN51: 1900 | CO51: 1900 | CP51: 1900 | CQ51: 1900 | CR51: 1900 | CS51: 1976 | CT51: 1984 | CU51: 1997 | CV51: 2002 | CW51: 2002 | CX51: 2008 | CY51: 2007 | CZ51: 2007 | DA51: 2008 | DB51: 2010 | DC51: 1984 | DD51: 1978 | DE51: 1900 | DF51: 1900 | DG51: 1900 | DH51: 1900 | DI51: 1900 | DJ51: 1900 | DK51: 1900 | DL51: 1900 | DM51: 1900 | DN51: 1900 | DO51: 1900 | DP51: 1900 | DQ51: 1900 | DR51: 1900 | DS51: 1900 | DT51: 1900 | DU51: 1900 | DV51: 1900
A52: 1978-07-07 | B52: 1991-06-07 | C52: 2006-08-29 | D52: 2007-06-15 | E52: 2002-03-03 | G52: 2011-06-17 | H52: 2011-06-17 | I52: 2009-06-12 | J52: 1980-11-27 | K52: 1984-07-25 | M52: 2004-12-08 | N52: 2003-09-11 | S52: 2007-09-10 | AE52: Okuyor | AF52: Okuyor | AH52: Okuyor | AI52: Okuyor | AJ52: Boş | AK52: Kullanılabilir | AL52: 1979-10-09 | AM52: 1984-09-04 | AN52: 2004-08-19 | AO52: 2002-09-02 | AP52: 2002-08-29 | AQ52: 2006-09-14 | AR52: 2006-08-21 | AS52: 2007-09-07 | AT52: 2005-09-09 | AU52: 2007-08-28 | AV52: 1984-09-24 | AW52: 1984-09-26 | BP52: 1978 | BQ52: 1991 | BR52: 2006 | BS52: 2007 | BT52: 2002 | BU52: 1900 | BV52: 2011 | BW52: 2011 | BX52: 2009 | BY52: 1980 | BZ52: 1984 | CA52: 1900 | CB52: 2004 | CC52: 2003 | CD52: 1900 | CE52: 1900 | CF52: 1900 | CG52: 1900 | CH52: 2007 | CI52: 1900 | CJ52: 1900 | CK52: 1900 | CL52: 1900 | CM52: 1900 | CN52: 1900 | CO52: 1900 | CP52: 1900 | CQ52: 1900 | CR52: 1900 | CS52: 1979 | CT52: 1984 | CU52: 2004 | CV52: 2002 | CW52: 2002 | CX52: 2006 | CY52: 2006 | CZ52: 2007 | DA52: 2005 | DB52: 2007 | DC52: 1984 | DD52: 1984 | DE52: 1900 | DF52: 1900 | DG52: 1900 | DH52: 1900 | DI52: 1900 | DJ52: 1900 | DK52: 1900 | DL52: 1900 | DM52: 1900 | DN52: 1900 | DO52: 1900 | DP52: 1900 | DQ52: 1900 | DR52: 1900 | DS52: 1900 | DT52: 1900 | DU52: 1900 | DV52: 1900
A53: 1975-07-12 | B53: 1990-09-11 | C53: 2004-06-30 | D53: 2005-06-10 | E53: 2006-06-19 | G53: 2011-06-17 | H53: 2011-06-17 | I53: 2011-06-17 | J53: 1977-10-04 | K53: 1977-10-05 | M53: 2001-10-11 | N53: 2000-08-08 | S53: 2007-11-09 | AE53: Okuyor | AF53: Okuyor | AH53: Okuyor | AI53: Okuyor | AJ53: Boş | AK53: Kullanılabilir | AL53: 1985-09-23 | AM53: 1987-09-01 | AN53: 1997-09-12 | AO53: 2004-08-24 | AP53: 1998-08-26 | AQ53: 2007-08-24 | AR53: 2007-08-21 | AS53: 2008-09-04 | AT53: 2009-09-07 | AU53: 2005-09-12 | AV53: 1986-09-25 | AW53: 1977-09-22 | BP53: 1975 | BQ53: 1990 | BR53: 2004 | BS53: 2005 | BT53: 2006 | BU53: 1900 | BV53: 2011 | BW53: 2011 | BX53: 2011 | BY53: 1977 | BZ53: 1977 | CA53: 1900 | CB53: 2001 | CC53: 2000 | CD53: 1900 | CE53: 1900 | CF53: 1900 | CG53: 1900 | CH53: 2007 | CI53: 1900 | CJ53: 1900 | CK53: 1900 | CL53: 1900 | CM53: 1900 | CN53: 1900 | CO53: 1900 | CP53: 1900 | CQ53: 1900 | CR53: 1900 | CS53: 1985 | CT53: 1987 | CU53: 1997 | CV53: 2004 | CW53: 1998 | CX53: 2007 | CY53: 2007 | CZ53: 2008 | DA53: 2009 | DB53: 2005 | DC53: 1986 | DD53: 1977 | DE53: 1900 | DF53: 1900 | DG53: 1900 | DH53: 1900 | DI53: 1900 | DJ53: 1900 | DK53: 1900 | DL53: 1900 | DM53: 1900 | DN53: 1900 | DO53: 1900 | DP53: 1900 | DQ53: 1900 | DR53: 1900 | DS53: 1900 | DT53: 1900 | DU53: 1900 | DV53: 1900
A54: 1980-06-05 | B54: 1979-05-21 | C54: 2002-03-03 | D54: 2006-08-29 | E54: 2002-03-03 | G54: 2010-06-18 | H54: 2011-06-17 | I54: 2011-06-17 | J54: 1986-08-13 | K54: 1984-09-10 | M54: 2000-09-08 | N54: 2001-10-11 | S54: 2010-10-19 | AE54: Okuyor | AF54: Okuyor | AH54: Okuyor | AI54: Okuyor | AJ54: Boş | AK54: Kullanılabilir | AL54: 1972-10-15 | AM54: 1978-10-15 | AN54: 2003-08-21 | AO54: 2002-09-02 | AP54: 2001-08-28 | AQ54: 2007-08-24 | AR54: 2007-08-21 | AS54: 2008-09-04 | AT54: 2007-08-21 | AU54: 2010-09-06 | AV54: 1976-10-15 | AW54: 1978-01-10 | BP54: 1980 | BQ54: 1979 | BR54: 2002 | BS54: 2006 | BT54: 2002 | BU54: 1900 | BV54: 2010 | BW54: 2011 | BX54: 2011 | BY54: 1986 | BZ54: 1984 | CA54: 1900 | CB54: 2000 | CC54: 2001 | CD54: 1900 | CE54: 1900 | CF54: 1900 | CG54: 1900 | CH54: 2010 | CI54: 1900 | CJ54: 1900 | CK54: 1900 | CL54: 1900 | CM54: 1900 | CN54: 1900 | CO54: 1900 | CP54: 1900 | CQ54: 1900 | CR54: 1900 | CS54: 1972 | CT54: 1978 | CU54: 2003 | CV54: 2002 | CW54: 2001 | CX54: 2007 | CY54: 2007 | CZ54: 2008 | DA54: 2007 | DB54: 2010 | DC54: 1976 | DD54: 1978 | DE54: 1900 | DF54: 1900 | DG54: 1900 | DH54: 1900 | DI54: 1900 | DJ54: 1900 | DK54: 1900 | DL54: 1900 | DM54: 1900 | DN54: 1900 | DO54: 1900 | DP54: 1900 | DQ54: 1900 | DR54: 1900 | DS54: 1900 | DT54: 1900 | DU54: 1900 | DV54: 1900
A55: 1988-09-12 | B55: 1987-09-11 | C55: 2000-06-16 | D55: 2005-06-10 | E55: 2004-06-15 | G55: 2011-06-17 | H55: 2011-06-17 | I55: 2009-06-12 | J55: 1976-01-05 | K55: 1977-12-14 | M55: 2006-09-15 | N55: 2001-03-19 | S55: 2008-10-10 | AE55: Okuyor | AF55: Okuyor | AH55: Okuyor | AI55: Okuyor | AJ55: Boş | AK55: Kullanılabilir | AL55: 1975-10-15 | AM55: 1980-09-18 | AN55: 1997-09-12 | AO55: 2004-08-24 | AP55: 1998-08-26 | AQ55: 2008-09-03 | AR55: 2007-09-12 | AS55: 2008-09-04 | AT55: 2006-09-06 | AU55: 2006-09-21 | AV55: 1978-11-29 | AW55: 1978-11-15 | BP55: 1988 | BQ55: 1987 | BR55: 2000 | BS55: 2005 | BT55: 2004 | BU55: 1900 | BV55: 2011 | BW55: 2011 | BX55: 2009 | BY55: 1976 | BZ55: 1977 | CA55: 1900 | CB55: 2006 | CC55: 2001 | CD55: 1900 | CE55: 1900 | CF55: 1900 | CG55: 1900 | CH55: 2008 | CI55: 1900 | CJ55: 1900 | CK55: 1900 | CL55: 1900 | CM55: 1900 | CN55: 1900 | CO55: 1900 | CP55: 1900 | CQ55: 1900 | CR55: 1900 | CS55: 1975 | CT55: 1980 | CU55: 1997 | CV55: 2004 | CW55: 1998 | CX55: 2008 | CY55: 2007 | CZ55: 2008 | DA55: 2006 | DB55: 2006 | DC55: 1978 | DD55: 1978 | DE55: 1900 | DF55: 1900 | DG55: 1900 | DH55: 1900 | DI55: 1900 | DJ55: 1900 | DK55: 1900 | DL55: 1900 | DM55: 1900 | DN55: 1900 | DO55: 1900 | DP55: 1900 | DQ55: 1900 | DR55: 1900 | DS55: 1900 | DT55: 1900 | DU55: 1900 | DV55: 1900
A56: 1975-07-12 | B56: 1990-09-11 | C56: 2004-06-15 | D56: 2007-06-15 | E56: 2004-06-15 | G56: 2011-06-17 | H56: 2011-06-17 | I56: 2009-06-12 | J56: 1980-10-02 | K56: 1981-02-17 | M56: 2005-10-07 | N56: 2002-10-10 | S56: 2010-03-11 | AE56: Okuyor | AF56: Okuyor | AH56: Okuyor | AI56: Okuyor | AJ56: Boş | AK56: Kullanılabilir | AL56: 1979-10-09 | AM56: 1980-09-19 | AN56: 2002-08-27 | AO56: 2004-08-24 | AP56: 2002-08-29 | AQ56: 2007-08-27 | AR56: 2005-09-05 | AS56: 2008-09-04 | AT56: 2006-09-06 | AU56: 2010-09-06 | AV56: 1984-02-13 | AW56: 1978-01-04 | BP56: 1975 | BQ56: 1990 | BR56: 2004 | BS56: 2007 | BT56: 2004 | BU56: 1900 | BV56: 2011 | BW56: 2011 | BX56: 2009 | BY56: 1980 | BZ56: 1981 | CA56: 1900 | CB56: 2005 | CC56: 2002 | CD56: 1900 | CE56: 1900 | CF56: 1900 | CG56: 1900 | CH56: 2010 | CI56: 1900 | CJ56: 1900 | CK56: 1900 | CL56: 1900 | CM56: 1900 | CN56: 1900 | CO56: 1900 | CP56: 1900 | CQ56: 1900 | CR56: 1900 | CS56: 1979 | CT56: 1980 | CU56: 2002 | CV56: 2004 | CW56: 2002 | CX56: 2007 | CY56: 2005 | CZ56: 2008 | DA56: 2006 | DB56: 2010 | DC56: 1984 | DD56: 1978 | DE56: 1900 | DF56: 1900 | DG56: 1900 | DH56: 1900 | DI56: 1900 | DJ56: 1900 | DK56: 1900 | DL56: 1900 | DM56: 1900 | DN56: 1900 | DO56: 1900 | DP56: 1900 | DQ56: 1900 | DR56: 1900 | DS56: 1900 | DT56: 1900 | DU56: 1900 | DV56: 1900
A57: 1980-07-11 | B57: 1980-06-05 | C57: 2006-08-29 | D57: 2008-02-13 | E57: 2005-06-10 | G57: 2011-06-17 | H57: 2011-06-17 | I57: 2010-06-18 | J57: 1979-09-21 | K57: 1983-09-13 | M57: 2005-09-20 | N57: 2001-03-19 | S57: 2009-07-28 | AE57: Okuyor | AF57: Okuyor | AH57: Okuyor | AI57: Okuyor | AJ57: Boş | AK57: Kullanılabilir | AL57: 1987-08-19 | AM57: 1978-10-15 | AN57: 1998-08-25 | AO57: 2001-09-03 | AP57: 2003-08-22 | AQ57: 2008-09-05 | AR57: 2008-09-03 | AS57: 2008-09-04 | AT57: 2007-08-21 | AU57: 2010-09-06 | AV57: 1983-09-26 | AW57: 1978-11-15 | BP57: 1980 | BQ57: 1980 | BR57: 2006 | BS57: 2008 | BT57: 2005 | BU57: 1900 | BV57: 2011 | BW57: 2011 | BX57: 2010 | BY57: 1979 | BZ57: 1983 | CA57: 1900 | CB57: 2005 | CC57: 2001 | CD57: 1900 | CE57: 1900 | CF57: 1900 | CG57: 1900 | CH57: 2009 | CI57: 1900 | CJ57: 1900 | CK57: 1900 | CL57: 1900 | CM57: 1900 | CN57: 1900 | CO57: 1900 | CP57: 1900 | CQ57: 1900 | CR57: 1900 | CS57: 1987 | CT57: 1978 | CU57: 1998 | CV57: 2001 | CW57: 2003 | CX57: 2008 | CY57: 2008 | CZ57: 2008 | DA57: 2007 | DB57: 2010 | DC57: 1983 | DD57: 1978 | DE57: 1900 | DF57: 1900 | DG57: 1900 | DH57: 1900 | DI57: 1900 | DJ57: 1900 | DK57: 1900 | DL57: 1900 | DM57: 1900 | DN57: 1900 | DO57: 1900 | DP57: 1900 | DQ57: 1900 | DR57: 1900 | DS57: 1900 | DT57: 1900 | DU57: 1900 | DV57: 1900
A58: 1975-07-12 | B58: 1983-09-14 | C58: 2006-06-19 | D58: 2007-06-26 | E58: 2007-06-26 | G58: 2009-06-12 | H58: 2011-06-17 | I58: 2009-06-12 | J58: 1980-09-26 | K58: 1989-01-04 | M58: 2004-09-22 | N58: 2004-10-25 | S58: 2008-06-24 | AE58: Okuyor | AF58: Okuyor | AH58: Okuyor | AI58: Okuyor | AJ58: Boş | AK58: Kullanılabilir | AL58: 1972-10-15 | AM58: 1984-09-10 | AN58: 2001-08-23 | AO58: 2004-08-25 | AP58: 1998-08-27 | AQ58: 2008-09-05 | AR58: 2007-08-21 | AS58: 2008-09-04 | AT58: 2007-09-11 | AU58: 2010-09-06 | AV58: 1977-02-18 | AW58: 1978-11-15 | BP58: 1975 | BQ58: 1983 | BR58: 2006 | BS58: 2007 | BT58: 2007 | BU58: 1900 | BV58: 2009 | BW58: 2011 | BX58: 2009 | BY58: 1980 | BZ58: 1989 | CA58: 1900 | CB58: 2004 | CC58: 2004 | CD58: 1900 | CE58: 1900 | CF58: 1900 | CG58: 1900 | CH58: 2008 | CI58: 1900 | CJ58: 1900 | CK58: 1900 | CL58: 1900 | CM58: 1900 | CN58: 1900 | CO58: 1900 | CP58: 1900 | CQ58: 1900 | CR58: 1900 | CS58: 1972 | CT58: 1984 | CU58: 2001 | CV58: 2004 | CW58: 1998 | CX58: 2008 | CY58: 2007 | CZ58: 2008 | DA58: 2007 | DB58: 2010 | DC58: 1977 | DD58: 1978 | DE58: 1900 | DF58: 1900 | DG58: 1900 | DH58: 1900 | DI58: 1900 | DJ58: 1900 | DK58: 1900 | DL58: 1900 | DM58: 1900 | DN58: 1900 | DO58: 1900 | DP58: 1900 | DQ58: 1900 | DR58: 1900 | DS58: 1900 | DT58: 1900 | DU58: 1900 | DV58: 1900
A59: 1980-06-05 | B59: 1980-06-05 | C59: 2003-07-25 | D59: 2007-09-03 | E59: 2007-06-26 | G59: 2011-06-17 | H59: 2011-06-17 | I59: 2010-06-18 | J59: 1979-01-25 | K59: 1981-02-10 | M59: 2003-09-26 | N59: 2000-04-13 | S59: 2009-07-28 | AE59: Okuyor | AF59: Okuyor | AH59: Okuyor | AI59: Okuyor | AJ59: Boş | AK59: Kullanılabilir | AL59: 1975-10-15 | AM59: 1978-10-15 | AN59: 1998-08-25 | AO59: 2000-09-05 | AP59: 2004-08-24 | AQ59: 2009-09-08 | AR59: 2008-09-03 | AS59: 2008-09-04 | AT59: 2005-09-09 | AU59: 2007-08-28 | AV59: 1983-09-26 | AW59: 1978-11-02 | BP59: 1980 | BQ59: 1980 | BR59: 2003 | BS59: 2007 | BT59: 2007 | BU59: 1900 | BV59: 2011 | BW59: 2011 | BX59: 2010 | BY59: 1979 | BZ59: 1981 | CA59: 1900 | CB59: 2003 | CC59: 2000 | CD59: 1900 | CE59: 1900 | CF59: 1900 | CG59: 1900 | CH59: 2009 | CI59: 1900 | CJ59: 1900 | CK59: 1900 | CL59: 1900 | CM59: 1900 | CN59: 1900 | CO59: 1900 | CP59: 1900 | CQ59: 1900 | CR59: 1900 | CS59: 1975 | CT59: 1978 | CU59: 1998 | CV59: 2000 | CW59: 2004 | CX59: 2009 | CY59: 2008 | CZ59: 2008 | DA59: 2005 | DB59: 2007 | DC59: 1983 | DD59: 1978 | DE59: 1900 | DF59: 1900 | DG59: 1900 | DH59: 1900 | DI59: 1900 | DJ59: 1900 | DK59: 1900 | DL59: 1900 | DM59: 1900 | DN59: 1900 | DO59: 1900 | DP59: 1900 | DQ59: 1900 | DR59: 1900 | DS59: 1900 | DT59: 1900 | DU59: 1900 | DV59: 1900
A60: 1983-09-14 | B60: 1978-09-29 | C60: 2005-09-07 | D60: 2007-06-15 | E60: 2007-08-28 | G60: 2011-06-17 | H60: 2011-06-17 | I60: 2009-06-12 | J60: 1978-08-16 | K60: 1977-10-05 | M60: 2007-12-03 | N60: 2004-09-15 | S60: 2008-09-05 | AE60: Okuyor | AF60: Okuyor | AH60: Okuyor | AI60: Okuyor | AJ60: Boş | AK60: Kullanılabilir | AL60: 1978-10-15 | AM60: 1980-09-22 | AN60: 2003-08-21 | AO60: 1998-09-14 | AP60: 1999-08-31 | AQ60: 2009-09-08 | AR60: 2007-08-21 | AS60: 2008-09-04 | AT60: 2008-09-03 | AU60: 2010-09-06 | AV60: 1990-09-12 | AW60: 1978-11-01 | BP60: 1983 | BQ60: 1978 | BR60: 2005 | BS60: 2007 | BT60: 2007 | BU60: 1900 | BV60: 2011 | BW60: 2011 | BX60: 2009 | BY60: 1978 | BZ60: 1977 | CA60: 1900 | CB60: 2007 | CC60: 2004 | CD60: 1900 | CE60: 1900 | CF60: 1900 | CG60: 1900 | CH60: 2008 | CI60: 1900 | CJ60: 1900 | CK60: 1900 | CL60: 1900 | CM60: 1900 | CN60: 1900 | CO60: 1900 | CP60: 1900 | CQ60: 1900 | CR60: 1900 | CS60: 1978 | CT60: 1980 | CU60: 2003 | CV60: 1998 | CW60: 1999 | CX60: 2009 | CY60: 2007 | CZ60: 2008 | DA60: 2008 | DB60: 2010 | DC60: 1990 | DD60: 1978 | DE60: 1900 | DF60: 1900 | DG60: 1900 | DH60: 1900 | DI60: 1900 | DJ60: 1900 | DK60: 1900 | DL60: 1900 | DM60: 1900 | DN60: 1900 | DO60: 1900 | DP60: 1900 | DQ60: 1900 | DR60: 1900 | DS60: 1900 | DT60: 1900 | DU60: 1900 | DV60: 1900
A61: 1988-09-12 | B61: 1979-05-21 | C61: 2005-07-08 | D61: 2004-09-05 | E61: 2006-08-29 | G61: 2011-07-01 | H61: 2011-06-17 | I61: 2011-06-17 | J61: 1979-10-08 | K61: 1980-11-14 | M61: 2006-09-13 | N61: 2000-04-13 | S61: 2008-07-29 | AE61: Okuyor | AF61: Okuyor | AH61: Okuyor | AI61: Okuyor | AJ61: Boş | AK61: Kullanılabilir | AL61: 1984-09-24 | AM61: 1980-09-26 | AN61: 2000-08-31 | AO61: 1998-08-27 | AP61: 2004-08-24 | AQ61: 2005-09-09 | AR61: 2007-08-21 | AS61: 2008-09-04 | AT61: 2007-08-24 | AU61: 2009-09-07 | AV61: 1978-01-10 | AW61: 1975-10-15 | BP61: 1988 | BQ61: 1979 | BR61: 2005 | BS61: 2004 | BT61: 2006 | BU61: 1900 | BV61: 2011 | BW61: 2011 | BX61: 2011 | BY61: 1979 | BZ61: 1980 | CA61: 1900 | CB61: 2006 | CC61: 2000 | CD61: 1900 | CE61: 1900 | CF61: 1900 | CG61: 1900 | CH61: 2008 | CI61: 1900 | CJ61: 1900 | CK61: 1900 | CL61: 1900 | CM61: 1900 | CN61: 1900 | CO61: 1900 | CP61: 1900 | CQ61: 1900 | CR61: 1900 | CS61: 1984 | CT61: 1980 | CU61: 2000 | CV61: 1998 | CW61: 2004 | CX61: 2005 | CY61: 2007 | CZ61: 2008 | DA61: 2007 | DB61: 2009 | DC61: 1978 | DD61: 1975 | DE61: 1900 | DF61: 1900 | DG61: 1900 | DH61: 1900 | DI61: 1900 | DJ61: 1900 | DK61: 1900 | DL61: 1900 | DM61: 1900 | DN61: 1900 | DO61: 1900 | DP61: 1900 | DQ61: 1900 | DR61: 1900 | DS61: 1900 | DT61: 1900 | DU61: 1900 | DV61: 1900
A62: 1975-07-12 | B62: 1979-05-21 | C62: 2005-06-10 | D62: 2002-06-14 | E62: 2007-08-28 | G62: 2009-06-12 | H62: 2011-06-17 | I62: 2011-06-17 | J62: 1980-10-07 | K62: 1986-09-24 | M62: 2006-09-13 | N62: 2004-09-15 | S62: 2010-12-31 | AE62: Okuyor | AF62: Okuyor | AH62: Okuyor | AI62: Okuyor | AJ62: Boş | AK62: Kullanılabilir | AL62: 1988-09-14 | AM62: 1976-10-15 | AN62: 1998-08-25 | AO62: 2004-08-25 | AP62: 1998-08-27 | AQ62: 2008-09-03 | AR62: 2009-09-11 | AS62: 2008-09-04 | AT62: 2007-08-24 | AU62: 2008-09-02 | AV62: 1979-02-19 | AW62: 1978-10-26 | BP62: 1975 | BQ62: 1979 | BR62: 2005 | BS62: 2002 | BT62: 2007 | BU62: 1900 | BV62: 2009 | BW62: 2011 | BX62: 2011 | BY62: 1980 | BZ62: 1986 | CA62: 1900 | CB62: 2006 | CC62: 2004 | CD62: 1900 | CE62: 1900 | CF62: 1900 | CG62: 1900 | CH62: 2010 | CI62: 1900 | CJ62: 1900 | CK62: 1900 | CL62: 1900 | CM62: 1900 | CN62: 1900 | CO62: 1900 | CP62: 1900 | CQ62: 1900 | CR62: 1900 | CS62: 1988 | CT62: 1976 | CU62: 1998 | CV62: 2004 | CW62: 1998 | CX62: 2008 | CY62: 2009 | CZ62: 2008 | DA62: 2007 | DB62: 2008 | DC62: 1979 | DD62: 1978 | DE62: 1900 | DF62: 1900 | DG62: 1900 | DH62: 1900 | DI62: 1900 | DJ62: 1900 | DK62: 1900 | DL62: 1900 | DM62: 1900 | DN62: 1900 | DO62: 1900 | DP62: 1900 | DQ62: 1900 | DR62: 1900 | DS62: 1900 | DT62: 1900 | DU62: 1900 | DV62: 1900
A63: 1978-09-29 | B63: 1982-06-11 | C63: 2006-06-19 | D63: 2006-06-29 | E63: 2007-06-15 | G63: 2010-06-18 | I63: 2011-06-17 | J63: 1987-09-14 | K63: 1987-08-10 | M63: 2005-07-05 | N63: 2004-11-30 | S63: 2008-09-08 | AE63: Okuyor | AF63: Okuyor | AH63: Okuyor | AI63: Okuyor | AJ63: Boş | AK63: Kullanılabilir | AL63: 1972-10-15 | AM63: 1980-09-29 | AN63: 2002-08-28 | AO63: 2003-09-10 | AP63: 1999-09-01 | AQ63: 2007-08-29 | AR63: 2005-09-06 | AS63: 2008-09-05 | AT63: 2005-09-12 | AU63: 2010-09-06 | AV63: 1987-09-24 | AW63: 1978-10-26 | BP63: 1978 | BQ63: 1982 | BR63: 2006 | BS63: 2006 | BT63: 2007 | BU63: 1900 | BV63: 2010 | BW63: 1900 | BX63: 2011 | BY63: 1987 | BZ63: 1987 | CA63: 1900 | CB63: 2005 | CC63: 2004 | CD63: 1900 | CE63: 1900 | CF63: 1900 | CG63: 1900 | CH63: 2008 | CI63: 1900 | CJ63: 1900 | CK63: 1900 | CL63: 1900 | CM63: 1900 | CN63: 1900 | CO63: 1900 | CP63: 1900 | CQ63: 1900 | CR63: 1900 | CS63: 1972 | CT63: 1980 | CU63: 2002 | CV63: 2003 | CW63: 1999 | CX63: 2007 | CY63: 2005 | CZ63: 2008 | DA63: 2005 | DB63: 2010 | DC63: 1987 | DD63: 1978 | DE63: 1900 | DF63: 1900 | DG63: 1900 | DH63: 1900 | DI63: 1900 | DJ63: 1900 | DK63: 1900 | DL63: 1900 | DM63: 1900 | DN63: 1900 | DO63: 1900 | DP63: 1900 | DQ63: 1900 | DR63: 1900 | DS63: 1900 | DT63: 1900 | DU63: 1900 | DV63: 1900
A64: 1981-09-08 | B64: 1982-09-22 | C64: 2007-02-16 | D64: 2004-06-15 | E64: 2001-06-15 | G64: 2010-06-18 | I64: 2011-06-17 | J64: 1980-03-03 | K64: 1980-01-02 | M64: 2005-09-15 | N64: 2001-10-11 | S64: 2007-09-10 | AE64: Okuyor | AF64: Okuyor | AH64: Okuyor | AI64: Okuyor | AJ64: Boş | AK64: Kullanılabilir | AL64: 1975-10-15 | AM64: 1980-09-29 | AN64: 1997-09-12 | AO64: 1998-08-28 | AP64: 2003-08-22 | AQ64: 2008-09-03 | AR64: 2008-09-03 | AS64: 2008-09-05 | AT64: 2009-09-07 | AU64: 2006-08-24 | AV64: 1987-09-11 | AW64: 1987-10-08 | BP64: 1981 | BQ64: 1982 | BR64: 2007 | BS64: 2004 | BT64: 2001 | BU64: 1900 | BV64: 2010 | BW64: 1900 | BX64: 2011 | BY64: 1980 | BZ64: 1980 | CA64: 1900 | CB64: 2005 | CC64: 2001 | CD64: 1900 | CE64: 1900 | CF64: 1900 | CG64: 1900 | CH64: 2007 | CI64: 1900 | CJ64: 1900 | CK64: 1900 | CL64: 1900 | CM64: 1900 | CN64: 1900 | CO64: 1900 | CP64: 1900 | CQ64: 1900 | CR64: 1900 | CS64: 1975 | CT64: 1980 | CU64: 1997 | CV64: 1998 | CW64: 2003 | CX64: 2008 | CY64: 2008 | CZ64: 2008 | DA64: 2009 | DB64: 2006 | DC64: 1987 | DD64: 1987 | DE64: 1900 | DF64: 1900 | DG64: 1900 | DH64: 1900 | DI64: 1900 | DJ64: 1900 | DK64: 1900 | DL64: 1900 | DM64: 1900 | DN64: 1900 | DO64: 1900 | DP64: 1900 | DQ64: 1900 | DR64: 1900 | DS64: 1900 | DT64: 1900 | DU64: 1900 | DV64: 1900
A65: 1978-09-29 | B65: 1982-06-11 | C65: 2004-06-15 | D65: 2006-06-19 | E65: 2006-06-19 | G65: 2009-06-12 | I65: 2011-06-17 | J65: 1979-12-19 | K65: 1977-10-04 | M65: 2005-10-21 | N65: 2004-11-04 | S65: 2007-09-04 | AE65: Okuyor | AF65: Okuyor | AH65: Okuyor | AI65: Okuyor | AJ65: Boş | AK65: Kullanılabilir | AL65: 1978-10-15 | AM65: 1978-10-15 | AN65: 2000-08-31 | AO65: 2002-09-04 | AP65: 2003-08-22 | AQ65: 2007-08-31 | AR65: 2007-08-22 | AS65: 2008-09-05 | AT65: 2005-09-09 | AU65: 2008-09-02 | AV65: 1978-01-12 | AW65: 1978-10-24 | BP65: 1978 | BQ65: 1982 | BR65: 2004 | BS65: 2006 | BT65: 2006 | BU65: 1900 | BV65: 2009 | BW65: 1900 | BX65: 2011 | BY65: 1979 | BZ65: 1977 | CA65: 1900 | CB65: 2005 | CC65: 2004 | CD65: 1900 | CE65: 1900 | CF65: 1900 | CG65: 1900 | CH65: 2007 | CI65: 1900 | CJ65: 1900 | CK65: 1900 | CL65: 1900 | CM65: 1900 | CN65: 1900 | CO65: 1900 | CP65: 1900 | CQ65: 1900 | CR65: 1900 | CS65: 1978 | CT65: 1978 | CU65: 2000 | CV65: 2002 | CW65: 2003 | CX65: 2007 | CY65: 2007 | CZ65: 2008 | DA65: 2005 | DB65: 2008 | DC65: 1978 | DD65: 1978 | DE65: 1900 | DF65: 1900 | DG65: 1900 | DH65: 1900 | DI65: 1900 | DJ65: 1900 | DK65: 1900 | DL65: 1900 | DM65: 1900 | DN65: 1900 | DO65: 1900 | DP65: 1900 | DQ65: 1900 | DR65: 1900 | DS65: 1900 | DT65: 1900 | DU65: 1900 | DV65: 1900
A66: 1981-09-08 | B66: 1982-06-11 | C66: 2005-08-05 | D66: 2001-06-15 | E66: 2002-06-14 | G66: 2011-06-17 | I66: 2011-06-17 | J66: 1986-08-06 | K66: 1989-12-13 | M66: 2006-10-11 | N66: 2004-09-13 | S66: 2006-09-12 | AE66: Okuyor | AF66: Okuyor | AH66: Okuyor | AI66: Okuyor | AJ66: Boş | AK66: Kullanılabilir | AL66: 1984-09-24 | AM66: 1984-09-13 | AN66: 2004-08-20 | AO66: 2002-09-05 | AP66: 2003-08-22 | AQ66: 2008-09-03 | AR66: 2005-09-05 | AS66: 2008-09-05 | AT66: 2005-09-12 | AU66: 2006-08-25 | AV66: 1977-10-05 | AW66: 1978-10-11 | BP66: 1981 | BQ66: 1982 | BR66: 2005 | BS66: 2001 | BT66: 2002 | BU66: 1900 | BV66: 2011 | BW66: 1900 | BX66: 2011 | BY66: 1986 | BZ66: 1989 | CA66: 1900 | CB66: 2006 | CC66: 2004 | CD66: 1900 | CE66: 1900 | CF66: 1900 | CG66: 1900 | CH66: 2006 | CI66: 1900 | CJ66: 1900 | CK66: 1900 | CL66: 1900 | CM66: 1900 | CN66: 1900 | CO66: 1900 | CP66: 1900 | CQ66: 1900 | CR66: 1900 | CS66: 1984 | CT66: 1984 | CU66: 2004 | CV66: 2002 | CW66: 2003 | CX66: 2008 | CY66: 2005 | CZ66: 2008 | DA66: 2005 | DB66: 2006 | DC66: 1977 | DD66: 1978 | DE66: 1900 | DF66: 1900 | DG66: 1900 | DH66: 1900 | DI66: 1900 | DJ66: 1900 | DK66: 1900 | DL66: 1900 | DM66: 1900 | DN66: 1900 | DO66: 1900 | DP66: 1900 | DQ66: 1900 | DR66: 1900 | DS66: 1900 | DT66: 1900 | DU66: 1900 | DV66: 1900
A67: 1975-07-12 | B67: 1979-05-21 | C67: 2001-09-09 | D67: 2004-09-05 | E67: 2001-09-09 | G67: 2011-06-17 | I67: 2011-06-17 | J67: 1974-09-26 | K67: 1980-10-13 | M67: 2006-09-27 | N67: 2007-09-10 | S67: 2007-06-14 | AE67: Okuyor | AF67: Okuyor | AH67: Okuyor | AI67: Okuyor | AJ67: Boş | AK67: Kullanılabilir | AL67: 1972-10-15 | AM67: 1980-09-30 | AN67: 2000-09-04 | AO67: 1998-08-28 | AP67: 1998-08-27 | AQ67: 2007-09-04 | AR67: 2007-08-22 | AS67: 2009-09-08 | AT67: 2005-09-07 | AU67: 2007-08-20 | AV67: 1977-03-31 | AW67: 1978-10-24 | BP67: =YEAR(A67) -> 1975 | BQ67: =YEAR(B67) -> 1979 | BR67: =YEAR(C67) -> 2001 | BS67: =YEAR(D67) -> 2004 | BT67: 2001 | BU67: =YEAR(F67) -> 1900 | BV67: =YEAR(G67) -> 2011 | BW67: =YEAR(H67) -> 1900 | BX67: =YEAR(I67) -> 2011 | BY67: =YEAR(J67) -> 1974 | BZ67: =YEAR(K67) -> 1980 | CA67: =YEAR(L67) -> 1900 | CB67: =YEAR(M67) -> 2006 | CC67: =YEAR(N67) -> 2007 | CD67: =YEAR(O67) -> 1900 | CE67: =YEAR(P67) -> 1900 | CF67: =YEAR(Q67) -> 1900 | CG67: =YEAR(R67) -> 1900 | CH67: =YEAR(S67) -> 2007 | CI67: =YEAR(T67) -> 1900 | CJ67: =YEAR(U67) -> 1900 | CK67: =YEAR(V67) -> 1900 | CL67: =YEAR(W67) -> 1900 | CM67: =YEAR(X67) -> 1900 | CN67: =YEAR(Y67) -> 1900 | CO67: =YEAR(Z67) -> 1900 | CP67: =YEAR(AA67) -> 1900 | CQ67: =YEAR(AB67) -> 1900 | CR67: =YEAR(AC67) -> 1900 | CS67: =YEAR(AL67) -> 1972 | CT67: =YEAR(AM67) -> 1980 | CU67: =YEAR(AN67) -> 2000 | CV67: =YEAR(AO67) -> 1998 | CW67: =YEAR(AP67) -> 1998 | CX67: =YEAR(AQ67) -> 2007 | CY67: =YEAR(AR67) -> 2007 | CZ67: =YEAR(AS67) -> 2009 | DA67: =YEAR(AT67) -> 2005 | DB67: =YEAR(AU67) -> 2007 | DC67: =YEAR(AV67) -> 1977 | DD67: =YEAR(AW67) -> 1978 | DE67: =YEAR(AX67) -> 1900 | DF67: =YEAR(AY67) -> 1900 | DG67: =YEAR(AZ67) -> 1900 | DH67: =YEAR(BA67) -> 1900 | DI67: =YEAR(BB67) -> 1900 | DJ67: =YEAR(BC67) -> 1900 | DK67: =YEAR(BD67) -> 1900 | DL67: =YEAR(BE67) -> 1900 | DM67: =YEAR(BF67) -> 1900 | DN67: =YEAR(BG67) -> 1900 | DO67: =YEAR(BH67) -> 1900 | DP67: =YEAR(BI67) -> 1900 | DQ67: =YEAR(BJ67) -> 1900 | DR67: =YEAR(BK67) -> 1900 | DS67: =YEAR(BL67) -> 1900 | DT67: =YEAR(BM67) -> 1900 | DU67: =YEAR(BN67) -> 1900 | DV67: =YEAR(BO67) -> 1900
A68: 1979-05-21 | B68: 1982-09-07 | C68: 2004-06-15 | D68: 2003-06-13 | E68: 2002-03-03 | G68: 2011-06-17 | I68: 2011-06-17 | J68: 1977-10-10 | K68: 1984-09-04 | N68: 2005-09-23 | S68: 2006-10-12 | AE68: Okuyor | AF68: Okuyor | AH68: Okuyor | AI68: Okuyor | AJ68: Boş | AK68: Kullanılabilir | AL68: 1975-10-15 | AM68: 1978-10-15 | AN68: 2003-08-21 | AO68: 2004-08-25 | AP68: 2002-09-04 | AQ68: 2007-09-04 | AR68: 2007-08-22 | AS68: 2008-09-06 | AT68: 2005-09-12 | AU68: 2010-09-06 | AV68: 1978-01-12 | AW68: 1975-10-15 | BP68: 1979 | BQ68: 1982 | BR68: 2004 | BS68: 2003 | BT68: 2002 | BU68: 1900 | BV68: 2011 | BW68: 1900 | BX68: 2011 | BY68: 1977 | BZ68: 1984 | CA68: 1900 | CB68: 1900 | CC68: 2005 | CD68: 1900 | CE68: 1900 | CF68: 1900 | CG68: 1900 | CH68: 2006 | CI68: 1900 | CJ68: 1900 | CK68: 1900 | CL68: 1900 | CM68: 1900 | CN68: 1900 | CO68: 1900 | CP68: 1900 | CQ68: 1900 | CR68: 1900 | CS68: 1975 | CT68: 1978 | CU68: 2003 | CV68: 2004 | CW68: 2002 | CX68: 2007 | CY68: 2007 | CZ68: 2008 | DA68: 2005 | DB68: 2010 | DC68: 1978 | DD68: 1975 | DE68: 1900 | DF68: 1900 | DG68: 1900 | DH68: 1900 | DI68: 1900 | DJ68: 1900 | DK68: 1900 | DL68: 1900 | DM68: 1900 | DN68: 1900 | DO68: 1900 | DP68: 1900 | DQ68: 1900 | DR68: 1900 | DS68: 1900 | DT68: 1900 | DU68: 1900 | DV68: 1900
A69: 1982-06-11 | B69: 1988-06-10 | C69: 2005-06-10 | D69: 2003-06-13 | E69: 2007-06-26 | G69: 2011-06-17 | I69: 2011-06-17 | J69: 1979-10-08 | K69: 1981-11-02 | N69: 2004-11-05 | S69: 2008-10-07 | AE69: Okuyor | AF69: Okuyor | AH69: Okuyor | AI69: Okuyor | AJ69: Boş | AK69: Kullanılabilir | AL69: 1978-10-15 | AM69: 1980-10-01 | AN69: 2000-09-04 | AO69: 2001-09-03 | AP69: 2001-09-03 | AQ69: 2007-09-04 | AR69: 2007-08-22 | AS69: 2009-09-09 | AT69: 2006-09-12 | AU69: 2010-09-06 | AV69: 1979-05-25 | AW69: 1978-10-20 | BP69: 1982 | BQ69: 1988 | BR69: 2005 | BS69: 2003 | BT69: 2007 | BU69: 1900 | BV69: 2011 | BW69: 1900 | BX69: 2011 | BY69: 1979 | BZ69: 1981 | CA69: 1900 | CB69: 1900 | CC69: 2004 | CD69: 1900 | CE69: 1900 | CF69: 1900 | CG69: 1900 | CH69: 2008 | CI69: 1900 | CJ69: 1900 | CK69: 1900 | CL69: 1900 | CM69: 1900 | CN69: 1900 | CO69: 1900 | CP69: 1900 | CQ69: 1900 | CR69: 1900 | CS69: 1978 | CT69: 1980 | CU69: 2000 | CV69: 2001 | CW69: 2001 | CX69: 2007 | CY69: 2007 | CZ69: 2009 | DA69: 2006 | DB69: 2010 | DC69: 1979 | DD69: 1978 | DE69: 1900 | DF69: 1900 | DG69: 1900 | DH69: 1900 | DI69: 1900 | DJ69: 1900 | DK69: 1900 | DL69: 1900 | DM69: 1900 | DN69: 1900 | DO69: 1900 | DP69: 1900 | DQ69: 1900 | DR69: 1900 | DS69: 1900 | DT69: 1900 | DU69: 1900 | DV69: 1900
A70: 1988-09-21 | B70: 1991-06-07 | C70: 2000-06-16 | D70: 2002-06-14 | E70: 2007-06-15 | G70: 2011-06-17 | J70: 1976-07-13 | K70: 1988-09-29 | N70: 2006-09-13 | S70: 2008-12-18 | AE70: Okuyor | AF70: Okuyor | AH70: Okuyor | AI70: Okuyor | AJ70: Boş | AK70: Kullanılabilir | AL70: 1972-10-15 | AM70: 1978-10-15 | AN70: 2000-09-04 | AO70: 1998-08-31 | AP70: 2001-09-03 | AQ70: 2008-09-03 | AR70: 2009-09-07 | AS70: 2008-09-08 | AT70: 2005-09-12 | AU70: 2010-09-23 | AV70: 1981-09-22 | AW70: 1980-04-09 | BP70: 1988 | BQ70: 1991 | BR70: 2000 | BS70: 2002 | BT70: 2007 | BU70: 1900 | BV70: 2011 | BW70: 1900 | BX70: 1900 | BY70: 1976 | BZ70: 1988 | CA70: 1900 | CB70: 1900 | CC70: 2006 | CD70: 1900 | CE70: 1900 | CF70: 1900 | CG70: 1900 | CH70: 2008 | CI70: 1900 | CJ70: 1900 | CK70: 1900 | CL70: 1900 | CM70: 1900 | CN70: 1900 | CO70: 1900 | CP70: 1900 | CQ70: 1900 | CR70: 1900 | CS70: 1972 | CT70: 1978 | CU70: 2000 | CV70: 1998 | CW70: 2001 | CX70: 2008 | CY70: 2009 | CZ70: 2008 | DA70: 2005 | DB70: 2010 | DC70: 1981 | DD70: 1980 | DE70: 1900 | DF70: 1900 | DG70: 1900 | DH70: 1900 | DI70: 1900 | DJ70: 1900 | DK70: 1900 | DL70: 1900 | DM70: 1900 | DN70: 1900 | DO70: 1900 | DP70: 1900 | DQ70: 1900 | DR70: 1900 | DS70: 1900 | DT70: 1900 | DU70: 1900 | DV70: 1900
A71: 1991-09-09 | B71: 1979-05-21 | C71: 2000-06-16 | D71: 2005-09-02 | E71: 2001-06-15 | G71: 2011-06-17 | J71: 1975-12-04 | K71: 1985-10-03 | N71: 2006-09-13 | S71: 2008-07-14 | AE71: Okuyor | AF71: Okuyor | AI71: Okuyor | AJ71: Boş | AK71: Kullanılabilir | AL71: 1975-10-15 | AM71: 1987-09-14 | AN71: 2002-08-28 | AO71: 2002-09-05 | AP71: 2004-08-25 | AQ71: 2007-09-05 | AR71: 2008-09-03 | AS71: 2008-09-08 | AT71: 2008-09-03 | AU71: 2007-08-20 | AV71: 1981-11-23 | AW71: 1978-10-20 | BP71: 1991 | BQ71: 1979 | BR71: 2000 | BS71: 2005 | BT71: 2001 | BU71: 1900 | BV71: 2011 | BW71: 1900 | BX71: 1900 | BY71: 1975 | BZ71: 1985 | CA71: 1900 | CB71: 1900 | CC71: 2006 | CD71: 1900 | CE71: 1900 | CF71: 1900 | CG71: 1900 | CH71: 2008 | CI71: 1900 | CJ71: 1900 | CK71: 1900 | CL71: 1900 | CM71: 1900 | CN71: 1900 | CO71: 1900 | CP71: 1900 | CQ71: 1900 | CR71: 1900 | CS71: 1975 | CT71: 1987 | CU71: 2002 | CV71: 2002 | CW71: 2004 | CX71: 2007 | CY71: 2008 | CZ71: 2008 | DA71: 2008 | DB71: 2007 | DC71: 1981 | DD71: 1978 | DE71: 1900 | DF71: 1900 | DG71: 1900 | DH71: 1900 | DI71: 1900 | DJ71: 1900 | DK71: 1900 | DL71: 1900 | DM71: 1900 | DN71: 1900 | DO71: 1900 | DP71: 1900 | DQ71: 1900 | DR71: 1900 | DS71: 1900 | DT71: 1900 | DU71: 1900 | DV71: 1900
A72: 1975-07-12 | B72: 1982-06-11 | C72: 2005-06-10 | D72: 2003-06-13 | E72: 2006-06-19 | G72: 2010-06-18 | J72: 1973-10-20 | K72: 1980-03-25 | S72: 2008-09-05 | AE72: Okuyor | AF72: Okuyor | AI72: Okuyor | AJ72: Boş | AK72: Kullanılabilir | AL72: 1978-10-15 | AM72: 1996-09-04 | AN72: 2003-08-22 | AO72: 2002-09-05 | AP72: 2004-08-26 | AQ72: 2007-09-06 | AR72: 2007-08-23 | AS72: 2009-09-09 | AT72: 2006-09-12 | AU72: 2010-09-06 | AV72: 1977-09-22 | AW72: 1979-10-09 | BP72: 1975 | BQ72: 1982 | BR72: 2005 | BS72: 2003 | BT72: 2006 | BU72: 1900 | BV72: 2010 | BW72: 1900 | BX72: 1900 | BY72: 1973 | BZ72: 1980 | CA72: 1900 | CB72: 1900 | CC72: 1900 | CD72: 1900 | CE72: 1900 | CF72: 1900 | CG72: 1900 | CH72: 2008 | CI72: 1900 | CJ72: 1900 | CK72: 1900 | CL72: 1900 | CM72: 1900 | CN72: 1900 | CO72: 1900 | CP72: 1900 | CQ72: 1900 | CR72: 1900 | CS72: 1978 | CT72: 1996 | CU72: 2003 | CV72: 2002 | CW72: 2004 | CX72: 2007 | CY72: 2007 | CZ72: 2009 | DA72: 2006 | DB72: 2010 | DC72: 1977 | DD72: 1979 | DE72: 1900 | DF72: 1900 | DG72: 1900 | DH72: 1900 | DI72: 1900 | DJ72: 1900 | DK72: 1900 | DL72: 1900 | DM72: 1900 | DN72: 1900 | DO72: 1900 | DP72: 1900 | DQ72: 1900 | DR72: 1900 | DS72: 1900 | DT72: 1900 | DU72: 1900 | DV72: 1900
A73: 1979-05-21 | B73: 1993-06-11 | C73: 2001-06-15 | D73: 2006-06-19 | E73: 2007-06-26 | G73: 2011-06-17 | J73: 1979-09-21 | K73: 1981-09-15 | S73: 2008-10-27 | AE73: Okuyor | AF73: Okuyor | AI73: Okuyor | AJ73: Boş | AK73: Kullanılabilir | AL73: 1972-10-15 | AM73: 1978-10-15 | AN73: 2002-08-29 | AO73: 2003-08-25 | AP73: 2001-09-03 | AQ73: 2007-09-06 | AR73: 2009-09-07 | AS73: 2009-09-09 | AT73: 2007-08-29 | AU73: 2005-09-07 | AV73: 1978-11-27 | AW73: 1978-10-20 | BP73: 1979 | BQ73: 1993 | BR73: 2001 | BS73: 2006 | BT73: 2007 | BU73: 1900 | BV73: 2011 | BW73: 1900 | BX73: 1900 | BY73: 1979 | BZ73: 1981 | CA73: 1900 | CB73: 1900 | CC73: 1900 | CD73: 1900 | CE73: 1900 | CF73: 1900 | CG73: 1900 | CH73: 2008 | CI73: 1900 | CJ73: 1900 | CK73: 1900 | CL73: 1900 | CM73: 1900 | CN73: 1900 | CO73: 1900 | CP73: 1900 | CQ73: 1900 | CR73: 1900 | CS73: 1972 | CT73: 1978 | CU73: 2002 | CV73: 2003 | CW73: 2001 | CX73: 2007 | CY73: 2009 | CZ73: 2009 | DA73: 2007 | DB73: 2005 | DC73: 1978 | DD73: 1978 | DE73: 1900 | DF73: 1900 | DG73: 1900 | DH73: 1900 | DI73: 1900 | DJ73: 1900 | DK73: 1900 | DL73: 1900 | DM73: 1900 | DN73: 1900 | DO73: 1900 | DP73: 1900 | DQ73: 1900 | DR73: 1900 | DS73: 1900 | DT73: 1900 | DU73: 1900 | DV73: 1900
A74: 1975-07-12 | B74: 1981-09-08 | C74: 2004-06-30 | D74: 2006-06-19 | E74: 2006-06-29 | G74: 2010-06-18 | J74: 1979-12-03 | K74: 1980-10-01 | S74: 2006-07-04 | AE74: Okuyor | AF74: Okuyor | AI74: Okuyor | AJ74: Boş | AK74: Kullanılabilir | AL74: 1975-10-15 | AM74: 1984-09-18 | AN74: 2002-08-29 | AO74: 2002-09-05 | AP74: 1999-09-02 | AQ74: 2007-09-07 | AR74: 2009-09-07 | AS74: 2009-09-10 | AT74: 2007-08-31 | AU74: 2010-09-06 | AV74: 1990-09-11 | AW74: 1978-10-18 | BP74: 1975 | BQ74: 1981 | BR74: 2004 | BS74: 2006 | BT74: 2006 | BU74: 1900 | BV74: 2010 | BW74: 1900 | BX74: 1900 | BY74: 1979 | BZ74: 1980 | CA74: 1900 | CB74: 1900 | CC74: 1900 | CD74: 1900 | CE74: 1900 | CF74: 1900 | CG74: 1900 | CH74: 2006 | CI74: 1900 | CJ74: 1900 | CK74: 1900 | CL74: 1900 | CM74: 1900 | CN74: 1900 | CO74: 1900 | CP74: 1900 | CQ74: 1900 | CR74: 1900 | CS74: 1975 | CT74: 1984 | CU74: 2002 | CV74: 2002 | CW74: 1999 | CX74: 2007 | CY74: 2009 | CZ74: 2009 | DA74: 2007 | DB74: 2010 | DC74: 1990 | DD74: 1978 | DE74: 1900 | DF74: 1900 | DG74: 1900 | DH74: 1900 | DI74: 1900 | DJ74: 1900 | DK74: 1900 | DL74: 1900 | DM74: 1900 | DN74: 1900 | DO74: 1900 | DP74: 1900 | DQ74: 1900 | DR74: 1900 | DS74: 1900 | DT74: 1900 | DU74: 1900 | DV74: 1900
A75: 1978-07-07 | B75: 1979-05-21 | C75: 2004-06-15 | D75: 2006-06-19 | E75: 2001-09-09 | G75: 2009-06-30 | J75: 1984-02-20 | K75: 1979-12-03 | S75: 2007-01-05 | AE75: Okuyor | AF75: Okuyor | AI75: Okuyor | AJ75: Boş | AK75: Kullanılabilir | AL75: 1977-09-22 | AM75: 1987-09-18 | AN75: 1998-08-18 | AO75: 2000-09-06 | AP75: 2002-09-05 | AQ75: 2009-09-08 | AR75: 2007-08-24 | AS75: 2009-09-10 | AT75: 2007-08-31 | AU75: 2006-09-12 | AV75: 1977-05-10 | AW75: 1978-10-16 | BP75: 1978 | BQ75: 1979 | BR75: 2004 | BS75: 2006 | BT75: 2001 | BU75: 1900 | BV75: 2009 | BW75: 1900 | BX75: 1900 | BY75: 1984 | BZ75: 1979 | CA75: 1900 | CB75: 1900 | CC75: 1900 | CD75: 1900 | CE75: 1900 | CF75: 1900 | CG75: 1900 | CH75: 2007 | CI75: 1900 | CJ75: 1900 | CK75: 1900 | CL75: 1900 | CM75: 1900 | CN75: 1900 | CO75: 1900 | CP75: 1900 | CQ75: 1900 | CR75: 1900 | CS75: 1977 | CT75: 1987 | CU75: 1998 | CV75: 2000 | CW75: 2002 | CX75: 2009 | CY75: 2007 | CZ75: 2009 | DA75: 2007 | DB75: 2006 | DC75: 1977 | DD75: 1978 | DE75: 1900 | DF75: 1900 | DG75: 1900 | DH75: 1900 | DI75: 1900 | DJ75: 1900 | DK75: 1900 | DL75: 1900 | DM75: 1900 | DN75: 1900 | DO75: 1900 | DP75: 1900 | DQ75: 1900 | DR75: 1900 | DS75: 1900 | DT75: 1900 | DU75: 1900 | DV75: 1900
A76: 1984-06-22 | B76: 1982-06-11 | C76: 2007-06-15 | D76: 2007-06-26 | E76: 2001-09-09 | G76: 2011-06-17 | J76: 1979-11-02 | K76: 1981-02-17 | S76: 2007-01-11 | AE76: Okuyor | AF76: Okuyor | AI76: Okuyor | AJ76: Boş | AK76: Kullanılabilir | AL76: 1980-09-22 | AM76: 1978-10-15 | AN76: 2002-08-29 | AO76: 2002-09-06 | AP76: 1999-09-02 | AQ76: 2009-09-08 | AR76: 2008-09-03 | AS76: 2009-09-10 | AT76: 2008-09-03 | AU76: 2010-09-06 | AV76: 1978-03-27 | AW76: 1975-10-15 | BP76: 1984 | BQ76: 1982 | BR76: 2007 | BS76: 2007 | BT76: 2001 | BU76: 1900 | BV76: 2011 | BW76: 1900 | BX76: 1900 | BY76: 1979 | BZ76: 1981 | CA76: 1900 | CB76: 1900 | CC76: 1900 | CD76: 1900 | CE76: 1900 | CF76: 1900 | CG76: 1900 | CH76: 2007 | CI76: 1900 | CJ76: 1900 | CK76: 1900 | CL76: 1900 | CM76: 1900 | CN76: 1900 | CO76: 1900 | CP76: 1900 | CQ76: 1900 | CR76: 1900 | CS76: 1980 | CT76: 1978 | CU76: 2002 | CV76: 2002 | CW76: 1999 | CX76: 2009 | CY76: 2008 | CZ76: 2009 | DA76: 2008 | DB76: 2010 | DC76: 1978 | DD76: 1975 | DE76: 1900 | DF76: 1900 | DG76: 1900 | DH76: 1900 | DI76: 1900 | DJ76: 1900 | DK76: 1900 | DL76: 1900 | DM76: 1900 | DN76: 1900 | DO76: 1900 | DP76: 1900 | DQ76: 1900 | DR76: 1900 | DS76: 1900 | DT76: 1900 | DU76: 1900 | DV76: 1900
A77: 1978-07-07 | B77: 1990-06-08 | C77: 2001-06-15 | D77: 2002-06-14 | E77: 2006-06-29 | G77: 2011-06-17 | J77: 1986-09-23 | K77: 1988-09-20 | S77: 2008-04-28 | AE77: Okuyor | AF77: Okuyor | AI77: Okuyor | AJ77: Boş | AK77: Kullanılabilir | AL77: 1985-09-24 | AM77: 1980-10-01 | AN77: 2003-08-22 | AO77: 2002-09-06 | AP77: 1998-08-31 | AQ77: 2008-09-05 | AR77: 2006-09-07 | AS77: 2009-09-15 | AT77: 2007-08-31 | AU77: 2010-09-06 | AV77: 1977-05-09 | AW77: 1978-10-12 | BP77: 1978 | BQ77: 1990 | BR77: 2001 | BS77: 2002 | BT77: 2006 | BU77: 1900 | BV77: 2011 | BW77: 1900 | BX77: 1900 | BY77: 1986 | BZ77: 1988 | CA77: 1900 | CB77: 1900 | CC77: 1900 | CD77: 1900 | CE77: 1900 | CF77: 1900 | CG77: 1900 | CH77: 2008 | CI77: 1900 | CJ77: 1900 | CK77: 1900 | CL77: 1900 | CM77: 1900 | CN77: 1900 | CO77: 1900 | CP77: 1900 | CQ77: 1900 | CR77: 1900 | CS77: 1985 | CT77: 1980 | CU77: 2003 | CV77: 2002 | CW77: 1998 | CX77: 2008 | CY77: 2006 | CZ77: 2009 | DA77: 2007 | DB77: 2010 | DC77: 1977 | DD77: 1978 | DE77: 1900 | DF77: 1900 | DG77: 1900 | DH77: 1900 | DI77: 1900 | DJ77: 1900 | DK77: 1900 | DL77: 1900 | DM77: 1900 | DN77: 1900 | DO77: 1900 | DP77: 1900 | DQ77: 1900 | DR77: 1900 | DS77: 1900 | DT77: 1900 | DU77: 1900 | DV77: 1900
A78: 1984-09-14 | B78: 1979-05-21 | C78: 2002-08-29 | D78: 2007-08-28 | E78: 2001-09-09 | G78: 2011-06-17 | J78: 1990-06-19 | K78: 1980-10-23 | S78: 2008-09-05 | AE78: Okuyor | AF78: Okuyor | AI78: Okuyor | AJ78: Boş | AK78: Kullanılabilir | AL78: 1972-10-15 | AM78: 1978-10-15 | AN78: 2001-09-03 | AO78: 2004-08-26 | AP78: 1999-09-02 | AQ78: 2009-09-08 | AR78: 2007-08-24 | AS78: 2009-09-16 | AT78: 2007-08-31 | AU78: 2010-09-07 | AV78: 1978-11-23 | AW78: 1978-10-11 | BP78: 1984 | BQ78: 1979 | BR78: 2002 | BS78: 2007 | BT78: 2001 | BU78: 1900 | BV78: 2011 | BW78: 1900 | BX78: 1900 | BY78: 1990 | BZ78: 1980 | CA78: 1900 | CB78: 1900 | CC78: 1900 | CD78: 1900 | CE78: 1900 | CF78: 1900 | CG78: 1900 | CH78: 2008 | CI78: 1900 | CJ78: 1900 | CK78: 1900 | CL78: 1900 | CM78: 1900 | CN78: 1900 | CO78: 1900 | CP78: 1900 | CQ78: 1900 | CR78: 1900 | CS78: 1972 | CT78: 1978 | CU78: 2001 | CV78: 2004 | CW78: 1999 | CX78: 2009 | CY78: 2007 | CZ78: 2009 | DA78: 2007 | DB78: 2010 | DC78: 1978 | DD78: 1978 | DE78: 1900 | DF78: 1900 | DG78: 1900 | DH78: 1900 | DI78: 1900 | DJ78: 1900 | DK78: 1900 | DL78: 1900 | DM78: 1900 | DN78: 1900 | DO78: 1900 | DP78: 1900 | DQ78: 1900 | DR78: 1900 | DS78: 1900 | DT78: 1900 | DU78: 1900 | DV78: 1900
A79: 1975-07-12 | B79: 1982-06-11 | C79: 2007-06-15 | D79: 2008-02-13 | E79: 2006-06-19 | G79: 2009-06-12 | J79: 1976-01-09 | K79: 1986-09-23 | S79: 2008-11-25 | AE79: Okuyor | AF79: Okuyor | AI79: Okuyor | AJ79: Boş | AK79: Kullanılabilir | AL79: 1975-10-15 | AM79: 1987-09-11 | AN79: 2002-09-02 | AO79: 2004-08-26 | AP79: 1999-09-02 | AQ79: 2008-09-04 | AR79: 2006-09-07 | AS79: 2009-09-24 | AT79: 2008-09-08 | AU79: 2010-09-07 | AV79: 1977-05-13 | AW79: 1978-10-24 | BP79: 1975 | BQ79: 1982 | BR79: 2007 | BS79: 2008 | BT79: 2006 | BU79: 1900 | BV79: 2009 | BW79: 1900 | BX79: 1900 | BY79: 1976 | BZ79: 1986 | CA79: 1900 | CB79: 1900 | CC79: 1900 | CD79: 1900 | CE79: 1900 | CF79: 1900 | CG79: 1900 | CH79: 2008 | CI79: 1900 | CJ79: 1900 | CK79: 1900 | CL79: 1900 | CM79: 1900 | CN79: 1900 | CO79: 1900 | CP79: 1900 | CQ79: 1900 | CR79: 1900 | CS79: 1975 | CT79: 1987 | CU79: 2002 | CV79: 2004 | CW79: 1999 | CX79: 2008 | CY79: 2006 | CZ79: 2009 | DA79: 2008 | DB79: 2010 | DC79: 1977 | DD79: 1978 | DE79: 1900 | DF79: 1900 | DG79: 1900 | DH79: 1900 | DI79: 1900 | DJ79: 1900 | DK79: 1900 | DL79: 1900 | DM79: 1900 | DN79: 1900 | DO79: 1900 | DP79: 1900 | DQ79: 1900 | DR79: 1900 | DS79: 1900 | DT79: 1900 | DU79: 1900 | DV79: 1900
A80: 1979-05-21 | B80: 1989-06-09 | C80: 2006-06-29 | D80: 2001-06-15 | E80: 2006-06-19 | G80: 2009-06-12 | J80: 1981-02-17 | K80: 1979-12-10 | S80: 2009-07-07 | AE80: Okuyor | AF80: Okuyor | AI80: Okuyor | AJ80: Boş | AK80: Kullanılabilir | AL80: 1977-09-22 | AM80: 1980-10-01 | AN80: 1997-09-12 | AO80: 1999-09-02 | AP80: 1999-09-02 | AQ80: 2008-09-08 | AR80: 2008-09-03 | AS80: 2009-09-25 | AT80: 2007-09-04 | AU80: 2010-09-07 | AV80: 1978-11-22 | AW80: 1988-05-25 | BP80: 1979 | BQ80: 1989 | BR80: 2006 | BS80: 2001 | BT80: 2006 | BU80: 1900 | BV80: 2009 | BW80: 1900 | BX80: 1900 | BY80: 1981 | BZ80: 1979 | CA80: 1900 | CB80: 1900 | CC80: 1900 | CD80: 1900 | CE80: 1900 | CF80: 1900 | CG80: 1900 | CH80: 2009 | CI80: 1900 | CJ80: 1900 | CK80: 1900 | CL80: 1900 | CM80: 1900 | CN80: 1900 | CO80: 1900 | CP80: 1900 | CQ80: 1900 | CR80: 1900 | CS80: 1977 | CT80: 1980 | CU80: 1997 | CV80: 1999 | CW80: 1999 | CX80: 2008 | CY80: 2008 | CZ80: 2009 | DA80: 2007 | DB80: 2010 | DC80: 1978 | DD80: 1988 | DE80: 1900 | DF80: 1900 | DG80: 1900 | DH80: 1900 | DI80: 1900 | DJ80: 1900 | DK80: 1900 | DL80: 1900 | DM80: 1900 | DN80: 1900 | DO80: 1900 | DP80: 1900 | DQ80: 1900 | DR80: 1900 | DS80: 1900 | DT80: 1900 | DU80: 1900 | DV80: 1900
A81: 1979-05-21 | B81: 1979-05-21 | C81: 2002-09-16 | D81: 2003-06-13 | E81: 2006-06-19 | G81: 2010-06-18 | J81: 1980-04-18 | K81: 1979-12-10 | S81: 2008-09-05 | AE81: Okuyor | AF81: Okuyor | AI81: Okuyor | AJ81: Boş | AK81: Kullanılabilir | AL81: 1980-09-24 | AM81: 1984-09-18 | AN81: 2001-08-29 | AO81: 2004-08-26 | AP81: 2002-09-06 | AQ81: 2008-09-04 | AR81: 2005-09-05 | AT81: 2007-09-05 | AU81: 2005-09-06 | AV81: 1978-01-30 | AW81: 1989-08-21 | BP81: 1979 | BQ81: 1979 | BR81: 2002 | BS81: 2003 | BT81: 2006 | BU81: 1900 | BV81: 2010 | BW81: 1900 | BX81: 1900 | BY81: 1980 | BZ81: 1979 | CA81: 1900 | CB81: 1900 | CC81: 1900 | CD81: 1900 | CE81: 1900 | CF81: 1900 | CG81: 1900 | CH81: 2008 | CI81: 1900 | CJ81: 1900 | CK81: 1900 | CL81: 1900 | CM81: 1900 | CN81: 1900 | CO81: 1900 | CP81: 1900 | CQ81: 1900 | CR81: 1900 | CS81: 1980 | CT81: 1984 | CU81: 2001 | CV81: 2004 | CW81: 2002 | CX81: 2008 | CY81: 2005 | CZ81: 1900 | DA81: 2007 | DB81: 2005 | DC81: 1978 | DD81: 1989 | DE81: 1900 | DF81: 1900 | DG81: 1900 | DH81: 1900 | DI81: 1900 | DJ81: 1900 | DK81: 1900 | DL81: 1900 | DM81: 1900 | DN81: 1900 | DO81: 1900 | DP81: 1900 | DQ81: 1900 | DR81: 1900 | DS81: 1900 | DT81: 1900 | DU81: 1900 | DV81: 1900
A82: 1975-07-12 | B82: 1991-09-09 | C82: 2006-08-29 | D82: 2002-06-14 | E82: 2006-07-21 | G82: 2009-06-12 | J82: 1980-11-03 | K82: 1979-11-26 | S82: 2006-10-17 | AE82: Okuyor | AF82: Okuyor | AI82: Okuyor | AJ82: Boş | AK82: Kullanılabilir | AL82: 1972-10-15 | AM82: 1978-10-15 | AN82: 2002-09-03 | AO82: 2004-08-26 | AP82: 1999-09-02 | AQ82: 2008-09-04 | AR82: 2007-08-24 | AT82: 2008-09-03 | AU82: 2010-09-07 | AV82: 1977-04-08 | AW82: 1978-10-11 | BP82: 1975 | BQ82: 1991 | BR82: 2006 | BS82: 2002 | BT82: 2006 | BU82: 1900 | BV82: 2009 | BW82: 1900 | BX82: 1900 | BY82: 1980 | BZ82: 1979 | CA82: 1900 | CB82: 1900 | CC82: 1900 | CD82: 1900 | CE82: 1900 | CF82: 1900 | CG82: 1900 | CH82: 2006 | CI82: 1900 | CJ82: 1900 | CK82: 1900 | CL82: 1900 | CM82: 1900 | CN82: 1900 | CO82: 1900 | CP82: 1900 | CQ82: 1900 | CR82: 1900 | CS82: 1972 | CT82: 1978 | CU82: 2002 | CV82: 2004 | CW82: 1999 | CX82: 2008 | CY82: 2007 | CZ82: 1900 | DA82: 2008 | DB82: 2010 | DC82: 1977 | DD82: 1978 | DE82: 1900 | DF82: 1900 | DG82: 1900 | DH82: 1900 | DI82: 1900 | DJ82: 1900 | DK82: 1900 | DL82: 1900 | DM82: 1900 | DN82: 1900 | DO82: 1900 | DP82: 1900 | DQ82: 1900 | DR82: 1900 | DS82: 1900 | DT82: 1900 | DU82: 1900 | DV82: 1900
A83: 1978-07-07 | B83: 1979-05-21 | C83: 2006-06-19 | D83: 2001-06-15 | E83: 2007-08-28 | G83: 2009-06-30 | J83: 1989-05-12 | K83: 1989-09-11 | S83: 2008-02-15 | AF83: Okuyor | AI83: Okuyor | AJ83: Boş | AK83: Kullanılabilir | AL83: 1975-10-15 | AM83: 1980-10-01 | AN83: 1997-09-12 | AO83: 2004-08-26 | AP83: 2002-09-06 | AQ83: 2008-09-04 | AR83: 2007-08-29 | AT83: 2007-09-07 | AU83: 2010-09-07 | AV83: 1977-04-20 | AW83: 1978-10-11 | BP83: 1978 | BQ83: 1979 | BR83: 2006 | BS83: 2001 | BT83: 2007 | BU83: 1900 | BV83: 2009 | BW83: 1900 | BX83: 1900 | BY83: 1989 | BZ83: 1989 | CA83: 1900 | CB83: 1900 | CC83: 1900 | CD83: 1900 | CE83: 1900 | CF83: 1900 | CG83: 1900 | CH83: 2008 | CI83: 1900 | CJ83: 1900 | CK83: 1900 | CL83: 1900 | CM83: 1900 | CN83: 1900 | CO83: 1900 | CP83: 1900 | CQ83: 1900 | CR83: 1900 | CS83: 1975 | CT83: 1980 | CU83: 1997 | CV83: 2004 | CW83: 2002 | CX83: 2008 | CY83: 2007 | CZ83: 1900 | DA83: 2007 | DB83: 2010 | DC83: 1977 | DD83: 1978 | DE83: 1900 | DF83: 1900 | DG83: 1900 | DH83: 1900 | DI83: 1900 | DJ83: 1900 | DK83: 1900 | DL83: 1900 | DM83: 1900 | DN83: 1900 | DO83: 1900 | DP83: 1900 | DQ83: 1900 | DR83: 1900 | DS83: 1900 | DT83: 1900 | DU83: 1900 | DV83: 1900
A84: 1987-09-17 | B84: 1982-09-22 | C84: 2006-06-19 | D84: 2007-02-16 | E84: 2006-06-19 | G84: 2011-06-17 | J84: 1980-11-03 | K84: 1985-09-23 | S84: 2007-02-09 | AF84: Okuyor | AI84: Okuyor | AJ84: Boş | AK84: Kullanılabilir | AL84: 1977-09-22 | AM84: 1987-09-11 | AN84: 2003-08-22 | AO84: 2000-09-07 | AP84: 1998-08-31 | AQ84: 2008-09-04 | AR84: 2007-08-27 | AT84: 2007-09-12 | AU84: 2005-09-12 | AV84: 1974-10-15 | AW84: 1978-10-11 | BP84: 1987 | BQ84: 1982 | BR84: 2006 | BS84: 2007 | BT84: 2006 | BU84: 1900 | BV84: 2011 | BW84: 1900 | BX84: 1900 | BY84: 1980 | BZ84: 1985 | CA84: 1900 | CB84: 1900 | CC84: 1900 | CD84: 1900 | CE84: 1900 | CF84: 1900 | CG84: 1900 | CH84: 2007 | CI84: 1900 | CJ84: 1900 | CK84: 1900 | CL84: 1900 | CM84: 1900 | CN84: 1900 | CO84: 1900 | CP84: 1900 | CQ84: 1900 | CR84: 1900 | CS84: 1977 | CT84: 1987 | CU84: 2003 | CV84: 2000 | CW84: 1998 | CX84: 2008 | CY84: 2007 | CZ84: 1900 | DA84: 2007 | DB84: 2005 | DC84: 1974 | DD84: 1978 | DE84: 1900 | DF84: 1900 | DG84: 1900 | DH84: 1900 | DI84: 1900 | DJ84: 1900 | DK84: 1900 | DL84: 1900 | DM84: 1900 | DN84: 1900 | DO84: 1900 | DP84: 1900 | DQ84: 1900 | DR84: 1900 | DS84: 1900 | DT84: 1900 | DU84: 1900 | DV84: 1900
A85: 1975-07-12 | B85: 1993-06-11 | C85: 2006-06-19 | D85: 2007-08-28 | E85: 2006-06-19 | G85: 2011-06-17 | J85: 1979-10-11 | K85: 1980-09-30 | S85: 2007-11-12 | AF85: Okuyor | AI85: Okuyor | AJ85: Boş | AK85: Kullanılabilir | AL85: 1980-09-24 | AM85: 1976-10-15 | AN85: 1997-09-12 | AO85: 2000-09-07 | AP85: 1998-08-31 | AQ85: 2008-09-04 | AR85: 2007-08-27 | AT85: 2007-09-12 | AU85: 2005-09-09 | AV85: 1978-01-17 | AW85: 1980-04-18 | BP85: 1975 | BQ85: 1993 | BR85: 2006 | BS85: 2007 | BT85: 2006 | BU85: 1900 | BV85: 2011 | BW85: 1900 | BX85: 1900 | BY85: 1979 | BZ85: 1980 | CA85: 1900 | CB85: 1900 | CC85: 1900 | CD85: 1900 | CE85: 1900 | CF85: 1900 | CG85: 1900 | CH85: 2007 | CI85: 1900 | CJ85: 1900 | CK85: 1900 | CL85: 1900 | CM85: 1900 | CN85: 1900 | CO85: 1900 | CP85: 1900 | CQ85: 1900 | CR85: 1900 | CS85: 1980 | CT85: 1976 | CU85: 1997 | CV85: 2000 | CW85: 1998 | CX85: 2008 | CY85: 2007 | CZ85: 1900 | DA85: 2007 | DB85: 2005 | DC85: 1978 | DD85: 1980 | DE85: 1900 | DF85: 1900 | DG85: 1900 | DH85: 1900 | DI85: 1900 | DJ85: 1900 | DK85: 1900 | DL85: 1900 | DM85: 1900 | DN85: 1900 | DO85: 1900 | DP85: 1900 | DQ85: 1900 | DR85: 1900 | DS85: 1900 | DT85: 1900 | DU85: 1900 | DV85: 1900
A86: 1978-07-07 | B86: 1984-09-19 | C86: 2007-08-28 | D86: 2001-09-09 | E86: 2007-06-15 | G86: 2010-06-18 | J86: 1982-04-14 | K86: 1986-09-23 | S86: 2008-05-13 | AF86: Okuyor | AI86: Okuyor | AJ86: Boş | AK86: Kullanılabilir | AL86: 1985-09-29 | AM86: 1980-10-01 | AN86: 2002-09-03 | AO86: 1999-09-02 | AP86: 1998-08-31 | AQ86: 2008-09-04 | AR86: 2008-09-03 | AT86: 2008-09-03 | AU86: 2007-08-23 | AV86: 1979-05-25 | AW86: 1983-09-26 | BP86: 1978 | BQ86: 1984 | BR86: 2007 | BS86: 2001 | BT86: 2007 | BU86: 1900 | BV86: 2010 | BW86: 1900 | BX86: 1900 | BY86: 1982 | BZ86: 1986 | CA86: 1900 | CB86: 1900 | CC86: 1900 | CD86: 1900 | CE86: 1900 | CF86: 1900 | CG86: 1900 | CH86: 2008 | CI86: 1900 | CJ86: 1900 | CK86: 1900 | CL86: 1900 | CM86: 1900 | CN86: 1900 | CO86: 1900 | CP86: 1900 | CQ86: 1900 | CR86: 1900 | CS86: 1985 | CT86: 1980 | CU86: 2002 | CV86: 1999 | CW86: 1998 | CX86: 2008 | CY86: 2008 | CZ86: 1900 | DA86: 2008 | DB86: 2007 | DC86: 1979 | DD86: 1983 | DE86: 1900 | DF86: 1900 | DG86: 1900 | DH86: 1900 | DI86: 1900 | DJ86: 1900 | DK86: 1900 | DL86: 1900 | DM86: 1900 | DN86: 1900 | DO86: 1900 | DP86: 1900 | DQ86: 1900 | DR86: 1900 | DS86: 1900 | DT86: 1900 | DU86: 1900 | DV86: 1900
A87: 1985-09-29 | B87: 1979-05-21 | C87: 2006-09-04 | D87: 2002-06-14 | E87: 2007-06-26 | G87: 2010-06-18 | J87: 1976-09-08 | K87: 1990-09-20 | S87: 2008-07-07 | AF87: Okuyor | AI87: Okuyor | AJ87: Boş | AK87: Kullanılabilir | AL87: 1972-10-15 | AM87: 1984-09-21 | AN87: 2003-08-22 | AO87: 2000-09-09 | AP87: 2002-09-06 | AQ87: 2008-09-04 | AR87: 2009-09-07 | AT87: 2009-09-08 | AU87: 2008-09-12 | AV87: 1978-11-15 | AW87: 1985-08-13 | BP87: 1985 | BQ87: 1979 | BR87: 2006 | BS87: 2002 | BT87: 2007 | BU87: 1900 | BV87: 2010 | BW87: 1900 | BX87: 1900 | BY87: 1976 | BZ87: 1990 | CA87: 1900 | CB87: 1900 | CC87: 1900 | CD87: 1900 | CE87: 1900 | CF87: 1900 | CG87: 1900 | CH87: 2008 | CI87: 1900 | CJ87: 1900 | CK87: 1900 | CL87: 1900 | CM87: 1900 | CN87: 1900 | CO87: 1900 | CP87: 1900 | CQ87: 1900 | CR87: 1900 | CS87: 1972 | CT87: 1984 | CU87: 2003 | CV87: 2000 | CW87: 2002 | CX87: 2008 | CY87: 2009 | CZ87: 1900 | DA87: 2009 | DB87: 2008 | DC87: 1978 | DD87: 1985 | DE87: 1900 | DF87: 1900 | DG87: 1900 | DH87: 1900 | DI87: 1900 | DJ87: 1900 | DK87: 1900 | DL87: 1900 | DM87: 1900 | DN87: 1900 | DO87: 1900 | DP87: 1900 | DQ87: 1900 | DR87: 1900 | DS87: 1900 | DT87: 1900 | DU87: 1900 | DV87: 1900
A88: 1993-06-11 | B88: 1982-09-22 | C88: 2002-06-14 | D88: 2006-06-19 | E88: 2007-06-15 | G88: 2010-06-18 | J88: 1981-09-16 | K88: 1981-09-28 | S88: 2009-07-14 | AF88: Okuyor | AI88: Okuyor | AJ88: Boş | AK88: Kullanılabilir | AL88: 1975-10-15 | AM88: 1987-09-11 | AN88: 1998-08-27 | AO88: 2003-08-26 | AP88: 1999-09-03 | AQ88: 2008-09-04 | AR88: 2005-09-06 | AT88: 2008-09-03 | AU88: 2010-09-07 | AV88: 1974-10-15 | AW88: 1995-09-12 | BP88: 1993 | BQ88: 1982 | BR88: 2002 | BS88: 2006 | BT88: 2007 | BU88: 1900 | BV88: 2010 | BW88: 1900 | BX88: 1900 | BY88: 1981 | BZ88: 1981 | CA88: 1900 | CB88: 1900 | CC88: 1900 | CD88: 1900 | CE88: 1900 | CF88: 1900 | CG88: 1900 | CH88: 2009 | CI88: 1900 | CJ88: 1900 | CK88: 1900 | CL88: 1900 | CM88: 1900 | CN88: 1900 | CO88: 1900 | CP88: 1900 | CQ88: 1900 | CR88: 1900 | CS88: 1975 | CT88: 1987 | CU88: 1998 | CV88: 2003 | CW88: 1999 | CX88: 2008 | CY88: 2005 | CZ88: 1900 | DA88: 2008 | DB88: 2010 | DC88: 1974 | DD88: 1995 | DE88: 1900 | DF88: 1900 | DG88: 1900 | DH88: 1900 | DI88: 1900 | DJ88: 1900 | DK88: 1900 | DL88: 1900 | DM88: 1900 | DN88: 1900 | DO88: 1900 | DP88: 1900 | DQ88: 1900 | DR88: 1900 | DS88: 1900 | DT88: 1900 | DU88: 1900 | DV88: 1900
A89: 1975-07-12 | B89: 1987-09-11 | C89: 2007-02-16 | D89: 2002-09-08 | G89: 2010-06-18 | J89: 1977-07-16 | K89: 1981-02-17 | S89: 2006-09-18 | AF89: Okuyor | AI89: Okuyor | AJ89: Boş | AK89: Kullanılabilir | AL89: 1978-10-15 | AM89: 1980-10-01 | AN89: 2001-09-03 | AO89: 1998-09-02 | AP89: 1999-09-03 | AQ89: 2008-09-04 | AR89: 2009-09-07 | AT89: 2008-09-03 | AU89: 2010-09-07 | AV89: 1974-10-15 | AW89: 1996-12-05 | BP89: 1975 | BQ89: 1987 | BR89: 2007 | BS89: 2002 | BT89: 1900 | BU89: 1900 | BV89: 2010 | BW89: 1900 | BX89: 1900 | BY89: 1977 | BZ89: 1981 | CA89: 1900 | CB89: 1900 | CC89: 1900 | CD89: 1900 | CE89: 1900 | CF89: 1900 | CG89: 1900 | CH89: 2006 | CI89: 1900 | CJ89: 1900 | CK89: 1900 | CL89: 1900 | CM89: 1900 | CN89: 1900 | CO89: 1900 | CP89: 1900 | CQ89: 1900 | CR89: 1900 | CS89: 1978 | CT89: 1980 | CU89: 2001 | CV89: 1998 | CW89: 1999 | CX89: 2008 | CY89: 2009 | CZ89: 1900 | DA89: 2008 | DB89: 2010 | DC89: 1974 | DD89: 1996 | DE89: 1900 | DF89: 1900 | DG89: 1900 | DH89: 1900 | DI89: 1900 | DJ89: 1900 | DK89: 1900 | DL89: 1900 | DM89: 1900 | DN89: 1900 | DO89: 1900 | DP89: 1900 | DQ89: 1900 | DR89: 1900 | DS89: 1900 | DT89: 1900 | DU89: 1900 | DV89: 1900
A90: 1979-05-21 | B90: 1979-05-21 | C90: 2001-09-09 | D90: 2006-06-29 | G90: 2011-06-17 | J90: 1981-09-11 | K90: 1981-09-28 | S90: 2006-11-09 | AF90: Okuyor | AI90: Okuyor | AJ90: Boş | AK90: Kullanılabilir | AL90: 1988-09-13 | AM90: 1976-10-15 | AN90: 2001-08-29 | AO90: 2000-09-09 | AP90: 1998-08-31 | AQ90: 2008-09-04 | AR90: 2005-09-06 | AT90: 2008-09-03 | AU90: 2010-09-07 | AV90: 1982-09-14 | AW90: 2001-08-17 | BP90: 1979 | BQ90: 1979 | BR90: 2001 | BS90: 2006 | BT90: 1900 | BU90: 1900 | BV90: 2011 | BW90: 1900 | BX90: 1900 | BY90: 1981 | BZ90: 1981 | CA90: 1900 | CB90: 1900 | CC90: 1900 | CD90: 1900 | CE90: 1900 | CF90: 1900 | CG90: 1900 | CH90: 2006 | CI90: 1900 | CJ90: 1900 | CK90: 1900 | CL90: 1900 | CM90: 1900 | CN90: 1900 | CO90: 1900 | CP90: 1900 | CQ90: 1900 | CR90: 1900 | CS90: 1988 | CT90: 1976 | CU90: 2001 | CV90: 2000 | CW90: 1998 | CX90: 2008 | CY90: 2005 | CZ90: 1900 | DA90: 2008 | DB90: 2010 | DC90: 1982 | DD90: 2001 | DE90: 1900 | DF90: 1900 | DG90: 1900 | DH90: 1900 | DI90: 1900 | DJ90: 1900 | DK90: 1900 | DL90: 1900 | DM90: 1900 | DN90: 1900 | DO90: 1900 | DP90: 1900 | DQ90: 1900 | DR90: 1900 | DS90: 1900 | DT90: 1900 | DU90: 1900 | DV90: 1900
A91: 1975-07-12 | B91: 1979-05-21 | C91: 2004-07-30 | D91: 2006-08-29 | G91: 2011-06-17 | J91: 1976-10-08 | K91: 1991-08-02 | S91: 2011-04-26 | AF91: Okuyor | AI91: Okuyor | AJ91: Boş | AK91: Kullanılabilir | AL91: 1972-10-15 | AM91: 1980-10-02 | AN91: 2004-08-25 | AO91: 1998-09-02 | AP91: 2000-09-07 | AQ91: 2008-09-04 | AR91: 2009-09-07 | AT91: 2008-09-03 | AU91: 2010-09-07 | AV91: 1982-09-20 | AW91: 1988-09-16 | BP91: 1975 | BQ91: 1979 | BR91: 2004 | BS91: 2006 | BT91: 1900 | BU91: 1900 | BV91: 2011 | BW91: 1900 | BX91: 1900 | BY91: 1976 | BZ91: 1991 | CA91: 1900 | CB91: 1900 | CC91: 1900 | CD91: 1900 | CE91: 1900 | CF91: 1900 | CG91: 1900 | CH91: 2011 | CI91: 1900 | CJ91: 1900 | CK91: 1900 | CL91: 1900 | CM91: 1900 | CN91: 1900 | CO91: 1900 | CP91: 1900 | CQ91: 1900 | CR91: 1900 | CS91: 1972 | CT91: 1980 | CU91: 2004 | CV91: 1998 | CW91: 2000 | CX91: 2008 | CY91: 2009 | CZ91: 1900 | DA91: 2008 | DB91: 2010 | DC91: 1982 | DD91: 1988 | DE91: 1900 | DF91: 1900 | DG91: 1900 | DH91: 1900 | DI91: 1900 | DJ91: 1900 | DK91: 1900 | DL91: 1900 | DM91: 1900 | DN91: 1900 | DO91: 1900 | DP91: 1900 | DQ91: 1900 | DR91: 1900 | DS91: 1900 | DT91: 1900 | DU91: 1900 | DV91: 1900
A92: 1978-07-07 | B92: 1993-06-11 | C92: 2008-02-13 | D92: 2006-07-21 | G92: 2011-06-17 | J92: 1981-02-26 | K92: 1976-11-25 | S92: 2006-09-15 | AF92: Okuyor | AI92: Okuyor | AJ92: Boş | AK92: Kullanılabilir | AL92: 1975-10-15 | AM92: 1976-10-15 | AN92: 1998-08-28 | AO92: 2001-09-05 | AP92: 2000-09-09 | AQ92: 2008-09-04 | AR92: 2006-09-07 | AT92: 2008-09-03 | AU92: 2008-09-05 | AV92: 1978-11-03 | AW92: 2001-08-21 | BP92: 1978 | BQ92: 1993 | BR92: 2008 | BS92: 2006 | BT92: 1900 | BU92: 1900 | BV92: 2011 | BW92: 1900 | BX92: 1900 | BY92: 1981 | BZ92: 1976 | CA92: 1900 | CB92: 1900 | CC92: 1900 | CD92: 1900 | CE92: 1900 | CF92: 1900 | CG92: 1900 | CH92: 2006 | CI92: 1900 | CJ92: 1900 | CK92: 1900 | CL92: 1900 | CM92: 1900 | CN92: 1900 | CO92: 1900 | CP92: 1900 | CQ92: 1900 | CR92: 1900 | CS92: 1975 | CT92: 1976 | CU92: 1998 | CV92: 2001 | CW92: 2000 | CX92: 2008 | CY92: 2006 | CZ92: 1900 | DA92: 2008 | DB92: 2008 | DC92: 1978 | DD92: 2001 | DE92: 1900 | DF92: 1900 | DG92: 1900 | DH92: 1900 | DI92: 1900 | DJ92: 1900 | DK92: 1900 | DL92: 1900 | DM92: 1900 | DN92: 1900 | DO92: 1900 | DP92: 1900 | DQ92: 1900 | DR92: 1900 | DS92: 1900 | DT92: 1900 | DU92: 1900 | DV92: 1900
A93: 1979-05-21 | B93: 1997-06-20 | C93: 2003-07-25 | D93: 2007-06-26 | G93: 2011-06-17 | J93: 1986-09-25 | K93: 1988-08-22 | S93: 2007-10-11 | AF93: Okuyor | AI93: Okuyor | AJ93: Boş | AK93: Kullanılabilir | AL93: 1978-10-15 | AM93: 1980-10-02 | AN93: 2004-08-25 | AO93: 2002-09-18 | AP93: 2001-09-05 | AQ93: 2008-09-04 | AR93: 2005-09-09 | AT93: 2008-09-04 | AU93: 2005-09-08 | AV93: 1982-09-15 | AW93: 1991-09-20 | BP93: 1979 | BQ93: 1997 | BR93: 2003 | BS93: 2007 | BT93: 1900 | BU93: 1900 | BV93: 2011 | BW93: 1900 | BX93: 1900 | BY93: 1986 | BZ93: 1988 | CA93: 1900 | CB93: 1900 | CC93: 1900 | CD93: 1900 | CE93: 1900 | CF93: 1900 | CG93: 1900 | CH93: 2007 | CI93: 1900 | CJ93: 1900 | CK93: 1900 | CL93: 1900 | CM93: 1900 | CN93: 1900 | CO93: 1900 | CP93: 1900 | CQ93: 1900 | CR93: 1900 | CS93: 1978 | CT93: 1980 | CU93: 2004 | CV93: 2002 | CW93: 2001 | CX93: 2008 | CY93: 2005 | CZ93: 1900 | DA93: 2008 | DB93: 2005 | DC93: 1982 | DD93: 1991 | DE93: 1900 | DF93: 1900 | DG93: 1900 | DH93: 1900 | DI93: 1900 | DJ93: 1900 | DK93: 1900 | DL93: 1900 | DM93: 1900 | DN93: 1900 | DO93: 1900 | DP93: 1900 | DQ93: 1900 | DR93: 1900 | DS93: 1900 | DT93: 1900 | DU93: 1900 | DV93: 1900
A94: 1975-07-12 | B94: 1979-05-21 | C94: 2000-06-16 | D94: 2006-06-19 | G94: 2011-06-17 | J94: 1980-03-31 | K94: 1991-09-12 | S94: 2008-11-03 | AF94: Okuyor | AI94: Okuyor | AJ94: Boş | AK94: Kullanılabilir | AL94: 1984-09-04 | AM94: 1976-10-15 | AN94: 1997-09-12 | AO94: 2000-09-11 | AP94: 2004-08-27 | AQ94: 2008-09-04 | AR94: 2005-09-06 | AT94: 2008-09-04 | AU94: 2010-09-07 | AV94: 1978-11-03 | AW94: 1999-10-01 | BP94: 1975 | BQ94: 1979 | BR94: 2000 | BS94: 2006 | BT94: 1900 | BU94: 1900 | BV94: 2011 | BW94: 1900 | BX94: 1900 | BY94: 1980 | BZ94: 1991 | CA94: 1900 | CB94: 1900 | CC94: 1900 | CD94: 1900 | CE94: 1900 | CF94: 1900 | CG94: 1900 | CH94: 2008 | CI94: 1900 | CJ94: 1900 | CK94: 1900 | CL94: 1900 | CM94: 1900 | CN94: 1900 | CO94: 1900 | CP94: 1900 | CQ94: 1900 | CR94: 1900 | CS94: 1984 | CT94: 1976 | CU94: 1997 | CV94: 2000 | CW94: 2004 | CX94: 2008 | CY94: 2005 | CZ94: 1900 | DA94: 2008 | DB94: 2010 | DC94: 1978 | DD94: 1999 | DE94: 1900 | DF94: 1900 | DG94: 1900 | DH94: 1900 | DI94: 1900 | DJ94: 1900 | DK94: 1900 | DL94: 1900 | DM94: 1900 | DN94: 1900 | DO94: 1900 | DP94: 1900 | DQ94: 1900 | DR94: 1900 | DS94: 1900 | DT94: 1900 | DU94: 1900 | DV94: 1900
A95: 1987-05-27 | B95: 1983-07-01 | C95: 2004-06-30 | D95: 2006-06-29 | G95: 2011-06-17 | J95: 1980-11-03 | K95: 1981-09-28 | S95: 2009-09-10 | AF95: Okuyor | AI95: Okuyor | AJ95: Boş | AK95: Kullanılabilir | AL95: 1987-08-27 | AM95: 1980-10-02 | AN95: 2004-08-25 | AO95: 2000-09-11 | AP95: 2004-08-27 | AQ95: 2008-09-04 | AR95: 2009-09-08 | AT95: 2008-09-04 | AU95: 2006-09-05 | AV95: 1985-11-21 | AW95: 1990-09-14 | BP95: 1987 | BQ95: 1983 | BR95: 2004 | BS95: 2006 | BT95: 1900 | BU95: 1900 | BV95: 2011 | BW95: 1900 | BX95: 1900 | BY95: 1980 | BZ95: 1981 | CA95: 1900 | CB95: 1900 | CC95: 1900 | CD95: 1900 | CE95: 1900 | CF95: 1900 | CG95: 1900 | CH95: 2009 | CI95: 1900 | CJ95: 1900 | CK95: 1900 | CL95: 1900 | CM95: 1900 | CN95: 1900 | CO95: 1900 | CP95: 1900 | CQ95: 1900 | CR95: 1900 | CS95: 1987 | CT95: 1980 | CU95: 2004 | CV95: 2000 | CW95: 2004 | CX95: 2008 | CY95: 2009 | CZ95: 1900 | DA95: 2008 | DB95: 2006 | DC95: 1985 | DD95: 1990 | DE95: 1900 | DF95: 1900 | DG95: 1900 | DH95: 1900 | DI95: 1900 | DJ95: 1900 | DK95: 1900 | DL95: 1900 | DM95: 1900 | DN95: 1900 | DO95: 1900 | DP95: 1900 | DQ95: 1900 | DR95: 1900 | DS95: 1900 | DT95: 1900 | DU95: 1900 | DV95: 1900
A96: 1976-05-24 | B96: 1993-06-11 | C96: 2005-06-10 | D96: 2007-06-26 | G96: 2011-06-17 | J96: 1974-10-16 | K96: 1981-09-30 | S96: 2008-07-30 | AF96: Okuyor | AI96: Okuyor | AJ96: Boş | AK96: Kullanılabilir | AL96: 1972-10-15 | AM96: 1976-10-15 | AN96: 1998-08-28 | AO96: 1999-09-03 | AP96: 2001-09-04 | AQ96: 2008-09-04 | AR96: 2007-08-27 | AT96: 2008-09-11 | AU96: 2010-09-07 | AV96: 1978-10-26 | AW96: 1990-09-14 | BP96: 1976 | BQ96: 1993 | BR96: 2005 | BS96: 2007 | BT96: 1900 | BU96: 1900 | BV96: 2011 | BW96: 1900 | BX96: 1900 | BY96: 1974 | BZ96: 1981 | CA96: 1900 | CB96: 1900 | CC96: 1900 | CD96: 1900 | CE96: 1900 | CF96: 1900 | CG96: 1900 | CH96: 2008 | CI96: 1900 | CJ96: 1900 | CK96: 1900 | CL96: 1900 | CM96: 1900 | CN96: 1900 | CO96: 1900 | CP96: 1900 | CQ96: 1900 | CR96: 1900 | CS96: 1972 | CT96: 1976 | CU96: 1998 | CV96: 1999 | CW96: 2001 | CX96: 2008 | CY96: 2007 | CZ96: 1900 | DA96: 2008 | DB96: 2010 | DC96: 1978 | DD96: 1990 | DE96: 1900 | DF96: 1900 | DG96: 1900 | DH96: 1900 | DI96: 1900 | DJ96: 1900 | DK96: 1900 | DL96: 1900 | DM96: 1900 | DN96: 1900 | DO96: 1900 | DP96: 1900 | DQ96: 1900 | DR96: 1900 | DS96: 1900 | DT96: 1900 | DU96: 1900 | DV96: 1900
A97: 1980-06-23 | B97: 1982-06-11 | C97: 2000-09-08 | D97: 2007-06-15 | G97: 2011-06-17 | J97: 1981-09-23 | K97: 1985-10-01 | S97: 2007-09-10 | AF97: Okuyor | AI97: Okuyor | AJ97: Boş | AK97: Kullanılabilir | AL97: 1975-10-15 | AM97: 1980-10-07 | AN97: 2004-08-25 | AO97: 2000-09-19 | AP97: 2002-09-20 | AQ97: 2008-09-05 | AR97: 2007-08-27 | AT97: 2009-09-24 | AU97: 2010-09-07 | AV97: 1978-10-26 | AW97: 1998-09-14 | BP97: 1980 | BQ97: 1982 | BR97: 2000 | BS97: 2007 | BT97: 1900 | BU97: 1900 | BV97: 2011 | BW97: 1900 | BX97: 1900 | BY97: 1981 | BZ97: 1985 | CA97: 1900 | CB97: 1900 | CC97: 1900 | CD97: 1900 | CE97: 1900 | CF97: 1900 | CG97: 1900 | CH97: 2007 | CI97: 1900 | CJ97: 1900 | CK97: 1900 | CL97: 1900 | CM97: 1900 | CN97: 1900 | CO97: 1900 | CP97: 1900 | CQ97: 1900 | CR97: 1900 | CS97: 1975 | CT97: 1980 | CU97: 2004 | CV97: 2000 | CW97: 2002 | CX97: 2008 | CY97: 2007 | CZ97: 1900 | DA97: 2009 | DB97: 2010 | DC97: 1978 | DD97: 1998 | DE97: 1900 | DF97: 1900 | DG97: 1900 | DH97: 1900 | DI97: 1900 | DJ97: 1900 | DK97: 1900 | DL97: 1900 | DM97: 1900 | DN97: 1900 | DO97: 1900 | DP97: 1900 | DQ97: 1900 | DR97: 1900 | DS97: 1900 | DT97: 1900 | DU97: 1900 | DV97: 1900
A98: 1983-11-04 | B98: 1987-09-11 | C98: 2006-06-19 | D98: 2007-06-15 | G98: 2011-06-17 | J98: 1977-11-09 | K98: 1980-05-21 | S98: 2007-10-10 | AF98: Okuyor | AI98: Okuyor | AJ98: Boş | AK98: Kullanılabilir | AL98: 1979-10-16 | AM98: 1980-10-07 | AN98: 2003-08-25 | AO98: 2003-08-26 | AP98: 1998-09-01 | AQ98: 2008-09-05 | AR98: 2009-09-08 | AT98: 2008-09-04 | AU98: 2006-08-29 | AV98: 1984-09-24 | AW98: 1995-09-08 | BP98: 1983 | BQ98: 1987 | BR98: 2006 | BS98: 2007 | BT98: 1900 | BU98: 1900 | BV98: 2011 | BW98: 1900 | BX98: 1900 | BY98: 1977 | BZ98: 1980 | CA98: 1900 | CB98: 1900 | CC98: 1900 | CD98: 1900 | CE98: 1900 | CF98: 1900 | CG98: 1900 | CH98: 2007 | CI98: 1900 | CJ98: 1900 | CK98: 1900 | CL98: 1900 | CM98: 1900 | CN98: 1900 | CO98: 1900 | CP98: 1900 | CQ98: 1900 | CR98: 1900 | CS98: 1979 | CT98: 1980 | CU98: 2003 | CV98: 2003 | CW98: 1998 | CX98: 2008 | CY98: 2009 | CZ98: 1900 | DA98: 2008 | DB98: 2006 | DC98: 1984 | DD98: 1995 | DE98: 1900 | DF98: 1900 | DG98: 1900 | DH98: 1900 | DI98: 1900 | DJ98: 1900 | DK98: 1900 | DL98: 1900 | DM98: 1900 | DN98: 1900 | DO98: 1900 | DP98: 1900 | DQ98: 1900 | DR98: 1900 | DS98: 1900 | DT98: 1900 | DU98: 1900 | DV98: 1900
A99: 1990-09-11 | B99: 1979-05-21 | C99: 2000-06-16 | D99: 2007-06-15 | G99: 2011-06-17 | J99: 1981-09-14 | K99: 1986-05-30 | S99: 2008-11-19 | AF99: Okuyor | AI99: Okuyor | AJ99: Boş | AK99: Kullanılabilir | AL99: 1984-09-16 | AM99: 1984-09-21 | AN99: 1998-08-31 | AO99: 2001-09-06 | AP99: 1999-09-03 | AQ99: 2008-09-05 | AR99: 2007-08-29 | AT99: 2008-09-04 | AU99: 2010-09-07 | AV99: 1976-10-14 | AW99: 1996-09-27 | BP99: 1990 | BQ99: 1979 | BR99: 2000 | BS99: 2007 | BT99: 1900 | BU99: 1900 | BV99: 2011 | BW99: 1900 | BX99: 1900 | BY99: 1981 | BZ99: 1986 | CA99: 1900 | CB99: 1900 | CC99: 1900 | CD99: 1900 | CE99: 1900 | CF99: 1900 | CG99: 1900 | CH99: 2008 | CI99: 1900 | CJ99: 1900 | CK99: 1900 | CL99: 1900 | CM99: 1900 | CN99: 1900 | CO99: 1900 | CP99: 1900 | CQ99: 1900 | CR99: 1900 | CS99: 1984 | CT99: 1984 | CU99: 1998 | CV99: 2001 | CW99: 1999 | CX99: 2008 | CY99: 2007 | CZ99: 1900 | DA99: 2008 | DB99: 2010 | DC99: 1976 | DD99: 1996 | DE99: 1900 | DF99: 1900 | DG99: 1900 | DH99: 1900 | DI99: 1900 | DJ99: 1900 | DK99: 1900 | DL99: 1900 | DM99: 1900 | DN99: 1900 | DO99: 1900 | DP99: 1900 | DQ99: 1900 | DR99: 1900 | DS99: 1900 | DT99: 1900 | DU99: 1900 | DV99: 1900
A100: 1975-07-12 | B100: 1982-06-11 | C100: 2007-06-15 | D100: 2007-06-15 | G100: 2011-06-17 | J100: 1990-07-12 | K100: 1990-09-14 | S100: 2008-10-10 | AF100: Okuyor | AI100: Okuyor | AJ100: Boş | AK100: Kullanılabilir | AL100: 1988-09-22 | AM100: 1976-10-15 | AN100: 2003-08-25 | AO100: 2003-08-26 | AP100: 1999-09-03 | AQ100: 2008-09-05 | AR100: 2009-09-08 | AT100: 2008-09-04 | AU100: 2007-08-20 | AV100: 1976-11-17 | AW100: 1998-08-28 | BP100: 1975 | BQ100: 1982 | BR100: 2007 | BS100: 2007 | BT100: 1900 | BU100: 1900 | BV100: 2011 | BW100: 1900 | BX100: 1900 | BY100: 1990 | BZ100: 1990 | CA100: 1900 | CB100: 1900 | CC100: 1900 | CD100: 1900 | CE100: 1900 | CF100: 1900 | CG100: 1900 | CH100: 2008 | CI100: 1900 | CJ100: 1900 | CK100: 1900 | CL100: 1900 | CM100: 1900 | CN100: 1900 | CO100: 1900 | CP100: 1900 | CQ100: 1900 | CR100: 1900 | CS100: 1988 | CT100: 1976 | CU100: 2003 | CV100: 2003 | CW100: 1999 | CX100: 2008 | CY100: 2009 | CZ100: 1900 | DA100: 2008 | DB100: 2007 | DC100: 1976 | DD100: 1998 | DE100: 1900 | DF100: 1900 | DG100: 1900 | DH100: 1900 | DI100: 1900 | DJ100: 1900 | DK100: 1900 | DL100: 1900 | DM100: 1900 | DN100: 1900 | DO100: 1900 | DP100: 1900 | DQ100: 1900 | DR100: 1900 | DS100: 1900 | DT100: 1900 | DU100: 1900 | DV100: 1900
A101: 1979-05-21 | B101: 1987-05-27 | C101: 2005-06-10 | D101: 2007-06-15 | G101: 2011-06-17 | J101: 1974-09-13 | K101: 1981-09-22 | S101: 2008-08-11 | AI101: Okuyor | AJ101: Boş | AK101: Kullanılabilir | AL101: 1972-10-15 | AM101: 1980-10-09 | AN101: 2003-08-25 | AO101: 1998-09-01 | AP101: 2003-08-26 | AQ101: 2008-09-05 | AR101: 2006-09-12 | AT101: 2008-09-04 | AU101: 2006-09-06 | AV101: 1976-10-15 | AW101: 2002-08-29 | BP101: 1979 | BQ101: 1987 | BR101: 2005 | BS101: 2007 | BT101: 1900 | BU101: 1900 | BV101: 2011 | BW101: 1900 | BX101: 1900 | BY101: 1974 | BZ101: 1981 | CA101: 1900 | CB101: 1900 | CC101: 1900 | CD101: 1900 | CE101: 1900 | CF101: 1900 | CG101: 1900 | CH101: 2008 | CI101: 1900 | CJ101: 1900 | CK101: 1900 | CL101: 1900 | CM101: 1900 | CN101: 1900 | CO101: 1900 | CP101: 1900 | CQ101: 1900 | CR101: 1900 | CS101: 1972 | CT101: 1980 | CU101: 2003 | CV101: 1998 | CW101: 2003 | CX101: 2008 | CY101: 2006 | CZ101: 1900 | DA101: 2008 | DB101: 2006 | DC101: 1976 | DD101: 2002 | DE101: 1900 | DF101: 1900 | DG101: 1900 | DH101: 1900 | DI101: 1900 | DJ101: 1900 | DK101: 1900 | DL101: 1900 | DM101: 1900 | DN101: 1900 | DO101: 1900 | DP101: 1900 | DQ101: 1900 | DR101: 1900 | DS101: 1900 | DT101: 1900 | DU101: 1900 | DV101: 1900
A102: 1989-06-09 | B102: 1988-09-12 | C102: 2002-09-16 | D102: 2007-08-28 | G102: 2011-06-17 | J102: 1991-08-23 | K102: 1986-09-16 | S102: 2007-10-09 | AI102: Okuyor | AJ102: Boş | AK102: Kullanılabilir | AL102: 1975-10-15 | AM102: 1976-10-15 | AN102: 2003-08-25 | AO102: 2004-08-27 | AP102: 2004-08-27 | AQ102: 2008-09-05 | AR102: 2008-09-09 | AT102: 2009-09-08 | AU102: 2007-08-20 | AV102: 1977-12-27 | AW102: 2004-08-23 | BP102: 1989 | BQ102: 1988 | BR102: 2002 | BS102: 2007 | BT102: 1900 | BU102: 1900 | BV102: 2011 | BW102: 1900 | BX102: 1900 | BY102: 1991 | BZ102: 1986 | CA102: 1900 | CB102: 1900 | CC102: 1900 | CD102: 1900 | CE102: 1900 | CF102: 1900 | CG102: 1900 | CH102: 2007 | CI102: 1900 | CJ102: 1900 | CK102: 1900 | CL102: 1900 | CM102: 1900 | CN102: 1900 | CO102: 1900 | CP102: 1900 | CQ102: 1900 | CR102: 1900 | CS102: 1975 | CT102: 1976 | CU102: 2003 | CV102: 2004 | CW102: 2004 | CX102: 2008 | CY102: 2008 | CZ102: 1900 | DA102: 2009 | DB102: 2007 | DC102: 1977 | DD102: 2004 | DE102: 1900 | DF102: 1900 | DG102: 1900 | DH102: 1900 | DI102: 1900 | DJ102: 1900 | DK102: 1900 | DL102: 1900 | DM102: 1900 | DN102: 1900 | DO102: 1900 | DP102: 1900 | DQ102: 1900 | DR102: 1900 | DS102: 1900 | DT102: 1900 | DU102: 1900 | DV102: 1900
A103: 1975-07-12 | B103: 1987-05-27 | C103: 2006-06-29 | D103: 2007-06-15 | G103: 2011-06-17 | J103: 1990-12-20 | K103: 1977-10-04 | S103: 2009-08-05 | AI103: Okuyor | AJ103: Boş | AK103: Kullanılabilir | AL103: 1976-10-15 | AM103: 1980-10-09 | AN103: 2000-08-06 | AO103: 2003-08-27 | AP103: 2001-09-07 | AQ103: 2008-09-05 | AR103: 2006-09-12 | AT103: 2008-09-04 | AU103: 2010-09-04 | AV103: 1978-03-28 | AW103: 2007-03-07 | BP103: 1975 | BQ103: 1987 | BR103: 2006 | BS103: 2007 | BT103: 1900 | BU103: 1900 | BV103: 2011 | BW103: 1900 | BX103: 1900 | BY103: 1990 | BZ103: 1977 | CA103: 1900 | CB103: 1900 | CC103: 1900 | CD103: 1900 | CE103: 1900 | CF103: 1900 | CG103: 1900 | CH103: 2009 | CI103: 1900 | CJ103: 1900 | CK103: 1900 | CL103: 1900 | CM103: 1900 | CN103: 1900 | CO103: 1900 | CP103: 1900 | CQ103: 1900 | CR103: 1900 | CS103: 1976 | CT103: 1980 | CU103: 2000 | CV103: 2003 | CW103: 2001 | CX103: 2008 | CY103: 2006 | CZ103: 1900 | DA103: 2008 | DB103: 2010 | DC103: 1978 | DD103: 2007 | DE103: 1900 | DF103: 1900 | DG103: 1900 | DH103: 1900 | DI103: 1900 | DJ103: 1900 | DK103: 1900 | DL103: 1900 | DM103: 1900 | DN103: 1900 | DO103: 1900 | DP103: 1900 | DQ103: 1900 | DR103: 1900 | DS103: 1900 | DT103: 1900 | DU103: 1900 | DV103: 1900
A104: 1978-09-29 | B104: 1979-05-21 | C104: 2004-06-15 | D104: 2007-08-28 | G104: 2010-06-18 | J104: 1976-01-05 | K104: 1977-12-22 | S104: 2010-09-17 | AI104: Okuyor | AJ104: Boş | AK104: Kullanılabilir | AL104: 1979-10-10 | AM104: 1979-10-05 | AN104: 2003-08-25 | AO104: 2001-09-10 | AP104: 1998-09-01 | AQ104: 2008-09-08 | AR104: 2007-08-29 | AT104: 2008-09-05 | AU104: 2006-08-21 | AV104: 1978-10-19 | AW104: 1993-07-15 | BP104: 1978 | BQ104: 1979 | BR104: 2004 | BS104: 2007 | BT104: 1900 | BU104: 1900 | BV104: 2010 | BW104: 1900 | BX104: 1900 | BY104: 1976 | BZ104: 1977 | CA104: 1900 | CB104: 1900 | CC104: 1900 | CD104: 1900 | CE104: 1900 | CF104: 1900 | CG104: 1900 | CH104: 2010 | CI104: 1900 | CJ104: 1900 | CK104: 1900 | CL104: 1900 | CM104: 1900 | CN104: 1900 | CO104: 1900 | CP104: 1900 | CQ104: 1900 | CR104: 1900 | CS104: 1979 | CT104: 1979 | CU104: 2003 | CV104: 2001 | CW104: 1998 | CX104: 2008 | CY104: 2007 | CZ104: 1900 | DA104: 2008 | DB104: 2006 | DC104: 1978 | DD104: 1993 | DE104: 1900 | DF104: 1900 | DG104: 1900 | DH104: 1900 | DI104: 1900 | DJ104: 1900 | DK104: 1900 | DL104: 1900 | DM104: 1900 | DN104: 1900 | DO104: 1900 | DP104: 1900 | DQ104: 1900 | DR104: 1900 | DS104: 1900 | DT104: 1900 | DU104: 1900 | DV104: 1900
A105: 1982-09-22 | B105: 1988-10-06 | C105: 2005-06-10 | D105: 2007-06-15 | G105: 2011-06-17 | J105: 1973-09-25 | K105: 1977-11-03 | S105: 2008-08-27 | AI105: Okuyor | AJ105: Boş | AK105: Kullanılabilir | AL105: 1984-09-14 | AM105: 1979-10-05 | AN105: 2004-08-26 | AO105: 2003-08-28 | AP105: 2004-08-31 | AQ105: 2008-09-08 | AR105: 2007-08-31 | AT105: 2008-09-05 | AU105: 2005-09-12 | AV105: 1978-10-23 | AW105: 1992-09-09 | BP105: 1982 | BQ105: 1988 | BR105: 2005 | BS105: 2007 | BT105: 1900 | BU105: 1900 | BV105: 2011 | BW105: 1900 | BX105: 1900 | BY105: 1973 | BZ105: 1977 | CA105: 1900 | CB105: 1900 | CC105: 1900 | CD105: 1900 | CE105: 1900 | CF105: 1900 | CG105: 1900 | CH105: 2008 | CI105: 1900 | CJ105: 1900 | CK105: 1900 | CL105: 1900 | CM105: 1900 | CN105: 1900 | CO105: 1900 | CP105: 1900 | CQ105: 1900 | CR105: 1900 | CS105: 1984 | CT105: 1979 | CU105: 2004 | CV105: 2003 | CW105: 2004 | CX105: 2008 | CY105: 2007 | CZ105: 1900 | DA105: 2008 | DB105: 2005 | DC105: 1978 | DD105: 1992 | DE105: 1900 | DF105: 1900 | DG105: 1900 | DH105: 1900 | DI105: 1900 | DJ105: 1900 | DK105: 1900 | DL105: 1900 | DM105: 1900 | DN105: 1900 | DO105: 1900 | DP105: 1900 | DQ105: 1900 | DR105: 1900 | DS105: 1900 | DT105: 1900 | DU105: 1900 | DV105: 1900
A106: 1987-05-27 | B106: 1979-05-21 | C106: 2005-07-08 | D106: 2008-02-13 | G106: 2011-06-17 | J106: 1986-08-13 | K106: 1986-11-05 | S106: 2006-09-15 | AI106: Okuyor | AJ106: Boş | AK106: Kullanılabilir | AL106: 1972-10-15 | AM106: 1984-09-14 | AN106: 2003-08-26 | AO106: 2004-08-31 | AP106: 1999-09-06 | AQ106: 2009-09-15 | AR106: 2007-08-31 | AT106: 2008-09-05 | AU106: 2010-09-07 | AV106: 1976-10-15 | AW106: 2002-09-03 | BP106: 1987 | BQ106: 1979 | BR106: 2005 | BS106: 2008 | BT106: 1900 | BU106: 1900 | BV106: 2011 | BW106: 1900 | BX106: 1900 | BY106: 1986 | BZ106: 1986 | CA106: 1900 | CB106: 1900 | CC106: 1900 | CD106: 1900 | CE106: 1900 | CF106: 1900 | CG106: 1900 | CH106: 2006 | CI106: 1900 | CJ106: 1900 | CK106: 1900 | CL106: 1900 | CM106: 1900 | CN106: 1900 | CO106: 1900 | CP106: 1900 | CQ106: 1900 | CR106: 1900 | CS106: 1972 | CT106: 1984 | CU106: 2003 | CV106: 2004 | CW106: 1999 | CX106: 2009 | CY106: 2007 | CZ106: 1900 | DA106: 2008 | DB106: 2010 | DC106: 1976 | DD106: 2002 | DE106: 1900 | DF106: 1900 | DG106: 1900 | DH106: 1900 | DI106: 1900 | DJ106: 1900 | DK106: 1900 | DL106: 1900 | DM106: 1900 | DN106: 1900 | DO106: 1900 | DP106: 1900 | DQ106: 1900 | DR106: 1900 | DS106: 1900 | DT106: 1900 | DU106: 1900 | DV106: 1900
A107: 1991-06-07 | B107: 1979-05-21 | C107: 2003-07-25 | G107: 2011-06-17 | J107: 1987-06-30 | K107: 1978-11-16 | S107: 2008-12-18 | AI107: Okuyor | AJ107: Boş | AK107: Kullanılabilir | AL107: 1975-10-15 | AM107: 1979-10-05 | AN107: 1999-09-02 | AO107: 2004-08-31 | AP107: 2004-08-31 | AQ107: 2008-09-09 | AR107: 2007-08-31 | AT107: 2008-09-05 | AU107: 2007-08-21 | AV107: 1978-10-16 | AW107: 1999-09-02 | BP107: 1991 | BQ107: 1979 | BR107: 2003 | BS107: 1900 | BT107: 1900 | BU107: 1900 | BV107: 2011 | BW107: 1900 | BX107: 1900 | BY107: 1987 | BZ107: 1978 | CA107: 1900 | CB107: 1900 | CC107: 1900 | CD107: 1900 | CE107: 1900 | CF107: 1900 | CG107: 1900 | CH107: 2008 | CI107: 1900 | CJ107: 1900 | CK107: 1900 | CL107: 1900 | CM107: 1900 | CN107: 1900 | CO107: 1900 | CP107: 1900 | CQ107: 1900 | CR107: 1900 | CS107: 1975 | CT107: 1979 | CU107: 1999 | CV107: 2004 | CW107: 2004 | CX107: 2008 | CY107: 2007 | CZ107: 1900 | DA107: 2008 | DB107: 2007 | DC107: 1978 | DD107: 1999 | DE107: 1900 | DF107: 1900 | DG107: 1900 | DH107: 1900 | DI107: 1900 | DJ107: 1900 | DK107: 1900 | DL107: 1900 | DM107: 1900 | DN107: 1900 | DO107: 1900 | DP107: 1900 | DQ107: 1900 | DR107: 1900 | DS107: 1900 | DT107: 1900 | DU107: 1900 | DV107: 1900
A108: 1975-07-12 | B108: 1979-07-06 | C108: 2007-08-28 | G108: 2011-06-17 | J108: 1979-07-30 | K108: 1977-10-11 | S108: 2009-09-28 | AI108: Okuyor | AJ108: Boş | AK108: Kullanılabilir | AL108: 1978-10-15 | AM108: 1979-10-08 | AN108: 2002-09-06 | AO108: 1998-09-06 | AP108: 1998-09-02 | AQ108: 2009-09-09 | AR108: 2009-09-08 | AT108: 2008-09-05 | AU108: 2006-08-31 | AV108: 1986-09-25 | AW108: 2007-03-07 | BP108: 1975 | BQ108: 1979 | BR108: 2007 | BS108: 1900 | BT108: 1900 | BU108: 1900 | BV108: 2011 | BW108: 1900 | BX108: 1900 | BY108: 1979 | BZ108: 1977 | CA108: 1900 | CB108: 1900 | CC108: 1900 | CD108: 1900 | CE108: 1900 | CF108: 1900 | CG108: 1900 | CH108: 2009 | CI108: 1900 | CJ108: 1900 | CK108: 1900 | CL108: 1900 | CM108: 1900 | CN108: 1900 | CO108: 1900 | CP108: 1900 | CQ108: 1900 | CR108: 1900 | CS108: 1978 | CT108: 1979 | CU108: 2002 | CV108: 1998 | CW108: 1998 | CX108: 2009 | CY108: 2009 | CZ108: 1900 | DA108: 2008 | DB108: 2006 | DC108: 1986 | DD108: 2007 | DE108: 1900 | DF108: 1900 | DG108: 1900 | DH108: 1900 | DI108: 1900 | DJ108: 1900 | DK108: 1900 | DL108: 1900 | DM108: 1900 | DN108: 1900 | DO108: 1900 | DP108: 1900 | DQ108: 1900 | DR108: 1900 | DS108: 1900 | DT108: 1900 | DU108: 1900 | DV108: 1900
A109: 1978-11-01 | B109: 1982-06-11 | C109: 2002-06-14 | G109: 2011-06-17 | J109: 1990-01-03 | K109: 1989-12-14 | S109: 2006-11-09 | AI109: Okuyor | AJ109: Boş | AK109: Kullanılabilir | AL109: 1984-09-24 | AM109: 1976-10-15 | AN109: 1998-08-31 | AO109: 1999-09-06 | AP109: 1998-09-02 | AQ109: 2008-09-09 | AR109: 2008-09-04 | AT109: 2008-09-05 | AU109: 2007-08-21 | AV109: 1977-09-09 | AW109: 1992-09-16 | BP109: 1978 | BQ109: 1982 | BR109: 2002 | BS109: 1900 | BT109: 1900 | BU109: 1900 | BV109: 2011 | BW109: 1900 | BX109: 1900 | BY109: 1990 | BZ109: 1989 | CA109: 1900 | CB109: 1900 | CC109: 1900 | CD109: 1900 | CE109: 1900 | CF109: 1900 | CG109: 1900 | CH109: 2006 | CI109: 1900 | CJ109: 1900 | CK109: 1900 | CL109: 1900 | CM109: 1900 | CN109: 1900 | CO109: 1900 | CP109: 1900 | CQ109: 1900 | CR109: 1900 | CS109: 1984 | CT109: 1976 | CU109: 1998 | CV109: 1999 | CW109: 1998 | CX109: 2008 | CY109: 2008 | CZ109: 1900 | DA109: 2008 | DB109: 2007 | DC109: 1977 | DD109: 1992 | DE109: 1900 | DF109: 1900 | DG109: 1900 | DH109: 1900 | DI109: 1900 | DJ109: 1900 | DK109: 1900 | DL109: 1900 | DM109: 1900 | DN109: 1900 | DO109: 1900 | DP109: 1900 | DQ109: 1900 | DR109: 1900 | DS109: 1900 | DT109: 1900 | DU109: 1900 | DV109: 1900
A110: 1991-06-07 | B110: 1989-09-12 | C110: 2007-06-15 | G110: 2011-07-01 | J110: 1979-04-17 | K110: 1989-05-16 | S110: 2008-08-28 | AI110: Okuyor | AJ110: Boş | AK110: Kullanılabilir | AL110: 1972-10-15 | AM110: 1984-09-17 | AN110: 1997-09-12 | AO110: 2001-09-17 | AP110: 2003-08-28 | AQ110: 2009-09-09 | AR110: 2007-08-31 | AT110: 2008-09-05 | AU110: 2006-08-31 | AV110: 1978-10-16 | AW110: 2002-09-09 | BP110: 1991 | BQ110: 1989 | BR110: 2007 | BS110: 1900 | BT110: 1900 | BU110: 1900 | BV110: 2011 | BW110: 1900 | BX110: 1900 | BY110: 1979 | BZ110: 1989 | CA110: 1900 | CB110: 1900 | CC110: 1900 | CD110: 1900 | CE110: 1900 | CF110: 1900 | CG110: 1900 | CH110: 2008 | CI110: 1900 | CJ110: 1900 | CK110: 1900 | CL110: 1900 | CM110: 1900 | CN110: 1900 | CO110: 1900 | CP110: 1900 | CQ110: 1900 | CR110: 1900 | CS110: 1972 | CT110: 1984 | CU110: 1997 | CV110: 2001 | CW110: 2003 | CX110: 2009 | CY110: 2007 | CZ110: 1900 | DA110: 2008 | DB110: 2006 | DC110: 1978 | DD110: 2002 | DE110: 1900 | DF110: 1900 | DG110: 1900 | DH110: 1900 | DI110: 1900 | DJ110: 1900 | DK110: 1900 | DL110: 1900 | DM110: 1900 | DN110: 1900 | DO110: 1900 | DP110: 1900 | DQ110: 1900 | DR110: 1900 | DS110: 1900 | DT110: 1900 | DU110: 1900 | DV110: 1900
A111: 1992-06-05 | B111: 1990-09-11 | C111: 2000-06-16 | G111: 2011-06-17 | J111: 1979-11-16 | K111: 1993-07-30 | S111: 2007-08-06 | AI111: Okuyor | AJ111: Boş | AK111: Kullanılabilir | AL111: 1975-10-15 | AM111: 1988-09-19 | AN111: 2000-08-23 | AO111: 1998-09-02 | AP111: 2001-09-13 | AQ111: 2009-09-09 | AR111: 2007-08-31 | AT111: 2009-09-09 | AU111: 2010-09-07 | AV111: 1978-10-16 | AW111: 1992-09-18 | BP111: 1992 | BQ111: 1990 | BR111: 2000 | BS111: 1900 | BT111: 1900 | BU111: 1900 | BV111: 2011 | BW111: 1900 | BX111: 1900 | BY111: 1979 | BZ111: 1993 | CA111: 1900 | CB111: 1900 | CC111: 1900 | CD111: 1900 | CE111: 1900 | CF111: 1900 | CG111: 1900 | CH111: 2007 | CI111: 1900 | CJ111: 1900 | CK111: 1900 | CL111: 1900 | CM111: 1900 | CN111: 1900 | CO111: 1900 | CP111: 1900 | CQ111: 1900 | CR111: 1900 | CS111: 1975 | CT111: 1988 | CU111: 2000 | CV111: 1998 | CW111: 2001 | CX111: 2009 | CY111: 2007 | CZ111: 1900 | DA111: 2009 | DB111: 2010 | DC111: 1978 | DD111: 1992 | DE111: 1900 | DF111: 1900 | DG111: 1900 | DH111: 1900 | DI111: 1900 | DJ111: 1900 | DK111: 1900 | DL111: 1900 | DM111: 1900 | DN111: 1900 | DO111: 1900 | DP111: 1900 | DQ111: 1900 | DR111: 1900 | DS111: 1900 | DT111: 1900 | DU111: 1900 | DV111: 1900
A112: 1975-07-12 | B112: 1980-06-23 | C112: 2004-08-03 | G112: 2011-06-17 | J112: 1987-08-12 | K112: 1996-09-09 | S112: 2008-08-05 | AI112: Okuyor | AJ112: Boş | AK112: Kullanılabilir | AL112: 1978-10-15 | AM112: 1976-10-15 | AN112: 2004-08-26 | AO112: 2001-09-17 | AP112: 1998-09-02 | AQ112: 2009-09-09 | AR112: 2008-09-08 | AT112: 2008-09-08 | AU112: 2010-09-07 | AV112: 1978-10-11 | AW112: 1992-09-22 | BP112: 1975 | BQ112: 1980 | BR112: 2004 | BS112: 1900 | BT112: 1900 | BU112: 1900 | BV112: 2011 | BW112: 1900 | BX112: 1900 | BY112: 1987 | BZ112: 1996 | CA112: 1900 | CB112: 1900 | CC112: 1900 | CD112: 1900 | CE112: 1900 | CF112: 1900 | CG112: 1900 | CH112: 2008 | CI112: 1900 | CJ112: 1900 | CK112: 1900 | CL112: 1900 | CM112: 1900 | CN112: 1900 | CO112: 1900 | CP112: 1900 | CQ112: 1900 | CR112: 1900 | CS112: 1978 | CT112: 1976 | CU112: 2004 | CV112: 2001 | CW112: 1998 | CX112: 2009 | CY112: 2008 | CZ112: 1900 | DA112: 2008 | DB112: 2010 | DC112: 1978 | DD112: 1992 | DE112: 1900 | DF112: 1900 | DG112: 1900 | DH112: 1900 | DI112: 1900 | DJ112: 1900 | DK112: 1900 | DL112: 1900 | DM112: 1900 | DN112: 1900 | DO112: 1900 | DP112: 1900 | DQ112: 1900 | DR112: 1900 | DS112: 1900 | DT112: 1900 | DU112: 1900 | DV112: 1900
